Workbook

Sheet _TM_Uvod (hidden)
A1: Left | B1: Top | C1: Right | D1: Bottom | E1: Ref
A2: 1 | B2: 12 | C2: 2 | D2: 12 | E2: $A$12:$B$12

Sheet (Naslovna)
A1: v_2.11/2020
B2: Prilog 9.2.1 | I2: Srednjoročni financijski plan poslovanja
B3: Ministarstvo prostornoga uređenja, graditeljstva i državne imovine
B9: Srednjoročni financijski plan poslovanja
C13: ="za razdoblje "&Podloga!B7 -> za razdoblje 2024. - 2026.
C19: =HYPERLINK("#Uvod!A1","Uvod") -> Uvod
C21: =HYPERLINK("#Podloga!A1","Podloga za izradu plana") -> Podloga za izradu plana
C23: =HYPERLINK("#'Tijela društva'!A1","Tijela društva") -> Tijela društva
C25: =HYPERLINK("#'Vl. struktura'!A1","Vlasnička struktura") -> Vlasnička struktura
C27: =HYPERLINK("#Bilanca!A1","Izvještaj o financijskom položaju ") -> Izvještaj o financijskom položaju
C29: =HYPERLINK("#RDG!A1","Račun dobiti i gubitka") -> Račun dobiti i gubitka
C31: =HYPERLINK("#'NT dir.'!A1","Izvještaj o novčanom toku (direktna metoda)") -> Izvještaj o novčanom toku (direktna metoda)
C33: =HYPERLINK("#'NT indir.'!A1","Izvještaj o novčanom toku (indirektna metoda)") -> Izvještaj o novčanom toku (indirektna metoda)
C35: =HYPERLINK("#MFIN!A1","Podaci za Ministarstvo financija") -> Podaci za Ministarstvo financija
C37: =HYPERLINK("#'Sektorski pokazatelji'!A1","Ključni sektorski pokazatelji") -> Ključni sektorski pokazatelji

Sheet Naslovna (hidden)
B2: Prilog 9.2.1 | I2: Srednjoročni financijski plan poslovanja
B3: Ministarstvo državne imovine
B9: Srednjoročni financijski plan poslovanja
C13: ="za razdoblje "&Podloga!B7 -> za razdoblje 2024. - 2026.
C19: =HYPERLINK("#Uvod!A1","Uvod") -> Uvod
C21: =HYPERLINK("#Sadržaj!A1","Sadržaj") -> Sadržaj
C23: =HYPERLINK("#Podloga!A1","Podloga za izradu plana") -> Podloga za izradu plana
C25: =HYPERLINK("#Bilanca!A1","Izvještaj o financijskom položaju") -> Izvještaj o financijskom položaju
C27: =HYPERLINK("#RDG!A1","Račun dobiti i gubitka") -> Račun dobiti i gubitka
C29: =HYPERLINK("#'NT dir.'!A1","Izvještaj o novčanom toku (direktna metoda)") -> Izvještaj o novčanom toku (direktna metoda)
C31: =HYPERLINK("#'NT indir.'!A1","Izvještaj o novčanom toku (indirektna metoda)") -> Izvještaj o novčanom toku (indirektna metoda)
C33: =HYPERLINK("#MFIN!A1","Podaci za Ministarstvo financija") -> Podaci za Ministarstvo financija
C35: =HYPERLINK("#Dashboard!A1","Dashboard") -> Dashboard
C37: =HYPERLINK("#DuPont!A1","DuPont analiza") -> DuPont analiza
C39: =HYPERLINK("#'Altman Integral (Basic)'!A1","Altman Integral (Basic)") -> Altman Integral (Basic)
C41: =HYPERLINK("#'Altman Integral (A)'!A1","Altman Integral (A model)") -> Altman Integral (A model)
C43: =HYPERLINK("#'Altman Integral (B)'!A1","Altman Integral (B model)") -> Altman Integral (B model)
C45: =HYPERLINK("#'Zračne luke'!A1","Ključni sektorski pokazatelji") -> Ključni sektorski pokazatelji

Sheet Uvod
A1: Prilog: Podloga za izradu srednjoročnog financijskog plana poslovanja
A3: Sukladno važećim zakonskim i podzakonskim propisima sve pravne osobe na koje se odnosi Uputa za izradu i dostavu planova i izvještaja o poslovanju, dužne su dostavljati planove poslovanja Primateljima planova i izvještaja kako je definirano Uputom.
A5: Kao što je propisano u Uputi za izradu i dostavu planova i izvještaja o poslovanju, ovaj dokument sadrži propisanu formu većine potrebnih sastavnica plana poslovanja.
A7: Sve pravne osobe na koje se odnosi Uputa za izradu i dostavu planova i izvještaja o poslovanju obvezne su popuniti: Zelene Listove u Excel podlozi: Prvi List “Podloga” → Subjekti izvještavanja trebaju unijeti osnovne informacije o društvu, na primjer: ime društva, adresa, članovi Uprave, temeljni kapital, planirane investicije (kratki opis), vrijednost zaprimljenih subvencija i donacija itd. Također, Subjekti izvještavanja trebaju odabrati metodu pripreme Izvještaja o novčanom toku (direktna ili indirektna), popuniti informacije o broju izdanih dionica, njihovoj vrijednosti te o prosječnom broju zaposlenika u promatranom razdoblju. Podloge za planske financijske izvještaje (Listovi: “Bilanca”, “RDG”, “NT dir.” ili “NT. indir.”) → Subjekti izvještavanja trebaju unijeti stvarne podatke. Napomena: Podloge za planske izvještaje pripremljene su u skladu s standardnim formatima za financijsko izvještavanje u Republici Hrvatskoj (kako je utvrđeno Zakonom). Specijalni List za Ministarstvo financija → Subjekti izvještavanja trebaju unijeti specifične podatke koji su traženi od strane Ministarstva financija poput: iznosa državnih subvencija, investicija, iznosa isplaćenih dividendi itd. Specifične sektorske pokazatelje (narančasti Listovi) → navedeni Listovi uključuju operativne, financijske, tržišne i razvojne pokazatelje. Subjekti izvještavanja trebaju popuniti pokazatelje za industriju u kojoj posluju.
A12: Objašnjenje boja Listova:
B14: Listovi s osnovnim informacijama i uputama
B15: Listovi s financijskim izvještajima (potrebno unijeti podatke)
B16: Listovi s osnovnim pokazateljima o poslovanju (pokazatelji su dostupni nakon što su ispunjene Listovi s podacima iz financijskih izvještaja)
B17: Listovi s specifičnim sektorskim pokazateljima

Sheet Sadržaj (hidden)
A1: Sadržaj
A2: Podloga za izradu plana | B2: =HYPERLINK("#Podloga!A1","Podloga za izradu plana") -> Podloga za izradu plana
A3: Izvještaj o financijskom položaju | B3: =HYPERLINK("#Bilanca!A1","Bilanca") -> Bilanca
A4: Račun dobiti i gubitka | B4: =HYPERLINK("#RDG!A1","RDG") -> RDG
A5: Izvještaj o novčanom toku (direktna metoda) | B5: =HYPERLINK("#'NT dir.'!A1","NT dir.") -> NT dir.
A6: Izvještaj o novčanom toku (indirektna metoda) | B6: =HYPERLINK("#'NT indir.'!A1","NT indir.") -> NT indir.
A7: Podaci za Ministarstvo financija | B7: =HYPERLINK("#MFIN!A1","MFIN") -> MFIN
A8: Dashboard | B8: =HYPERLINK("#Dashboard!A1","Dashboard") -> Dashboard
A9: DuPont | B9: =HYPERLINK("#DuPont!A1","DuPont") -> DuPont
A10: Altman Integral
A11: • Za proizvodna trgovačka društva koja kotiraju na burzi (Basic model) | B11: =HYPERLINK("#'Altman Integral (Basic)'!A1","Altman - Basic") -> Altman - Basic
A12: • Za trgovačka društva koja ne kotiraju na burzi (A model) | B12: =HYPERLINK("#'Altman Integral (A)'!A1","Altman - A") -> Altman - A
A13: • Za neproizvodna trgovačka društva (B model) koja kotiraju na burzi | B13: =HYPERLINK("#'Altman Integral (B)'!A1","Altman - B") -> Altman - B
A14: Ključni sektorski pokazatelji poslovanja

Sheet _TM_Podloga (hidden)
A1: Left | B1: Top | C1: Right | D1: Bottom | E1: Ref
A2: 1 | B2: 19 | C2: 9 | D2: 22 | E2: $A$19:$I$22
A3: 1 | B3: 1 | C3: 9 | D3: 10 | E3: $A$1:$I$10
A4: 1 | B4: 11 | C4: 9 | D4: 17 | E4: $A$11:$I$17

Sheet Podloga
A1: Informacije o trgovačkom društvu
A2: Naziv društva: | B2: Zračna luka Osijek d.o.o.
A3: Adresa društva: | B3: Klisa, Vukovarska 67, Osijek
A4: Plan je konsolidiran: | B4: Ne
A5: Plan je odobren / nadležnog tijela / datum: | B5: Ne | C5: Skupština društva | E5: =IF(B5="DA", "< Upisati datum", "") -> 
A6: Primjena računovodstvenih standarda: | B6: MSFI
A7: Sastavlja se za razdoblje: | B7: 2024. - 2026.
A8: Veličina subjekta: | B8: Srednji
A9: Osnovna djelatnost društva: | B9: Uslužne djelatnosti u svezi sa zračnim prijevozom.
A10: Pravni oblik: | B10: d.o.o.
A11: OIB: | B11: 48188420009
A12: Da li je društvo u procesu restrukturiranja: | B12: Ne | C12: =IF(B12="DA","Potrebno postupiti prema točki 6.3.1. Upute","") -> 
A13: Primjena Kodeksa korporativnog upravljanja trgovačkim društvima | B13: DA
A14: Temeljni akt (datum zadnje promjene): | B14: 2017-11-22
A15: Datum zadnje održane skupštine: | B15: 13.12.2023. | C15: =IF(SUM(B15)>0,"Molimo dostaviti zapisnike.","") -> 
A16: Opis strateških i financijskih ciljeva / planiranog poslovanja: | B16: Povećanje broja destinacija, razvoj robnog (cargo) prometa i investicije u aerodromsku infrastrukturu. Planiran je pozitivan financijski rezultat za sve tri godine razdoblja.
A17: Korištena metoda kod izvještaja o novčanom toku: | B17: Indirektna
A18: Datum ispunjavanja plana: | B18: 19.12.2023.
A19: Razrada planiranog poslovanja trgovačkog društva
A20: Planirane investicije za razdoblje: | B20: 3300000 | C20: Financiranje rekonstrukcije putničke zgrade, financiranje studije izvodljivosti, idejnog rješenja i projektno-tehničke dokumentacije za projekt Rekonstrukcije i proširenja Zračne luke Osijek.
A21: Izvor sredstava za investicije (iznos - izvor): | B21: MMPI - kapitalna ulaganja prema Planu nabave zaštitne i sigurnosne opreme i izgradnje infrastrukture
A22: Sudski sporovi sa značajnim utjecajem na poslovni rezultat:
A23: Planirana bespovratna sredstva iz EU (naziv projekta / izvor-fond / iznos u kn):
A24: Planirana državna jamstva: | B24: 2.335.921 eur | D24: =IF(B24>0, "Molimo opisati u opisnom dijelu.","") -> Molimo opisati u opisnom dijelu.
A25: Planirane subvencije (iznos / opis): | B25: 583.980 eur | D25: -
A26: Planirane donacije (iznos / opis): | B26: 0 | D26: -
A28: Tržišni pokazatelji dionica*
B29: =LEFT(B7,4)-3&". ostvareno" -> 2021. ostvareno | C29: =LEFT(B7,4)-2&". ostvareno" -> 2022. ostvareno | D29: =LEFT(B7,4)-1&". procijenjeno" -> 2023. procijenjeno
A30: Broj izdanih dionica:
A31: Tržišna vrijednost dionice:
A33: Dodatne informacije za izračun ključnih pokazatelja poslovanja
B34: =LEFT(B7,4)-3&". ostvareno" -> 2021. ostvareno | C34: =LEFT(B7,4)-2&". ostvareno" -> 2022. ostvareno | D34: =LEFT(B7,4)-1&". procijenjeno" -> 2023. procijenjeno | E34: =LEFT(B7,4)-1&". planirano" -> 2023. planirano | F34: =LEFT(B7,4)&". planirano" -> 2024. planirano | G34: =LEFT(B7,4)+1&". planirano" -> 2025. planirano | H34: =LEFT(B7,4)+2&". planirano" -> 2026. planirano
A35: Prosječan broj zaposlenih za izvještajno razdoblje:
A36: Investicije za razdoblje (HRK 000):
A37: Neto radni kapital (početno - završno stanje neto radnog kapitala)
A40: * Tržišni pokazatelji dionica ispunjavaju se za zadnji dan u razdoblju

Sheet _TM_Bilanca (hidden)
A1: Left | B1: Top | C1: Right | D1: Bottom | E1: Ref
A2: 3 | B2: 105 | C2: 5 | D2: 105 | E2: $C$105:$E$105

Sheet Vl. struktura
A1: Vlasnička struktura na dan: | D1: =IF(ISBLANK(Podloga!B18),"",Podloga!B18) -> 19.12.2023.
A3: Promjene u Vlasničkoj strukturi društva od posljednjeg izvještaja / plana:
A5: Društvo s ograničenom odgovornošću
A6: R.Br. | B6: Naziv društva | C6: Poštanski broj sjedišta | D6: Sjedište | E6: OIB društva | F6: Temeljni kapital (kn) | G6: Nominalna vrijednost imatelja RH (kn) | H6: % vlas. RH | I6: Nominalna vrijednost ost. drž. Imatelja (kn) | J6: % vlas. ostalih drž. Imatelja | K6: Teret | L6: Sudski spor
B7: =IF(ISBLANK(Podloga!B2),"",Podloga!B2) -> Zračna luka Osijek d.o.o. | C7: 31207 | D7: Klisa | E7: 48188420009 | F7: 3.478.399 eur | G7: 1.913.119 eur | H7: 55 | I7: 1.565.279 eur | J7: 45 | K7: nema | L7: nema
A11: Dioničko društvo
A12: R. Br. | B12: Naziv društva | C12: Poštanski broj sjedišta | D12: Sjedište | E12: Oznaka VP | F12: OIB društva | G12: Temeljni kapital (kn) | H12: Izdana količina dionica | I12: Nominalna vrijednost dionice (kn) | J12: broj dionica čiji je imatelj RH | K12: % vlas. RH | L12: broj dionica ost. drž. imatelja | M12: % vlas.ost. drž. Imatelja | N12: Teret | O12: Sudski spor
B13: =IF(ISBLANK(Podloga!B2),"",Podloga!B2) -> Zračna luka Osijek d.o.o.
A18: NAPOMENA
A19: * popunjava se tablica ovisno o pravnom obliku pravne osobe od posebnog interesa

Sheet Tijela društva
B1: Tijela društva
B3: Datum ispunjavanja plana: | G3: ='Vl. struktura'!D1 -> 19.12.2023.
B4: Promjene u Tijelima društva od posljednjeg plana / izvještaja:
B6: Uprava
B7: R.Br. | C7: Ime | D7: Prezime | E7: Funkcija | G7: Spol | H7: Početak mandata | I7: Kraj mandata | J7: Kontakt e-mail | K7: Broj telefona | L7: Broj mobitela
B8: 1. | C8: Ivan | D8: Kos | E8: Direktor | G8: M | H8: 28.04.2021. | I8: 28.04.2022. | J8: ivan.kos@osijek-airport.hr | K8: 031 514 405
B9: 2
B10: 3
B11: 4
B12: 5
B14: Nadzorni odbor*
B15: R.Br. | C15: Ime | D15: Prezime | E15: Funkcija | F15: Predstavnik | G15: Spol | H15: Početak mandata | I15: Kraj mandata | J15: Kontakt e-mail | K15: Broj telefona | L15: Broj mobitela
B16: 1 | C16: Krešimir | D16: Trtanj | E16: Član | F16: Grad Osijek | G16: M | H16: 06.07.2022. | I16: 6.7.2026.
B17: 2 | C17: Maja | D17: Alduk | E17: Član | F17: Osječko - baranjska županija | G17: Ž | H17: 21.06.2023. | I17: 21.6.2027.
B18: 3 | C18: Jerko | D18: Glavaš | E18: Član | F18: RH | G18: M | H18: 13.12.2023. | I18: 13.12.2027.
B19: 4
B20: 5
B22: Revizijski odbor
B23: R.Br. | C23: Ime | D23: Prezime | E23: Funkcija | G23: Spol | H23: Početak mandata | I23: Kraj mandata | J23: Kontakt e-mail | K23: Broj telefona | L23: Broj mobitela
B24: 1 | C24: Ivan | D24: Begović | E24: Predsjednik | G24: M | H24: 2021-08-30 | I24: 30.08.2025. | J24: ivanbego@gmail.com | K24: - | L24: 091 450 2903
B25: 2 | C25: Milena | D25: Kordi | E25: Član | G25: Ž | H25: 25.08.2020. | I25: 25.08.2024. | J25: milena.kordi@osijek.hr | K25: 031 229 190 | L25: 098 486 379
B26: 3 | C26: Suzana | D26: Tretinjak | E26: Član | G26: Ž | H26: 25.08.2020 | I26: 25.08.2024. | J26: suzana.tretinjak@obz.hr | K26: 031 221 716 | L26: 099 659 8130
B27: 4
B28: 5
B31: Osobe ovlaštene za komunikaciju s Primateljima
B32: R.Br. | C32: Ime | D32: Prezime | E32: Funkcija | J32: Kontakt e-mail | K32: Broj telefona | L32: Broj mobitela
B33: 1 | C33: Ivan | D33: Kos | E33: Direktor | G33: M | H33: 28.04.2021 | I33: 28.24.2022. | J33: ivan.kos@osijek-airport.hr | K33: 031 514 405
B34: 2 | C34: Katarina | D34: Jelečević | E34: Rukovoditelj finacija i računovodstva | G34: Ž | H34: 01.06.2015. | I34: - | J34: katarina.jelecevic@osijek-airport.hr | K34: 031 514 440
B35: 3
B36: 4
B37: 5
B39: * Ako u društvu postoje pomoćna tijela nadzornog odbora (odbori. komisije, povjerenstva i sl.) potrebno ih je obrazložiti u opisnom dijelu (obavezno navesti članove).

Sheet Bilanca
A1: IZVJEŠTAJ O FINANCIJSKOM POLOŽAJU SA STANJEM NA 31.12. | C1: =IF(C68=C131,Podloga!B34&" bilancira",Podloga!B34&" ne bilancira") -> 2021. ostvareno ne bilancira | D1: =IF(D68=D131,Podloga!C34&" bilancira",Podloga!C34&" ne bilancira") -> 2022. ostvareno ne bilancira | E1: =IF(E68=E131,Podloga!D34&" bilancira",Podloga!D34&" ne bilancira") -> 2023. procijenjeno ne bilancira | F1: =IF(F68=F131,Podloga!E34&" bilancira",Podloga!E34&" ne bilancira") -> 2023. planirano ne bilancira | G1: =IF(G68=G131,Podloga!F34&" bilancira",Podloga!F34&" ne bilancira") -> 2024. planirano bilancira | H1: =IF(H68=H131,Podloga!G34&" bilancira",Podloga!G34&" ne bilancira") -> 2025. planirano ne bilancira | I1: =IF(I68=I131,Podloga!H34&" bilancira",Podloga!H34&" ne bilancira") -> 2026. planirano ne bilancira
A2: Obveznik: | B2: =IF(ISBLANK(Podloga!B2),"",Podloga!B2) -> Zračna luka Osijek d.o.o. | C2: I Z N O S (u 000 kn) | J2: ="Indeks "& RIGHT(LEFT(Podloga!C34,7),5) &" / "& RIGHT(LEFT(Podloga!B34,7),5) -> Indeks 22. o / 21. o | K2: ="Indeks "& RIGHT(LEFT(Podloga!D34,8),6) &" / "& RIGHT(LEFT(Podloga!C34,7),5) -> Indeks 23. pr / 22. o | L2: ="Indeks "& RIGHT(LEFT(Podloga!E34,8),6) &" / "& RIGHT(LEFT(Podloga!C34,7),5) -> Indeks 23. pl / 22. o | M2: ="Indeks "& RIGHT(LEFT(Podloga!F34,8),6) &" / "& RIGHT(LEFT(Podloga!E34,8),6) -> Indeks 24. pl / 23. pl | N2: ="Indeks "& RIGHT(LEFT(Podloga!G34,8),6) &" / "& RIGHT(LEFT(Podloga!F34,8),6) -> Indeks 25. pl / 24. pl | O2: ="Indeks "& RIGHT(LEFT(Podloga!H34,8),6) &" / "& RIGHT(LEFT(Podloga!G34,8),6) -> Indeks 26. pl / 25. pl
B3: A K T I V A | C3: =Podloga!B34 -> 2021. ostvareno | D3: =Podloga!C34 -> 2022. ostvareno | E3: =Podloga!D34 -> 2023. procijenjeno | F3: =Podloga!E34 -> 2023. planirano | G3: =Podloga!F34 -> 2024. planirano | H3: =Podloga!G34 -> 2025. planirano | I3: =Podloga!H34 -> 2026. planirano
A4: 1. | B4: POTRAŽIVANJA ZA UPISANI A NEUPLAĆENI KAPITAL | J4: =IFERROR(D4/C4*100,) -> 0 | K4: =IFERROR(E4/D4*100,) -> 0 | L4: =IFERROR(F4/D4*100,) -> 0 | M4: =IFERROR(G4/F4*100,) -> 0 | N4: =IFERROR(H4/G4*100,) -> 0 | O4: =IFERROR(I4/H4*100,) -> 0
A5: 2. | B5: DUGOTRAJNA IMOVINA | C5: =C6+C13+C23+C34+C39 -> 12119.412 | D5: =D6+D13+D23+D34+D39 -> 12395.7699 | E5: =E6+E13+E23+E34+E39 -> 12232.602 | F5: 18497.026 | G5: 19752.51 | H5: 20393.454 | I5: 21444.778 | J5: 102.2802913 | K5: 98.68368079 | L5: 149.2204692 | M5: 106.7874911 | N5: 103.2448737 | O5: 105.1552032
A6: 2.1. | B6: Nematerijalna imovina | C6: =SUM(C7:C12) -> 10.562 | D6: =SUM(D7:D12) -> 255.323 | E6: =SUM(E7:E12) -> 211.061 | F6: 39.763 | G6: 195.3 | H6: 165.789 | I6: 172.728 | J6: 2417.373603 | K6: 82.66431148 | L6: 15.57360676 | M6: 491.1601237 | N6: 84.88940092 | O6: 104.1854405
A7: 2.1.1. | B7: Izdaci za razvoj | J7: =IFERROR(D7/C7*100,) -> 0 | K7: =IFERROR(E7/D7*100,) -> 0 | L7: =IFERROR(F7/D7*100,) -> 0 | M7: =IFERROR(G7/F7*100,) -> 0 | N7: =IFERROR(H7/G7*100,) -> 0 | O7: =IFERROR(I7/H7*100,) -> 0
A8: 2.1.2. | B8: Koncesije, patenti, licencencije, robne i uslužne marke, softver i ostala prava | C8: 10.562 | D8: 255.323 | E8: 211.061 | F8: 39.763 | G8: 195.3 | H8: 165.789 | I8: 172.728 | J8: 2417.373603 | K8: 82.66431148 | L8: 15.57360676 | M8: 491.1601237 | N8: 84.88940092 | O8: 104.1854405
A9: 2.1.3. | B9: Goodwill | J9: 0 | K9: 0 | L9: 0 | M9: 0 | N9: 0 | O9: 0
A10: 2.1.4. | B10: Predujmovi za nabavu nematerijalne imovine | J10: 0 | K10: 0 | L10: 0 | M10: 0 | N10: 0 | O10: 0
A11: 2.1.5. | B11: Nematerijalna imovina u pripremi | J11: 0 | K11: 0 | L11: 0 | M11: 0 | N11: 0 | O11: 0
A12: 2.1.6. | B12: Ostala nematerijalna imovina | J12: 0 | K12: 0 | L12: 0 | M12: 0 | N12: 0 | O12: 0
A13: 2.2. | B13: Materijalna imovina | C13: =SUM(C14:C22) -> 12099.639 | D13: =SUM(D14:D22) -> 12131.2359 | E13: =SUM(E14:E22) -> 12007.45 | F13: 18448.052 | G13: 19542.2 | H13: 20212.465 | I13: 21256.65 | J13: 100.2611392 | K13: 98.97961015 | L13: 152.0706724 | M13: 105.9309677 | N13: 103.4298339 | O13: 105.1660448
A14: 2.2.1. | B14: Zemljište | C14: 2033.887 | D14: 2033.887 | E14: 2033.98 | F14: 2033.977 | G14: 2033.98 | H14: 2033.98 | I14: 2033.98 | J14: 100 | K14: 100.0045725 | L14: 100.004425 | M14: 100.0001475 | N14: 100 | O14: 100
A15: 2.2.2. | B15: Građevinski objekti | C15: 8363.099 | D15: 8280.651 | E15: 8204.32 | F15: 13560.4778 | G15: 16073.23 | H15: 16445.485 | I15: 17448.67 | J15: 99.01414535 | K15: 99.07820049 | L15: 163.7610111 | M15: 118.529968 | N15: 102.3159937 | O15: 106.1000633
A16: 2.2.3. | B16: Postrojenja i oprema | C16: 584.165 | D16: 695.694 | E16: 689.25 | F16: 1285.1854 | G16: 721.25 | H16: 930 | I16: 934 | J16: 119.0920374 | K16: 99.07373069 | L16: 184.7342941 | M16: 56.12030762 | N16: 128.9428076 | O16: 100.4301075
A17: 2.2.4. | B17: Alati, pogonski inventar i transportna imovina | C17: 394.505 | D17: 473.9999 | E17: 423.25 | F17: 755.1476 | G17: 465.24 | H17: 512 | I17: 542 | J17: 120.1505431 | K17: 89.29326778 | L17: 159.3138733 | M17: 61.60914767 | N17: 110.0507265 | O17: 105.859375
A18: 2.2.5. | B18: Biološka imovina | J18: 0 | K18: 0 | L18: 0 | M18: 0 | N18: 0 | O18: 0
A19: 2.2.6. | B19: Predujmovi za materijalnu imovinu | J19: 0 | K19: 0 | L19: 0 | M19: 0 | N19: 0 | O19: 0
A20: 2.2.7. | B20: Materijalna imovina u pripremi | C20: 710.899 | D20: 631.619 | E20: 641.25 | F20: 744.8881 | G20: 231.25 | H20: 268 | I20: 272 | J20: 88.84792354 | K20: 101.5248116 | L20: 117.9331369 | M20: 31.04493145 | N20: 115.8918919 | O20: 101.4925373
A21: 2.2.8. | B21: Ostala materijalna imovina | C21: 13.084 | D21: 15.385 | E21: 15.4 | F21: 68.3761 | G21: 17.25 | H21: 23 | I21: 26 | J21: 117.586365 | K21: 100.0974976 | L21: 444.4335392 | M21: 25.22811333 | N21: 133.3333333 | O21: 113.0434783
A22: 2.2.9. | B22: Ulaganja u nekretnine | J22: 0 | K22: 0 | L22: 0 | M22: 0 | N22: 0 | O22: 0
A23: 2.3. | B23: Dugotrajna financijska imovina | C23: =SUM(C24:C33) -> 9.211 | D23: =SUM(D24:D33) -> 9.211 | E23: =SUM(E24:E33) -> 14.091 | F23: 9.211 | G23: 15.01 | H23: 15.2 | I23: 15.4 | J23: 100 | K23: 152.9801325 | L23: 100 | M23: 162.9573336 | N23: 101.2658228 | O23: 101.3157895
A24: 2.3.1. | B24: Ulaganja u udjele (dionice) poduzetnika unutar grupe | J24: 0 | K24: 0 | L24: 0 | M24: 0 | N24: 0 | O24: 0
A25: 2.3.2. | B25: Ulaganja u ostale vrijednosne papire poduzetnika unutar grupe | J25: 0 | K25: 0 | L25: 0 | M25: 0 | N25: 0 | O25: 0
A26: 2.3.3. | B26: Dani zajmovi, depoziti i slično poduzetnicima unutar grupe | J26: 0 | K26: 0 | L26: 0 | M26: 0 | N26: 0 | O26: 0
A27: 2.3.4. | B27: Ulaganja u udjele (dionice) društava povezanih sudjelujućim interesom | C27: 9.211 | D27: 9.211 | E27: 14.091 | F27: 9.211 | G27: 15.01 | H27: 15.2 | I27: 15.4 | J27: 100 | K27: 152.9801325 | L27: 100 | M27: 162.9573336 | N27: 101.2658228 | O27: 101.3157895
A28: 2.3.5. | B28: Ulaganja u ostale vrijednosne papire društava povezanih sudjelujućim interesom | J28: 0 | K28: 0 | L28: 0 | M28: 0 | N28: 0 | O28: 0
A29: 2.3.6. | B29: Dani zajmovi, depoziti i slično društvima povezanim sudjelujućim interesom | J29: 0 | K29: 0 | L29: 0 | M29: 0 | N29: 0 | O29: 0
A30: 2.3.7. | B30: Ulaganja u vrijednosne papire | J30: 0 | K30: 0 | L30: 0 | M30: 0 | N30: 0 | O30: 0
A31: 2.3.8. | B31: Dani zajmovi, depoziti i slično | J31: 0 | K31: 0 | L31: 0 | M31: 0 | N31: 0 | O31: 0
A32: 2.3.9. | B32: Ostala ulaganja koja se obračunavaju metodom udjela | J32: 0 | K32: 0 | L32: 0 | M32: 0 | N32: 0 | O32: 0
A33: 2.3.10. | B33: Ostala dugotrajna financijska imovina | J33: 0 | K33: 0 | L33: 0 | M33: 0 | N33: 0 | O33: 0
A34: 2.4. | B34: Potraživanja | C34: =SUM(C35:C38) -> 0 | D34: =SUM(D35:D38) -> 0 | E34: =SUM(E35:E38) -> 0 | F34: 0 | G34: 0 | H34: 0 | I34: 0 | J34: 0 | K34: 0 | L34: 0 | M34: 0 | N34: 0 | O34: 0
A35: 2.4.1. | B35: Potraživanja od poduzetnika unutar grupe | J35: 0 | K35: 0 | L35: 0 | M35: 0 | N35: 0 | O35: 0
A36: 2.4.2. | B36: Potraživanja od društava povezanih sudjelujućim interesom | J36: =IFERROR(D36/C36*100,) -> 0 | K36: =IFERROR(E36/D36*100,) -> 0 | L36: =IFERROR(F36/D36*100,) -> 0 | M36: =IFERROR(G36/F36*100,) -> 0 | N36: =IFERROR(H36/G36*100,) -> 0 | O36: =IFERROR(I36/H36*100,) -> 0
A37: 2.4.3. | B37: Potraživanja od kupaca | J37: 0 | K37: 0 | L37: 0 | M37: 0 | N37: 0 | O37: 0
A38: 2.4.4. | B38: Ostala potraživanja | J38: 0 | K38: 0 | L38: 0 | M38: 0 | N38: 0 | O38: 0
A39: 2.5. | B39: Odgođena porezna imovina | J39: 0 | K39: 0 | L39: 0 | M39: 0 | N39: 0 | O39: 0
A40: 3. | B40: KRATKOTRAJNA IMOVINA | C40: =C41+C49+C56+C66 -> 1303.8428 | D40: =D41+D49+D56+D66 -> 1085.4234 | E40: =E41+E49+E56+E66 -> 741.384 | F40: 932.3476 | G40: =G41+G49+G56+G66 -> 657.33 | H40: 721.459 | I40: 728.327 | J40: 83.24802653 | K40: 68.30366841 | L40: 85.8971347 | M40: 70.50267518 | N40: 109.7559825 | O40: 100.9519598
A41: 3.1. | B41: Zalihe | C41: =SUM(C42:C48) -> 27.5958 | D41: 33.2504 | E41: 37.238 | F41: 35.6436 | G41: 36.499 | H41: 39.551 | I41: 40.991 | J41: 120.4907993 | K41: 111.9926377 | L41: 107.1975074 | M41: 102.3998698 | N41: 108.3618729 | O41: 103.6408688
A42: 3.1.1. | B42: Sirovine i materijal | C42: 24.9057 | D42: 28.821 | E42: 32.008 | F42: 27.813 | G42: 30.789 | H42: 33.321 | I42: 34.251 | J42: =IFERROR(D42/C42*100,) -> 115.7204977 | K42: =IFERROR(E42/D42*100,) -> 111.0579092 | L42: =IFERROR(F42/D42*100,) -> 96.50255022 | M42: =IFERROR(G42/F42*100,) -> 110.7000324 | N42: =IFERROR(H42/G42*100,) -> 108.2237163 | O42: =IFERROR(I42/H42*100,) -> 102.7910327
A43: 3.1.2. | B43: Proizvodnja u tijeku | J43: 0 | K43: 0 | L43: 0 | M43: 0 | N43: 0 | O43: 0
A44: 3.1.3. | B44: Gotovi proizvodi | J44: 0 | K44: 0 | L44: 0 | M44: 0 | N44: 0 | O44: 0
A45: 3.1.4. | B45: Trgovačka roba | C45: 2.6901 | D45: 4.4294 | E45: 5.23 | F45: 7.8306 | G45: 5.71 | H45: 6.23 | I45: 6.74 | J45: 164.655589 | K45: 118.0746828 | L45: 176.7869237 | M45: 72.91906112 | N45: 109.1068301 | O45: 108.1861958
A46: 3.1.5. | B46: Predujmovi za zalihe | J46: 0 | K46: 0 | L46: 0 | M46: 0 | N46: 0 | O46: 0
A47: 3.1.6. | B47: Dugotrajna imovina namijenjena prodaji | D47: 0 | F47: 0 | J47: 0 | K47: 0 | L47: 0 | M47: 0 | N47: 0 | O47: 0
A48: 3.1.7. | B48: Biološka imovina | J48: 0 | K48: 0 | L48: 0 | M48: 0 | N48: 0 | O48: 0
A49: 3.2. | B49: Potraživanja | C49: =SUM(C50:C55) -> 371.477 | D49: =SUM(D50:D55) -> 281.245 | E49: =SUM(E50:E55) -> 403.353 | F49: 272.907 | G49: 268.83 | H49: 309.908 | I49: 297.086 | J49: 75.70993628 | K49: 143.4169496 | L49: 97.03532507 | M49: 98.50608449 | N49: 115.2802887 | O49: 95.86264311
A50: 3.2.1. | B50: Potraživanja od poduzetnika unutar grupe | J50: 0 | K50: 0 | L50: 0 | M50: 0 | N50: 0 | O50: 0
A51: 3.2.2. | B51: Potraživanja od društava povezanih sudjelujućim interesom | J51: 0 | K51: 0 | L51: 0 | M51: 0 | N51: 0 | O51: 0
A52: 3.2.3. | B52: Potraživanja od kupaca | C52: 91.317 | D52: 116.221 | E52: 186.862 | F52: 96.596 | G52: 103.524 | H52: 105.515 | I52: 106.432 | J52: 127.2720304 | K52: 160.7816143 | L52: 83.11406717 | M52: 107.1721396 | N52: 101.9232255 | O52: 100.8690707
A53: 3.2.4. | B53: Potraživanja od zaposlenika i članova poduzetnika | F53: =SUM(H53)/7.5345 -> 0 | G53: =SUM(I53)/7.5345 -> 0 | J53: 0 | K53: 0 | L53: 0 | M53: 0 | N53: 0 | O53: 0
A54: 3.2.5. | B54: Potraživanja od države i drugih institucija | C54: 83.157 | D54: 47.02 | E54: 64.632 | F54: 65.226 | G54: 41.542 | H54: 77.643 | I54: 78.654 | J54: 56.54364636 | K54: 137.4564015 | L54: 138.7196937 | M54: 63.68932634 | N54: 186.902412 | O54: 101.3021135
A55: 3.2.6. | B55: Ostala potraživanja | C55: 197.003 | D55: 118.004 | E55: 151.859 | F55: 111.085 | G55: 123.764 | H55: 126.75 | I55: 112 | J55: 59.89959544 | K55: 128.6897054 | L55: 94.13663944 | M55: 111.4137822 | N55: 102.4126563 | O55: 88.36291913
A56: 3.3. | B56: Kratkotrajna financijska imovina | C56: =SUM(C57:C65) -> 0 | D56: =SUM(D57:D65) -> 0 | E56: =SUM(E57:E65) -> 0 | F56: 0 | G56: 0 | H56: 0 | I56: 0 | J56: 0 | K56: 0 | L56: 0 | M56: 0 | N56: 0 | O56: 0
A57: 3.3.1. | B57: Ulaganja u udjele (dionice) poduzetnika unutar grupe | J57: 0 | K57: 0 | L57: 0 | M57: 0 | N57: 0 | O57: 0
A58: 3.3.2. | B58: Ulaganja u ostale vrijednosne papire poduzetnika unutar grupe | J58: 0 | K58: 0 | L58: 0 | M58: 0 | N58: 0 | O58: 0
A59: 3.3.3. | B59: Dani zajmovi, depoziti i slično poduzetnicima unutar grupe | J59: 0 | K59: 0 | L59: 0 | M59: 0 | N59: 0 | O59: 0
A60: 3.3.4. | B60: Ulaganja u udjele (dionice) društava povezanih sudjelujućim interesom | J60: 0 | K60: 0 | L60: 0 | M60: 0 | N60: 0 | O60: 0
A61: 3.3.5. | B61: Ulaganja u ostale vrijednosne papire društava povezanih sudjelujućim interesom | J61: 0 | K61: 0 | L61: 0 | M61: 0 | N61: 0 | O61: 0
A62: 3.3.6. | B62: Dani zajmovi, depoziti i slično društvima povezanim sudjelujućim interesom | J62: 0 | K62: 0 | L62: 0 | M62: 0 | N62: 0 | O62: 0
A63: 3.3.7. | B63: Ulaganja u vrijednosne papire | J63: 0 | K63: 0 | L63: 0 | M63: 0 | N63: 0 | O63: 0
A64: 3.3.8. | B64: Dani zajmovi, depoziti i slično | J64: 0 | K64: 0 | L64: 0 | M64: 0 | N64: 0 | O64: 0
A65: 3.3.9. | B65: Ostala financijska imovina | J65: 0 | K65: 0 | L65: 0 | M65: 0 | N65: 0 | O65: 0
A66: 3.4. | B66: Novac u banci i blagajni | C66: 904.77 | D66: 770.928 | E66: 300.793 | F66: 623.797 | G66: 352.001 | H66: 372 | I66: 390.25 | J66: 85.2070692 | K66: 39.01700288 | L66: 80.91507897 | M66: =IFERROR(G66/F66*100,) -> 56.4287741 | N66: =IFERROR(H66/G66*100,) -> 105.681518 | O66: 104.905914
A67: 4. | B67: PLAĆENI TROŠKOVI BUDUĆEG RAZDOBLJA I OBRAČUNATI PRIHODI | J67: 0 | K67: 0 | L67: 0 | M67: =IFERROR(G67/F67*100,) -> 0 | N67: =IFERROR(H67/G67*100,) -> 0 | O67: 0
A68: 5. | B68: UKUPNA AKTIVA | C68: =C4+C5+C40+C67 -> 13423.2548 | D68: =D4+D5+D40+D67 -> 13481.1933 | E68: =E4+E5+E40+E67 -> 12973.986 | F68: 19429.3736 | G68: =G4+G5+G40+G67 -> 20409.84 | H68: 21114.913 | I68: 22173.105 | J68: 100.4316278 | K68: 96.23766763 | L68: 144.1220608 | M68: 105.0463099 | N68: 103.4545739 | O68: 105.0115859
A69: 6. | B69: IZVANBILANČNI ZAPISI | J69: 0 | K69: 0 | L69: =IFERROR(G69/D69*100,) -> 0 | M69: =IFERROR(#REF!/G69*100,) -> 0 | N69: =IFERROR(H69/#REF!*100,) -> 0 | O69: 0
C73: I Z N O S (u 000 kn) | J73: ="Indeks "& RIGHT(LEFT(Podloga!C34,7),5) &" / "& RIGHT(LEFT(Podloga!B34,7),5) -> Indeks 22. o / 21. o | K73: ="Indeks "& RIGHT(LEFT(Podloga!D34,8),6) &" / "& RIGHT(LEFT(Podloga!C34,7),5) -> Indeks 23. pr / 22. o | L73: ="Indeks "& RIGHT(LEFT(Podloga!E34,8),6) &" / "& RIGHT(LEFT(Podloga!C34,7),5) -> Indeks 23. pl / 22. o | M73: ="Indeks "& RIGHT(LEFT(Podloga!F34,8),6) &" / "& RIGHT(LEFT(Podloga!E34,8),6) -> Indeks 24. pl / 23. pl | N73: ="Indeks "& RIGHT(LEFT(Podloga!G34,8),6) &" / "& RIGHT(LEFT(Podloga!F34,8),6) -> Indeks 25. pl / 24. pl | O73: ="Indeks "& RIGHT(LEFT(Podloga!H34,8),6) &" / "& RIGHT(LEFT(Podloga!G34,8),6) -> Indeks 26. pl / 25. pl
B74: P A S I V A | C74: =Podloga!B34 -> 2021. ostvareno | D74: =Podloga!C34 -> 2022. ostvareno | E74: =Podloga!D34 -> 2023. procijenjeno | F74: =Podloga!E34 -> 2023. planirano | G74: =Podloga!F34 -> 2024. planirano | H74: =Podloga!G34 -> 2025. planirano | I74: =Podloga!H34 -> 2026. planirano
A75: 1. | B75: KAPITAL I REZERVE | C75: =SUM(C76:C78,C84,C85,C89,C92,C95) -> 1888.535 | D75: =SUM(D76:D78,D84,D85,D89,D92,D95) -> 1532.155 | E75: =SUM(E76:E78,E84,E85,E89,E92,E95) -> 904.604 | F75: 1495.616 | G75: 909.624 | H75: 1538.531 | I75: 1540.781 | J75: =IFERROR(D75/C75*100,) -> 81.12928805 | K75: =IFERROR(E75/D75*100,) -> 59.04128499 | L75: =IFERROR(F75/D75*100,) -> 97.61518906 | M75: =IFERROR(G75/F75*100,) -> 60.8193547 | N75: =IFERROR(H75/G75*100,) -> 169.1392268 | O75: =IFERROR(I75/H75*100,) -> 100.1462434
A76: 1.1. | B76: Temeljni (upisani) kapital | C76: 3478.399 | D76: 3478.399 | E76: 3478.399 | F76: 3478.399 | G76: 3478.399 | H76: 3478.399 | I76: 3478.399 | J76: 100 | K76: 100 | L76: =IFERROR(F76/D76*100,) -> 100 | M76: 100 | N76: 100 | O76: 100
A77: 1.2. | B77: Kapitalne rezerve | J77: 0 | K77: 0 | L77: 0 | M77: 0 | N77: 0 | O77: 0
A78: 1.3. | B78: Rezerve iz dobiti | C78: =SUM(C79:C83) -> 0 | D78: =SUM(D79:D83) -> 0 | E78: =SUM(E79:E83) -> 0 | F78: 0 | G78: 0 | H78: 0 | I78: 0 | J78: 0 | K78: 0 | L78: 0 | M78: 0 | N78: 0 | O78: 0
A79: 1.3.1. | B79: Zakonske rezerve | J79: 0 | K79: 0 | L79: 0 | M79: 0 | N79: 0 | O79: 0
A80: 1.3.2. | B80: Rezerve za vlastite dionice | J80: 0 | K80: 0 | L80: 0 | M80: 0 | N80: 0 | O80: 0
A81: 1.3.3. | B81: Vlastite dionice i udjeli (odbitna stavka) | J81: 0 | K81: 0 | L81: 0 | M81: 0 | N81: 0 | O81: 0
A82: 1.3.4. | B82: Statutarne rezerve | J82: 0 | K82: 0 | L82: 0 | M82: 0 | N82: 0 | O82: 0
A83: 1.3.5. | B83: Ostale rezerve | J83: 0 | K83: 0 | L83: 0 | M83: 0 | N83: 0 | O83: 0
A84: 1.4. | B84: Revalorizacijske rezerve | J84: 0 | K84: 0 | L84: 0 | M84: 0 | N84: 0 | O84: 0
A85: 1.5. | B85: Rezerve fer vrijednosti | C85: =SUM(C86:C88) -> 0 | D85: =SUM(D86:D88) -> 0 | E85: =SUM(E86:E88) -> 0 | F85: 0 | G85: 0 | H85: 0 | I85: 0 | J85: 0 | K85: 0 | L85: 0 | M85: 0 | N85: 0 | O85: 0
A86: 1.5.1. | B86: Fer vrijednost financijske imovine raspoložive za prodaju | J86: 0 | K86: 0 | L86: 0 | M86: 0 | N86: 0 | O86: 0
A87: 1.5.2. | B87: Učinkoviti dio zaštite novčanih tokova | J87: 0 | K87: 0 | L87: 0 | M87: 0 | N87: 0 | O87: 0
A88: 1.5.3. | B88: Učinkoviti dio zaštite neto ulaganja u inozemstvu | J88: 0 | K88: 0 | L88: 0 | M88: 0 | N88: 0 | O88: 0
A89: 1.6. | B89: Zadržana dobit ili preneseni gubitak | C89: =C90-ABS(C91) -> -1684.461 | D89: =D90-ABS(D91) -> -1589.864 | E89: -1946.244 | F89: -1988.033 | G89: -2573.795 | H89: -1946.244 | I89: -1946.244 | J89: 94.38413831 | K89: 122.4157538 | L89: 125.0442176 | M89: 129.4644002 | N89: 75.6176774 | O89: 100
A90: 1.6.1. | B90: Zadržana dobit | J90: 0 | K90: 0 | L90: 0 | M90: 0 | N90: 0 | O90: 0
A91: 1.6.2. | B91: Preneseni gubitak | C91: -1684.461 | D91: -1589.864 | E91: -1946.244 | F91: -1988.033 | G91: -2573.795 | H91: -1946.244 | I91: -1946.244 | J91: 94.38413831 | K91: 122.4157538 | L91: 125.0442176 | M91: 129.4644002 | N91: 75.6176774 | O91: 100
A92: 1.7. | B92: Dobit ili gubitak poslovne godine | C92: =C93-ABS(C94) -> 94.597 | D92: =D93-ABS(D94) -> -356.38 | E92: -627.551 | F92: 5.25 | G92: 5.02 | H92: 6.376 | I92: 8.626 | J92: -376.7349916 | K92: 176.0904091 | L92: -1.473146641 | M92: 95.61904762 | N92: 127.0119522 | O92: 135.2885822
A93: 1.7.1. | B93: Dobit poslovne godine | C93: 94.597 | F93: 5.25 | G93: 5.02 | H93: 6.376 | I93: 8.626 | J93: 0 | K93: 0 | L93: 0 | M93: 95.61904762 | N93: 127.0119522 | O93: 135.2885822
A94: 1.7.2. | B94: Gubitak poslovne godine | D94: -356.38 | E94: -627.551 | J94: 0 | K94: 176.0904091 | L94: 0 | M94: 0 | N94: 0 | O94: 0
A95: 1.8. | B95: Manjinski (nekontrolirajući) interes | J95: 0 | K95: 0 | L95: 0 | M95: 0 | N95: 0 | O95: 0
A96: 2. | B96: REZERVIRANJA | C96: =SUM(C97:C102) -> 39.44 | D96: =SUM(D97:D102) -> 6.438 | E96: =SUM(E97:E102) -> 6.438 | F96: 39.439 | G96: 0 | H96: 0 | I96: 0 | J96: 16.32352941 | K96: 100 | L96: 612.5970798 | M96: 0 | N96: 0 | O96: 0
A97: 2.1. | B97: Rezerviranja za mirovine, otpremnine i slične obveze | J97: 0 | K97: 0 | L97: 0 | M97: 0 | N97: 0 | O97: 0
A98: 2.2. | B98: Rezerviranja za porezne obveze | J98: 0 | K98: 0 | L98: 0 | M98: 0 | N98: 0 | O98: 0
A99: 2.3. | B99: Rezerviranja za započete sudske sporove | J99: 0 | K99: 0 | L99: 0 | M99: 0 | N99: 0 | O99: 0
A100: 2.4. | B100: Rezerviranja za troškove obnavljanja prirodnih bogatstava | F100: =SUM(H100)/7.5345 -> 0 | G100: =SUM(I100)/7.5345 -> 0 | J100: 0 | K100: 0 | L100: 0 | M100: 0 | N100: 0 | O100: 0
A101: 2.5. | B101: Rezerviranja za troškove u jamstvenim rokovima | F101: 0 | G101: 0 | J101: 0 | K101: 0 | L101: 0 | M101: 0 | N101: 0 | O101: 0
A102: 2.6. | B102: Druga rezerviranja | C102: 39.44 | D102: 6.438 | E102: 6.438 | F102: 39.439 | G102: 0 | H102: 0 | I102: 0 | J102: 16.32352941 | K102: 100 | L102: 612.5970798 | M102: 0 | N102: 0 | O102: 0
A103: 3. | B103: DUGOROČNE OBVEZE | C103: =SUM(C104:C114) -> 3059.791 | D103: =SUM(D104:D114) -> 2778.482 | E103: =SUM(E104:E114) -> 2799.417 | F103: 2964.391 | G103: 2799.417 | H103: 2773.27 | I103: 2614.002 | J103: 90.80626749 | K103: 100.753469 | L103: 106.6910277 | M103: 94.43480971 | N103: 99.0659841 | O103: 94.25703231
A104: 3.1. | B104: Obveze prema poduzetnicima unutar grupe | J104: 0 | K104: 0 | L104: 0 | M104: 0 | N104: 0 | O104: 0
A105: 3.2. | B105: Obveze za zajmove, depozite i slično poduzetnika unutar grupe | J105: 0 | K105: 0 | L105: 0 | M105: 0 | N105: 0 | O105: 0
A106: 3.3. | B106: Obveze prema društvima povezanim sudjelujućim interesom | J106: 0 | K106: 0 | L106: 0 | M106: 0 | N106: 0 | O106: 0
A107: 3.4. | B107: Obveze za zajmove, depozite i slično društava povezanih sudjelujućim interesom | J107: =IFERROR(D107/C107*100,) -> 0 | K107: =IFERROR(E107/D107*100,) -> 0 | L107: =IFERROR(F107/D107*100,) -> 0 | M107: =IFERROR(G107/F107*100,) -> 0 | N107: =IFERROR(H107/G107*100,) -> 0 | O107: =IFERROR(I107/H107*100,) -> 0
A108: 3.5. | B108: Obveze za zajmove, depozite i slično | J108: 0 | K108: 0 | L108: 0 | M108: 0 | N108: 0 | O108: 0
A109: 3.6. | B109: Obveze prema bankama i drugim financijskim institucijama | C109: 3059.791 | D109: 2743.479 | E109: 2799.417 | F109: 2964.391 | G109: 2799.417 | H109: 2773.27 | I109: 2614.002 | J109: 89.66230046 | K109: 102.038944 | L109: 108.0522577 | M109: 94.43480971 | N109: 99.0659841 | O109: 94.25703231
A110: 3.7. | B110: Obveze za predujmove | J110: 0 | K110: 0 | L110: 0 | M110: 0 | N110: 0 | O110: 0
A111: 3.8. | B111: Obveze prema dobavljačima | J111: 0 | K111: 0 | L111: 0 | M111: 0 | N111: 0 | O111: 0
A112: 3.9. | B112: Obveze po vrijednosnim papirima | J112: 0 | K112: 0 | L112: 0 | M112: 0 | N112: 0 | O112: 0
A113: 3.10. | B113: Ostale dugoročne obveze | J113: 0 | K113: 0 | L113: 0 | M113: 0 | N113: 0 | O113: 0
A114: 3.11. | B114: Odgođena porezna obveza | D114: 35.003 | J114: 0 | K114: 0 | L114: 0 | M114: 0 | N114: 0 | O114: 0
A115: 4. | B115: KRATKOROČNE OBVEZE | C115: =SUM(C116:C129) -> 8435.491 | D115: =SUM(D116:D129) -> 9164.122 | E115: =SUM(E116:E129) -> 9263.523 | F115: 14929.929 | G115: 16700.799 | H115: 16803.113 | I115: 18018.324 | J115: 108.6376833 | K115: 101.0846757 | L115: 162.9171785 | M115: 111.8612084 | N115: 100.6126294 | O115: 107.2320587
A116: 4.1. | B116: Obveze prema poduzetnicima unutar grupe | J116: 0 | K116: 0 | L116: 0 | M116: 0 | N116: 0 | O116: 0
A117: 4.2. | B117: Obveze za zajmove, depozite i slično poduzetnika unutar grupe | J117: 0 | K117: 0 | L117: 0 | M117: 0 | N117: 0 | O117: 0
A118: 4.3. | B118: Obveze prema društvima povezanim sudjelujućim interesom | J118: 0 | K118: 0 | L118: 0 | M118: 0 | N118: 0 | O118: 0
A119: 4.4. | B119: Obveze za zajmove, depozite i slično društava povezanih sudjelujućim interesom | J119: 0 | K119: 0 | L119: 0 | M119: 0 | N119: 0 | O119: 0
A120: 4.5. | B120: Obveze za zajmove, depozite i slično | J120: 0 | K120: 0 | L120: 0 | M120: 0 | N120: 0 | O120: 0
A121: 4.6. | B121: Obveze prema bankama i drugim financijskim institucijama | C121: 109.096 | D121: 277.402 | E121: 301.203 | F121: 93.807 | G121: 15.263 | H121: 172.54 | I121: 324.155 | J121: 254.2733006 | K121: 108.579967 | L121: 33.81626665 | M121: 16.27064078 | N121: 1130.446177 | O121: 187.8723774
A122: 4.7. | B122: Obveze za predujmove | C122: 1.202 | D122: 13.028 | E122: 14.051 | F122: 1.202 | G122: 1.991 | H122: 2.654 | I122: 1 | J122: 1083.860233 | K122: 107.8523181 | L122: 9.226281854 | M122: 165.640599 | N122: 133.2998493 | O122: 37.67897513
A123: 4.8. | B123: Obveze prema dobavljačima | C123: 233.153 | D123: 215.82 | E123: 210.433 | F123: 331.807 | G123: 269.825 | H123: 245.537 | I123: 185.2 | J123: 92.56582587 | K123: 97.50393847 | L123: 153.7424706 | M123: 81.31986366 | N123: 90.99861021 | O123: 75.42651413
A124: 4.9. | B124: Obveze po vrijednosnim papirima | F124: =SUM(H124)/7.5345 -> 0 | G124: =SUM(I124)/7.5345 -> 0 | J124: 0 | K124: 0 | L124: 0 | M124: 0 | N124: 0 | O124: 0
A125: 4.10. | B125: Obveze prema zaposlenicima | C125: 46.549 | D125: 52.239 | E125: 55.893 | F125: 79.551 | G125: 81.654 | H125: 87.451 | I125: 82.45 | J125: 112.2236783 | K125: 106.994774 | L125: 152.2827772 | M125: 102.6435871 | N125: 107.0994685 | O125: 94.281369
A126: 4.11. | B126: Obveze za poreze, doprinose i slična davanja | C126: 24.076 | D126: 25.263 | E126: 16.361 | F126: 24.076 | G126: 26.213 | H126: 27.517 | I126: 29.12 | J126: 104.930221 | K126: 64.76269643 | L126: 95.30142897 | M126: 108.8760591 | N126: 104.9746309 | O126: 105.8254897
A127: 4.12. | B127: Obveze s osnove udjela u rezultatu | F127: 0 | G127: 0 | J127: 0 | K127: 0 | L127: 0 | M127: 0 | N127: 0 | O127: 0
A128: 4.13. | B128: Obveze po osnovi dugotrajne imovine namijenjene prodaji | F128: 0 | G128: 0 | J128: 0 | K128: 0 | L128: 0 | M128: 0 | N128: 0 | O128: 0
A129: 4.14. | B129: Ostale kratkoročne obveze | C129: 8021.415 | D129: 8580.37 | E129: 8665.582 | F129: 14399.486 | G129: 16305.853 | H129: 16267.414 | I129: 17396.399 | J129: 106.9682843 | K129: 100.993104 | L129: 167.8189402 | M129: 113.2391323 | N129: 99.76426256 | O129: 106.9401627
A130: 5. | B130: ODGOĐENO PLAĆANJE TROŠKOVA I PRIHOD BUDUĆEG RAZDOBLJA | J130: 0 | K130: 0 | L130: 0 | M130: 0 | N130: 0 | O130: 0
A131: 6. | B131: UKUPNA PASIVA | C131: =C75+C96+C103+C115+C130 -> 13423.257 | D131: =D75+D96+D103+D115+D130 -> 13481.197 | E131: =E75+E96+E103+E115+E130 -> 12973.982 | F131: 19429.375 | G131: 20409.84 | H131: 21114.914 | I131: 22173.107 | J131: 100.4316389 | K131: 96.23761154 | L131: 144.1220316 | M131: 105.0463023 | N131: 103.4545788 | O131: 105.0115904
A132: 7. | B132: IZVANBILANČNI ZAPISI | J132: 0 | K132: 0 | L132: 0 | M132: 0 | N132: 0 | O132: 0
A133: * DODATAK IZVJEŠTAJU O FINANCIJSKOM POLOŽAJU (popunjava trgovačko društvo koji sastavlja konsolidirani godišnji financijski izvještaj)
A134: 8. | B134: KAPITAL I REZERVE | C134: =IF(C135+C136=C75,C75,"Neodgovarajuća raspodjela") -> Neodgovarajuća raspodjela | D134: Neodgovarajuća raspodjela | E134: =IF(E135+E136=E75,E75,"Neodgovarajuća raspodjela") -> Neodgovarajuća raspodjela | F134: =IF(F135+F136=F75,F75,"Neodgovarajuća raspodjela") -> Neodgovarajuća raspodjela | G134: =IF(G135+G136=G75,G75,"Neodgovarajuća raspodjela") -> Neodgovarajuća raspodjela | H134: Neodgovarajuća raspodjela | I134: Neodgovarajuća raspodjela
A135: 8.1. | B135: Pripisano imateljima kapitala matice | J135: =IFERROR(D135/C135*100,) -> 0 | K135: 0 | L135: =IFERROR(F135/D135*100,) -> 0 | M135: 0 | N135: 0 | O135: 0
A136: 8.2. | B136: Pripisano manjinskom interesu | J136: 0 | K136: 0 | L136: 0 | M136: 0 | N136: 0 | O136: 0
A138: * | B138: Napomena 1: Dodatak izvještaju o financijskom položaju popunjavaju trgovačka društva koja sastavljaju konsolidirane godišnje financijske izvještaje
B139: Napomena 2: Prilikom razvrstavanja trgovačkih društava, sukladno članku 3. Zakona o računovodstvu, ne uzima se u zbroju aktive iznos gubitka iznad kapitala
B140: Napomena 3: Ostvareni i planirani rezultati za tekuću godinu se uspoređuju s ostvarenim rezultatom poslovanja u prethodnoj godini

Sheet RDG
A1: RAČUN DOBITI I GUBITKA | C1: =IF(C83>0,"Sveobuhvatna dobit razdoblja",IF(C83=0,"Stagnacija u razdoblju","Sveobuhvatni gubitak razdoblja")) -> Sveobuhvatna dobit razdoblja | D1: Sveobuhvatni gubitak razdoblja | E1: Sveobuhvatni gubitak razdoblja | F1: Sveobuhvatna dobit razdoblja | G1: Sveobuhvatna dobit razdoblja | H1: Sveobuhvatna dobit razdoblja | I1: Sveobuhvatna dobit razdoblja
A2: Obveznik: | B2: =IF(ISBLANK(Podloga!B2),"",Podloga!B2) -> Zračna luka Osijek d.o.o. | C2: za razdoblje od 1. siječnja do 31. prosinca
F3: I Z N O S (u 000 kn) | J3: ="Indeks "& RIGHT(LEFT(Podloga!C34,7),5) &" / "& RIGHT(LEFT(Podloga!B34,7),5) -> Indeks 22. o / 21. o | K3: ="Indeks "& RIGHT(LEFT(Podloga!D34,8),6) &" / "& RIGHT(LEFT(Podloga!C34,7),5) -> Indeks 23. pr / 22. o | L3: ="Indeks "& RIGHT(LEFT(Podloga!E34,8),6) &" / "& RIGHT(LEFT(Podloga!C34,7),5) -> Indeks 23. pl / 22. o | M3: ="Indeks "& RIGHT(LEFT(Podloga!F34,8),6) &" / "& RIGHT(LEFT(Podloga!E34,8),6) -> Indeks 24. pl / 23. pl | N3: ="Indeks "& RIGHT(LEFT(Podloga!G34,8),6) &" / "& RIGHT(LEFT(Podloga!F34,8),6) -> Indeks 25. pl / 24. pl | O3: ="Indeks "& RIGHT(LEFT(Podloga!H34,8),6) &" / "& RIGHT(LEFT(Podloga!G34,8),6) -> Indeks 26. pl / 25. pl
C4: =Podloga!B34 -> 2021. ostvareno | D4: =Podloga!C34 -> 2022. ostvareno | E4: =Podloga!D34 -> 2023. procijenjeno | F4: =Podloga!E34 -> 2023. planirano | G4: =Podloga!F34 -> 2024. planirano | H4: =Podloga!G34 -> 2025. planirano | I4: =Podloga!H34 -> 2026. planirano
A5: 1. | B5: POSLOVNI PRIHODI | C5: =SUM(C6:C10) -> 1854.413 | D5: =SUM(D6:D10) -> 2450.167 | E5: =SUM(E6:E10) -> 2803.972 | F5: 2131.827 | G5: 3445.894 | H5: 3621.479 | I5: 3688.491 | J5: =IFERROR(D5/C5*100,) -> 132.1262847 | K5: =IFERROR(E5/D5*100,) -> 114.4400361 | L5: =IFERROR(F5/D5*100,) -> 87.00741623 | M5: =IFERROR(G5/F5*100,) -> 161.6404145 | N5: =IFERROR(H5/G5*100,) -> 105.0954847 | O5: =IFERROR(I5/H5*100,) -> 101.8504042
A6: 1.1. | B6: Prihodi od prodaje s poduzetnicima unutar grupe | J6: 0 | K6: 0 | L6: =IFERROR(F6/D6*100,) -> 0 | M6: 0 | N6: 0 | O6: 0
A7: 1.2. | B7: Prihodi od prodaje | C7: 507.005 | D7: 656.057 | E7: 1138.078 | F7: 693.112 | G7: 1276.894 | H7: 1457.308 | I7: 1577.501 | J7: 129.3985266 | K7: 173.4724269 | L7: 105.6481373 | M7: 184.2262145 | N7: 114.129129 | O7: 108.2476045
A8: 1.3. | B8: Prihodi na temelju upotrebe vlastitih proizvoda, robe i usluga | J8: 0 | K8: 0 | L8: 0 | M8: 0 | N8: 0 | O8: 0
A9: 1.4. | B9: Ostali poslovni prihodi s poduzetnicima unutar grupe | J9: =IFERROR(D9/C10*100,) -> 0 | K9: 0 | L9: 0 | M9: 0 | N9: 0 | O9: 0
A10: 1.5. | B10: Ostali poslovni prihodi | C10: 1347.408 | D10: 1794.11 | E10: 1665.894 | F10: 1438.715 | G10: 2169 | H10: 2164.171 | I10: 2110.99 | J10: =IFERROR(D10/#REF!*100,) -> 0 | K10: 92.85350397 | L10: 80.19101393 | M10: 150.7595319 | N10: 99.77736284 | O10: 97.54266183
A11: 2. | B11: POSLOVNI RASHODI | C11: =C12+C13+C17+C21+C22+C23+C26+C33 -> 1698.686 | D11: =D12+D13+D17+D21+D22+D23+D26+D33 -> 2735.358 | E11: =E12+E13+E17+E21+E22+E23+E26+E33 -> 3384.926 | F11: 2065.712 | G11: 3378.614 | H11: 3557.285 | I11: 3618.757 | J11: 161.0278768 | K11: 123.7470927 | L11: 75.51889003 | M11: 163.5568753 | N11: 105.2882928 | O11: 101.7280595
A12: 2.1. | B12: Promjene vrijednosti zaliha proizvodnje u tijeku i gotovih proizvoda | J12: 0 | K12: 0 | L12: 0 | M12: 0 | N12: 0 | O12: 0
A13: 2.2. | B13: Materijalni troškovi | C13: =SUM(C14:C16) -> 437.87 | D13: 1492.082 | E13: 1801.235 | F13: 736.45 | G13: 1423.35 | H13: 1564.815 | I13: =SUM(I14:I16) -> 1617.663 | J13: 340.7591294 | K13: 120.7195717 | L13: 49.35720691 | M13: 193.2717768 | N13: 109.9388766 | O13: 103.3772682
A14: 2.2.1. | B14: Troškovi sirovina i materijala | C14: 132.449 | D14: 226.188 | E14: 376.526 | F14: 174.53 | G14: 383.5 | H14: 391.075 | I14: 395.42 | J14: 170.7736563 | K14: 166.4659487 | L14: 77.16147629 | M14: 219.7329972 | N14: 101.9752282 | O14: 101.1110401
A15: 2.2.2. | B15: Troškovi prodane robe | C15: 8.437 | D15: 13.838 | E15: 40.239 | F15: 31.601 | G15: 33.65 | H15: 34.25 | I15: 35.798 | J15: 164.0156454 | K15: 290.7862408 | L15: 228.3639254 | M15: 106.483972 | N15: 101.7830609 | O15: 104.519708
A16: 2.2.3. | B16: Ostali vanjski troškovi | C16: 296.984 | D16: 1252.056 | E16: 1384.47 | F16: 530.319 | G16: 1006.2 | H16: 1139.49 | I16: 1186.445 | J16: 421.5903887 | K16: 110.575725 | L16: 42.35585309 | M16: 189.7348577 | N16: 113.2468694 | O16: 104.1207031
A17: 2.3. | B17: Troškovi osoblja | C17: =SUM(C18:C20) -> 803.189 | D17: =SUM(D18:D20) -> 744.925 | E17: =SUM(E18:E20) -> 841.779 | F17: 877.529 | G17: 981.454 | H17: 994.97 | I17: 1019.444 | J17: 92.74591659 | K17: 113.0018458 | L17: 117.8009867 | M17: 111.8429135 | N17: 101.3771404 | O17: 102.4597727
A18: 2.3.1. | B18: Neto plaće i nadnice | C18: 518.965 | D18: 479.329 | E18: 532.214 | F18: 560.564 | G18: 635.8 | H18: 645 | I18: 654.058 | J18: 92.36249073 | K18: 111.0331317 | L18: 116.9476497 | M18: 113.4214826 | N18: 101.4469959 | O18: 101.4043411
A19: 2.3.2. | B19: Troškovi poreza i doprinosa iz plaća | C19: 179.928 | D19: 166.434 | E19: 197.921 | F19: 187.568 | G19: 202.154 | H19: 204.65 | I19: 211.693 | J19: 92.50033347 | K19: 118.9186104 | L19: 112.6981266 | M19: 107.7763798 | N19: 101.2347023 | O19: 103.4414855
A20: 2.3.3. | B20: Doprinosi na plaće | C20: 104.296 | D20: 99.162 | E20: 111.644 | F20: 129.397 | G20: 143.5 | H20: 145.32 | I20: 153.693 | J20: 95.07747181 | K20: 112.5874831 | L20: 130.4905105 | M20: 110.8990162 | N20: 101.2682927 | O20: 105.7617671
A21: 2.4. | B21: Amortizacija | C21: 260.421 | D21: 303.832 | E21: 371.362 | F21: 289.336 | G21: 425 | H21: 435 | I21: 440 | J21: 116.6695466 | K21: 122.2260986 | L21: 95.22894231 | M21: 146.8880471 | N21: 102.3529412 | O21: 101.1494253
A22: 2.5. | B22: Ostali troškovi | C22: 175.347 | D22: 181.758 | E22: 146.448 | F22: 160.818 | G22: 285.39 | H22: 293.5 | I22: 295.65 | J22: 103.6561789 | K22: 80.57306969 | L22: 88.47918661 | M22: 177.4614782 | N22: 102.8417254 | O22: 100.7325383
A23: 2.6. | B23: Vrijednosna usklađenja | C23: =SUM(C24:C25) -> 0 | D23: 0 | E23: 0 | F23: 0 | G23: 0 | H23: 0 | I23: =SUM(I24:I25) -> 0 | J23: 0 | K23: 0 | L23: 0 | M23: 0 | N23: 0 | O23: 0
A24: 2.6.1. | B24: Dugotrajne imovine (osim financijske imovine) | J24: 0 | K24: 0 | L24: 0 | M24: 0 | N24: 0 | O24: 0
A25: 2.6.2. | B25: Kratkotrajne imovine (osim financijske imovine) | J25: 0 | K25: 0 | L25: 0 | M25: 0 | N25: 0 | O25: 0
A26: 2.7. | B26: Rezerviranja | C26: =SUM(C27:C32) -> 19.025 | D26: 2.35 | E26: 2.35 | F26: 0 | G26: 0 | H26: 0 | I26: =SUM(I27:I32) -> 0 | J26: 12.3521682 | K26: 100 | L26: 0 | M26: 0 | N26: 0 | O26: 0
A27: 2.7.1. | B27: Rezerviranja za mirovine, otpremnine i slične obveze | J27: 0 | K27: 0 | L27: 0 | M27: 0 | N27: 0 | O27: 0
A28: 2.7.2. | B28: Rezerviranja za porezne obveze | J28: 0 | K28: 0 | L28: 0 | M28: 0 | N28: 0 | O28: 0
A29: 2.7.3. | B29: Rezerviranja za započete sudske sporove | J29: 0 | K29: 0 | L29: 0 | M29: 0 | N29: 0 | O29: 0
A30: 2.7.4. | B30: Rezerviranja za troškove obnavljanja prirodnih bogatstava | J30: 0 | K30: 0 | L30: 0 | M30: 0 | N30: 0 | O30: 0
A31: 2.7.5. | B31: Rezerviranja za troškove u jamstvenim rokovima | J31: 0 | K31: 0 | L31: 0 | M31: 0 | N31: 0 | O31: 0
A32: 2.7.6. | B32: Druga rezerviranja | C32: 19.025 | D32: 2.35 | E32: 2.35 | J32: 12.3521682 | K32: 100 | L32: 0 | M32: 0 | N32: 0 | O32: 0
A33: 2.8. | B33: Ostali poslovni rashodi | C33: 2.834 | D33: 10.411 | E33: 221.752 | F33: 1.579 | G33: 263.42 | H33: 269 | I33: 246 | J33: 367.360621 | K33: 2129.977908 | L33: 15.16665066 | M33: 16682.71058 | N33: 102.1182902 | O33: 91.44981413
A34: 3. | B34: FINANCIJSKI PRIHODI | C34: =SUM(C35:C44) -> 3.135 | D34: =SUM(D35:D44) -> 0.6 | E34: =SUM(E35:E44) -> 0.517 | F34: 0.449 | G34: 0.54 | H34: 0.58 | I34: 0.608 | J34: 19.13875598 | K34: 86.16666667 | L34: 74.83333333 | M34: 120.2672606 | N34: 107.4074074 | O34: 104.8275862
A35: 3.1. | B35: Prihodi od ulaganja u udjele (dionice) poduzetnika unutar grupe | J35: 0 | K35: 0 | L35: 0 | M35: 0 | N35: 0 | O35: 0
A36: 3.2. | B36: Prihodi od ulaganja u udjele (dionice) društava povezanih sudjelujućim interesom | J36: 0 | K36: 0 | L36: 0 | M36: 0 | N36: 0 | O36: 0
A37: 3.3. | B37: Prihodi od ostalih dugotrajnih financijskih ulaganja i zajmova poduzetnicima unutar grupe | J37: =IFERROR(D37/C37*100,) -> 0 | K37: =IFERROR(E37/D37*100,) -> 0 | L37: =IFERROR(F37/D37*100,) -> 0 | M37: =IFERROR(G37/F37*100,) -> 0 | N37: =IFERROR(H37/G37*100,) -> 0 | O37: =IFERROR(I37/H37*100,) -> 0
A38: 3.4. | B38: Ostali prihodi s osnove kamata iz odnosa s poduzetnicima unutar grupe | J38: 0 | K38: 0 | L38: 0 | M38: 0 | N38: 0 | O38: 0
A39: 3.5. | B39: Tečajne razlike i ostali financijski prihodi iz odnosa s poduzetnicima unutar grupe | J39: 0 | K39: 0 | L39: 0 | M39: 0 | N39: 0 | O39: 0
A40: 3.6. | B40: Prihodi od ostalih dugotrajnih financijskih ulaganja i zajmova | J40: 0 | K40: 0 | L40: 0 | M40: 0 | N40: 0 | O40: 0
A41: 3.7. | B41: Ostali prihodi s osnove kamata | C41: 0.946 | D41: 0.006 | E41: 0.512 | F41: 0.444 | G41: 0.02 | H41: 0.564 | I41: 0.597 | J41: 0.6342494715 | K41: 8533.333333 | L41: 7400 | M41: 4.504504505 | N41: 2820 | O41: 105.8510638
A42: 3.8. | B42: Tečajne razlike i ostali financijski prihodi | C42: 2.189 | D42: 0.594 | E42: 0.005 | F42: 0.005 | G42: 0.52 | H42: 0.016 | I42: 0.011 | J42: 27.13567839 | K42: 0.8417508418 | L42: 0.8417508418 | M42: 10400 | N42: 3.076923077 | O42: 68.75
A43: 3.9. | B43: Nerealizirani dobici (prihodi) od financijske imovine | J43: 0 | K43: 0 | L43: 0 | M43: 0 | N43: 0 | O43: 0
A44: 3.10. | B44: Ostali financijski prihodi | J44: 0 | K44: 0 | L44: 0 | M44: 0 | N44: 0 | O44: 0
A45: 4. | B45: FINANCIJSKI RASHODI | C45: =SUM(C46:C52) -> 64.263 | D45: =SUM(D46:D52) -> 71.788 | E45: =SUM(E46:E52) -> 47.114 | F45: 61.318 | G45: 62.8 | H45: 58.398 | I45: 61.716 | J45: 111.709693 | K45: 65.6293531 | L45: 85.41538976 | M45: 102.4169086 | N45: 92.99044586 | O45: 105.6817014
A46: 4.1. | B46: Rashodi s osnove kamata i slični rashodi s poduzetnicima unutar grupe | J46: 0 | K46: 0 | L46: 0 | M46: 0 | N46: 0 | O46: 0
A47: 4.2. | B47: Tečajne razlike i drugi rashodi s poduzetnicima unutar grupe | J47: 0 | K47: 0 | L47: 0 | M47: 0 | N47: 0 | O47: 0
A48: 4.3. | B48: Rashodi s osnove kamata i slični rashodi | C48: 61.664 | D48: 70.2 | E48: 44.516 | F48: 54.483 | G48: 55.85 | H48: 55.744 | I48: 56.407 | J48: 113.8427608 | K48: 63.41310541 | L48: 77.61111111 | M48: 102.5090395 | N48: 99.81020591 | O48: 101.1893657
A49: 4.4. | B49: Tečajne razlike i drugi rashodi | C49: 2.599 | D49: 1.588 | E49: 2.598 | F49: 6.835 | G49: 6.95 | H49: 2.654 | I49: 5.309 | J49: 61.10042324 | K49: 163.6020151 | L49: 430.4156171 | M49: 101.6825165 | N49: 38.18705036 | O49: 200.037679
A50: 4.5. | B50: Nerealizirani gubici (rashodi) od financijske imovine | J50: 0 | K50: 0 | L50: 0 | M50: 0 | N50: 0 | O50: 0
A51: 4.6. | B51: Vrijednosna usklađenja financijske imovine (neto) | J51: 0 | K51: 0 | L51: 0 | M51: 0 | N51: 0 | O51: 0
A52: 4.7. | B52: Ostali financijski rashodi | J52: 0 | K52: 0 | L52: 0 | M52: 0 | N52: 0 | O52: 0
A53: 5. | B53: UDIO U DOBITI OD DRUŠTAVA POVEZANIH SUDJELUJUĆIM INTERESOM | J53: 0 | K53: 0 | L53: 0 | M53: 0 | N53: 0 | O53: 0
A54: 6. | B54: UDIO U DOBITI OD ZAJEDNIČKIH POTHVATA | J54: 0 | K54: 0 | L54: 0 | M54: 0 | N54: 0 | O54: 0
A55: 7. | B55: UDIO U GUBITKU OD DRUŠTAVA POVEZANIH SUDJELUJUĆIM INTERESOM | J55: 0 | K55: 0 | L55: 0 | M55: 0 | N55: 0 | O55: 0
A56: 8. | B56: UDIO U GUBITKU OD ZAJEDNIČKIH POTHVATA | J56: 0 | K56: 0 | L56: 0 | M56: 0 | N56: 0 | O56: 0
A57: 9. | B57: UKUPNI PRIHODI | C57: =C5+C34+C53+C54 -> 1857.548 | D57: 2450.767 | E57: =E5+E34+E53+E54 -> 2804.489 | F57: 2132.276 | G57: 3446.434 | H57: 3622.059 | I57: 3689.099 | J57: 131.9355947 | K57: 114.4331142 | L57: 87.00443575 | M57: 161.6317025 | N57: 105.0958469 | O57: 101.8508809
A58: 10. | B58: UKUPNI RASHODI | C58: =C11+C45+C55+C56 -> 1762.949 | D58: 2807.146 | E58: =E11+E45+E55+E56 -> 3432.04 | F58: 2127.03 | G58: 3441.414 | H58: 3615.683 | I58: 3680.473 | J58: 159.2301309 | K58: 122.26083 | L58: 75.77197623 | M58: 161.7943329 | N58: 105.0638778 | O58: 101.7919159
A59: 11. | B59: DOBIT ILI GUBITAK PRIJE OPOREZIVANJA | C59: =C57-C58 -> 94.599 | D59: =D57-D58 -> -356.379 | E59: =E57-E58 -> -627.551 | F59: 5.246 | G59: 5.02 | H59: 6.376 | I59: 8.626 | J59: -376.7259696 | K59: 176.0909032 | L59: -1.472028374 | M59: 95.69195578 | N59: 127.0119522 | O59: 135.2885822
A60: 11.1. | B60: Dobit prije oporezivanja | C60: =IF(C59>0,C59,) -> 94.599 | D60: 0 | E60: 0 | F60: 5.246 | G60: 5.02 | H60: 6.376 | I60: 8.626 | J60: 0 | K60: 0 | L60: 0 | M60: 95.69195578 | N60: 127.0119522 | O60: 135.2885822
A61: 11.2. | B61: Gubitak prije oporezivanja | C61: =IF(C59<0,C59,) -> 0 | D61: -356.379 | E61: -627.551 | F61: 0 | G61: 0 | H61: 0 | I61: 0 | J61: 0 | K61: 176.0909032 | L61: 0 | M61: 0 | N61: 0 | O61: 0
A62: 12. | B62: POREZ NA DOBIT | J62: 0 | K62: 0 | L62: 0 | M62: 0 | N62: 0 | O62: 0
A63: 13. | B63: DOBIT ILI GUBITAK RAZDOBLJA | C63: =C59-C62 -> 94.599 | D63: =D59-D62 -> -356.379 | E63: =E59-E62 -> -627.551 | F63: 5.246 | G63: 5.02 | H63: 6.376 | I63: 8.626 | J63: =IFERROR(D63/C63*100,) -> -376.7259696 | K63: =IFERROR(E63/D63*100,) -> 176.0909032 | L63: =IFERROR(F63/D63*100,) -> -1.472028374 | M63: =IFERROR(G63/F63*100,) -> 95.69195578 | N63: =IFERROR(H63/G63*100,) -> 127.0119522 | O63: =IFERROR(I63/H63*100,) -> 135.2885822
A64: 13.1. | B64: Dobit razdoblja | C64: =IF(C63>0,C63,) -> 94.599 | D64: 0 | E64: 0 | F64: 5.246 | G64: 5.02 | H64: 6.376 | I64: 8.626 | J64: =IFERROR(D64/C64*100,) -> 0 | K64: 0 | L64: =IFERROR(F64/D64*100,) -> 0 | M64: 95.69195578 | N64: 127.0119522 | O64: 135.2885822
A65: 13.2. | B65: Gubitak razdoblja | C65: =IF(C63<0,C63,) -> 0 | D65: -356.379 | E65: -627.551 | F65: 0 | G65: 0 | H65: 0 | I65: 0 | J65: 0 | K65: 176.0909032 | L65: 0 | M65: 0 | N65: 0 | O65: 0
A66: * DODATAK RDG -u (popunjava trgovačko društvo koje sastavlja konsolidirani godišnji financijski izvještaj)
A67: 14. | B67: DOBIT ILI GUBITAK RAZDOBLJA | C67: =IF((C68+C69)=C63,C63,"Neodgovarajuća raspodjela") -> Neodgovarajuća raspodjela | D67: Neodgovarajuća raspodjela | E67: Neodgovarajuća raspodjela | F67: Neodgovarajuća raspodjela | G67: Neodgovarajuća raspodjela | H67: Neodgovarajuća raspodjela | I67: Neodgovarajuća raspodjela
A68: 14.1. | B68: Pripisana imateljima kapitala matice | J68: =IFERROR(D68/C68*100,) -> 0 | K68: 0 | L68: =IFERROR(F68/D68*100,) -> 0 | M68: 0 | N68: 0 | O68: 0
A69: 14.2. | B69: Pripisana manjinskom (nekontrolirajućem) interesu | J69: 0 | K69: 0 | L69: 0 | M69: 0 | N69: 0 | O69: 0
A70: IZVJEŠTAJ O OSTALOJ SVEOBUHVATNOJ DOBITI (popunjava trgovačko društvo obveznik primjene MSFI-a)
A71: 1. | B71: DOBIT ILI GUBITAK RAZDOBLJA | C71: =C63 -> 94.599 | D71: -356.379 | E71: =E63 -> -627.551 | F71: =F63 -> 5.246 | G71: =G63 -> 5.02 | H71: 6.376 | I71: =I63 -> 8.626 | J71: =IFERROR(D71/C71*100,) -> -376.7259696 | K71: =IFERROR(E71/D71*100,) -> 176.0909032 | L71: =IFERROR(F71/D71*100,) -> -1.472028374 | M71: =IFERROR(G71/F71*100,) -> 95.69195578 | N71: =IFERROR(H71/G71*100,) -> 127.0119522 | O71: =IFERROR(I71/H71*100,) -> 135.2885822
A72: 2. | B72: OSTALA SVEOBUHVATNA DOBIT/GUBITAK PRIJE POREZA | C72: =SUM(C73:C80) -> 0 | D72: 0 | E72: 0 | F72: 0 | G72: 0 | H72: 0 | I72: 0 | J72: =IFERROR(D72/C72*100,) -> 0 | K72: =IFERROR(E72/D72*100,) -> 0 | L72: =IFERROR(F72/D72*100,) -> 0 | M72: =IFERROR(G72/F72*100,) -> 0 | N72: =IFERROR(H72/G72*100,) -> 0 | O72: =IFERROR(I72/H72*100,) -> 0
A73: 2.1. | B73: Tečajne razlike iz preračuna inozemnog poslovanja | J73: 0 | K73: 0 | L73: 0 | M73: 0 | N73: 0 | O73: 0
A74: 2.2. | B74: Promjene revalorizacijskih rezervi dugotrajne materijalne i nematerijalne imovine | J74: 0 | K74: 0 | L74: 0 | M74: 0 | N74: 0 | O74: 0
A75: 2.3. | B75: Dobit ili gubitak s osnove naknadnog vrednovanja financijske imovine raspoložive za prodaju | J75: 0 | K75: 0 | L75: 0 | M75: 0 | N75: 0 | O75: 0
A76: 2.4. | B76: Dobit ili gubitak s osnove učinkovite zaštite novčanih tokova | J76: 0 | K76: 0 | L76: 0 | M76: 0 | N76: 0 | O76: 0
A77: 2.5. | B77: Dobit ili gubitak s osnove učinkovite zaštite neto ulaganja u inozemstvu | J77: 0 | K77: 0 | L77: 0 | M77: 0 | N77: 0 | O77: 0
A78: 2.6. | B78: Udio u ostaloj sveobuhvatnoj dobiti/gubitku društava povezanih sudjelujućim interesom | J78: 0 | K78: 0 | L78: 0 | M78: 0 | N78: 0 | O78: 0
A79: 2.7. | B79: Aktuarski dobici/gubici po planovima definiranih primanja | J79: 0 | K79: 0 | L79: 0 | M79: 0 | N79: 0 | O79: 0
A80: 2.8. | B80: Ostale nevlasničke promjene kapitala | J80: 0 | K80: 0 | L80: 0 | M80: 0 | N80: 0 | O80: 0
A81: 3. | B81: POREZ NA OSTALU SVEOBUHVATNU DOBIT RAZDOBLJA | J81: 0 | K81: 0 | L81: 0 | M81: 0 | N81: 0 | O81: 0
A82: 4. | B82: NETO OSTALA SVEOBUHVATNA DOBIT ILI GUBITAK | C82: =C72-C81 -> 0 | D82: 0 | E82: 0 | F82: 0 | G82: 0 | H82: 0 | I82: 0 | J82: 0 | K82: 0 | L82: 0 | M82: 0 | N82: 0 | O82: 0
A83: 5. | B83: SVEOBUHVATNA DOBIT ILI GUBITAK RAZDOBLJA | C83: =C71+C82 -> 94.599 | D83: -356.379 | E83: -627.551 | F83: 5.246 | G83: 5.02 | H83: 6.376 | I83: 8.626 | J83: -376.7259696 | K83: 176.0909032 | L83: -1.472028374 | M83: 95.69195578 | N83: 127.0119522 | O83: 135.2885822
A84: * DODATAK IZVJEŠTAJU O OSTALOJ SVEOBUHVATNOJ DOBITI (popunjava trgovačko društvo koje sastavlja konsolidirani godišnji financijski izvještaj)
A85: 6. | B85: SVEOBUHVATNA DOBIT ILI GUBITAK RAZDOBLJA | C85: =IF((C86+C87)=C83,C83,"Neodgovarajuća raspodjela") -> Neodgovarajuća raspodjela | D85: Neodgovarajuća raspodjela | E85: =IF((E86+E87)=E83,E83,"Neodgovarajuća raspodjela") -> Neodgovarajuća raspodjela | F85: =IF((F86+F87)=F83,F83,"Neodgovarajuća raspodjela") -> Neodgovarajuća raspodjela | G85: =IF((G86+G87)=G83,G83,"Neodgovarajuća raspodjela") -> Neodgovarajuća raspodjela | H85: Neodgovarajuća raspodjela | I85: =IF((I86+I87)=I83,I83,"Neodgovarajuća raspodjela") -> Neodgovarajuća raspodjela
A86: 6.1. | B86: Pripisana imateljima kapitala matice | J86: =IFERROR(D86/C86*100,) -> 0 | K86: 0 | L86: =IFERROR(F86/D86*100,) -> 0 | M86: 0 | N86: 0 | O86: 0
A87: 6.2. | B87: Pripisana manjinskom interesu | J87: 0 | K87: 0 | L87: 0 | M87: 0 | N87: 0 | O87: 0
A89: * Ostvareni i planirani rezultati za tekuću godinu se uspoređuju s ostvarenim rezultatom poslovanja u prethodnoj godini

Sheet _TM_Ključni poslovni pokazatelj (hidden)
A1: Left | B1: Top | C1: Right | D1: Bottom | E1: Ref
A2: 1 | B2: 1 | C2: 3 | D2: 14 | E2: $A$1:$C$14

Sheet NT dir.
A1: IZVJEŠTAJ O NOVČANOM TOKU - DIREKTNA METODA
A2: Obveznik: | B2: =IF(ISBLANK(Podloga!B2),"",Podloga!B2) -> Zračna luka Osijek d.o.o. | C2: =IF(C50>C49,"Povećanje novca i novčanih ekvivalenata u razdoblju",IF(C50=C49,"Stagnacija novca i novčanih ekvivalenata u razdoblju","Smanjenje novca i novčanih ekvivalenata u razdoblju")) -> Stagnacija novca i novčanih ekvivalenata u razdoblju | D2: Stagnacija novca i novčanih ekvivalenata u razdoblju | E2: Stagnacija novca i novčanih ekvivalenata u razdoblju | F2: Stagnacija novca i novčanih ekvivalenata u razdoblju | G2: Stagnacija novca i novčanih ekvivalenata u razdoblju | H2: Stagnacija novca i novčanih ekvivalenata u razdoblju | I2: Stagnacija novca i novčanih ekvivalenata u razdoblju
C3: Za razdoblje od 1. siječnja do 31. prosinca
C4: I Z N O S (u 000 kn) | J4: ="Indeks "& RIGHT(LEFT(Podloga!C34,7),5) &" / "& RIGHT(LEFT(Podloga!B34,7),5) -> Indeks 22. o / 21. o | K4: ="Indeks "& RIGHT(LEFT(Podloga!D34,8),6) &" / "& RIGHT(LEFT(Podloga!C34,7),5) -> Indeks 23. pr / 22. o | L4: ="Indeks "& RIGHT(LEFT(Podloga!E34,8),6) &" / "& RIGHT(LEFT(Podloga!C34,7),5) -> Indeks 23. pl / 22. o | M4: ="Indeks "& RIGHT(LEFT(Podloga!F34,8),6) &" / "& RIGHT(LEFT(Podloga!E34,8),6) -> Indeks 24. pl / 23. pl | N4: ="Indeks "& RIGHT(LEFT(Podloga!G34,8),6) &" / "& RIGHT(LEFT(Podloga!F34,8),6) -> Indeks 25. pl / 24. pl | O4: ="Indeks "& RIGHT(LEFT(Podloga!H34,8),6) &" / "& RIGHT(LEFT(Podloga!G34,8),6) -> Indeks 26. pl / 25. pl
C5: =Podloga!B34 -> 2021. ostvareno | D5: =Podloga!C34 -> 2022. ostvareno | E5: =Podloga!D34 -> 2023. procijenjeno | F5: =Podloga!E34 -> 2023. planirano | G5: =Podloga!F34 -> 2024. planirano | H5: =Podloga!G34 -> 2025. planirano | I5: =Podloga!H34 -> 2026. planirano
A6: NOVČANI TOKOVI OD POSLOVNIH AKTIVNOSTI
A7: 1. | B7: Novčani primici od kupaca | J7: =IFERROR(D7/C7*100,) -> 0 | K7: 0 | L7: =IFERROR(F7/D7*100,) -> 0 | M7: =IFERROR(G7/F7*100,) -> 0 | N7: =IFERROR(H7/G7*100,) -> 0 | O7: =IFERROR(I7/H7*100,) -> 0
A8: 2. | B8: Novčani primici od tantijema, naknada, provizija i slično | J8: 0 | K8: 0 | L8: =IFERROR(F8/D8*100,) -> 0 | M8: 0 | N8: 0 | O8: 0
A9: 3. | B9: Novčani primici od osiguranja za naknadu šteta | J9: 0 | K9: 0 | L9: 0 | M9: 0 | N9: 0 | O9: 0
A10: 4. | B10: Novčani primici s osnove povrata poreza | J10: 0 | K10: 0 | L10: 0 | M10: 0 | N10: 0 | O10: 0
A11: 5. | B11: Novčani izdaci dobavljačima | J11: 0 | K11: 0 | L11: 0 | M11: 0 | N11: 0 | O11: 0
A12: 6. | B12: Novčani izdaci za zaposlene | J12: 0 | K12: 0 | L12: 0 | M12: 0 | N12: 0 | O12: 0
A13: 7. | B13: Novčani izdaci za osiguranje za naknadu štete | J13: 0 | K13: 0 | L13: 0 | M13: 0 | N13: 0 | O13: 0
A14: 8. | B14: Ostali novčani primici i izdaci | J14: 0 | K14: 0 | L14: 0 | M14: 0 | N14: 0 | O14: 0
A15: I. | B15: Novac iz poslovanja | C15: =SUM(C7:C14) -> 0 | D15: =SUM(D7:D14) -> 0 | E15: 0 | F15: 0 | G15: 0 | H15: 0 | I15: 0 | J15: 0 | K15: 0 | L15: 0 | M15: 0 | N15: 0 | O15: 0
A16: 9. | B16: Novčani izdaci za kamate | J16: 0 | K16: 0 | L16: 0 | M16: 0 | N16: 0 | O16: 0
A17: 10. | B17: Plaćeni porez na dobit | J17: 0 | K17: 0 | L17: 0 | M17: 0 | N17: 0 | O17: 0
A18: A. NETO NOVČANI TOKOVI OD POSLOVNIH AKTIVNOSTI | C18: =SUM(C15:C17) -> 0 | D18: =SUM(D15:D17) -> 0 | E18: 0 | F18: 0 | G18: 0 | H18: 0 | I18: 0 | J18: 0 | K18: 0 | L18: 0 | M18: 0 | N18: 0 | O18: 0
A19: NOVČANI TOKOVI OD INVESTICIJSKIH AKTIVNOSTI
A20: 1. | B20: Novčani primici od prodaje dugotrajne materijalne i nematerijalne imovine | J20: =IFERROR(D20/C20*100,) -> 0 | K20: 0 | L20: =IFERROR(F20/D20*100,) -> 0 | M20: =IFERROR(G20/F20*100,) -> 0 | N20: =IFERROR(H20/G20*100,) -> 0 | O20: =IFERROR(I20/H20*100,) -> 0
A21: 2. | B21: Novčani primici od prodaje financijskih instrumenata | J21: 0 | K21: 0 | L21: 0 | M21: 0 | N21: 0 | O21: 0
A22: 3. | B22: Novčani primici od kamata | J22: 0 | K22: 0 | L22: 0 | M22: 0 | N22: 0 | O22: 0
A23: 4. | B23: Novčani primici od dividendi | J23: 0 | K23: 0 | L23: 0 | M23: 0 | N23: 0 | O23: 0
A24: 5. | B24: Novčani primici s osnove povrata danih zajmova i štednih uloga | J24: 0 | K24: 0 | L24: 0 | M24: 0 | N24: 0 | O24: 0
A25: 6. | B25: Ostali novčani primici od investicijskih aktivnosti | J25: 0 | K25: 0 | L25: 0 | M25: 0 | N25: 0 | O25: 0
A26: II. | B26: Ukupno novčani primici od investicijskih aktivnosti | C26: =SUM(C20:C25) -> 0 | D26: =SUM(D20:D25) -> 0 | E26: 0 | F26: 0 | G26: 0 | H26: 0 | I26: 0 | J26: 0 | K26: 0 | L26: 0 | M26: 0 | N26: 0 | O26: 0
A27: 1. | B27: Novčani izdaci za kupnju dugotrajne materijalne i nematerijalne imovine | J27: 0 | K27: 0 | L27: 0 | M27: 0 | N27: 0 | O27: 0
A28: 2. | B28: Novčani izdaci za stjecanje financijskih instrumenata | J28: 0 | K28: 0 | L28: 0 | M28: 0 | N28: 0 | O28: 0
A29: 3. | B29: Novčani izdaci s osnove danih zajmova i štednih uloga | J29: 0 | K29: 0 | L29: 0 | M29: 0 | N29: 0 | O29: 0
A30: 4. | B30: Stjecanje ovisnog društva, umanjeno za stečeni novac | J30: 0 | K30: 0 | L30: 0 | M30: 0 | N30: 0 | O30: 0
A31: 5. | B31: Ostali novčani izdaci od investicijskih aktivnosti | J31: 0 | K31: 0 | L31: 0 | M31: 0 | N31: 0 | O31: 0
A32: III. | B32: Ukupno novčani izdaci od investicijskih aktivnosti | C32: =SUM(C27:C31) -> 0 | D32: =SUM(D27:D31) -> 0 | E32: 0 | F32: 0 | G32: 0 | H32: 0 | I32: 0 | J32: 0 | K32: 0 | L32: 0 | M32: 0 | N32: 0 | O32: 0
A33: B. NETO NOVČANI TOKOVI OD INVESTICIJSKIH AKTIVNOSTI | C33: =C26+C32 -> 0 | D33: =D26+D32 -> 0 | E33: 0 | F33: 0 | G33: 0 | H33: 0 | I33: 0 | J33: 0 | K33: 0 | L33: 0 | M33: 0 | N33: 0 | O33: 0
A34: NOVČANI TOKOVI OD FINANCIJSKIH AKTIVNOSTI
A35: 1. | B35: Novčani primici od povećanja temeljnog (upisanog) kapitala | J35: =IFERROR(D35/C35*100,) -> 0 | K35: 0 | L35: =IFERROR(F35/D35*100,) -> 0 | M35: =IFERROR(G35/F35*100,) -> 0 | N35: =IFERROR(H35/G35*100,) -> 0 | O35: =IFERROR(I35/H35*100,) -> 0
A36: 2. | B36: Novčani primici od izdavanja vlasničkih i dužničkih financijskih instrumenata | J36: 0 | K36: 0 | L36: 0 | M36: 0 | N36: 0 | O36: 0
A37: 3. | B37: Novčani primici od glavnice kredita, pozajmica i drugih posudbi | J37: 0 | K37: 0 | L37: 0 | M37: 0 | N37: 0 | O37: 0
A38: 4. | B38: Ostali novčani primici od financijskih aktivnosti | J38: 0 | K38: 0 | L38: 0 | M38: 0 | N38: 0 | O38: 0
A39: IV. | B39: Ukupno novčani primici od financijskih aktivnosti | C39: =SUM(C35:C38) -> 0 | D39: =SUM(D35:D38) -> 0 | E39: 0 | F39: 0 | G39: 0 | H39: 0 | I39: 0 | J39: 0 | K39: 0 | L39: 0 | M39: 0 | N39: 0 | O39: 0
A40: 1. | B40: Novčani izdaci za otplatu glavnice kredita, pozajmica i drugih posudbi i dužničkih financijskih instrumenata | J40: 0 | K40: 0 | L40: 0 | M40: 0 | N40: 0 | O40: 0
A41: 2. | B41: Novčani izdaci za isplatu dividendi | J41: 0 | K41: 0 | L41: 0 | M41: 0 | N41: 0 | O41: 0
A42: 3. | B42: Novčani izdaci za financijski najam | J42: 0 | K42: 0 | L42: 0 | M42: 0 | N42: 0 | O42: 0
A43: 4. | B43: Novčani izdaci za otkup vlastitih dionica i smanjenje temeljnog (upisanog) kapitala | J43: 0 | K43: 0 | L43: 0 | M43: 0 | N43: 0 | O43: 0
A44: 5. | B44: Ostali novčani izdaci od financijskih aktivnosti | J44: 0 | K44: 0 | L44: 0 | M44: 0 | N44: 0 | O44: 0
A45: V. | B45: Ukupno novčani izdaci od financijskih aktivnosti | C45: =SUM(C40:C44) -> 0 | D45: =SUM(D40:D44) -> 0 | E45: 0 | F45: 0 | G45: 0 | H45: 0 | I45: 0 | J45: 0 | K45: 0 | L45: 0 | M45: 0 | N45: 0 | O45: 0
A46: C. NETO NOVČANI TOKOVI OD FINANCIJSKIH AKTIVNOSTI | C46: =C39+C45 -> 0 | D46: =D39+D45 -> 0 | E46: 0 | F46: 0 | G46: 0 | H46: 0 | I46: 0 | J46: 0 | K46: 0 | L46: 0 | M46: 0 | N46: 0 | O46: 0
A47: 1. | B47: Nerealizirane tečajne razlike po novcu i novčanim ekvivalentima | J47: =IFERROR(D47/C47*100,) -> 0 | K47: =IFERROR(E47/D47*100,) -> 0 | L47: =IFERROR(F47/D47*100,) -> 0 | M47: =IFERROR(G47/F47*100,) -> 0 | N47: =IFERROR(H47/G47*100,) -> 0 | O47: =IFERROR(I47/H47*100,) -> 0
A48: D. NETO POVEĆANJE ILI SMANJENE NOVČANIH TOKOVA | C48: =C18+C33+C46+C47 -> 0 | D48: =D18+D33+D46+D47 -> 0 | E48: 0 | F48: 0 | G48: 0 | H48: 0 | I48: 0 | J48: 0 | K48: 0 | L48: 0 | M48: 0 | N48: 0 | O48: 0
A49: E. NOVAC I NOVČANI EKVIVALENTI NA POČETKU RAZDOBLJA | J49: 0 | K49: 0 | L49: =IFERROR(F49/D49*100,) -> 0 | M49: 0 | N49: 0 | O49: 0
A50: F. NOVAC I NOVČANI EKVIVALENTI NA KRAJU RAZDOBLJA | C50: =C49+C48 -> 0 | D50: =D49+D48 -> 0 | E50: 0 | F50: 0 | G50: 0 | H50: 0 | I50: 0 | J50: 0 | K50: 0 | L50: 0 | M50: 0 | N50: 0 | O50: 0
A52: * Ostvareni i planirani rezultati za tekuću godinu se uspoređuju s ostvarenim rezultatom poslovanja u prethodnoj godini

Sheet _TM_NT- indirektna metoda (2) (hidden)
A1: Left | B1: Top | C1: Right | D1: Bottom | E1: Ref
A2: 11 | B2: 2 | C2: 11 | D2: 3 | E2: $K$2:$K$3

Sheet _TM_Dug (hidden)
A1: Left | B1: Top | C1: Right | D1: Bottom | E1: Ref
A2: 1 | B2: 41 | C2: 13 | D2: 41 | E2: $A$41:$M$41
A3: 15 | B3: 2 | C3: 17 | D3: 41 | E3: $O$2:$Q$41

Sheet _TM_Sponzorstva i donacije (hidden)
A1: Left | B1: Top | C1: Right | D1: Bottom | E1: Ref
A2: 2 | B2: 2 | C2: 5 | D2: 31 | E2: $B$2:$E$31

Sheet _TM_ULaganja (hidden)
A1: Left | B1: Top | C1: Right | D1: Bottom | E1: Ref
A2: 2 | B2: 2 | C2: 8 | D2: 44 | E2: $B$2:$H$44
A3: 2 | B3: 45 | C3: 8 | D3: 45 | E3: $B$45:$H$45

Sheet _TM_Građ. objekti i zemljišta (hidden)
A1: Left | B1: Top | C1: Right | D1: Bottom | E1: Ref
A2: 2 | B2: 2 | C2: 9 | D2: 70 | E2: $B$2:$I$70

Sheet NT indir.
A1: IZVJEŠTAJ O NOVČANOM TOKU - INDIREKTNA METODA
A2: Obveznik: | B2: =IF(ISBLANK(Podloga!B2),"",Podloga!B2) -> Zračna luka Osijek d.o.o. | C2: =IF(C58>C57,"Povećanje novca i novčanih ekvivalenata u razdoblju",IF(C58=C57,"Stagnacija novca i novčanih ekvivalenata u razdoblju","Smanjenje novca i novčanih ekvivalenata u razdoblju")) -> Povećanje novca i novčanih ekvivalenata u razdoblju | D2: Smanjenje novca i novčanih ekvivalenata u razdoblju | E2: Smanjenje novca i novčanih ekvivalenata u razdoblju | F2: Povećanje novca i novčanih ekvivalenata u razdoblju | G2: Povećanje novca i novčanih ekvivalenata u razdoblju | H2: Povećanje novca i novčanih ekvivalenata u razdoblju | I2: Povećanje novca i novčanih ekvivalenata u razdoblju
C3: Za razdoblje od 1. siječnja do 31. prosinca
C4: I Z N O S (u 000 kn) | J4: ="Indeks "& RIGHT(LEFT(Podloga!C34,7),5) &" / "& RIGHT(LEFT(Podloga!B34,7),5) -> Indeks 22. o / 21. o | K4: ="Indeks "& RIGHT(LEFT(Podloga!D34,8),6) &" / "& RIGHT(LEFT(Podloga!C34,7),5) -> Indeks 23. pr / 22. o | L4: ="Indeks "& RIGHT(LEFT(Podloga!E34,8),6) &" / "& RIGHT(LEFT(Podloga!C34,7),5) -> Indeks 23. pl / 22. o | M4: ="Indeks "& RIGHT(LEFT(Podloga!F34,8),6) &" / "& RIGHT(LEFT(Podloga!E34,8),6) -> Indeks 24. pl / 23. pl | N4: ="Indeks "& RIGHT(LEFT(Podloga!G34,8),6) &" / "& RIGHT(LEFT(Podloga!F34,8),6) -> Indeks 25. pl / 24. pl | O4: ="Indeks "& RIGHT(LEFT(Podloga!H34,8),6) &" / "& RIGHT(LEFT(Podloga!G34,8),6) -> Indeks 26. pl / 25. pl
C5: =Podloga!B34 -> 2021. ostvareno | D5: =Podloga!C34 -> 2022. ostvareno | E5: =Podloga!D34 -> 2023. procijenjeno | F5: =Podloga!E34 -> 2023. planirano | G5: =Podloga!F34 -> 2024. planirano | H5: =Podloga!G34 -> 2025. planirano | I5: =Podloga!H34 -> 2026. planirano
A6: NOVČANI TOKOVI OD POSLOVNIH AKTIVNOSTI
A7: 1. | B7: Dobit prije poreza | C7: 94.597 | D7: -356.38 | E7: -627.551 | F7: 5.244 | G7: 5.02 | H7: 6.376 | I7: 8.626 | J7: =IFERROR(D7/C7*100,) -> -376.7349916 | K7: 176.0904091 | L7: =IFERROR(F7/D7*100,) -> -1.471463045 | M7: =IFERROR(G7/F7*100,) -> 95.72845156 | N7: 127.0119522 | O7: 135.2885822
A8: 2. | B8: Usklađenja | C8: =SUM(C9:C16) -> 339.934 | D8: =SUM(D9:D16) -> 376.376 | E8: 432.771 | F8: =SUM(F9:F16)-0.31 -> 363.138 | G8: =SUM(G9:G16)-117.19 -> 363.14 | H8: =SUM(H9:H16)-38.17 -> 452.03 | I8: =SUM(I9:I16)-35.19 -> 460.62 | J8: =IFERROR(D8/C8*100,) -> 110.7203163 | K8: =IFERROR(E8/D8*100,) -> 114.9836865 | L8: =IFERROR(F8/D8*100,) -> 96.48277255 | M8: =IFERROR(G8/F8*100,) -> 100.0005508 | N8: =IFERROR(H8/G8*100,) -> 124.4781627 | O8: =IFERROR(I8/H8*100,) -> 101.9003164
A9: a) | B9: Amortizacija | C9: 260.421 | D9: 303.832 | E9: 371.362 | F9: 289.336 | G9: 425 | H9: 435 | I9: 440 | J9: 116.6695466 | K9: 122.2260986 | L9: 95.22894231 | M9: 146.8880471 | N9: 102.3529412 | O9: 101.1494253
A10: b) | B10: Dobici i gubici od prodaje i vrijednosna usklađenja dugotrajne materijalne i nematerijalne imovine | J10: =IFERROR(D10/C10*100,) -> 0 | K10: =IFERROR(E10/D10*100,) -> 0 | L10: 0 | M10: =IFERROR(G10/F10*100,) -> 0 | N10: =IFERROR(H10/G10*100,) -> 0 | O10: =IFERROR(I10/H10*100,) -> 0
A11: c) | B11: Dobici i gubici od prodaje i nerealizirani dobici i gubici i vrijednosno usklađenje financijske imovine | J11: 0 | K11: 0 | L11: 0 | M11: 0 | N11: 0 | O11: 0
A12: d) | B12: Prihodi od kamata i dividendi | C12: -0.946 | D12: -0.006 | E12: -0.512 | F12: -0.445 | G12: -0.52 | H12: -0.544 | I12: -0.597 | J12: 0.6342494715 | K12: 8533.333333 | L12: 7416.666667 | M12: 116.8539326 | N12: 104.6153846 | O12: 109.7426471
A13: e) | B13: Rashodi od kamata | C13: 61.664 | D13: 70.2 | E13: 44.516 | F13: 54.483 | G13: 55.85 | H13: 55.744 | I13: 56.407 | J13: 113.8427608 | K13: 63.41310541 | L13: 77.61111111 | M13: 102.5090395 | N13: 99.81020591 | O13: 101.1893657
A14: f) | B14: Rezerviranja | C14: 19.025 | D14: 2.35 | E14: 17.405 | F14: 20.074 | J14: 12.3521682 | K14: 740.6382979 | L14: 854.212766 | M14: 0 | N14: 0 | O14: 0
A15: g) | B15: Tečajne razlike (nerealizirane) | C15: -0.23 | J15: 0 | K15: 0 | L15: 0 | M15: 0 | N15: 0 | O15: 0
A16: h) | B16: Ostala usklađenja za nenovčane transakcije i nerealizirane dobitke i gubitke | J16: 0 | K16: 0 | L16: 0 | M16: 0 | N16: 0 | O16: 0
A17: I. | B17: Povećanje ili smanjenje novčanih tokova prije promjena u radnom kapitalu | C17: =C7+C8 -> 434.531 | D17: =D7+D8 -> 19.996 | E17: -194.78 | F17: 368.382 | G17: =G7+G8-167.3 -> 200.86 | H17: =H7+H8+38.15 -> 496.556 | I17: =I7+I8+35.19 -> 504.436 | J17: 4.601743029 | K17: -974.094819 | L17: 1842.278456 | M17: 54.5249225 | N17: 247.2149756 | O17: 101.5869308
A18: 3. | B18: Promjene u radnom kapitalu | C18: =SUM(C19:C22) -> 149.355 | D18: =SUM(D19:D22) -> 541.254 | E18: 49.437 | F18: 5938.052 | G18: 307.397 | H18: -35.133 | I18: -430.376 | J18: 362.3942955 | K18: 9.133789311 | L18: 1097.091569 | M18: 5.176731359 | N18: -11.42919417 | O18: 1224.990749
A19: a) | B19: Povećanje ili smanjenje kratkoročnih obveza | C19: 256.923 | D19: 527.325 | E19: 94.166 | F19: 6133.596 | G19: -369.157 | H19: -102.314 | I19: 1215.211 | J19: =IFERROR(D19/C19*100,) -> 205.2463189 | K19: =IFERROR(E19/D19*100,) -> 17.85729863 | L19: 1163.152894 | M19: =IFERROR(G19/F19*100,) -> -6.018606377 | N19: =IFERROR(H19/G19*100,) -> 27.71557901 | O19: =IFERROR(I19/H19*100,) -> -1187.726997
A20: b) | B20: Povećanje ili smanjenje kratkotrajnih potraživanja | C20: -92.647 | D20: 12.27 | E20: 122.108 | F20: -96.208 | G20: 109.513 | H20: 64.129 | I20: 6.868 | J20: -13.24381793 | K20: 995.1752241 | L20: -784.0912795 | M20: -113.8294113 | N20: 58.55834467 | O20: 10.70966333
A21: c) | B21: Povećanje ili smanjenje zaliha | C21: -14.001 | D21: -5.656 | E21: 3.987 | F21: -14.725 | G21: -0.739 | H21: 3.052 | I21: 0.881 | J21: 40.39711449 | K21: -70.49151344 | L21: 260.3429986 | M21: 5.018675722 | N21: -412.9905277 | O21: 28.86631717
A22: d) | B22: Ostala povećanja ili smanjenja radnog kapitala | C22: -0.92 | D22: 7.315 | E22: -170.824 | F22: -84.61 | G22: 567.78 | H22: -386.244 | I22: -1653.336 | J22: -795.1086957 | K22: -2335.256323 | L22: -1156.664388 | M22: -671.0554308 | N22: -68.02705273 | O22: 428.0548047
A23: II. | B23: Novac iz poslovanja | C23: =SUM(C17+C18) -> 583.886 | D23: =SUM(D17+D18) -> 561.25 | E23: -145.343 | F23: 6306.434 | G23: =SUM(G17+G18)-401.72 -> 106.537 | H23: =SUM(H17+H18)-386.24 -> 75.183 | I23: =SUM(I17+I18) -> 74.06 | J23: 96.12321583 | K23: -25.8963029 | L23: 1123.640802 | M23: 1.689338222 | N23: 70.56984897 | O23: 98.50631127
A24: 4. | B24: Novčani izdaci za kamate | C24: -54.649 | D24: -62.991 | E24: -44.516 | F24: -54.483 | G24: -55.85 | H24: -55.744 | I24: -56.407 | J24: 115.2646892 | K24: 70.67041323 | L24: 86.49330857 | M24: 102.5090395 | N24: 99.81020591 | O24: 101.1893657
A25: 5. | B25: Plaćeni porez na dobit | J25: 0 | K25: 0 | L25: 0 | M25: 0 | N25: 0 | O25: 0
A26: A. NETO NOVČANI TOKOVI OD POSLOVNIH AKTIVNOSTI | C26: =SUM(C23:C25) -> 529.237 | D26: =SUM(D23:D25) -> 498.259 | E26: -189.859 | F26: 6251.951 | G26: 50.687 | H26: =SUM(H23:H25) -> 19.439 | I26: =SUM(I23:I25)-0.01 -> 17.643 | J26: 94.14666775 | K26: -38.1044798 | L26: 1254.759272 | M26: 0.8107389197 | N26: 38.35105648 | O26: 90.76084161
A27: NOVČANI TOKOVI OD INVESTICIJSKIH AKTIVNOSTI
A28: 1. | B28: Novčani primici od prodaje dugotrajne materijalne i nematerijalne imovine | C28: 2.787 | D28: 34.629 | F28: 6.636 | J28: =IFERROR(D28/C28*100,) -> 1242.518837 | K28: 0 | L28: =IFERROR(F28/D28*100,) -> 19.16312917 | M28: =IFERROR(G28/F28*100,) -> 0 | N28: 0 | O28: 0
A29: 2. | B29: Novčani primici od prodaje financijskih instrumenata | J29: 0 | K29: 0 | L29: 0 | M29: 0 | N29: 0 | O29: 0
A30: 3. | B30: Novčani primici od kamata | C30: 0.946 | D30: 0.006 | E30: 0.512 | F30: 0.445 | G30: 0.52 | H30: 0.564 | I30: 0.597 | J30: 0.6342494715 | K30: 8533.333333 | L30: 7416.666667 | M30: 116.8539326 | N30: 108.4615385 | O30: 105.8510638
A31: 4. | B31: Novčani primici od dividendi | J31: 0 | K31: 0 | L31: 0 | M31: 0 | N31: 0 | O31: 0
A32: 5. | B32: Novčani primici s osnove povrata danih zajmova i štednih uloga | J32: 0 | K32: 0 | L32: 0 | M32: 0 | N32: 0 | O32: 0
A33: 6. | B33: Ostali novčani primici od investicijskih aktivnosti | F33: 132.723 | G33: 8000 | H33: 500 | I33: 500 | J33: 0 | K33: 0 | L33: 0 | M33: 6027.591299 | N33: 6.25 | O33: 100
A34: II. | B34: Ukupno novčani primici od investicijskih aktivnosti | C34: =SUM(C28:C33) -> 3.733 | D34: =SUM(D28:D33) -> 34.635 | E34: 0.512 | F34: 139.804 | G34: 8000.52 | H34: 500.564 | I34: 500.597 | J34: 927.8060541 | K34: 1.478273423 | L34: 403.6494875 | M34: 5722.668879 | N34: 6.256643318 | O34: 100.0065926
A35: 1. | B35: Novčani izdaci za kupnju dugotrajne materijalne i nematerijalne imovine | C35: -351.508 | D35: -576.189 | E35: -190.241 | F35: -6366.713 | G35: -8000 | H35: -500 | I35: -500 | J35: =IFERROR(#REF!/C35*100,) -> 0 | K35: =IFERROR(E35/#REF!*100,) -> 0 | L35: =IFERROR(F35/#REF!*100,) -> 0 | M35: 125.6535358 | N35: 6.25 | O35: 100
A36: 2. | B36: Novčani izdaci za stjecanje financijskih instrumenata | J36: 0 | K36: 0 | L36: 0 | M36: 0 | N36: 0 | O36: 0
A37: 3. | B37: Novčani izdaci s osnove danih zajmova i štednih uloga | J37: 0 | K37: 0 | L37: 0 | M37: 0 | N37: 0 | O37: 0
A38: 4. | B38: Stjecanje ovisnog društva, umanjeno za stečeni novac | J38: 0 | K38: 0 | L38: 0 | M38: 0 | N38: 0 | O38: 0
A39: 5. | B39: Ostali novčani izdaci od investicijskih aktivnosti | J39: =IFERROR(D35/C39*100,) -> 0 | K39: =IFERROR(E39/D35*100,) -> 0 | L39: =IFERROR(F39/D35*100,) -> 0 | M39: 0 | N39: 0 | O39: 0
A40: III. | B40: Ukupno novčani izdaci od investicijskih aktivnosti | C40: =SUM(C35:C39) -> -351.508 | D40: =SUM(D35:D38) -> -576.189 | E40: =SUM(E35:E39) -> -190.241 | F40: -6366.713 | G40: -8000 | H40: -500 | I40: -500 | J40: 163.9191711 | K40: 33.01711765 | L40: 1104.96955 | M40: 125.6535358 | N40: 6.25 | O40: 100
A41: B. NETO NOVČANI TOKOVI OD INVESTICIJSKIH AKTIVNOSTI | C41: =C34+C40 -> -347.775 | D41: =D34+D40 -> -541.554 | E41: -189.729 | F41: -6226.909 | G41: 0.52 | H41: 0.564 | I41: 0.597 | J41: 155.7196463 | K41: 35.03417942 | L41: 1149.822363 | M41: -0.008350852726 | N41: 108.4615385 | O41: 105.8510638
A42: NOVČANI TOKOVI OD FINANCIJSKIH AKTIVNOSTI
A43: 1. | B43: Novčani primici od povećanja temeljnog (upisanog) kapitala | J43: =IFERROR(D43/C43*100,) -> 0 | K43: 0 | L43: =IFERROR(F43/D43*100,) -> 0 | M43: =IFERROR(H44/F43*100,) -> 0 | N43: =IFERROR(H43/H44*100,) -> 0 | O43: =IFERROR(I43/H43*100,) -> 0
A44: 2. | B44: Novčani primici od izdavanja vlasničkih i dužničkih financijskih instrumenata | J44: 0 | K44: 0 | L44: 0 | M44: 0 | N44: =IFERROR(#REF!/G44*100,) -> 0 | O44: =IFERROR(I44/#REF!*100,) -> 0
A45: 3. | B45: Novčani primici od glavnice kredita, pozajmica i drugih posudbi | J45: 0 | K45: 0 | L45: 0 | M45: 0 | N45: 0 | O45: 0
A46: 4. | B46: Ostali novčani primici od financijskih aktivnosti | J46: 0 | K46: 0 | L46: 0 | M46: 0 | N46: 0 | O46: 0
A47: IV. | B47: Ukupno novčani primici od financijskih aktivnosti | C47: =SUM(C43:C46) -> 0 | D47: =SUM(D43:D46) -> 0 | E47: 0 | F47: 0 | G47: 0 | H47: 0 | I47: 0 | J47: 0 | K47: 0 | L47: 0 | M47: 0 | N47: 0 | O47: 0
A48: 1. | B48: Novčani izdaci za otplatu glavnice kredita, pozajmica i drugih posudbi i dužničkih financijskih instrumenata | J48: 0 | K48: 0 | L48: 0 | M48: 0 | N48: 0 | O48: 0
A49: 2. | B49: Novčani izdaci za isplatu dividendi | J49: 0 | K49: 0 | L49: 0 | M49: 0 | N49: 0 | O49: 0
A50: 3. | B50: Novčani izdaci za financijski najam | D50: -90.547 | E50: -90.547 | J50: 0 | K50: 100 | L50: 0 | M50: 0 | N50: 0 | O50: 0
A51: 4. | B51: Novčani izdaci za otkup vlastitih dionica i smanjenje temeljnog (upisanog) kapitala | J51: 0 | K51: 0 | L51: 0 | M51: 0 | N51: 0 | O51: 0
A52: 5. | B52: Ostali novčani izdaci od financijskih aktivnosti | J52: 0 | K52: 0 | L52: 0 | M52: 0 | N52: 0 | O52: 0
A53: V. | B53: Ukupno novčani izdaci od financijskih aktivnosti | C53: =SUM(C48:C52) -> 0 | D53: =SUM(D48:D52) -> -90.547 | E53: -90.547 | F53: 0 | G53: 0 | H53: 0 | I53: 0 | J53: 0 | K53: 100 | L53: 0 | M53: 0 | N53: 0 | O53: 0
A54: C. NETO NOVČANI TOKOVI OD FINANCIJSKIH AKTIVNOSTI | C54: =C47+C53 -> 0 | D54: =D47+D53 -> -90.547 | E54: -90.547 | F54: 0 | G54: 0 | H54: 0 | I54: 0 | J54: 0 | K54: 100 | L54: 0 | M54: 0 | N54: 0 | O54: 0
A55: 1. | B55: Nerealizirane tečajne razlike po novcu i novčanim ekvivalentima | J55: =IFERROR(D55/C55*100,) -> 0 | K55: =IFERROR(E55/D55*100,) -> 0 | L55: =IFERROR(F55/D55*100,) -> 0 | M55: =IFERROR(G55/F55*100,) -> 0 | N55: =IFERROR(H55/G55*100,) -> 0 | O55: =IFERROR(I55/H55*100,) -> 0
A56: D. NETO POVEĆANJE ILI SMANJENE NOVČANIH TOKOVA | C56: =C26+C41+C54+C55 -> 181.462 | D56: =D26+D41+D54+D55 -> -133.842 | E56: -470.135 | F56: 25.042 | G56: 51.207 | H56: 20.003 | I56: =I26+I41+I54+I55+0.01 -> 18.25 | J56: -73.75759112 | K56: 351.2611886 | L56: -18.71012089 | M56: 204.4844661 | N56: 39.06301873 | O56: 91.23631455
A57: E. NOVAC I NOVČANI EKVIVALENTI NA POČETKU RAZDOBLJA | C57: 723.308 | D57: 904.77 | E57: 770.928 | F57: 598.755 | G57: 300.793 | H57: 352.001 | I57: 372 | J57: 125.0877911 | K57: 85.2070692 | L57: 66.1775921 | M57: 50.23640721 | N57: 117.0243323 | O57: 105.681518
A58: F. NOVAC I NOVČANI EKVIVALENTI NA KRAJU RAZDOBLJA | C58: =C57+C56 -> 904.77 | D58: =D57+D56 -> 770.928 | E58: 300.793 | F58: 623.797 | G58: 352 | H58: 372.004 | I58: 390.25 | J58: 85.2070692 | K58: 39.01700288 | L58: 80.91507897 | M58: 56.4286138 | N58: 105.6829545 | O58: 104.904786
A60: * Ostvareni i planirani rezultati za tekuću godinu se uspoređuju s ostvarenim rezultatom poslovanja u prethodnoj godini

Sheet MFIN
B2: DODATNE STAVKE
B4: Obveznik: | C4: =IF(ISBLANK(Podloga!B2),"",Podloga!B2) -> Zračna luka Osijek d.o.o.
C7: =Podloga!B34 -> 2021. ostvareno | D7: =Podloga!C34 -> 2022. ostvareno | E7: =Podloga!D34 -> 2023. procijenjeno | F7: =Podloga!E34 -> 2023. planirano | G7: =Podloga!F34 -> 2024. planirano | H7: =Podloga!G34 -> 2025. planirano | I7: =Podloga!H34 -> 2026. planirano
A8: R.Br. | B8: RAČUN DOBITI I GUBITKA - dodatna razrada
A9: 1. | B9: Operativni prihodi (od 1.1. do 1.n.) - prihodi iz redovnog poslovanja | C9: =SUM(C10:C15) -> 0 | D9: =SUM(D10:D15) -> 0 | E9: 0 | F9: 0 | G9: 0 | H9: 0 | I9: 0
A10: 1.1.
A11: 1.2.
A12: 1.3.
A13: 1.4.
A14: 1.5.
A15: 1.n.
A16: 2. | B16: Neoperativni prihodi (od 2.1 do 2.n.) - jednokratni | C16: =SUM(C17:C22) -> 0 | D16: 0 | E16: 0 | F16: 0 | G16: 0 | H16: 0 | I16: 0
A17: 2.1.
A18: 2.2.
A19: 2.3.
A20: 2.4.
A21: 2.5.
A22: 2.n.
A23: 3. | B23: Državne potpore
A24: I. | B24: Ukupni poslovni prihodi (1.+2.+3.) | C24: =C9+C16+C23 -> 0 | D24: =D9+D16+D23 -> 0 | E24: 0 | F24: 0 | G24: 0 | H24: 0 | I24: 0
B25: PROVJERA | C25: =(C9+C16+C23)-RDG!C5 -> -1854.413 | D25: =(D9+D16+D23)-RDG!D5 -> -2450.167 | E25: =(E9+E16+E23)-RDG!E5 -> -2803.972 | F25: =(F9+F16+F23)-RDG!F5 -> -2131.827 | G25: =(G9+G16+G23)-RDG!G5 -> -3445.894 | H25: =(H9+H16+H23)-RDG!H5 -> -3621.479 | I25: =(I9+I16+I23)-RDG!I5 -> -3688.491
A26: 1. | B26: Operativni poslovni rashodi (od 1.1. do 1.n.) | C26: =SUM(C27:C32) -> 0 | D26: 0 | E26: 0 | F26: 0 | G26: 0 | H26: 0 | I26: 0
A27: 1.1. | B27: sirovine i materijal, energije
A28: 1.2. | B28: sitan inventar
A29: 1.3. | B29: ostali vanjski troškovi
A30: 1.4. | B30: troškovi prodane robe
A31: 1.5. | B31: ostali troškovi
A32: 1.n.
A33: 2. | B33: Neoperativni poslovni rashodi (od 2.1 do 2.n.) | C33: =SUM(C34:C39) -> 0 | D33: 0 | E33: 0 | F33: 0 | G33: 0 | H33: 0 | I33: 0
A34: 2.1. | B34: ostali rashodi - izvanredni
A35: 2.2.
A36: 2.3.
A37: 2.4.
A38: 2.5.
A39: 2.n.
A40: 3. | B40: Troškovi osoblja | C40: =RDG!C17 -> 803.189 | D40: =RDG!D17 -> 744.925 | E40: =RDG!E17 -> 841.779 | F40: =RDG!F17 -> 877.529 | G40: =RDG!G17 -> 981.454 | H40: =RDG!H17 -> 994.97 | I40: =RDG!I17 -> 1019.444
A41: 4. | B41: Amortizacija | C41: =RDG!C21 -> 260.421 | D41: =RDG!D21 -> 303.832 | E41: =RDG!E21 -> 371.362 | F41: =RDG!F21 -> 289.336 | G41: =RDG!G21 -> 425 | H41: =RDG!H21 -> 435 | I41: =RDG!I21 -> 440
A42: 5. | B42: Promjena vrijednosti i rezerviranja | C42: =RDG!C12+RDG!C23+RDG!C26 -> 19.025 | D42: =RDG!D12+RDG!D23+RDG!D26 -> 2.35 | E42: =RDG!E12+RDG!E23+RDG!E26 -> 2.35 | F42: =RDG!F12+RDG!F23+RDG!F26 -> 0 | G42: =RDG!G12+RDG!G23+RDG!G26 -> 0 | H42: =RDG!H12+RDG!H23+RDG!H26 -> 0 | I42: =RDG!I12+RDG!I23+RDG!I26 -> 0
A43: II. | B43: Ukupni poslovni rashodi | C43: =C26+C33+C40+C41+C42 -> 1082.635 | D43: =D26+D33+D40+D41+D42 -> 1051.107 | E43: 1215.491 | F43: 1166.865 | G43: 1406.454 | H43: 1429.97 | I43: 1459.444
B44: PROVJERA | C44: =(C26+C33+C40+C41+C42)-RDG!C11 -> -616.051 | D44: =(D26+D33+D40+D41+D42)-RDG!D11 -> -1684.251 | E44: =(E26+E33+E40+E41+E42)-RDG!E11 -> -2169.435 | F44: =(F26+F33+F40+F41+F42)-RDG!F11 -> -898.847 | G44: =(G26+G33+G40+G41+G42)-RDG!G11 -> -1972.16 | H44: =(H26+H33+H40+H41+H42)-RDG!H11 -> -2127.315 | I44: =(I26+I33+I40+I41+I42)-RDG!I11 -> -2159.313
A45: III. | B45: UKUPNI FINANCIJSKI PRIHODI (od 1. do 4.) | C45: =C46+C51+C52+C53 -> 0 | D45: 0 | E45: 0 | F45: 0 | G45: 0 | H45: 0 | I45: 0
A46: 1. | B46: Prihodi od kamata (po investiciji) (od 1.1. do 1. n.) | C46: =SUM(C47:C50) -> 0 | D46: 0 | E46: 0 | F46: 0 | G46: 0 | H46: 0 | I46: 0
A47: 1.1. | B47: kamate
A48: 1.2.
A49: 1.3.
A50: 1.n.
A51: 2. | B51: Pozitivne tečajne razlike
A52: 3. | B52: Ostali financijski prihodi (core) - iz redovnog poslovanja
A53: 4. | B53: Ostali financijski prihodi (non-core) - jednokratni
A54: IV. | B54: UKUPNI FINANCIJSKI RASHODI (od 1. do 4.) | C54: =C55+C60+C61+C62 -> 0 | D54: 0 | E54: 0 | F54: 0 | G54: 0 | H54: 0 | I54: 0
A55: 1. | B55: Rashodi od kamata (po obvezi) (od 1.1. do 1. n.) | C55: =SUM(C56:C59) -> 0 | D55: 0 | E55: 0 | F55: 0 | G55: 0 | H55: 0 | I55: 0
A56: 1.1. | B56: kamate redovne i zatezne
A57: 1.2.
A58: 1.3.
A59: 1.n.
A60: 2. | B60: Negativne tečajne razlike
A61: 3. | B61: Ostali financijski rashodi (core) - iz redovnog poslovanja
A62: 4. | B62: Ostali financijski rashodi (non-core) - jednokratni
A63: V. | B63: NETO FINANCIJSKI PRIHODI/RASHODI (III.-IV.) | C63: =C45-C54 -> 0 | D63: 0 | E63: 0 | F63: 0 | G63: 0 | H63: 0 | I63: 0
B64: PROVJERA | C64: =(C45+C54)-(RDG!C34+RDG!C45) -> -67.398 | D64: =(D45+D54)-(RDG!D34+RDG!D45) -> -72.388 | E64: =(E45+E54)-(RDG!E34+RDG!E45) -> -47.631 | F64: =(F45+F54)-(RDG!F34+RDG!F45) -> -61.767 | G64: =(G45+G54)-(RDG!G34+RDG!G45) -> -63.34 | H64: =(H45+H54)-(RDG!H34+RDG!H45) -> -58.978 | I64: =(I45+I54)-(RDG!I34+RDG!I45) -> -62.324
B66: INVESTICIJSKA ULAGANJA
B67: Isplata za ukupna investicijska ulaganja (od 1.1. do 1.n) | C67: =SUM(C68:C72) -> 0 | D67: =SUM(D68:D72) -> 0 | E67: 0 | F67: 0 | G67: 0 | H67: =SUM(H68:H72) -> 0 | I67: 0
A68: 1.1. | B68: otklanjanje nalaza Agencije za civilno zrakoplovstvo
A69: 1.2. | B69: Segment / naziv investicije
A70: 1.3. | B70: Segment / naziv investicije
A71: 1.4. | B71: Segment / naziv investicije
A72: 1.n. | B72: Segment / naziv investicije
B73: Izvori financiranja investicija (od 1.1. do 1.6.) | C73: =SUM(C74:C79) -> 0 | D73: =SUM(D74:D79) -> 0 | E73: 0 | F73: 0 | G73: 0 | H73: =SUM(H74:H79) -> 0 | I73: 0
A74: 1.1. | B74: Vlastita sredstva
A75: 1.2. | B75: Sredstva iz Državnog proračuna
A76: 1.3. | B76: Banke i ostale financijske institucije
A77: 1.4. | B77: Međunarodne financijske institucije
A78: 1.5. | B78: Nefinancijske institucije
A79: 1.6 | B79: EU fondovi
B81: OSTALE STAVKE
B82: Prosjek broja zaposlenih tijekom razdoblja | C82: =Podloga!B35 -> 0 | D82: =Podloga!C35 -> 0 | E82: =Podloga!D35 -> 0 | F82: =Podloga!E35 -> 0 | G82: =Podloga!F35 -> 0 | H82: =Podloga!G35 -> 0 | I82: =Podloga!H35 -> 0
B83: Broj zaposlenih prema satima rada
B84: Dugotrajna financijska imovina
B85: Od čega: Dani dugoročni depoziti
B86: Od čega: Likvidne dionice / ostalo
B87: Od čega: Ostalo
B88: Kratkotrajna financijska imovina
B89: Od čega: Dani kratkorični depoziti
B90: Od čega: Likvidne dionice / ostalo
B91: Od čega: Ostalo
B92: Dokapitalizacija
B93: Promjene temeljnog kapitala
B94: (+) Dokapitalizacija
B95: (-) Smanjenje / otpis
B96: Isplaćena dividenda
B98: * Ukoliko kod određenih kategorija postoji veći broj stavaka, moguće je ubacivati dodatne redove
B101: =HYPERLINK("#Sadržaj!A1","Povratak na sadržaj") -> Povratak na sadržaj

Sheet Dashboard (hidden)
A1: Dashboard:
A2: Prikaz ključnih pokazatelja poslovanja | B2: =HYPERLINK("#'Ključni poslovni pokazatelji'!A1","Ključni poslovni pokazatelji") -> Ključni poslovni pokazatelji
A3: Analiza izvještaja o financijskom položaju | B3: =HYPERLINK("#'Financijski položaj'!A1","Financijski položaj") -> Financijski položaj
A4: Analiza računa dobiti i gubitka | B4: =HYPERLINK("#'RDG 1'!A1","RDG 1") -> RDG 1
B5: =HYPERLINK("#'RDG 2'!A1","RDG 2") -> RDG 2
A6: Analiza izvještaja o novčanom toku | B6: =HYPERLINK("#'Novčani tok'!A1","Izvještaj o novčanom toku") -> Izvještaj o novčanom toku
A7: Analiza profitabilnosti | B7: =HYPERLINK("#Profitabilnost!A1","Profitabilnost") -> Profitabilnost
A8: Analiza likvidnosti | B8: =HYPERLINK("#Likvidnost!A1","Likvidnost") -> Likvidnost
A9: Analiza aktivnosti | B9: =HYPERLINK("#Aktivnost!A1","Aktivnost") -> Aktivnost
A10: Analiza zaduženosti | B10: =HYPERLINK("#Zaduženost!A1","Zaduženost") -> Zaduženost

Sheet _TM_Profit and loss (hidden)
A1: Left | B1: Top | C1: Right | D1: Bottom | E1: Ref
A2: 2 | B2: 17 | C2: 13 | D2: 17 | E2: $B$17:$M$17
A3: 2 | B3: 17 | C3: 13 | D3: 17 | E3: $B$17:$M$17

Sheet Ključni poslovni pokazatelji (hidden)
B1: =Naslovna!B3&" - "&Naslovna!I2 -> Ministarstvo državne imovine - Srednjoročni financijski plan poslovanja
B2: SAŽETI PRIKAZ KLJUČNIH FINANCIJSKIH POKAZATELJA
B3: Društvo: | C3: =Podloga!B2 -> Zračna luka Osijek d.o.o.
B4: Tip dokumenta: | C4: =Naslovna!B9 -> Srednjoročni financijski plan poslovanja
B5: Jedinstveni ključni pokazatelji poslovanja
C6: =LEFT(Podloga!B34,10)&"." -> 2021. ostv. | D6: =LEFT(Podloga!C34,10)&"." -> 2022. ostv. | E6: =LEFT(Podloga!D34,10)&"." -> 2023. proc. | F6: =LEFT(Podloga!E34,10)&"." -> 2023. plan. | G6: =LEFT(Podloga!F34,10)&"." -> 2024. plan. | H6: =LEFT(Podloga!G34,10)&"." -> 2025. plan. | I6: =LEFT(Podloga!H34,10)&"." -> 2026. plan.
B7: Glavni financijski pokazatelji (u tisućama kuna) | C7: OSTVARENO | F7: PLANIRANO
B8: Prihodi | C8: =IFERROR(RDG!C57,) -> 1857.548 | D8: =IFERROR(RDG!D57,) -> 2450.767 | E8: =IFERROR(RDG!E57,) -> 2804.489 | F8: =IFERROR(RDG!F57,) -> 2132.276 | G8: =IFERROR(RDG!G57,) -> 3446.434 | H8: =IFERROR(RDG!H57,) -> 3622.059 | I8: =IFERROR(RDG!I57,) -> 3689.099
B9: Imovina | C9: =IFERROR(Bilanca!C68,) -> 13423.2548 | D9: =IFERROR(Bilanca!D68,) -> 13481.1933 | E9: =IFERROR(Bilanca!E68,) -> 12973.986 | F9: =IFERROR(Bilanca!F68,) -> 19429.3736 | G9: =IFERROR(Bilanca!G68,) -> 20409.84 | H9: =IFERROR(Bilanca!H68,) -> 21114.913 | I9: =IFERROR(Bilanca!I68,) -> 22173.105
B10: EBITDA | C10: =IFERROR((RDG!C59+RDG!C46+RDG!C48+RDG!C21),) -> 416.684 | D10: =IFERROR((RDG!D59+RDG!D46+RDG!D48+RDG!D21),) -> 17.653 | E10: =IFERROR((RDG!E59+RDG!E46+RDG!E48+RDG!E21),) -> -211.673 | F10: =IFERROR((RDG!F59+RDG!F46+RDG!F48+RDG!F21),) -> 349.065 | G10: =IFERROR((RDG!G59+RDG!G46+RDG!G48+RDG!G21),) -> 485.87 | H10: =IFERROR((RDG!H59+RDG!H46+RDG!H48+RDG!H21),) -> 497.12 | I10: =IFERROR((RDG!I59+RDG!I46+RDG!I48+RDG!I21),) -> 505.033
B11: Dobit | C11: =IFERROR(RDG!C59,) -> 94.599 | D11: =IFERROR(RDG!D59,) -> -356.379 | E11: =IFERROR(RDG!E59,) -> -627.551 | F11: =IFERROR(RDG!F59,) -> 5.246 | G11: =IFERROR(RDG!G59,) -> 5.02 | H11: =IFERROR(RDG!H59,) -> 6.376 | I11: =IFERROR(RDG!I59,) -> 8.626
B12: Prihod od osnovne djelatnosti po zaposlenom | C12: =IFERROR(RDG!C5/Podloga!B35,) -> 0 | D12: =IFERROR(RDG!D5/Podloga!C35,) -> 0 | E12: =IFERROR(RDG!E5/Podloga!D35,) -> 0 | F12: =IFERROR(RDG!F5/Podloga!E35,) -> 0 | G12: =IFERROR(RDG!G5/Podloga!F35,) -> 0 | H12: =IFERROR(RDG!H5/Podloga!G35,) -> 0 | I12: =IFERROR(RDG!I5/Podloga!H35,) -> 0
B13: Pokazatelji profitabilnosti | C13: OSTVARENO | F13: PLANIRANO
B14: ROA | C14: =IFERROR(RDG!C63/Bilanca!C68,) -> 0.007047396582 | D14: =IFERROR(RDG!D63/Bilanca!D68,) -> -0.02643527113 | E14: =IFERROR(RDG!E63/Bilanca!E68,) -> -0.04836994583 | F14: =IFERROR(RDG!F63/Bilanca!F68,) -> 0.0002700035579 | G14: =IFERROR(RDG!G63/Bilanca!G68,) -> 0.0002459597919 | H14: =IFERROR(RDG!H63/Bilanca!H68,) -> 0.0003019666716 | I14: =IFERROR(RDG!I63/Bilanca!I68,) -> 0.000389029863
B15: ROE | C15: =IFERROR((RDG!C83/Bilanca!C$75),) -> 0.05009120826 | D15: =IFERROR((RDG!D83/Bilanca!D$75),) -> -0.2325998349 | E15: =IFERROR((RDG!E83/Bilanca!E$75),) -> -0.6937300742 | F15: =IFERROR((RDG!F83/Bilanca!F$75),) -> 0.003507584835 | G15: =IFERROR((RDG!G83/Bilanca!G$75),) -> 0.005518763797 | H15: =IFERROR((RDG!H83/Bilanca!H$75),) -> 0.004144212889 | I15: =IFERROR((RDG!I83/Bilanca!I$75),) -> 0.005598459483
B16: EBITDA Marža | C16: =IFERROR((RDG!C59+RDG!C46+RDG!C48+RDG!C21)/RDG!C57,) -> 0.2243193716 | D16: =IFERROR((RDG!D59+RDG!D46+RDG!D48+RDG!D21)/RDG!D57,) -> 0.007203051126 | E16: =IFERROR((RDG!E59+RDG!E46+RDG!E48+RDG!E21)/RDG!E57,) -> -0.075476495 | F16: =IFERROR((RDG!F59+RDG!F46+RDG!F48+RDG!F21)/RDG!F57,) -> 0.1637053552 | G16: =IFERROR((RDG!G59+RDG!G46+RDG!G48+RDG!G21)/RDG!G57,) -> 0.1409776018 | H16: =IFERROR((RDG!H59+RDG!H46+RDG!H48+RDG!H21)/RDG!H57,) -> 0.1372479024 | I16: =IFERROR((RDG!I59+RDG!I46+RDG!I48+RDG!I21)/RDG!I57,) -> 0.1368987387
B17: EBIT Marža | C17: =IFERROR((RDG!C59+RDG!C46+RDG!C48)/RDG!C57,) -> 0.08412326357 | D17: =IFERROR((RDG!D59+RDG!D46+RDG!D48)/RDG!D57,) -> -0.1167711986 | E17: =IFERROR((RDG!E59+RDG!E46+RDG!E48)/RDG!E57,) -> -0.2078934879 | F17: =IFERROR((RDG!F59+RDG!F46+RDG!F48)/RDG!F57,) -> 0.02801185212 | G17: =IFERROR((RDG!G59+RDG!G46+RDG!G48)/RDG!G57,) -> 0.01766173384 | H17: =IFERROR((RDG!H59+RDG!H46+RDG!H48)/RDG!H57,) -> 0.01715046607 | I17: =IFERROR((RDG!I59+RDG!I46+RDG!I48)/RDG!I57,) -> 0.01762842363
B18: Neto profitna marža | C18: =IFERROR(RDG!C63/RDG!C57,) -> 0.0509268132 | D18: =IFERROR(RDG!D63/RDG!D57,) -> -0.1454152924 | E18: =IFERROR(RDG!E63/RDG!E57,) -> -0.2237666113 | F18: =IFERROR(RDG!F63/RDG!F57,) -> 0.002460281877 | G18: =IFERROR(RDG!G63/RDG!G57,) -> 0.001456578017 | H18: =IFERROR(RDG!H63/RDG!H57,) -> 0.001760324721 | I18: =IFERROR(RDG!I63/RDG!I57,) -> 0.002338240313
B19: Pokazatelji likvidnosti | C19: OSTVARENO | F19: PLANIRANO
B20: Tekuća likvidnost | C20: =IFERROR(Bilanca!C40/Bilanca!C115,) -> 0.1545663199 | D20: =IFERROR(Bilanca!D40/Bilanca!D115,) -> 0.1184427051 | E20: =IFERROR(Bilanca!E40/Bilanca!E115,) -> 0.08003261826 | F20: =IFERROR(Bilanca!F40/Bilanca!F115,) -> 0.06244822732 | G20: =IFERROR(Bilanca!G40/Bilanca!G115,) -> 0.03935919473 | H20: =IFERROR(Bilanca!H40/Bilanca!H115,) -> 0.04293603215 | I20: =IFERROR(Bilanca!I40/Bilanca!I115,) -> 0.04042146206
B21: Trenutna likvidnost | C21: =IFERROR(Bilanca!C66/Bilanca!C115,) -> 0.1072575384 | D21: =IFERROR(Bilanca!D66/Bilanca!D115,) -> 0.08412458935 | E21: =IFERROR(Bilanca!E66/Bilanca!E115,) -> 0.03247069177 | F21: =IFERROR(Bilanca!F66/Bilanca!F115,) -> 0.04178164545 | G21: =IFERROR(Bilanca!G66/Bilanca!G115,) -> 0.02107689578 | H21: =IFERROR(Bilanca!H66/Bilanca!H115,) -> 0.02213875488 | I21: =IFERROR(Bilanca!I66/Bilanca!I115,) -> 0.0216585072
B22: Financijska stabilnost | C22: =IFERROR(Bilanca!C5/(Bilanca!C75+Bilanca!C103),) -> 2.449194334 | D22: =IFERROR(Bilanca!D5/(Bilanca!D75+Bilanca!D103),) -> 2.875623696 | E22: =IFERROR(Bilanca!E5/(Bilanca!E75+Bilanca!E103),) -> 3.302519613 | F22: =IFERROR(Bilanca!F5/(Bilanca!F75+Bilanca!F103),) -> 4.147308737 | G22: =IFERROR(Bilanca!G5/(Bilanca!G75+Bilanca!G103),) -> 5.325503277 | H22: =IFERROR(Bilanca!H5/(Bilanca!H75+Bilanca!H103),) -> 4.72968349 | I22: =IFERROR(Bilanca!I5/(Bilanca!I75+Bilanca!I103),) -> 5.161467639
B23: Pokazatelji aktivnosti | C23: OSTVARENO | F23: PLANIRANO
B24: Obrtaj imovine | C24: =IFERROR(RDG!C57/Bilanca!C68,) -> 0.138382831 | D24: =IFERROR(RDG!D57/Bilanca!D68,) -> 0.1817915481 | E24: =IFERROR(RDG!E57/Bilanca!E68,) -> 0.2161624808 | F24: =IFERROR(RDG!F57/Bilanca!F68,) -> 0.1097449688 | G24: =IFERROR(RDG!G57/Bilanca!G68,) -> 0.1688613923 | H24: =IFERROR(RDG!H57/Bilanca!H68,) -> 0.1715403232 | I24: =IFERROR(RDG!I57/Bilanca!I68,) -> 0.1663771944
B25: Obrtaj potraživanja | C25: =IFERROR(((RDG!C6+RDG!C7)/(Bilanca!C52)),) -> 5.552142536 | D25: =IFERROR(((RDG!D6+RDG!D7)/(Bilanca!D52)),) -> 5.644909268 | E25: =IFERROR(((RDG!E6+RDG!E7)/(Bilanca!E52)),) -> 6.090473183 | F25: =IFERROR(((RDG!F6+RDG!F7)/(Bilanca!F52)),) -> 7.175369581 | G25: =IFERROR(((RDG!G6+RDG!G7)/(Bilanca!G52)),) -> 12.33427997 | H25: =IFERROR(((RDG!H6+RDG!H7)/(Bilanca!H52)),) -> 13.81138227 | I25: =IFERROR(((RDG!I6+RDG!I7)/(Bilanca!I52)),) -> 14.82167957
B26: Dani potraživanja | C26: =IFERROR(365/C25,) -> 65.74038718 | D26: 64.66002954 | E26: 59.92966211 | F26: 50.86845993 | G26: 29.59232325 | H26: 26.42747793 | I26: 24.62608899
B27: Pokazatelji zaduženosti | C27: OSTVARENO | F27: PLANIRANO
B28: Koeficijent zaduženosti | C28: =IFERROR(((Bilanca!C96+Bilanca!C103+Bilanca!C115+Bilanca!C130)/Bilanca!C68),) -> 0.8593088764 | D28: =IFERROR(((Bilanca!D96+Bilanca!D103+Bilanca!D115+Bilanca!D130)/Bilanca!D68),) -> 0.8863489851 | E28: =IFERROR(((Bilanca!E96+Bilanca!E103+Bilanca!E115+Bilanca!E130)/Bilanca!E68),) -> 0.9302752446 | F28: =IFERROR(((Bilanca!F96+Bilanca!F103+Bilanca!F115+Bilanca!F130)/Bilanca!F68),) -> 0.923023015 | G28: =IFERROR(((Bilanca!G96+Bilanca!G103+Bilanca!G115+Bilanca!G130)/Bilanca!G68),) -> 0.9554320857 | H28: =IFERROR(((Bilanca!H96+Bilanca!H103+Bilanca!H115+Bilanca!H130)/Bilanca!H68),) -> 0.9271353853 | I28: =IFERROR(((Bilanca!I96+Bilanca!I103+Bilanca!I115+Bilanca!I130)/Bilanca!I68),) -> 0.930511356
B29: Koeficijent vlastitog financiranja | C29: =IFERROR((Bilanca!C75/Bilanca!C68),) -> 0.1406912875 | D29: =IFERROR((Bilanca!D75/Bilanca!D68),) -> 0.1136512893 | E29: =IFERROR((Bilanca!E75/Bilanca!E68),) -> 0.06972444706 | F29: =IFERROR((Bilanca!F75/Bilanca!F68),) -> 0.07697705705 | G29: =IFERROR((Bilanca!G75/Bilanca!G68),) -> 0.0445679143 | H29: =IFERROR((Bilanca!H75/Bilanca!H68),) -> 0.07286466205 | I29: =IFERROR((Bilanca!I75/Bilanca!I68),) -> 0.06948873421
B30: Koeficijent financiranja | C30: =IFERROR(((Bilanca!C96+Bilanca!C103+Bilanca!C115+Bilanca!C130)/Bilanca!C75),) -> 6.107761837 | D30: =IFERROR(((Bilanca!D96+Bilanca!D103+Bilanca!D115+Bilanca!D130)/Bilanca!D75),) -> 7.798846722 | E30: =IFERROR(((Bilanca!E96+Bilanca!E103+Bilanca!E115+Bilanca!E130)/Bilanca!E75),) -> 13.3421674 | F30: =IFERROR(((Bilanca!F96+Bilanca!F103+Bilanca!F115+Bilanca!F130)/Bilanca!F75),) -> 11.99088469 | G30: =IFERROR(((Bilanca!G96+Bilanca!G103+Bilanca!G115+Bilanca!G130)/Bilanca!G75),) -> 21.43766655 | H30: =IFERROR(((Bilanca!H96+Bilanca!H103+Bilanca!H115+Bilanca!H130)/Bilanca!H75),) -> 12.72407446 | I30: =IFERROR(((Bilanca!I96+Bilanca!I103+Bilanca!I115+Bilanca!I130)/Bilanca!I75),) -> 13.39082323
B31: Odnos ukupne imovine i kapitala | C31: =IFERROR(Bilanca!C68/Bilanca!C75,) -> 7.107760672 | D31: =IFERROR(Bilanca!D68/Bilanca!D75,) -> 8.798844308 | E31: =IFERROR(Bilanca!E68/Bilanca!E75,) -> 14.34217182 | F31: =IFERROR(Bilanca!F68/Bilanca!F75,) -> 12.99088376 | G31: =IFERROR(Bilanca!G68/Bilanca!G75,) -> 22.43766655 | H31: =IFERROR(Bilanca!H68/Bilanca!H75,) -> 13.72407381 | I31: =IFERROR(Bilanca!I68/Bilanca!I75,) -> 14.39082193
B32: * Plavo osjenčana pozadina označava planirane vrijednosti
B67: =HYPERLINK("#Sadržaj!A1","Povratak na sadržaj") -> Povratak na sadržaj

Sheet Financijski položaj (hidden)
B1: =Naslovna!B3&" - "&Naslovna!I2 -> Ministarstvo državne imovine - Srednjoročni financijski plan poslovanja
B2: SAŽETI PRIKAZ IZVJEŠTAJA O FINANCIJSKOM POLOŽAJU
B4: Društvo: | D4: =Podloga!B2 -> Zračna luka Osijek d.o.o.
B5: Tip dokumenta: | D5: =Naslovna!B9 -> Srednjoročni financijski plan poslovanja
B6: Sastavlja se za razdoblje: | D6: =Podloga!B7 -> 2024. - 2026.
B8: Bilanca (u 000 kn)
C9: =Podloga!B34 -> 2021. ostvareno | D9: =Podloga!C34 -> 2022. ostvareno | F9: =Podloga!D34 -> 2023. procijenjeno | H9: =Podloga!E34 -> 2023. planirano | J9: =Podloga!F34 -> 2024. planirano | L9: =Podloga!G34 -> 2025. planirano | N9: =Podloga!H34 -> 2026. planirano
B10: Dugotrajna imovina | C10: =Bilanca!C5 -> 12119.412 | D10: =Bilanca!D5 -> 12395.7699 | E10: =D10-C10 -> 276.3579 | F10: =Bilanca!E5 -> 12232.602 | G10: =F10-D10 -> -163.1679 | H10: =Bilanca!F5 -> 18497.026 | I10: =H10-D10 -> 6101.2561 | J10: =Bilanca!G5 -> 19752.51 | K10: =J10-H10 -> 1255.484 | L10: =Bilanca!H5 -> 20393.454 | M10: =L10-J10 -> 640.944 | N10: =Bilanca!I5 -> 21444.778 | O10: =N10-L10 -> 1051.324
B11: Kratkotrajna imovina | C11: =Bilanca!C40 -> 1303.8428 | D11: =Bilanca!D40 -> 1085.4234 | E11: =D11-C11 -> -218.4194 | F11: =Bilanca!E40 -> 741.384 | G11: =F11-D11 -> -344.0394 | H11: =Bilanca!F40 -> 932.3476 | I11: =H11-D11 -> -153.0758 | J11: =Bilanca!G40 -> 657.33 | K11: =J11-H11 -> -275.0176 | L11: =Bilanca!H40 -> 721.459 | M11: =L11-J11 -> 64.129 | N11: =Bilanca!I40 -> 728.327 | O11: =N11-L11 -> 6.868
B12: Ostalo | C12: =Bilanca!C67+Bilanca!C4 -> 0 | D12: =Bilanca!D67+Bilanca!D4 -> 0 | E12: 0 | F12: =Bilanca!E67+Bilanca!E4 -> 0 | G12: 0 | H12: =Bilanca!F67+Bilanca!F4 -> 0 | I12: 0 | J12: =Bilanca!G67+Bilanca!G4 -> 0 | K12: 0 | L12: =Bilanca!H67+Bilanca!H4 -> 0 | M12: =L12-J12 -> 0 | N12: =Bilanca!I67+Bilanca!I4 -> 0 | O12: =N12-L12 -> 0
B13: Ukupno aktiva | C13: =SUM(C10:C12) -> 13423.2548 | D13: =SUM(D10:D12) -> 13481.1933 | E13: 57.9385 | F13: =SUM(F10:F12) -> 12973.986 | G13: -507.2073 | H13: =SUM(H10:H12) -> 19429.3736 | I13: 5948.1803 | J13: =SUM(J10:J12) -> 20409.84 | K13: 980.4664 | L13: =SUM(L10:L12) -> 21114.913 | M13: =L13-J13 -> 705.073 | N13: =SUM(N10:N12) -> 22173.105 | O13: =N13-L13 -> 1058.192
B15: Kapital i rezerve | C15: =Bilanca!C75 -> 1888.535 | D15: =Bilanca!D75 -> 1532.155 | E15: -356.38 | F15: =Bilanca!E75 -> 904.604 | G15: -627.551 | H15: =Bilanca!F75 -> 1495.616 | I15: =H15-D15 -> -36.539 | J15: =Bilanca!G75 -> 909.624 | K15: -585.992 | L15: =Bilanca!H75 -> 1538.531 | M15: =L15-J15 -> 628.907 | N15: =Bilanca!I75 -> 1540.781 | O15: =N15-L15 -> 2.25
B16: Rezerviranja | C16: =Bilanca!C96 -> 39.44 | D16: =Bilanca!D96 -> 6.438 | E16: -33.002 | F16: =Bilanca!E96 -> 6.438 | G16: 0 | H16: =Bilanca!F96 -> 39.439 | I16: =H16-D16 -> 33.001 | J16: =Bilanca!G96 -> 0 | K16: -39.439 | L16: =Bilanca!H96 -> 0 | M16: 0 | N16: =Bilanca!I96 -> 0 | O16: 0
B17: Dugoročne obveze | C17: =Bilanca!C103 -> 3059.791 | D17: =Bilanca!D103 -> 2778.482 | E17: -281.309 | F17: =Bilanca!E103 -> 2799.417 | G17: 20.935 | H17: =Bilanca!F103 -> 2964.391 | I17: 185.909 | J17: =Bilanca!G103 -> 2799.417 | K17: -164.974 | L17: =Bilanca!H103 -> 2773.27 | M17: -26.147 | N17: =Bilanca!I103 -> 2614.002 | O17: -159.268
B18: Kratkoročne obveze | C18: =Bilanca!C115 -> 8435.491 | D18: =Bilanca!D115 -> 9164.122 | E18: 728.631 | F18: =Bilanca!E115 -> 9263.523 | G18: 99.401 | H18: =Bilanca!F115 -> 14929.929 | I18: 5765.807 | J18: =Bilanca!G115 -> 16700.799 | K18: 1770.87 | L18: =Bilanca!H115 -> 16803.113 | M18: 102.314 | N18: =Bilanca!I115 -> 18018.324 | O18: 1215.211
B19: Ostalo | C19: =Bilanca!C130 -> 0 | D19: =Bilanca!D130 -> 0 | E19: 0 | F19: =Bilanca!E130 -> 0 | G19: 0 | H19: =Bilanca!F130 -> 0 | I19: 0 | J19: =Bilanca!G130 -> 0 | K19: 0 | L19: =Bilanca!H130 -> 0 | M19: 0 | N19: =Bilanca!I130 -> 0 | O19: 0
B20: Ukupna pasiva | C20: =SUM(C15:C19) -> 13423.257 | D20: =SUM(D15:D19) -> 13481.197 | E20: 57.94 | F20: =SUM(F15:F19) -> 12973.982 | G20: -507.215 | H20: =SUM(H15:H19) -> 19429.375 | I20: =H20-D20 -> 5948.178 | J20: =SUM(J15:J19) -> 20409.84 | K20: 980.465 | L20: =SUM(L15:L19) -> 21114.914 | M20: 705.074 | N20: =SUM(N15:N19) -> 22173.107 | O20: 1058.193
B22: * Procijenjeni i planirani rezultati za tekuću godinu se uspoređuju s ostvarenim rezultatom poslovanja u prethodnoj godini
B23: ** Plavo osjenčana pozadina označava planirane vrijednosti
B57: Dodatni komentari i pojašnjenja na rezultate
B69: =HYPERLINK("#Sadržaj!A1","Povratak na sadržaj") -> Povratak na sadržaj

Sheet RDG 1 (hidden)
B1: =Naslovna!B3&" - "&Naslovna!I2 -> Ministarstvo državne imovine - Srednjoročni financijski plan poslovanja
B2: SAŽETI PRIKAZ RAČUNA DOBITI I GUBITKA (1/2)
B4: Društvo: | C4: =Podloga!B2 -> Zračna luka Osijek d.o.o.
B5: Tip dokumenta: | C5: =Naslovna!B9 -> Srednjoročni financijski plan poslovanja
B6: Sastavlja se za razdoblje: | C6: =Podloga!B7 -> 2024. - 2026.
B8: Račun dobiti i gubitka (u 000 kn)
C9: =Podloga!B34 -> 2021. ostvareno | D9: =Podloga!C34 -> 2022. ostvareno | F9: =Podloga!D34 -> 2023. procijenjeno | H9: =Podloga!E34 -> 2023. planirano | J9: =Podloga!F34 -> 2024. planirano | L9: =Podloga!G34 -> 2025. planirano | N9: =Podloga!H34 -> 2026. planirano
B10: Poslovni prihodi | C10: =RDG!C5 -> 1854.413 | D10: =RDG!D5 -> 2450.167 | E10: =D10-C10 -> 595.754 | F10: =RDG!E5 -> 2803.972 | G10: =F10-D10 -> 353.805 | H10: =RDG!F5 -> 2131.827 | I10: =H10-D10 -> -318.34 | J10: =RDG!G5 -> 3445.894 | K10: =J10-H10 -> 1314.067 | L10: =RDG!H5 -> 3621.479 | M10: =L10-J10 -> 175.585 | N10: =RDG!I5 -> 3688.491 | O10: =N10-L10 -> 67.012
B11: Poslovni rashodi | C11: =RDG!C11 -> 1698.686 | D11: =RDG!D11 -> 2735.358 | E11: =D11-C11 -> 1036.672 | F11: =RDG!E11 -> 3384.926 | G11: =F11-D11 -> 649.568 | H11: =RDG!F11 -> 2065.712 | I11: =H11-D11 -> -669.646 | J11: =RDG!G11 -> 3378.614 | K11: =J11-H11 -> 1312.902 | L11: =RDG!H11 -> 3557.285 | M11: 178.671 | N11: =RDG!I11 -> 3618.757 | O11: 61.472
B12: Financijski i investicijski prihodi | C12: =RDG!C34+RDG!C53+RDG!C54 -> 3.135 | D12: =RDG!D34+RDG!D53+RDG!D54 -> 0.6 | E12: -2.535 | F12: =RDG!E34+RDG!E53+RDG!E54 -> 0.517 | G12: -0.083 | H12: =RDG!F34+RDG!F53+RDG!F54 -> 0.449 | I12: -0.151 | J12: =RDG!G34+RDG!G53+RDG!G54 -> 0.54 | K12: 0.091 | L12: =RDG!H34+RDG!H53+RDG!H54 -> 0.58 | M12: 0.04 | N12: =RDG!I34+RDG!I53+RDG!I54 -> 0.608 | O12: 0.028
B13: Financijski i investicijski rashodi | C13: =RDG!C45+RDG!C55+RDG!C56 -> 64.263 | D13: =RDG!D45+RDG!D55+RDG!D56 -> 71.788 | E13: 7.525 | F13: =RDG!E45+RDG!E55+RDG!E56 -> 47.114 | G13: -24.674 | H13: =RDG!F45+RDG!F55+RDG!F56 -> 61.318 | I13: -10.47 | J13: =RDG!G45+RDG!G55+RDG!G56 -> 62.8 | K13: 1.482 | L13: =RDG!H45+RDG!H55+RDG!H56 -> 58.398 | M13: -4.402 | N13: =RDG!I45+RDG!I55+RDG!I56 -> 61.716 | O13: 3.318
B14: Dobit/Gubitak prije oporezivanja | C14: =RDG!C59 -> 94.599 | D14: =RDG!D59 -> -356.379 | E14: -450.978 | F14: =RDG!E59 -> -627.551 | G14: -271.172 | H14: =RDG!F59 -> 5.246 | I14: 361.625 | J14: =RDG!G59 -> 5.02 | K14: -0.226 | L14: =RDG!H59 -> 6.376 | M14: 1.356 | N14: =RDG!I59 -> 8.626 | O14: 2.25
B15: Porez na dobit | C15: =RDG!C62 -> 0 | D15: =RDG!D62 -> 0 | E15: 0 | F15: =RDG!E62 -> 0 | G15: 0 | H15: =RDG!F62 -> 0 | I15: 0 | J15: =RDG!G62 -> 0 | K15: 0 | L15: =RDG!H62 -> 0 | M15: 0 | N15: =RDG!I62 -> 0 | O15: 0
B16: Neto dobit | C16: =C10-C11+C12-C13-C15 -> 94.599 | D16: =D10-D11+D12-D13-D15 -> -356.379 | E16: -450.978 | F16: =F10-F11+F12-F13-F15 -> -627.551 | G16: -271.172 | H16: =H10-H11+H12-H13-H15 -> 5.246 | I16: =H16-D16 -> 361.625 | J16: =J10-J11+J12-J13-J15 -> 5.02 | K16: -0.226 | L16: =L10-L11+L12-L13-L15 -> 6.376 | M16: 1.356 | N16: =N10-N11+N12-N13-N15 -> 8.626 | O16: 2.25
B18: * Procijenjeni i planirani rezultati za tekuću godinu se uspoređuju s ostvarenim rezultatom poslovanja u prethodnoj godini
B19: ** Plavo osjenčana pozadina označava planirane vrijednosti
B63: Dodatni komentari i pojašnjenja na rezultate
B75: =HYPERLINK("#Sadržaj!A1","Povratak na sadržaj") -> Povratak na sadržaj

Sheet RDG 2 (hidden)
B1: =Naslovna!B3&" - "&Naslovna!I2 -> Ministarstvo državne imovine - Srednjoročni financijski plan poslovanja
B2: SAŽETI PRIKAZ RAČUNA DOBITI I GUBITKA (2/2)
B4: Društvo: | C4: =Podloga!B2 -> Zračna luka Osijek d.o.o.
B5: Tip dokumenta: | C5: =Naslovna!B9 -> Srednjoročni financijski plan poslovanja
B6: Sastavlja se za razdoblje: | C6: =Podloga!B7 -> 2024. - 2026.
B63: Dodatni komentari i pojašnjenja na rezultate
B75: =HYPERLINK("#Sadržaj!A1","Povratak na sadržaj") -> Povratak na sadržaj

Sheet Novčani tok (hidden)
B1: =Naslovna!B3&" - "&Naslovna!I2 -> Ministarstvo državne imovine - Srednjoročni financijski plan poslovanja
B2: ="SAŽETI PRIKAZ NOVČANOG TOKA PO "&(IF(Podloga!B17="Direktna","DIREKTNOJ","INDIREKTNOJ"))&" METODI" -> SAŽETI PRIKAZ NOVČANOG TOKA PO INDIREKTNOJ METODI
B4: Društvo: | C4: =Podloga!B2 -> Zračna luka Osijek d.o.o.
B5: Tip dokumenta: | C5: =Naslovna!B9 -> Srednjoročni financijski plan poslovanja
B6: Sastavlja se za razdoblje: | C6: =Podloga!B7 -> 2024. - 2026.
B8: Izvještaj o novčanom toku (u 000 kn)
C9: =Podloga!B34 -> 2021. ostvareno | D9: =Podloga!C34 -> 2022. ostvareno | F9: =Podloga!D34 -> 2023. procijenjeno | H9: =Podloga!E34 -> 2023. planirano | J9: =Podloga!F34 -> 2024. planirano | L9: =Podloga!G34 -> 2025. planirano | N9: =Podloga!H34 -> 2026. planirano
B10: Novac i novčani ekvivalenti na početku razdoblja | C10: =IF(Podloga!$B$17="Direktna",'NT dir.'!C49,'NT indir.'!C57) -> 723.308 | D10: =IF(Podloga!$B$17="Direktna",'NT dir.'!D49,'NT indir.'!D57) -> 904.77 | E10: =D10-C10 -> 181.462 | F10: =IF(Podloga!$B$17="Direktna",'NT dir.'!E49,'NT indir.'!E57) -> 770.928 | G10: =F10-D10 -> -133.842 | H10: =IF(Podloga!$B$17="Direktna",'NT dir.'!F49,'NT indir.'!F57) -> 598.755 | I10: =H10-D10 -> -306.015 | J10: =IF(Podloga!$B$17="Direktna",'NT dir.'!G49,'NT indir.'!G57) -> 300.793 | K10: =J10-H10 -> -297.962 | L10: =IF(Podloga!$B$17="Direktna",'NT dir.'!H49,'NT indir.'!H57) -> 352.001 | M10: =L10-J10 -> 51.208 | N10: =IF(Podloga!$B$17="Direktna",'NT dir.'!I49,'NT indir.'!I57) -> 372 | O10: =N10-L10 -> 19.999
B11: Neto novčani tok od poslovnih aktivnosti | C11: =IF(Podloga!$B$17="Direktna",'NT dir.'!C18,'NT indir.'!C26) -> 529.237 | D11: =IF(Podloga!$B$17="Direktna",'NT dir.'!D18,'NT indir.'!D26) -> 498.259 | E11: -30.978 | F11: =IF(Podloga!$B$17="Direktna",'NT dir.'!E18,'NT indir.'!E26) -> -189.859 | G11: =F11-D11 -> -688.118 | H11: =IF(Podloga!$B$17="Direktna",'NT dir.'!F18,'NT indir.'!F26) -> 6251.951 | I11: =H11-D11 -> 5753.692 | J11: =IF(Podloga!$B$17="Direktna",'NT dir.'!G18,'NT indir.'!G26) -> 50.687 | K11: =J11-H11 -> -6201.264 | L11: =IF(Podloga!$B$17="Direktna",'NT dir.'!H18,'NT indir.'!H26) -> 19.439 | M11: =L11-J11 -> -31.248 | N11: =IF(Podloga!$B$17="Direktna",'NT dir.'!I18,'NT indir.'!I26) -> 17.643 | O11: =N11-L11 -> -1.796
B12: Neto novčani tok od investicijskih aktivnosti | C12: =IF(Podloga!$B$17="Direktna",'NT dir.'!C33,'NT indir.'!C41) -> -347.775 | D12: =IF(Podloga!$B$17="Direktna",'NT dir.'!D33,'NT indir.'!D41) -> -541.554 | E12: -193.779 | F12: =IF(Podloga!$B$17="Direktna",'NT dir.'!E33,'NT indir.'!E41) -> -189.729 | G12: =F12-D12 -> 351.825 | H12: =IF(Podloga!$B$17="Direktna",'NT dir.'!F33,'NT indir.'!F41) -> -6226.909 | I12: =H12-D12 -> -5685.355 | J12: =IF(Podloga!$B$17="Direktna",'NT dir.'!G33,'NT indir.'!G41) -> 0.52 | K12: 6227.429 | L12: =IF(Podloga!$B$17="Direktna",'NT dir.'!H33,'NT indir.'!H41) -> 0.564 | M12: =L12-J12 -> 0.044 | N12: =IF(Podloga!$B$17="Direktna",'NT dir.'!I33,'NT indir.'!I41) -> 0.597 | O12: =N12-L12 -> 0.033
B13: Neto novčani tok od financijskih aktivnosti | C13: =IF(Podloga!$B$17="Direktna",'NT dir.'!C46+'NT dir.'!C47,'NT indir.'!C54+'NT indir.'!C55) -> 0 | D13: =IF(Podloga!$B$17="Direktna",'NT dir.'!D46+'NT dir.'!D47,'NT indir.'!D54+'NT indir.'!D55) -> -90.547 | E13: -90.547 | F13: =IF(Podloga!$B$17="Direktna",'NT dir.'!E46+'NT dir.'!E47,'NT indir.'!E54+'NT indir.'!E55) -> -90.547 | G13: =F13-D13 -> 0 | H13: =IF(Podloga!$B$17="Direktna",'NT dir.'!F46+'NT dir.'!F47,'NT indir.'!F54+'NT indir.'!F55) -> 0 | I13: =H13-D13 -> 90.547 | J13: =IF(Podloga!$B$17="Direktna",'NT dir.'!G46+'NT dir.'!G47,'NT indir.'!G54+'NT indir.'!G55) -> 0 | K13: 0 | L13: =IF(Podloga!$B$17="Direktna",'NT dir.'!H46+'NT dir.'!H47,'NT indir.'!H54+'NT indir.'!H55) -> 0 | M13: =L13-J13 -> 0 | N13: =IF(Podloga!$B$17="Direktna",'NT dir.'!I46+'NT dir.'!I47,'NT indir.'!I54+'NT indir.'!I55) -> 0 | O13: =N13-L13 -> 0
B14: Novac i novčani ekvivalenti na kraju razdoblja | C14: =IF(Podloga!$B$17="Direktna",'NT dir.'!C50,'NT indir.'!C58) -> 904.77 | D14: =IF(Podloga!$B$17="Direktna",'NT dir.'!D50,'NT indir.'!D58) -> 770.928 | E14: -133.842 | F14: =IF(Podloga!$B$17="Direktna",'NT dir.'!E50,'NT indir.'!E58) -> 300.793 | G14: =F14-D14 -> -470.135 | H14: =IF(Podloga!$B$17="Direktna",'NT dir.'!F50,'NT indir.'!F58) -> 623.797 | I14: =H14-D14 -> -147.131 | J14: =IF(Podloga!$B$17="Direktna",'NT dir.'!G50,'NT indir.'!G58) -> 352 | K14: -271.797 | L14: =IF(Podloga!$B$17="Direktna",'NT dir.'!H50,'NT indir.'!H58) -> 372.004 | M14: =L14-J14 -> 20.004 | N14: =IF(Podloga!$B$17="Direktna",'NT dir.'!I50,'NT indir.'!I58) -> 390.25 | O14: =N14-L14 -> 18.246
B15: * Procijenjeni i i planirani rezultati za tekuću godinu se uspoređuju s ostvarenim rezultatom poslovanja u prethodnoj godini
B16: ** Plavo osjenčana pozadina označava planirane vrijednosti
C38: =IF(Podloga!B17="Direktna"," "," Nije primjenjivo kod indirektne metode") -> Nije primjenjivo kod indirektne metode
C47: =IF(Podloga!B17="Direktna"," "," Nije primjenjivo kod indirektne metode") -> Nije primjenjivo kod indirektne metode
B57: Dodatni komentari i pojašnjenja na rezultate
B68: =HYPERLINK("#Sadržaj!A1","Povratak na sadržaj") -> Povratak na sadržaj

Sheet Profitabilnost (hidden)
B1: =Naslovna!B3&" - "&Naslovna!I2 -> Ministarstvo državne imovine - Srednjoročni financijski plan poslovanja
B2: SAŽETI PRIKAZ POKAZATELJA PROFITABILNOSTI
B4: Društvo: | C4: =Podloga!B2 -> Zračna luka Osijek d.o.o.
B5: Tip dokumenta: | C5: =Naslovna!B9 -> Srednjoročni financijski plan poslovanja
B6: Sastavlja se za razdoblje: | C6: =Podloga!B7 -> 2024. - 2026.
B8: Pokazatelji profitabilnosti
C9: =Podloga!B34 -> 2021. ostvareno | D9: =Podloga!C34 -> 2022. ostvareno | F9: =Podloga!D34 -> 2023. procijenjeno | H9: =Podloga!E34 -> 2023. planirano | J9: =Podloga!F34 -> 2024. planirano | L9: =Podloga!G34 -> 2025. planirano | N9: =Podloga!H34 -> 2026. planirano
B10: ROA | C10: =IFERROR(RDG!C63/Bilanca!C68,) -> 0.007047396582 | D10: =IFERROR(RDG!D63/Bilanca!D68,) -> -0.02643527113 | E10: =D10-C10 -> -0.03348266771 | F10: =IFERROR(RDG!E63/Bilanca!E68,) -> -0.04836994583 | G10: =F10-D10 -> -0.0219346747 | H10: =IFERROR(RDG!F63/Bilanca!F68,) -> 0.0002700035579 | I10: =H10-D10 -> 0.02670527468 | J10: =IFERROR(RDG!G63/Bilanca!G68,) -> 0.0002459597919 | K10: =J10-H10 -> -2.404376597e-05 | L10: =IFERROR(RDG!H63/Bilanca!H68,) -> 0.0003019666716 | M10: =L10-J10 -> 5.600687967e-05 | N10: =IFERROR(RDG!I63/Bilanca!I68,) -> 0.000389029863 | O10: =N10-L10 -> 8.706319137e-05
B11: ROE | C11: =IFERROR((RDG!C83/Bilanca!C$75),) -> 0.05009120826 | D11: =IFERROR((RDG!D83/Bilanca!D$75),) -> -0.2325998349 | E11: =D11-C11 -> -0.2826910431 | F11: =IFERROR((RDG!E83/Bilanca!E$75),) -> -0.6937300742 | G11: =F11-D11 -> -0.4611302393 | H11: =IFERROR((RDG!F83/Bilanca!F$75),) -> 0.003507584835 | I11: =H11-D11 -> 0.2361074197 | J11: =IFERROR((RDG!G83/Bilanca!G$75),) -> 0.005518763797 | K11: =J11-H11 -> 0.002011178962 | L11: =IFERROR((RDG!H83/Bilanca!H$75),) -> 0.004144212889 | M11: =L11-J11 -> -0.001374550908 | N11: =IFERROR((RDG!I83/Bilanca!I$75),) -> 0.005598459483 | O11: =N11-L11 -> 0.001454246594
B12: EBITDA Marža | C12: =IFERROR((RDG!C59+RDG!C46+RDG!C48+RDG!C21)/RDG!C57,) -> 0.2243193716 | D12: =IFERROR((RDG!D59+RDG!D46+RDG!D48+RDG!D21)/RDG!D57,) -> 0.007203051126 | E12: =D12-C12 -> -0.2171163204 | F12: =IFERROR((RDG!E59+RDG!E46+RDG!E48+RDG!E21)/RDG!E57,) -> -0.075476495 | G12: =F12-D12 -> -0.08267954613 | H12: =IFERROR((RDG!F59+RDG!F46+RDG!F48+RDG!F21)/RDG!F57,) -> 0.1637053552 | I12: =H12-D12 -> 0.1565023041 | J12: =IFERROR((RDG!G59+RDG!G46+RDG!G48+RDG!G21)/RDG!G57,) -> 0.1409776018 | K12: =J12-H12 -> -0.02272775344 | L12: =IFERROR((RDG!H59+RDG!H46+RDG!H48+RDG!H21)/RDG!H57,) -> 0.1372479024 | M12: =L12-J12 -> -0.003729699409 | N12: =IFERROR((RDG!I59+RDG!I46+RDG!I48+RDG!I21)/RDG!I57,) -> 0.1368987387 | O12: =N12-L12 -> -0.0003491636778
B13: EBIT Marža | C13: =IFERROR((RDG!C59+RDG!C46+RDG!C48)/RDG!C57,) -> 0.08412326357 | D13: =IFERROR((RDG!D59+RDG!D46+RDG!D48)/RDG!D57,) -> -0.1167711986 | E13: =D13-C13 -> -0.2008944621 | F13: =IFERROR((RDG!E59+RDG!E46+RDG!E48)/RDG!E57,) -> -0.2078934879 | G13: =F13-D13 -> -0.09112228934 | H13: =IFERROR((RDG!F59+RDG!F46+RDG!F48)/RDG!F57,) -> 0.02801185212 | I13: =H13-D13 -> 0.1447830507 | J13: =IFERROR((RDG!G59+RDG!G46+RDG!G48)/RDG!G57,) -> 0.01766173384 | K13: =J13-H13 -> -0.01035011829 | L13: =IFERROR((RDG!H59+RDG!H46+RDG!H48)/RDG!H57,) -> 0.01715046607 | M13: =L13-J13 -> -0.0005112677638 | N13: =IFERROR((RDG!I59+RDG!I46+RDG!I48)/RDG!I57,) -> 0.01762842363 | O13: =N13-L13 -> 0.0004779575594
B14: Neto profitna marža (neto dobit / ukupni prihod) | C14: =IFERROR(RDG!C63/RDG!C57,) -> 0.0509268132 | D14: =IFERROR(RDG!D63/RDG!D57,) -> -0.1454152924 | E14: -0.1963421056 | F14: =IFERROR(RDG!E63/RDG!E57,) -> -0.2237666113 | G14: -0.07835131888 | H14: =IFERROR(RDG!F63/RDG!F57,) -> 0.002460281877 | I14: =H14-D14 -> 0.1478755743 | J14: =IFERROR(RDG!G63/RDG!G57,) -> 0.001456578017 | K14: -0.001003703861 | L14: =IFERROR(RDG!H63/RDG!H57,) -> 0.001760324721 | M14: 0.0003037467048 | N14: =IFERROR(RDG!I63/RDG!I57,) -> 0.002338240313 | O14: 0.0005779155915
B16: * Procijenjeni i planirani rezultati za tekuću godinu se uspoređuju s ostvarenim rezultatom poslovanja u prethodnoj godini
B17: ** Plavo osjenčana pozadina označava planirane vrijednosti
B58: Dodatni komentari i pojašnjenja na rezultate
B71: =HYPERLINK("#Sadržaj!A1","Povratak na sadržaj") -> Povratak na sadržaj

Sheet Likvidnost (hidden)
B1: =Naslovna!B3&" - "&Naslovna!I2 -> Ministarstvo državne imovine - Srednjoročni financijski plan poslovanja
B2: SAŽETI PRIKAZ POKAZATELJA LIKVIDNOSTI
B4: Društvo: | C4: =Podloga!B2 -> Zračna luka Osijek d.o.o.
B5: Tip dokumenta: | C5: =Naslovna!B9 -> Srednjoročni financijski plan poslovanja
B6: Sastavlja se za razdoblje: | C6: =Podloga!B7 -> 2024. - 2026.
B8: Pokazatelji likvidnosti
C9: =Podloga!B34 -> 2021. ostvareno | D9: =Podloga!C34 -> 2022. ostvareno | F9: =Podloga!D34 -> 2023. procijenjeno | H9: =Podloga!E34 -> 2023. planirano | J9: =Podloga!F34 -> 2024. planirano | L9: =Podloga!G34 -> 2025. planirano | N9: =Podloga!H34 -> 2026. planirano
B10: Neto radni kapital (u 000 kn) | C10: =Bilanca!C40-Bilanca!C115 -> -7131.6482 | D10: =Bilanca!D40-Bilanca!D115 -> -8078.6986 | E10: =D10-C10 -> -947.0504 | F10: =Bilanca!E40-Bilanca!E115 -> -8522.139 | G10: =F10-D10 -> -443.4404 | H10: =Bilanca!F40-Bilanca!F115 -> -13997.5814 | I10: =H10-D10 -> -5918.8828 | J10: =Bilanca!G40-Bilanca!G115 -> -16043.469 | K10: =J10-H10 -> -2045.8876 | L10: =Bilanca!H40-Bilanca!H115 -> -16081.654 | M10: =L10-J10 -> -38.185 | N10: =Bilanca!I40-Bilanca!I115 -> -17289.997 | O10: =N10-L10 -> -1208.343
B11: Koeficijent tekuće likvidnosti | C11: =IFERROR(Bilanca!C40/Bilanca!C115,) -> 0.1545663199 | D11: =IFERROR(Bilanca!D40/Bilanca!D115,) -> 0.1184427051 | E11: =D11-C11 -> -0.0361236147 | F11: =IFERROR(Bilanca!E40/Bilanca!E115,) -> 0.08003261826 | G11: =F11-D11 -> -0.03841008689 | H11: =IFERROR(Bilanca!F40/Bilanca!F115,) -> 0.06244822732 | I11: =H11-D11 -> -0.05599447783 | J11: =IFERROR(Bilanca!G40/Bilanca!G115,) -> 0.03935919473 | K11: =J11-H11 -> -0.02308903259 | L11: =IFERROR(Bilanca!H40/Bilanca!H115,) -> 0.04293603215 | M11: =L11-J11 -> 0.00357683742 | N11: =IFERROR(Bilanca!I40/Bilanca!I115,) -> 0.04042146206 | O11: =N11-L11 -> -0.002514570088
B12: Koeficijent trenutne likvidnosti | C12: =IFERROR(Bilanca!C66/Bilanca!C115,) -> 0.1072575384 | D12: =IFERROR(Bilanca!D66/Bilanca!D115,) -> 0.08412458935 | E12: -0.02313294907 | F12: =IFERROR(Bilanca!E66/Bilanca!E115,) -> 0.03247069177 | G12: -0.05165389758 | H12: =IFERROR(Bilanca!F66/Bilanca!F115,) -> 0.04178164545 | I12: -0.0423429439 | J12: =IFERROR(Bilanca!G66/Bilanca!G115,) -> 0.02107689578 | K12: -0.02070474966 | L12: =IFERROR(Bilanca!H66/Bilanca!H115,) -> 0.02213875488 | M12: =L12-J12 -> 0.001061859102 | N12: =IFERROR(Bilanca!I66/Bilanca!I115,) -> 0.0216585072 | O12: =N12-L12 -> -0.0004802476891
B13: Koeficijent financijske stabilnosti | C13: =IFERROR(Bilanca!C5/(Bilanca!C75+Bilanca!C103),) -> 2.449194334 | D13: =IFERROR(Bilanca!D5/(Bilanca!D75+Bilanca!D103),) -> 2.875623696 | E13: 0.4264293619 | F13: =IFERROR(Bilanca!E5/(Bilanca!E75+Bilanca!E103),) -> 3.302519613 | G13: 0.4268959176 | H13: =IFERROR(Bilanca!F5/(Bilanca!F75+Bilanca!F103),) -> 4.147308737 | I13: 1.271685042 | J13: =IFERROR(Bilanca!G5/(Bilanca!G75+Bilanca!G103),) -> 5.325503277 | K13: 1.17819454 | L13: =IFERROR(Bilanca!H5/(Bilanca!H75+Bilanca!H103),) -> 4.72968349 | M13: =L13-J13 -> -0.5958197874 | N13: =IFERROR(Bilanca!I5/(Bilanca!I75+Bilanca!I103),) -> 5.161467639 | O13: =N13-L13 -> 0.4317841491
B15: * Procijenjeni i planirani rezultati za tekuću godinu se uspoređuju s ostvarenim rezultatom poslovanja u prethodnoj godini
B16: ** Plavo osjenčana pozadina označava planirane vrijednosti
B57: Dodatni komentari i pojašnjenja na rezultate
B69: =HYPERLINK("#Sadržaj!A1","Povratak na sadržaj") -> Povratak na sadržaj

Sheet Aktivnost (hidden)
B1: =Naslovna!B3&" - "&Naslovna!I2 -> Ministarstvo državne imovine - Srednjoročni financijski plan poslovanja
B2: SAŽETI PRIKAZ POKAZATELJA AKTIVNOSTI
B4: Društvo: | C4: =Podloga!B2 -> Zračna luka Osijek d.o.o.
B5: Tip dokumenta: | C5: =Naslovna!B9 -> Srednjoročni financijski plan poslovanja
B6: Sastavlja se za razdoblje: | C6: =Podloga!B7 -> 2024. - 2026.
B8: Pokazatelji aktivnosti i ekonomičnosti
C9: =Podloga!B34 -> 2021. ostvareno | D9: =Podloga!C34 -> 2022. ostvareno | F9: =Podloga!D34 -> 2023. procijenjeno | H9: =Podloga!E34 -> 2023. planirano | J9: =Podloga!F34 -> 2024. planirano | L9: =Podloga!G34 -> 2025. planirano | N9: =Podloga!H34 -> 2026. planirano
B10: Koeficijent obrtaja imovine | C10: =IFERROR(RDG!C57/Bilanca!C68,) -> 0.138382831 | D10: =IFERROR(RDG!D57/Bilanca!D68,) -> 0.1817915481 | E10: =D10-C10 -> 0.04340871712 | F10: =IFERROR(RDG!E57/Bilanca!E68,) -> 0.2161624808 | G10: =F10-D10 -> 0.03437093275 | H10: =IFERROR(RDG!F57/Bilanca!F68,) -> 0.1097449688 | I10: =H10-D10 -> -0.07204657926 | J10: =IFERROR(RDG!G57/Bilanca!G68,) -> 0.1688613923 | K10: =J10-H10 -> 0.05911642352 | L10: =IFERROR(RDG!H57/Bilanca!H68,) -> 0.1715403232 | M10: =L10-J10 -> 0.002678930835 | N10: =IFERROR(RDG!I57/Bilanca!I68,) -> 0.1663771944 | O10: =N10-L10 -> -0.00516312883
B11: Koeficijent obrtaja potraživanja | C11: =IFERROR(((RDG!C6+RDG!C7)/(Bilanca!C52)),) -> 5.552142536 | D11: =IFERROR(((RDG!D6+RDG!D7)/(Bilanca!D52)),) -> 5.644909268 | E11: 0.09276673125 | F11: =IFERROR(((RDG!E6+RDG!E7)/(Bilanca!E52)),) -> 6.090473183 | G11: 0.4455639157 | H11: =IFERROR(((RDG!F6+RDG!F7)/(Bilanca!F52)),) -> 7.175369581 | I11: =H11-D11 -> 1.530460313 | J11: =IFERROR(((RDG!G6+RDG!G7)/(Bilanca!G52)),) -> 12.33427997 | K11: 5.158910393 | L11: =IFERROR(((RDG!H6+RDG!H7)/(Bilanca!H52)),) -> 13.81138227 | M11: =L11-J11 -> 1.477102294 | N11: =IFERROR(((RDG!I6+RDG!I7)/(Bilanca!I52)),) -> 14.82167957 | O11: =N11-L11 -> 1.010297302
B12: Koeficijent obrtaja neto radnog kapitala | C12: =IFERROR(RDG!C57/(Bilanca!C40-Bilanca!C115),) -> -0.2604654559 | D12: =IFERROR(RDG!D57/(Bilanca!D40-Bilanca!D115),) -> -0.3033616083 | E12: -0.04289615233 | F12: =IFERROR(RDG!E57/(Bilanca!E40-Bilanca!E115),) -> -0.3290827573 | G12: -0.02572114901 | H12: =IFERROR(RDG!F57/(Bilanca!F40-Bilanca!F115),) -> -0.152331745 | I12: 0.1510298633 | J12: =IFERROR(RDG!G57/(Bilanca!G40-Bilanca!G115),) -> -0.2148185034 | K12: -0.06248675844 | L12: =IFERROR(RDG!H57/(Bilanca!H40-Bilanca!H115),) -> -0.2252292581 | M12: =L12-J12 -> -0.01041075473 | N12: =IFERROR(RDG!I57/(Bilanca!I40-Bilanca!I115),) -> -0.2133660868 | O12: =N12-L12 -> 0.01186317137
B13: Dani naplate potraživanja | C13: =IFERROR(365/C11,) -> 65.74038718 | D13: 64.66002954 | E13: -1.080357636 | F13: =IFERROR(365/F11,) -> 59.92966211 | G13: -4.730367426 | H13: =IFERROR(365/H11,) -> 50.86845993 | I13: -13.79156961 | J13: =IFERROR(365/J11,) -> 29.59232325 | K13: -21.27613668 | L13: =IFERROR(365/L11,) -> 26.42747793 | M13: -3.164845322 | N13: =IFERROR(365/N11,) -> 24.62608899 | O13: -1.80138894
B14: Dani vezivanja zaliha | C14: =IFERROR(365/((RDG!C6+RDG!C7)/Bilanca!C41),) -> 19.86660289 | D14: =IFERROR(365/((RDG!D6+RDG!D7)/Bilanca!D41),) -> 18.49899628 | E14: -1.367606617 | F14: =IFERROR(365/((RDG!E6+RDG!E7)/Bilanca!E41),) -> 11.94282817 | G14: -6.556168105 | H14: =IFERROR(365/((RDG!F6+RDG!F7)/Bilanca!F41),) -> 18.77029109 | I14: 0.2712948167 | J14: =IFERROR(365/((RDG!G6+RDG!G7)/Bilanca!G41),) -> 10.43323487 | K14: -8.337056228 | L14: =IFERROR(365/((RDG!H6+RDG!H7)/Bilanca!H41),) -> 9.906015063 | M14: -0.5272198018 | N14: =IFERROR(365/((RDG!I6+RDG!I7)/Bilanca!I41),) -> 9.484440897 | O14: -0.421574166
B15: Dani plaćanja dobavljačima | C15: =IFERROR(365/(RDG!C13/(Bilanca!C123)),) -> 194.351851 | D15: =IFERROR(365/(RDG!D13/(Bilanca!D123)),) -> 52.79488661 | E15: -141.5569644 | F15: =IFERROR(365/(RDG!E13/(Bilanca!E123)),) -> 42.64187904 | G15: -10.15300756 | H15: =IFERROR(365/(RDG!F13/(Bilanca!F123)),) -> 164.4504786 | I15: 111.655592 | J15: =IFERROR(365/(RDG!G13/(Bilanca!G123)),) -> 69.1931886 | K15: -95.25729004 | L15: =IFERROR(365/(RDG!H13/(Bilanca!H123)),) -> 57.27258813 | M15: -11.92060047 | N15: =IFERROR(365/(RDG!I13/(Bilanca!I123)),) -> 41.78744275 | O15: -15.48514538
B16: Ekonomičnost ukupnog poslovanja | C16: =IFERROR(RDG!C57/RDG!C58,) -> 1.053659522 | D16: =IFERROR(RDG!D57/RDG!D58,) -> 0.873045791 | E16: -0.1806137306 | F16: =IFERROR(RDG!E57/RDG!E58,) -> 0.8171492756 | G16: -0.05589651534 | H16: =IFERROR(RDG!F57/RDG!F58,) -> 1.00246635 | I16: 0.1294205588 | J16: =IFERROR(RDG!G57/RDG!G58,) -> 1.001458703 | K16: -0.001007647062 | L16: =IFERROR(RDG!H57/RDG!H58,) -> 1.001763429 | M16: 0.000304726198 | N16: =IFERROR(RDG!I57/RDG!I58,) -> 1.00234372 | O16: 0.0005802915657
B18: * Procijenjeni i planirani rezultati za tekuću godinu se uspoređuju s ostvarenim rezultatom poslovanja u prethodnoj godini
B19: ** Plavo osjenčana pozadina označava planirane vrijednosti
B58: Dodatni komentari i pojašnjenja na rezultate
B70: =HYPERLINK("#Sadržaj!A1","Povratak na sadržaj") -> Povratak na sadržaj

Sheet Zaduženost (hidden)
B1: =Naslovna!B3&" - "&Naslovna!I2 -> Ministarstvo državne imovine - Srednjoročni financijski plan poslovanja
B2: SAŽETI PRIKAZ POKAZATELJA ZADUŽENOSTI
B4: Društvo: | C4: =Podloga!B2 -> Zračna luka Osijek d.o.o.
B5: Tip dokumenta: | C5: =Naslovna!B9 -> Srednjoročni financijski plan poslovanja
B6: Sastavlja se za razdoblje: | C6: =Podloga!B7 -> 2024. - 2026.
B8: Pokazatelji zaduženosti
C9: =Podloga!B34 -> 2021. ostvareno | D9: =Podloga!C34 -> 2022. ostvareno | F9: =Podloga!D34 -> 2023. procijenjeno | H9: =Podloga!E34 -> 2023. planirano | J9: =Podloga!F34 -> 2024. planirano | L9: =Podloga!G34 -> 2025. planirano | N9: =Podloga!H34 -> 2026. planirano
B10: Koeficijent zaduženosti | C10: =IFERROR(((Bilanca!C96+Bilanca!C103+Bilanca!C115+Bilanca!C130)/Bilanca!C68),) -> 0.8593088764 | D10: =IFERROR(((Bilanca!D96+Bilanca!D103+Bilanca!D115+Bilanca!D130)/Bilanca!D68),) -> 0.8863489851 | E10: =D10-C10 -> 0.02704010873 | F10: =IFERROR(((Bilanca!E96+Bilanca!E103+Bilanca!E115+Bilanca!E130)/Bilanca!E68),) -> 0.9302752446 | G10: =F10-D10 -> 0.04392625949 | H10: =IFERROR(((Bilanca!F96+Bilanca!F103+Bilanca!F115+Bilanca!F130)/Bilanca!F68),) -> 0.923023015 | I10: =H10-D10 -> 0.03667402986 | J10: =IFERROR(((Bilanca!G96+Bilanca!G103+Bilanca!G115+Bilanca!G130)/Bilanca!G68),) -> 0.9554320857 | K10: =J10-H10 -> 0.03240907069 | L10: =IFERROR(((Bilanca!H103+Bilanca!H115)/Bilanca!H68),) -> 0.9271353853 | M10: =L10-J10 -> -0.02829670039 | N10: =IFERROR(((Bilanca!I103+Bilanca!I115)/Bilanca!I68),) -> 0.930511356 | O10: =N10-L10 -> 0.003375970679
B11: Koeficijent vlastitog financiranja (kapital/ukupna imovina) | C11: =IFERROR((Bilanca!C75/Bilanca!C68),) -> 0.1406912875 | D11: =IFERROR((Bilanca!D75/Bilanca!D68),) -> 0.1136512893 | E11: =D11-C11 -> -0.02703999817 | F11: =IFERROR((Bilanca!E75/Bilanca!E68),) -> 0.06972444706 | G11: =F11-D11 -> -0.04392684225 | H11: =IFERROR((Bilanca!F75/Bilanca!F68),) -> 0.07697705705 | I11: =H11-D11 -> -0.03667423226 | J11: =IFERROR((Bilanca!G75/Bilanca!G68),) -> 0.0445679143 | K11: =J11-H11 -> -0.03240914275 | L11: =IFERROR((Bilanca!H75/Bilanca!H68),) -> 0.07286466205 | M11: =L11-J11 -> 0.02829674775 | N11: =IFERROR((Bilanca!I75/Bilanca!I68),) -> 0.06948873421 | O11: =N11-L11 -> -0.00337592784
B12: Koeficijent financiranja (ukupne obveze/kapital) | C12: =IFERROR(((Bilanca!C96+Bilanca!C103+Bilanca!C115+Bilanca!C130)/Bilanca!C75),) -> 6.107761837 | D12: =IFERROR(((Bilanca!D96+Bilanca!D103+Bilanca!D115+Bilanca!D130)/Bilanca!D75),) -> 7.798846722 | E12: =D12-C12 -> 1.691084886 | F12: =IFERROR(((Bilanca!E96+Bilanca!E103+Bilanca!E115+Bilanca!E130)/Bilanca!E75),) -> 13.3421674 | G12: =F12-D12 -> 5.543320679 | H12: =IFERROR(((Bilanca!F96+Bilanca!F103+Bilanca!F115+Bilanca!F130)/Bilanca!F75),) -> 11.99088469 | I12: 4.19203797 | J12: =IFERROR(((Bilanca!G96+Bilanca!G103+Bilanca!G115+Bilanca!G130)/Bilanca!G75),) -> 21.43766655 | K12: =J12-H12 -> 9.44678186 | L12: =IFERROR(((Bilanca!H96+Bilanca!H103+Bilanca!H115+Bilanca!H130)/Bilanca!H75),) -> 12.72407446 | M12: =L12-J12 -> -8.713592094 | N12: =IFERROR(((Bilanca!I96+Bilanca!I103+Bilanca!I115+Bilanca!I130)/Bilanca!I75),) -> 13.39082323 | O12: =N12-L12 -> 0.6667487673
B13: Odnos ukupne imovine i kapitala | C13: =IFERROR(Bilanca!C68/Bilanca!C75,) -> 7.107760672 | D13: =IFERROR(Bilanca!D68/Bilanca!D75,) -> 8.798844308 | E13: =D13-C13 -> 1.691083636 | F13: =IFERROR(Bilanca!E68/Bilanca!E75,) -> 14.34217182 | G13: =F13-D13 -> 5.543327516 | H13: =IFERROR(Bilanca!F68/Bilanca!F75,) -> 12.99088376 | I13: 4.192039449 | J13: =IFERROR(Bilanca!G68/Bilanca!G75,) -> 22.43766655 | K13: =J13-H13 -> 9.446782796 | L13: =IFERROR(Bilanca!H68/Bilanca!H75,) -> 13.72407381 | M13: =L13-J13 -> -8.713592744 | N13: =IFERROR(Bilanca!I68/Bilanca!I75,) -> 14.39082193 | O13: =N13-L13 -> 0.6667481193
B15: * Procijenjeni i planirani rezultati za tekuću godinu se uspoređuju s ostvarenim rezultatom poslovanja u prethodnoj godini
B16: ** Plavo osjenčana pozadina označava planirane vrijednosti
B57: Dodatni komentari i pojašnjenja na rezultate
B68: =HYPERLINK("#Sadržaj!A1","Povratak na sadržaj") -> Povratak na sadržaj

Sheet DuPont (hidden)
B1: =Naslovna!B3&" - "&Naslovna!I2 -> Ministarstvo državne imovine - Srednjoročni financijski plan poslovanja
B2: DuPont analiza | R2: ROE
T3: Index
B4: Društvo: | G4: =Podloga!B2 -> Zračna luka Osijek d.o.o. | R4: =LEFT(Podloga!B34,7) -> 2021. o | S4: =O14*W14 -> 0.05009120826
B5: Tip dokumenta: | G5: =Naslovna!B9 -> Srednjoročni financijski plan poslovanja | R5: =LEFT(Podloga!C34,7) -> 2022. o | S5: -0.2325998349 | T5: =IFERROR((S5/S4)*100,) -> -464.3526138
B6: Sastavlja se za razdoblje: | G6: =Podloga!B7 -> 2024. - 2026. | R6: =LEFT(Podloga!D34,8) -> 2023. pr | S6: -0.6937300742 | T6: 298.2504586
R7: =LEFT(Podloga!E34,8) -> 2023. pl | S7: 0.003507584835 | T7: =IFERROR((S7/S5)*100,) -> -1.507991111
R8: =LEFT(Podloga!F34,8) -> 2024. pl | S8: 0.005518763797 | T8: 157.3379991
R9: =LEFT(Podloga!G34,8) -> 2025. pl | S9: 0.004144212889 | T9: 75.09313754
R10: =LEFT(Podloga!H34,8) -> 2026. pl | S10: 0.005598459483 | T10: 135.0910205
N12: ROA | V12: Odnos imovine i kapitala
P13: Index | X13: Index
J14: Neto profitna marža | N14: =LEFT(Podloga!B34,7) -> 2021. o | O14: =S16*K16 -> 0.007047396582 | R14: Koeficijent obrtaja imovine | V14: =LEFT(Podloga!B34,7) -> 2021. o | W14: =IFERROR(Bilanca!C68/Bilanca!C75,) -> 7.107760672
L15: Index | N15: =LEFT(Podloga!C34,7) -> 2022. o | O15: -0.02643527113 | P15: =IFERROR((O15/O14)*100,) -> -375.1069039 | T15: Index | V15: =LEFT(Podloga!C34,7) -> 2022. o | W15: =IFERROR(Bilanca!D68/Bilanca!D75,) -> 8.798844308 | X15: =IFERROR((W15/W14)*100,) -> 123.7920734
J16: =LEFT(Podloga!B34,7) -> 2021. o | K16: =IFERROR(G26/C36,) -> 0.0509268132 | N16: =LEFT(Podloga!D34,8) -> 2023. pr | O16: -0.04836994583 | P16: 182.9750321 | R16: =LEFT(Podloga!B34,7) -> 2021. o | S16: =IFERROR(O26/W26,) -> 0.138382831 | V16: =LEFT(Podloga!D34,8) -> 2023. pr | W16: =IFERROR(Bilanca!E68/Bilanca!E75,) -> 14.34217182 | X16: 163.0006319
J17: =LEFT(Podloga!C34,7) -> 2022. o | K17: -0.1454152924 | L17: =IFERROR(K17/K16*100,) -> -285.5377812 | N17: =LEFT(Podloga!E34,8) -> 2023. pl | O17: 0.0002700035579 | P17: =IFERROR((O17/O15)*100,) -> -1.021376163 | R17: =LEFT(Podloga!C34,7) -> 2022. o | S17: 0.1817915481 | T17: =IFERROR((S17/S16)*100,) -> 131.3685714 | V17: =LEFT(Podloga!E34,8) -> 2023. pl | W17: =IFERROR(Bilanca!F68/Bilanca!F75,) -> 12.99088376 | X17: =IFERROR((W17/W15)*100,) -> 147.6430688
J18: =LEFT(Podloga!D34,8) -> 2023. pr | K18: -0.2237666113 | L18: 153.8810723 | N18: =LEFT(Podloga!F34,8) -> 2024. pl | O18: 0.0002459597919 | P18: 91.09501884 | R18: =LEFT(Podloga!D34,8) -> 2023. pr | S18: 0.2161624808 | T18: 118.9067826 | V18: =LEFT(Podloga!F34,8) -> 2024. pl | W18: =IFERROR(Bilanca!G68/Bilanca!G75,) -> 22.43766655 | X18: 172.7185538
J19: =LEFT(Podloga!E34,8) -> 2023. pl | K19: 0.002460281877 | L19: =IFERROR(K19/K17*100,) -> -1.691900374 | N19: =LEFT(Podloga!G34,8) -> 2025. pl | O19: 0.0003019666716 | P19: 122.7707461 | R19: =LEFT(Podloga!E34,8) -> 2023. pl | S19: 0.1097449688 | T19: =IFERROR((S19/S17)*100,) -> 60.36857598 | V19: =LEFT(Podloga!G34,8) -> 2025. pl | W19: =IFERROR(Bilanca!H68/Bilanca!H75,) -> 13.72407381 | X19: 61.16533453
J20: =LEFT(Podloga!F34,8) -> 2024. pl | K20: 0.001456578017 | L20: 59.20370467 | N20: =LEFT(Podloga!H34,8) -> 2026. pl | O20: 0.000389029863 | P20: 128.8320532 | R20: =LEFT(Podloga!F34,8) -> 2024. pl | S20: 0.1688613923 | T20: 153.8670922 | V20: =LEFT(Podloga!H34,8) -> 2026. pl | W20: =IFERROR(Bilanca!I68/Bilanca!I75,) -> 14.39082193 | X20: 104.8582376
J21: =LEFT(Podloga!G34,8) -> 2025. pl | K21: 0.001760324721 | L21: 120.8534456 | R21: =LEFT(Podloga!G34,8) -> 2025. pl | S21: 0.1715403232 | T21: 101.5864673
J22: =LEFT(Podloga!H34,8) -> 2026. pl | K22: 0.002338240313 | L22: 132.830056 | R22: =LEFT(Podloga!H34,8) -> 2026. pl | S22: 0.1663771944 | T22: 96.99013693
F24: Neto dobit ili gubitak razdoblja (u mil. HRK) | N24: Ukupni prihodi (u mil. HRK) | V24: Ukupna imovina (u mil. HRK)
H25: Index | P25: Index | X25: Index
F26: =LEFT(Podloga!B34,7) -> 2021. o | G26: =RDG!C63 -> 94.599 | N26: =LEFT(Podloga!B34,7) -> 2021. o | O26: =RDG!C57 -> 1857.548 | V26: =LEFT(Podloga!B34,7) -> 2021. o | W26: =Bilanca!C68 -> 13423.2548
F27: =LEFT(Podloga!C34,7) -> 2022. o | G27: =RDG!D63 -> -356.379 | H27: =IFERROR(G27/G26*100,) -> -376.7259696 | N27: =LEFT(Podloga!C34,7) -> 2022. o | O27: =RDG!D57 -> 2450.767 | P27: =IFERROR(O27/O26*100,) -> 131.9355947 | V27: =LEFT(Podloga!C34,7) -> 2022. o | W27: =Bilanca!D68 -> 13481.1933 | X27: =IFERROR(W27/W26*100,) -> 100.4316278
F28: =LEFT(Podloga!D34,8) -> 2023. pr | G28: =RDG!E63 -> -627.551 | H28: =IFERROR(G28/G27*100,) -> 176.0909032 | N28: =LEFT(Podloga!D34,8) -> 2023. pr | O28: =RDG!E57 -> 2804.489 | P28: =IFERROR(O28/O27*100,) -> 114.4331142 | V28: =LEFT(Podloga!D34,8) -> 2023. pr | W28: =Bilanca!E68 -> 12973.986 | X28: =IFERROR(W28/W27*100,) -> 96.23766763
F29: =LEFT(Podloga!E34,8) -> 2023. pl | G29: =RDG!F63 -> 5.246 | H29: =IFERROR(G29/G27*100,) -> -1.472028374 | N29: =LEFT(Podloga!E34,8) -> 2023. pl | O29: =RDG!F57 -> 2132.276 | P29: =IFERROR(O29/O27*100,) -> 87.00443575 | V29: =LEFT(Podloga!E34,8) -> 2023. pl | W29: =Bilanca!F68 -> 19429.3736 | X29: =IFERROR(W29/W27*100,) -> 144.1220608
F30: =LEFT(Podloga!F34,8) -> 2024. pl | G30: =RDG!G63 -> 5.02 | H30: =IFERROR(G30/G29*100,) -> 95.69195578 | N30: =LEFT(Podloga!F34,8) -> 2024. pl | O30: =RDG!G57 -> 3446.434 | P30: =IFERROR(O30/O29*100,) -> 161.6317025 | V30: =LEFT(Podloga!F34,8) -> 2024. pl | W30: =Bilanca!G68 -> 20409.84 | X30: =IFERROR(W30/W29*100,) -> 105.0463099
F31: =LEFT(Podloga!G34,8) -> 2025. pl | G31: =RDG!H63 -> 6.376 | H31: =IFERROR(G31/G30*100,) -> 127.0119522 | N31: =LEFT(Podloga!G34,8) -> 2025. pl | O31: =RDG!H57 -> 3622.059 | P31: =IFERROR(O31/O30*100,) -> 105.0958469 | V31: =LEFT(Podloga!G34,8) -> 2025. pl | W31: =Bilanca!H68 -> 21114.913 | X31: =IFERROR(W31/W30*100,) -> 103.4545739
F32: =LEFT(Podloga!H34,8) -> 2026. pl | G32: =RDG!I63 -> 8.626 | H32: =IFERROR(G32/G31*100,) -> 135.2885822 | N32: =LEFT(Podloga!H34,8) -> 2026. pl | O32: =RDG!I57 -> 3689.099 | P32: =IFERROR(O32/O31*100,) -> 101.8508809 | V32: =LEFT(Podloga!H34,8) -> 2026. pl | W32: =Bilanca!I68 -> 22173.105 | X32: =IFERROR(W32/W31*100,) -> 105.0115859
B34: Ukupni prihodi (u mil. HRK) | J34: Ukupni rashodi + porez na dobit (u mil. HRK) | R34: Kratkotrajna imovina (u mil.HRK) | Z34: Dugotrajna imovina (u mil. HRK)
D35: Index | L35: Index | T35: Index | AB35: Index
B36: =LEFT(Podloga!B34,7) -> 2021. o | C36: =RDG!C57 -> 1857.548 | J36: =LEFT(Podloga!B34,7) -> 2021. o | K36: =RDG!C58+RDG!C62 -> 1762.949 | R36: =LEFT(Podloga!B34,7) -> 2021. o | S36: =Bilanca!C40+Bilanca!C67 -> 1303.8428 | Z36: =LEFT(Podloga!B34,7) -> 2021. o | AA36: =Bilanca!C5 -> 12119.412
B37: =LEFT(Podloga!C34,7) -> 2022. o | C37: =RDG!D57 -> 2450.767 | D37: =IFERROR(C37/C36*100,) -> 131.9355947 | J37: =LEFT(Podloga!C34,7) -> 2022. o | K37: =RDG!D58+RDG!D62 -> 2807.146 | L37: =IFERROR(K37/K36*100,) -> 159.2301309 | R37: =LEFT(Podloga!C34,7) -> 2022. o | S37: =Bilanca!D40+Bilanca!D67 -> 1085.4234 | T37: =IFERROR(S37/S36*100,) -> 83.24802653 | Z37: =LEFT(Podloga!C34,7) -> 2022. o | AA37: =Bilanca!D5 -> 12395.7699 | AB37: =IFERROR(AA37/AA36*100,) -> 102.2802913
B38: =LEFT(Podloga!D34,8) -> 2023. pr | C38: =RDG!E57 -> 2804.489 | D38: =IFERROR(C38/C37*100,) -> 114.4331142 | J38: =LEFT(Podloga!D34,8) -> 2023. pr | K38: =RDG!E58+RDG!E62 -> 3432.04 | L38: =IFERROR(K38/K37*100,) -> 122.26083 | R38: =LEFT(Podloga!D34,8) -> 2023. pr | S38: =Bilanca!E40+Bilanca!E67 -> 741.384 | T38: =IFERROR(S38/S37*100,) -> 68.30366841 | Z38: =LEFT(Podloga!D34,8) -> 2023. pr | AA38: =Bilanca!E5 -> 12232.602 | AB38: =IFERROR(AA38/AA37*100,) -> 98.68368079
B39: =LEFT(Podloga!E34,8) -> 2023. pl | C39: =RDG!F57 -> 2132.276 | D39: =IFERROR(C39/C37*100,) -> 87.00443575 | J39: =LEFT(Podloga!E34,8) -> 2023. pl | K39: =RDG!F58+RDG!F62 -> 2127.03 | L39: =IFERROR(K39/K37*100,) -> 75.77197623 | R39: =LEFT(Podloga!E34,8) -> 2023. pl | S39: =Bilanca!F40+Bilanca!F67 -> 932.3476 | T39: =IFERROR(S39/S37*100,) -> 85.8971347 | Z39: =LEFT(Podloga!E34,8) -> 2023. pl | AA39: =Bilanca!F5 -> 18497.026 | AB39: =IFERROR(AA39/AA37*100,) -> 149.2204692
B40: =LEFT(Podloga!F34,8) -> 2024. pl | C40: =RDG!G57 -> 3446.434 | D40: =IFERROR(C40/C39*100,) -> 161.6317025 | J40: =LEFT(Podloga!F34,8) -> 2024. pl | K40: =RDG!G58+RDG!G62 -> 3441.414 | L40: =IFERROR(K40/K39*100,) -> 161.7943329 | R40: =LEFT(Podloga!F34,8) -> 2024. pl | S40: =Bilanca!G40+Bilanca!G67 -> 657.33 | T40: =IFERROR(S40/S39*100,) -> 70.50267518 | Z40: =LEFT(Podloga!F34,8) -> 2024. pl | AA40: =Bilanca!G5 -> 19752.51 | AB40: =IFERROR(AA40/AA39*100,) -> 106.7874911
B41: =LEFT(Podloga!G34,8) -> 2025. pl | C41: =RDG!H57 -> 3622.059 | D41: =IFERROR(C41/C40*100,) -> 105.0958469 | J41: =LEFT(Podloga!G34,8) -> 2025. pl | K41: =RDG!H58+RDG!H62 -> 3615.683 | L41: =IFERROR(K41/K40*100,) -> 105.0638778 | R41: =LEFT(Podloga!G34,8) -> 2025. pl | S41: =Bilanca!H40+Bilanca!H67 -> 721.459 | T41: =IFERROR(S41/S40*100,) -> 109.7559825 | Z41: =LEFT(Podloga!G34,8) -> 2025. pl | AA41: =Bilanca!H5 -> 20393.454 | AB41: =IFERROR(AA41/AA40*100,) -> 103.2448737
B42: =LEFT(Podloga!H34,8) -> 2026. pl | C42: =RDG!I57 -> 3689.099 | D42: =IFERROR(C42/C41*100,) -> 101.8508809 | J42: =LEFT(Podloga!H34,8) -> 2026. pl | K42: =RDG!I58+RDG!I62 -> 3680.473 | L42: =IFERROR(K42/K41*100,) -> 101.7919159 | R42: =LEFT(Podloga!H34,8) -> 2026. pl | S42: =Bilanca!I40+Bilanca!I67 -> 728.327 | T42: =IFERROR(S42/S41*100,) -> 100.9519598 | Z42: =LEFT(Podloga!H34,8) -> 2026. pl | AA42: =Bilanca!I5 -> 21444.778 | AB42: =IFERROR(AA42/AA41*100,) -> 105.1552032
A44: Procijenjeni i planirani rezultati za tekuću godinu se uspoređuju s ostvarenim rezultatom poslovanja u prethodnoj godini
B51: =HYPERLINK("#Sadržaj!A1","Povratak na sadržaj") -> Povratak na sadržaj

Sheet _TM_Altman Integral (Basic) (hidden)
A1: Left | B1: Top | C1: Right | D1: Bottom | E1: Ref
A2: 2 | B2: 1 | C2: 10 | D2: 1 | E2: $B$1:$J$1

Sheet Altman Integral (Basic) (hidden)
B1: =Naslovna!B3&" - "&Naslovna!I2 -> Ministarstvo državne imovine - Srednjoročni financijski plan poslovanja
A2: Altman Integral (Basic)
B4: Društvo: | C4: =Podloga!B2 -> Zračna luka Osijek d.o.o.
B5: Tip dokumenta: | C5: =Naslovna!B9 -> Srednjoročni financijski plan poslovanja
B6: Sastavlja se za razdoblje: | C6: =Podloga!B7 -> 2024. - 2026.
B8: Basic model se koristi za proizvodna trgovačka društva koja kotiraju na burzi
C30: =LEFT(Podloga!B34,7) -> 2021. o | D30: =LEFT(Podloga!C34,7) -> 2022. o | E30: =LEFT(Podloga!D34,8) -> 2023. pr | F30: =LEFT(Podloga!E34,8) -> 2023. pl | G30: =LEFT(Podloga!F34,8) -> 2024. pl | H30: =LEFT(Podloga!G34,8) -> 2025. pl | I30: =LEFT(Podloga!H34,8) -> 2026. pl
B31: Z-score | C31: =IFERROR('Dashboard (data)'!$BT$2*'Dashboard (data)'!BM2+'Dashboard (data)'!$BT$3*'Dashboard (data)'!BM3+'Dashboard (data)'!$BT$4*'Dashboard (data)'!BM4+'Dashboard (data)'!$BT$5*'Dashboard (data)'!BM5+'Dashboard (data)'!$BT$6*'Dashboard (data)'!BM6,) -> 0.1176750262 | D31: =IFERROR('Dashboard (data)'!$BT$2*'Dashboard (data)'!BN2+'Dashboard (data)'!$BT$3*'Dashboard (data)'!BN3+'Dashboard (data)'!$BT$4*'Dashboard (data)'!BN4+'Dashboard (data)'!$BT$5*'Dashboard (data)'!BN5+'Dashboard (data)'!$BT$6*'Dashboard (data)'!BN6,) -> 0.0432509769 | E31: =IFERROR('Dashboard (data)'!$BT$2*'Dashboard (data)'!BO2+'Dashboard (data)'!$BT$3*'Dashboard (data)'!BO3+'Dashboard (data)'!$BT$4*'Dashboard (data)'!BO4+'Dashboard (data)'!$BT$5*'Dashboard (data)'!BO5+'Dashboard (data)'!$BT$6*'Dashboard (data)'!BO6,) -> -0.07357856714 | F31: =IFERROR('Dashboard (data)'!$BT$2*'Dashboard (data)'!BP2+'Dashboard (data)'!$BT$3*'Dashboard (data)'!BP3+'Dashboard (data)'!$BT$4*'Dashboard (data)'!BP4+'Dashboard (data)'!$BT$5*'Dashboard (data)'!BP5+'Dashboard (data)'!$BT$6*'Dashboard (data)'!BP6,) -> 0.03422408945 | G31: =IFERROR('Dashboard (data)'!$BT$2*'Dashboard (data)'!BQ2+'Dashboard (data)'!$BT$3*'Dashboard (data)'!BQ3+'Dashboard (data)'!$BT$4*'Dashboard (data)'!BQ4+'Dashboard (data)'!$BT$5*'Dashboard (data)'!BQ5+'Dashboard (data)'!$BT$6*'Dashboard (data)'!BQ6,) -> 0.0408032596 | H31: =IFERROR('Dashboard (data)'!$BT$2*'Dashboard (data)'!BR2+'Dashboard (data)'!$BT$3*'Dashboard (data)'!BR3+'Dashboard (data)'!$BT$4*'Dashboard (data)'!BR4+'Dashboard (data)'!$BT$5*'Dashboard (data)'!BR5+'Dashboard (data)'!$BT$6*'Dashboard (data)'!BR6,) -> 0.09320730803 | I31: =IFERROR('Dashboard (data)'!$BT$2*'Dashboard (data)'!BS2+'Dashboard (data)'!$BT$3*'Dashboard (data)'!BS3+'Dashboard (data)'!$BT$4*'Dashboard (data)'!BS4+'Dashboard (data)'!$BT$5*'Dashboard (data)'!BS5+'Dashboard (data)'!$BT$6*'Dashboard (data)'!BS6,) -> 0.09258778597
I33: 3
B34: Objašnjenje | C34: Raspon vrijednosti vezan uz rizik bankrota (od -4,00 do +8,00)
C35: Vrlo niski rizik | D35: Zona nesigurnosti | F35: Visoki rizik
B36: Z-score model (Basic) | C36: ≥ 3,00 | D36: 2,99 – 1,81 | F36: ≤ 1,80
C39: =LEFT(Podloga!B34,7) -> 2021. o | D39: =LEFT(Podloga!C34,7) -> 2022. o | E39: =LEFT(Podloga!D34,8) -> 2023. pr | F39: =LEFT(Podloga!E34,8) -> 2023. pl | G39: =LEFT(Podloga!F34,8) -> 2024. pl | H39: =LEFT(Podloga!G34,8) -> 2025. pl | I39: =LEFT(Podloga!H34,8) -> 2026. pl
B40: Kratkotrajna imovina | C40: =Bilanca!C40 -> 1303.8428 | D40: =Bilanca!D40 -> 1085.4234 | E40: =Bilanca!E40 -> 741.384 | F40: =Bilanca!F40 -> 932.3476 | G40: =Bilanca!G40 -> 657.33 | H40: =Bilanca!H40 -> 721.459 | I40: =Bilanca!I40 -> 728.327
B41: Ukupna imovina | C41: =Bilanca!C68 -> 13423.2548 | D41: =Bilanca!D68 -> 13481.1933 | E41: =Bilanca!E68 -> 12973.986 | F41: =Bilanca!F68 -> 19429.3736 | G41: =Bilanca!G68 -> 20409.84 | H41: =Bilanca!H68 -> 21114.913 | I41: =Bilanca!I68 -> 22173.105
B42: Zadržana dobit | C42: =Bilanca!C89 -> -1684.461 | D42: =Bilanca!D89 -> -1589.864 | E42: =Bilanca!E89 -> -1946.244 | F42: =Bilanca!F89 -> -1988.033 | G42: =Bilanca!G89 -> -2573.795 | H42: =Bilanca!H89 -> -1946.244 | I42: =Bilanca!I89 -> -1946.244
B43: Operativna dobit (EBIT) | C43: =RDG!C59+RDG!C46+RDG!C48 -> 156.263 | D43: =RDG!D59+RDG!D46+RDG!D48 -> -286.179 | E43: =RDG!E59+RDG!E46+RDG!E48 -> -583.035 | F43: =RDG!F59+RDG!F46+RDG!F48 -> 59.729 | G43: =RDG!G59+RDG!G46+RDG!G48 -> 60.87 | H43: =RDG!H59+RDG!H46+RDG!H48 -> 62.12 | I43: =RDG!I59+RDG!I46+RDG!I48 -> 65.033
B44: Knjigovodstvena vrijednost ukupnih obveza | C44: =Bilanca!C103+Bilanca!C115 -> 11495.282 | D44: =Bilanca!D103+Bilanca!D115 -> 11942.604 | E44: =Bilanca!E103+Bilanca!E115 -> 12062.94 | F44: =Bilanca!F103+Bilanca!F115 -> 17894.32 | G44: =Bilanca!G103+Bilanca!G115 -> 19500.216 | H44: =Bilanca!H103+Bilanca!H115 -> 19576.383 | I44: =Bilanca!I103+Bilanca!I115 -> 20632.326
B45: Ukupni prihodi | C45: =RDG!C57 -> 1857.548 | D45: =RDG!D57 -> 2450.767 | E45: =RDG!E57 -> 2804.489 | F45: =RDG!F57 -> 2132.276 | G45: =RDG!G57 -> 3446.434 | H45: =RDG!H57 -> 3622.059 | I45: =RDG!I57 -> 3689.099
B46: Tržišna vrijednost vlasničkog kapitala | C46: =Podloga!B30*Podloga!B31 -> 0 | D46: =Podloga!C30*Podloga!C31 -> 0 | E46: =Podloga!D30*Podloga!D31 -> 0 | F46: =Podloga!D30*Podloga!D31 -> 0 | G46: =Podloga!D30*Podloga!D31 -> 0 | H46: =Podloga!D30*Podloga!D31 -> 0 | I46: =Podloga!D30*Podloga!D31 -> 0
B48: * Plavo osjenčana pozadina označava planirane vrijednosti
B50: Dodatni komentari i pojašnjenja na rezultate
A62: =HYPERLINK("#Sadržaj!A1","Povratak na sadržaj") -> Povratak na sadržaj

Sheet _TM_Altman Integral (A) (hidden)
A1: Left | B1: Top | C1: Right | D1: Bottom | E1: Ref
A2: 2 | B2: 1 | C2: 2 | D2: 1 | E2: $B$1

Sheet Altman Integral (A) (hidden)
B1: =Naslovna!B3&" - "&Naslovna!I2 -> Ministarstvo državne imovine - Srednjoročni financijski plan poslovanja
A2: Altman Integral (A)
B4: Društvo: | C4: =Podloga!B2 -> Zračna luka Osijek d.o.o.
B5: Tip dokumenta: | C5: =Naslovna!B9 -> Srednjoročni financijski plan poslovanja
B6: Sastavlja se za razdoblje: | C6: =Podloga!B7 -> 2024. - 2026.
B9: A model se koristi za trgovačka društva koja ne kotiraju na burzi
C26: =LEFT(Podloga!B34,7) -> 2021. o | D26: =LEFT(Podloga!C34,7) -> 2022. o | E26: =LEFT(Podloga!D34,8) -> 2023. pr | F26: =LEFT(Podloga!E34,8) -> 2023. pl | G26: =LEFT(Podloga!F34,8) -> 2024. pl | H26: =LEFT(Podloga!G34,8) -> 2025. pl | I26: =LEFT(Podloga!H34,8) -> 2026. pl
B27: Z-score | C27: =IFERROR('Dashboard (data)'!$BT$13*'Dashboard (data)'!BM13+'Dashboard (data)'!$BT$14*'Dashboard (data)'!BM14+'Dashboard (data)'!$BT$15*'Dashboard (data)'!BM15+'Dashboard (data)'!$BT$16*'Dashboard (data)'!BM16+'Dashboard (data)'!$BT$17*'Dashboard (data)'!BM17,) -> 0.2647205355 | D27: =IFERROR('Dashboard (data)'!$BT$13*'Dashboard (data)'!BN13+'Dashboard (data)'!$BT$14*'Dashboard (data)'!BN14+'Dashboard (data)'!$BT$15*'Dashboard (data)'!BN15+'Dashboard (data)'!$BT$16*'Dashboard (data)'!BN16+'Dashboard (data)'!$BT$17*'Dashboard (data)'!BN17,) -> 0.1956416464 | E27: =IFERROR('Dashboard (data)'!$BT$13*'Dashboard (data)'!BO13+'Dashboard (data)'!$BT$14*'Dashboard (data)'!BO14+'Dashboard (data)'!$BT$15*'Dashboard (data)'!BO15+'Dashboard (data)'!$BT$16*'Dashboard (data)'!BO16+'Dashboard (data)'!$BT$17*'Dashboard (data)'!BO17,) -> 0.1111267701 | F27: =IFERROR('Dashboard (data)'!$BT$13*'Dashboard (data)'!BP13+'Dashboard (data)'!$BT$14*'Dashboard (data)'!BP14+'Dashboard (data)'!$BT$15*'Dashboard (data)'!BP15+'Dashboard (data)'!$BT$16*'Dashboard (data)'!BP16+'Dashboard (data)'!$BT$17*'Dashboard (data)'!BP17,) -> 0.1484592953 | G27: =IFERROR('Dashboard (data)'!$BT$13*'Dashboard (data)'!BQ13+'Dashboard (data)'!$BT$14*'Dashboard (data)'!BQ14+'Dashboard (data)'!$BT$15*'Dashboard (data)'!BQ15+'Dashboard (data)'!$BT$16*'Dashboard (data)'!BQ16+'Dashboard (data)'!$BT$17*'Dashboard (data)'!BQ17,) -> 0.1689891123 | H27: =IFERROR('Dashboard (data)'!$BT$13*'Dashboard (data)'!BR13+'Dashboard (data)'!$BT$14*'Dashboard (data)'!BR14+'Dashboard (data)'!$BT$15*'Dashboard (data)'!BR15+'Dashboard (data)'!$BT$16*'Dashboard (data)'!BR16+'Dashboard (data)'!$BT$17*'Dashboard (data)'!BR17,) -> 0.2013923847 | I27: =IFERROR('Dashboard (data)'!$BT$13*'Dashboard (data)'!BS13+'Dashboard (data)'!$BT$14*'Dashboard (data)'!BS14+'Dashboard (data)'!$BT$15*'Dashboard (data)'!BS15+'Dashboard (data)'!$BT$16*'Dashboard (data)'!BS16+'Dashboard (data)'!$BT$17*'Dashboard (data)'!BS17,) -> 0.1951709841
I29: 2.9
B30: Objašnjenje | C30: Raspon vrijednosti vezan uz rizik bankrota (od -4,00 do +8,00)
C31: Vrlo niski rizik | D31: Zona nesigurnosti | F31: Visoki rizik
B32: Z-score model (A model) | C32: ≥ 2,90 | D32: 2,89 – 1,24 | F32: ≤ 1,23
C34: =LEFT(Podloga!B34,7) -> 2021. o | D34: =LEFT(Podloga!C34,7) -> 2022. o | E34: =LEFT(Podloga!D34,8) -> 2023. pr | F34: =LEFT(Podloga!E34,8) -> 2023. pl | G34: =LEFT(Podloga!F34,8) -> 2024. pl | H34: =LEFT(Podloga!G34,8) -> 2025. pl | I34: =LEFT(Podloga!H34,8) -> 2026. pl
B35: Kratkotrajna imovina | C35: =Bilanca!C40 -> 1303.8428 | D35: =Bilanca!D40 -> 1085.4234 | E35: =Bilanca!E40 -> 741.384 | F35: =Bilanca!F40 -> 932.3476 | G35: =Bilanca!G40 -> 657.33 | H35: =Bilanca!H40 -> 721.459 | I35: =Bilanca!I40 -> 728.327
B36: Ukupna imovina | C36: =Bilanca!C68 -> 13423.2548 | D36: =Bilanca!D68 -> 13481.1933 | E36: =Bilanca!E68 -> 12973.986 | F36: =Bilanca!F68 -> 19429.3736 | G36: =Bilanca!G68 -> 20409.84 | H36: =Bilanca!H68 -> 21114.913 | I36: =Bilanca!I68 -> 22173.105
B37: Zadržana dobit | C37: =Bilanca!C89 -> -1684.461 | D37: =Bilanca!D89 -> -1589.864 | E37: =Bilanca!E89 -> -1946.244 | F37: =Bilanca!F89 -> -1988.033 | G37: =Bilanca!G89 -> -2573.795 | H37: =Bilanca!H89 -> -1946.244 | I37: =Bilanca!I89 -> -1946.244
B38: Operativna dobit (EBIT) | C38: =RDG!C59+RDG!C46+RDG!C48 -> 156.263 | D38: =RDG!D59+RDG!D46+RDG!D48 -> -286.179 | E38: =RDG!E59+RDG!E46+RDG!E48 -> -583.035 | F38: =RDG!F59+RDG!F46+RDG!F48 -> 59.729 | G38: =RDG!G59+RDG!G46+RDG!G48 -> 60.87 | H38: =RDG!H59+RDG!H46+RDG!H48 -> 62.12 | I38: =RDG!I59+RDG!I46+RDG!I48 -> 65.033
B39: Knjigovodstvena vrijednost ukupnih obveza | C39: =Bilanca!C103+Bilanca!C115 -> 11495.282 | D39: =Bilanca!D103+Bilanca!D115 -> 11942.604 | E39: =Bilanca!E103+Bilanca!E115 -> 12062.94 | F39: =Bilanca!F103+Bilanca!F115 -> 17894.32 | G39: =Bilanca!G103+Bilanca!G115 -> 19500.216 | H39: =Bilanca!H103+Bilanca!H115 -> 19576.383 | I39: =Bilanca!I103+Bilanca!I115 -> 20632.326
B40: Ukupni prihodi | C40: =RDG!C57 -> 1857.548 | D40: =RDG!D57 -> 2450.767 | E40: =RDG!E57 -> 2804.489 | F40: =RDG!F57 -> 2132.276 | G40: =RDG!G57 -> 3446.434 | H40: =RDG!H57 -> 3622.059 | I40: =RDG!I57 -> 3689.099
B41: Knjigovodstvena vrijednost vlasn. kapitala | C41: =Bilanca!C76+Bilanca!C77 -> 3478.399 | D41: =Bilanca!D76+Bilanca!D77 -> 3478.399 | E41: =Bilanca!E76+Bilanca!E77 -> 3478.399 | F41: =Bilanca!F76+Bilanca!F77 -> 3478.399 | G41: =Bilanca!G76+Bilanca!G77 -> 3478.399 | H41: =Bilanca!H76+Bilanca!H77 -> 3478.399 | I41: =Bilanca!I76+Bilanca!I77 -> 3478.399
B43: * Plavo osjenčana pozadina označava planirane vrijednosti
B46: Dodatni komentari i pojašnjenja na rezultate
A58: =HYPERLINK("#Sadržaj!A1","Povratak na sadržaj") -> Povratak na sadržaj

Sheet _TM_Altman Integral (B) (hidden)
A1: Left | B1: Top | C1: Right | D1: Bottom | E1: Ref
A2: 2 | B2: 1 | C2: 7 | D2: 1 | E2: $B$1:$G$1

Sheet Altman Integral (B) (hidden)
B1: =Naslovna!B3&" - "&Naslovna!I2 -> Ministarstvo državne imovine - Srednjoročni financijski plan poslovanja
A2: Altman Integral (B)
B4: Društvo: | C4: =Podloga!B2 -> Zračna luka Osijek d.o.o.
B5: Tip dokumenta: | C5: =Naslovna!B9 -> Srednjoročni financijski plan poslovanja
B6: Sastavlja se za razdoblje: | C6: =Podloga!B7 -> 2024. - 2026.
B9: B model se koristi za neproizvodna trgovačka društva koja kotiraju na burzi
C26: =LEFT(Podloga!B34,7) -> 2021. o | D26: =LEFT(Podloga!C34,7) -> 2022. o | E26: =LEFT(Podloga!D34,8) -> 2023. pr | F26: =LEFT(Podloga!E34,8) -> 2023. pl | G26: =LEFT(Podloga!F34,8) -> 2024. pl | H26: =LEFT(Podloga!G34,8) -> 2025. pl | I26: =LEFT(Podloga!H34,8) -> 2026. pl
B27: Z-score | C27: =IFERROR('Dashboard (data)'!$BT$23*'Dashboard (data)'!BM23+'Dashboard (data)'!$BT$24*'Dashboard (data)'!BM24+'Dashboard (data)'!$BT$25*'Dashboard (data)'!BM25+'Dashboard (data)'!$BT$26*'Dashboard (data)'!BM26,) -> 0.3063305681 | D27: =IFERROR('Dashboard (data)'!$BT$23*'Dashboard (data)'!BN23+'Dashboard (data)'!$BT$24*'Dashboard (data)'!BN24+'Dashboard (data)'!$BT$25*'Dashboard (data)'!BN25+'Dashboard (data)'!$BT$26*'Dashboard (data)'!BN26,) -> 0.001060587418 | E27: =IFERROR('Dashboard (data)'!$BT$23*'Dashboard (data)'!BO23+'Dashboard (data)'!$BT$24*'Dashboard (data)'!BO24+'Dashboard (data)'!$BT$25*'Dashboard (data)'!BO25+'Dashboard (data)'!$BT$26*'Dashboard (data)'!BO26,) -> -0.4161613555 | F27: =IFERROR('Dashboard (data)'!$BT$23*'Dashboard (data)'!BP23+'Dashboard (data)'!$BT$24*'Dashboard (data)'!BP24+'Dashboard (data)'!$BT$25*'Dashboard (data)'!BP25+'Dashboard (data)'!$BT$26*'Dashboard (data)'!BP26,) -> 0.001883311153 | G27: =IFERROR('Dashboard (data)'!$BT$23*'Dashboard (data)'!BQ23+'Dashboard (data)'!$BT$24*'Dashboard (data)'!BQ24+'Dashboard (data)'!$BT$25*'Dashboard (data)'!BQ25+'Dashboard (data)'!$BT$26*'Dashboard (data)'!BQ26,) -> -0.1797878131 | H27: =IFERROR('Dashboard (data)'!$BT$23*'Dashboard (data)'!BR23+'Dashboard (data)'!$BT$24*'Dashboard (data)'!BR24+'Dashboard (data)'!$BT$25*'Dashboard (data)'!BR25+'Dashboard (data)'!$BT$26*'Dashboard (data)'!BR26,) -> -0.05657319071 | I27: =IFERROR('Dashboard (data)'!$BT$23*'Dashboard (data)'!BS23+'Dashboard (data)'!$BT$24*'Dashboard (data)'!BS24+'Dashboard (data)'!$BT$25*'Dashboard (data)'!BS25+'Dashboard (data)'!$BT$26*'Dashboard (data)'!BS26,) -> -0.05095851754
I29: 2.6
B30: Objašnjenje | C30: Raspon vrijednosti vezan uz rizik bankrota (od -4,00 do +8,00)
C31: Vrlo niski rizik | D31: Zona nesigurnosti | F31: Visoki rizik
B32: Z-score model (B model) | C32: ≥ 2,60 | D32: 2,59 – 1,11 | F32: ≤ 1,1
C34: =LEFT(Podloga!B34,7) -> 2021. o | D34: =LEFT(Podloga!C34,7) -> 2022. o | E34: =LEFT(Podloga!D34,8) -> 2023. pr | F34: =LEFT(Podloga!E34,8) -> 2023. pl | G34: =LEFT(Podloga!F34,8) -> 2024. pl | H34: =LEFT(Podloga!G34,8) -> 2025. pl | I34: =LEFT(Podloga!H34,8) -> 2026. pl
B35: Kratkotrajna imovina | C35: =Bilanca!C40 -> 1303.8428 | D35: =Bilanca!D40 -> 1085.4234 | E35: =Bilanca!E40 -> 741.384 | F35: =Bilanca!F40 -> 932.3476 | G35: =Bilanca!G40 -> 657.33 | H35: =Bilanca!H40 -> 721.459 | I35: =Bilanca!I40 -> 728.327
B36: Ukupna imovina | C36: =Bilanca!C68 -> 13423.2548 | D36: =Bilanca!D68 -> 13481.1933 | E36: =Bilanca!E68 -> 12973.986 | F36: =Bilanca!F68 -> 19429.3736 | G36: =Bilanca!G68 -> 20409.84 | H36: =Bilanca!H68 -> 21114.913 | I36: =Bilanca!I68 -> 22173.105
B37: Zadržana dobit | C37: =Bilanca!C89 -> -1684.461 | D37: =Bilanca!D89 -> -1589.864 | E37: =Bilanca!E89 -> -1946.244 | F37: =Bilanca!F89 -> -1988.033 | G37: =Bilanca!G89 -> -2573.795 | H37: =Bilanca!H89 -> -1946.244 | I37: =Bilanca!I89 -> -1946.244
B38: Operativna dobit (EBIT) | C38: =RDG!C59+RDG!C46+RDG!C48 -> 156.263 | D38: =RDG!D59+RDG!D46+RDG!D48 -> -286.179 | E38: =RDG!E59+RDG!E46+RDG!E48 -> -583.035 | F38: =RDG!F59+RDG!F46+RDG!F48 -> 59.729 | G38: =RDG!G59+RDG!G46+RDG!G48 -> 60.87 | H38: =RDG!H59+RDG!H46+RDG!H48 -> 62.12 | I38: =RDG!I59+RDG!I46+RDG!I48 -> 65.033
B39: Knjigovodstvena vrijednost ukupnih obveza | C39: =Bilanca!C103+Bilanca!C115 -> 11495.282 | D39: =Bilanca!D103+Bilanca!D115 -> 11942.604 | E39: =Bilanca!E103+Bilanca!E115 -> 12062.94 | F39: =Bilanca!F103+Bilanca!F115 -> 17894.32 | G39: =Bilanca!G103+Bilanca!G115 -> 19500.216 | H39: =Bilanca!H103+Bilanca!H115 -> 19576.383 | I39: =Bilanca!I103+Bilanca!I115 -> 20632.326
B40: Ukupni prihodi | C40: =RDG!C57 -> 1857.548 | D40: =RDG!D57 -> 2450.767 | E40: =RDG!E57 -> 2804.489 | F40: =RDG!F57 -> 2132.276 | G40: =RDG!G57 -> 3446.434 | H40: =RDG!H57 -> 3622.059 | I40: =RDG!I57 -> 3689.099
B41: Tržišna vrijednost vlasničkog kapitala | C41: =Podloga!B30*Podloga!B31 -> 0 | D41: =Podloga!C30*Podloga!C31 -> 0 | E41: =Podloga!D30*Podloga!D31 -> 0 | F41: =Podloga!D30*Podloga!D31 -> 0 | G41: =Podloga!D30*Podloga!D31 -> 0 | H41: =Podloga!D30*Podloga!D31 -> 0 | I41: =Podloga!D30*Podloga!D31 -> 0
B43: * Plavo osjenčana pozadina označava planirane vrijednosti
B46: Dodatni komentari i pojašnjenja na rezultate
A58: =HYPERLINK("#Sadržaj!A1","Povratak na sadržaj") -> Povratak na sadržaj

Sheet _TM_Dashboard (hidden)
A1: Left | B1: Top | C1: Right | D1: Bottom | E1: Ref
A2: 1 | B2: 33 | C2: 7 | D2: 33 | E2: $A$33:$G$33
A3: 1 | B3: 6 | C3: 16 | D3: 6 | E3: $A$6:$P$6
A4: 2 | B4: 23 | C4: 8 | D4: 27 | E4: $B$23:$H$27
A5: 1 | B5: 28 | C5: 16 | D5: 28 | E5: $A$28:$P$28
A6: 1 | B6: 30 | C6: 16 | D6: 30 | E6: $A$30:$P$30
A7: 1 | B7: 34 | C7: 7 | D7: 34 | E7: $A$34:$G$34

Sheet _TM_Dashboard (data) (hidden)
A1: Left | B1: Top | C1: Right | D1: Bottom | E1: Ref
A2: 53 | B2: 59 | C2: 60 | D2: 65 | E2: $BA$59:$BH$65
A3: 53 | B3: 1 | C3: 60 | D3: 5 | E3: $BA$1:$BH$5
A4: 53 | B4: 6 | C4: 60 | D4: 9 | E4: $BA$6:$BH$9
A5: 53 | B5: 11 | C5: 60 | D5: 13 | E5: $BA$11:$BH$13
A6: 53 | B6: 14 | C6: 60 | D6: 16 | E6: $BA$14:$BH$16
A7: 53 | B7: 17 | C7: 60 | D7: 26 | E7: $BA$17:$BH$26
A8: 53 | B8: 27 | C8: 60 | D8: 30 | E8: $BA$27:$BH$30
A9: 53 | B9: 31 | C9: 60 | D9: 34 | E9: $BA$31:$BH$34
A10: 53 | B10: 35 | C10: 60 | D10: 37 | E10: $BA$35:$BH$37
A11: 53 | B11: 39 | C11: 60 | D11: 41 | E11: $BA$39:$BH$41
A12: 53 | B12: 52 | C12: 59 | D12: 56 | E12: $BA$52:$BG$56
A13: 53 | B13: 68 | C13: 60 | D13: 75 | E13: $BA$68:$BH$75
A14: 53 | B14: 79 | C14: 60 | D14: 94 | E14: $BA$79:$BH$94
A15: 53 | B15: 95 | C15: 55 | D15: 107 | E15: $BA$95:$BC$107
A16: 64 | B16: 1 | C16: 72 | D16: 8 | E16: $BL$1:$BT$8
A17: 64 | B17: 12 | C17: 72 | D17: 19 | E17: $BL$12:$BT$19
A18: 64 | B18: 22 | C18: 72 | D18: 28 | E18: $BL$22:$BT$28
A19: 66 | B19: 120 | C19: 72 | D19: 127 | E19: $BN$120:$BT$127
A20: 86 | B20: 1 | C20: 90 | D20: 35 | E20: $CH$1:$CL$35
A21: 84 | B21: 1 | C21: 84 | D21: 35 | E21: $CF$1:$CF$35
A22: 85 | B22: 1 | C22: 85 | D22: 18 | E22: $CG$1:$CG$18
A23: 85 | B23: 19 | C23: 85 | D23: 35 | E23: $CG$19:$CG$35
A24: 94 | B24: 1 | C24: 98 | D24: 29 | E24: $CP$1:$CT$29
A25: 92 | B25: 1 | C25: 92 | D25: 29 | E25: $CN$1:$CN$29
A26: 93 | B26: 1 | C26: 93 | D26: 15 | E26: $CO$1:$CO$15
A27: 93 | B27: 16 | C27: 93 | D27: 29 | E27: $CO$16:$CO$29
A28: 100 | B28: 17 | C28: 110 | D28: 29 | E28: $CV$17:$DF$29
A29: 101 | B29: 1 | C29: 108 | D29: 8 | E29: $CW$1:$DD$8
A30: 110 | B30: 1 | C30: 116 | D30: 4 | E30: $DF$1:$DL$4
A31: 110 | B31: 7 | C31: 116 | D31: 12 | E31: $DF$7:$DL$12
A32: 118 | B32: 1 | C32: 125 | D32: 4 | E32: $DN$1:$DU$4
A33: 118 | B33: 6 | C33: 125 | D33: 12 | E33: $DN$6:$DU$12
A34: 118 | B34: 14 | C34: 125 | D34: 19 | E34: $DN$14:$DU$19
A35: 128 | B35: 1 | C35: 135 | D35: 3 | E35: $DX$1:$EE$3
A36: 76 | B36: 2 | C36: 76 | D36: 3 | E36: $BX$2:$BX$3

Sheet Dashboard (data) (hidden)
AO1: Računovodstveni standard | AP1: Pravni oblik | AR1: Funkcija revizorski | AS1: FUNKCIJA NO | AT1: PREDSTAVNIK | AU1: SPOL | AV1: Funkcija Uprava | AZ1: Veličina društva | BB1: =Podloga!B34 -> 2021. ostvareno | BC1: =Podloga!C34 -> 2022. ostvareno | BD1: =Podloga!D34 -> 2023. procijenjeno | BE1: =Podloga!E34 -> 2023. planirano | BF1: =Podloga!F34 -> 2024. planirano | BG1: =Podloga!G34 -> 2025. planirano | BH1: =Podloga!H34 -> 2026. planirano | BL1: Altman basic | CF1: Analiza bruto dobiti | CG1: U tisućama kuna | CH1: Bruto dobit prethodne godine | CI1: =RDG!D59 -> -356.379 | CJ1: =CI1 -> -356.379 | CN1: =CH1 -> Bruto dobit prethodne godine | CO1: =CJ1 -> -356.379 | CW1: Analiza EBITDA (plan 2015 / ostvareno 2015) | CX1: U tisućama kuna | CY1: Planirana EBITDA tekuće godine | CZ1: =BE3 -> 349.065 | DA1: =CZ1 -> 349.065 | DE1: =CY1 -> Planirana EBITDA tekuće godine | DF1: =DA1 -> 349.065 | DP1: =Podloga!B34 -> 2021. ostvareno | DQ1: =Podloga!C34 -> 2022. ostvareno | DR1: =Podloga!D34 -> 2023. procijenjeno | DS1: =Podloga!E34 -> 2023. planirano | DT1: =Podloga!F34 -> 2024. planirano | DU1: =Podloga!G34 -> 2025. planirano | DV1: =Podloga!H34 -> 2026. planirano | DY1: =Podloga!B34 -> 2021. ostvareno | DZ1: =Podloga!C34 -> 2022. ostvareno | EA1: =Podloga!D34 -> 2023. procijenjeno | EB1: =Podloga!E34 -> 2023. planirano | EC1: =Podloga!F34 -> 2024. planirano | ED1: =Podloga!G34 -> 2025. planirano | EE1: =Podloga!H34 -> 2026. planirano | EH1: =Podloga!B34 -> 2021. ostvareno | EI1: =Podloga!C34 -> 2022. ostvareno | EJ1: =Podloga!D34 -> 2023. procijenjeno | EK1: =Podloga!E34 -> 2023. planirano | EL1: =Podloga!F34 -> 2024. planirano | EM1: =Podloga!G34 -> 2025. planirano | EN1: =Podloga!H34 -> 2026. planirano | EQ1: =Podloga!B34 -> 2021. ostvareno | ER1: =Podloga!C34 -> 2022. ostvareno | ES1: =Podloga!D34 -> 2023. procijenjeno | ET1: =Podloga!E34 -> 2023. planirano | EU1: =Podloga!F34 -> 2024. planirano | EV1: =Podloga!G34 -> 2025. planirano | EW1: =Podloga!H34 -> 2026. planirano
AO2: HSFI | AP2: d.o.o. | AR2: Predsjednik | AS2: Predsjednik | AT2: RH | AU2: M | AV2: Predsjednik | AX2: DA | AY2: Donacija | AZ2: Mikro | BA2: Ukupni prihod | BB2: =RDG!C57 -> 1857.548 | BC2: =RDG!D57 -> 2450.767 | BD2: =RDG!E57 -> 2804.489 | BE2: =RDG!F57 -> 2132.276 | BF2: =RDG!G57 -> 3446.434 | BG2: =RDG!H57 -> 3622.059 | BH2: =RDG!I57 -> 3689.099 | BL2: X1 | BM2: =IFERROR('Altman Integral (Basic)'!C40/'Altman Integral (Basic)'!C41,) -> 0.09713313346 | BN2: =IFERROR('Altman Integral (Basic)'!D40/'Altman Integral (Basic)'!D41,) -> 0.08051389635 | BO2: =IFERROR('Altman Integral (Basic)'!E40/'Altman Integral (Basic)'!E41,) -> 0.05714388778 | BP2: =IFERROR('Altman Integral (Basic)'!F40/'Altman Integral (Basic)'!F41,) -> 0.04798649813 | BQ2: =IFERROR('Altman Integral (Basic)'!G40/'Altman Integral (Basic)'!G41,) -> 0.03220652391 | BR2: =IFERROR('Altman Integral (Basic)'!H40/'Altman Integral (Basic)'!H41,) -> 0.03416822035 | BS2: =IFERROR('Altman Integral (Basic)'!I40/'Altman Integral (Basic)'!I41,) -> 0.0328473166 | BT2: 1.2 | BX2: Direktna | CH2: Poslovni prihodi Δ | CI2: =RDG!E5-RDG!D5 -> 353.805 | CK2: =IF(SUM(CI1)>=0,(IF(CI2>=0,SUM(CI1),(IF(ABS(SUM(CI1))>ABS(CI2),SUM(CI1:CI2),0)))),(IF(CI2<0,SUM(CI1),(IF(ABS(SUM(CI1))>ABS(CI2),SUM(CI1:CI2),0))))) -> -2.574 | CL2: =IF(SUM(CI1)>=0,(IF(CI2<0,(IF(ABS(CI2)>ABS(SUM(CI1)),SUM(CI1),ABS(CI2))),CI2)),(IF(CI2>0,(IF(ABS(CI2)>ABS(SUM(CI1)),SUM(CI1:CI2),0)),0))) -> 0 | CM2: =IF(SUM(CI1)<0,(IF(CI2<0,CI2,(IF(ABS(CI2)>ABS(SUM(CI1)),SUM(CI1),0-CI2)))),(IF(CI2<0,(IF(ABS(CI2)>ABS(SUM(CI1)),SUM(CI1:CI2),0)),0))) -> -353.805 | CN2: =CH2 -> Poslovni prihodi Δ | CO2: =CJ2 -> 0 | CP2: =CK2 -> -2.574 | CQ2: =IF(CI2>=0,CL2,0) -> 0 | CR2: =IF(CI2<0,CL2,0) -> 0 | CS2: =IF(CI2>=0,CM2,0) -> -353.805 | CT2: =IF(CI2<0,CM2,0) -> 0 | CU2: 0 | CY2: Prihodi od prodaje Δ | CZ2: =(RDG!E6+RDG!E7)-(RDG!F6+RDG!F7) -> 444.966 | DB2: =IF(SUM(CZ1)>=0,(IF(CZ2>=0,SUM(CZ1),(IF(ABS(SUM(CZ1))>ABS(CZ2),SUM(CZ1:CZ2),0)))),(IF(CZ2<0,SUM(CZ1),(IF(ABS(SUM(CZ1))>ABS(CZ2),SUM(CZ1:CZ2),0))))) -> 349.065 | DC2: =IF(SUM(CZ1)>=0,(IF(CZ2<0,(IF(ABS(CZ2)>ABS(SUM(CZ1)),SUM(CZ1),ABS(CZ2))),CZ2)),(IF(CZ2>0,(IF(ABS(CZ2)>ABS(SUM(CZ1)),SUM(CZ1:CZ2),0)),0))) -> 444.966 | DD2: =IF(SUM(CZ1)<0,(IF(CZ2<0,CZ2,(IF(ABS(CZ2)>ABS(SUM(CZ1)),SUM(CZ1),0-CZ2)))),(IF(CZ2<0,(IF(ABS(CZ2)>ABS(SUM(CZ1)),SUM(CZ1:CZ2),0)),0))) -> 0 | DE2: =CY2 -> Prihodi od prodaje Δ | DF2: =DA2 -> 0 | DG2: =DB2 -> 349.065 | DH2: =IF(CZ2>=0,DC2,0) -> 444.966 | DI2: =IF(CZ2<0,DC2,0) -> 0 | DJ2: =IF(CZ2>=0,DD2,0) -> 0 | DK2: =IF(CZ2<0,DD2,0) -> 0 | DL2: 0 | DO2: Kapital i rezerve | DP2: =Bilanca!C75 -> 1888.535 | DQ2: =Bilanca!D75 -> 1532.155 | DR2: =Bilanca!E75 -> 904.604 | DS2: =Bilanca!F75 -> 1495.616 | DT2: =Bilanca!G75 -> 909.624 | DU2: =Bilanca!H75 -> 1538.531 | DV2: =Bilanca!I75 -> 1540.781 | DX2: Priljev od poslovnih aktivnosti | DY2: =IFERROR(IF(Podloga!$B$17="Direktna",'NT dir.'!C7+'NT dir.'!C8+'NT dir.'!C9+'NT dir.'!C10+'NT dir.'!#REF!,'NT indir.'!C17),) -> 434.531 | DZ2: =IFERROR(IF(Podloga!$B$17="Direktna",'NT dir.'!D7+'NT dir.'!D8+'NT dir.'!D9+'NT dir.'!D10+'NT dir.'!#REF!,'NT indir.'!C17),) -> 434.531 | EA2: =IFERROR(IF(Podloga!$B$17="Direktna",'NT dir.'!E7+'NT dir.'!E8+'NT dir.'!E9+'NT dir.'!E10+'NT dir.'!#REF!,'NT indir.'!C17),) -> 434.531 | EB2: =IFERROR(IF(Podloga!$B$17="Direktna",'NT dir.'!F7+'NT dir.'!F8+'NT dir.'!F9+'NT dir.'!F10+'NT dir.'!#REF!,'NT indir.'!C17),) -> 434.531 | EC2: =IFERROR(IF(Podloga!$B$17="Direktna",'NT dir.'!G7+'NT dir.'!G8+'NT dir.'!G9+'NT dir.'!G10+'NT dir.'!#REF!,'NT indir.'!C17),) -> 434.531 | ED2: =IFERROR(IF(Podloga!$B$17="Direktna",'NT dir.'!H7+'NT dir.'!H8+'NT dir.'!H9+'NT dir.'!H10+'NT dir.'!#REF!,'NT indir.'!C17),) -> 434.531 | EE2: =IFERROR(IF(Podloga!$B$17="Direktna",'NT dir.'!I7+'NT dir.'!I8+'NT dir.'!I9+'NT dir.'!I10+'NT dir.'!#REF!,'NT indir.'!C17),) -> 434.531 | EG2: Ukupni prihodi | EH2: =RDG!C57 -> 1857.548 | EI2: =RDG!D57 -> 2450.767 | EJ2: =RDG!E57 -> 2804.489 | EK2: =RDG!F57 -> 2132.276 | EL2: =RDG!G57 -> 3446.434 | EM2: =RDG!H57 -> 3622.059 | EN2: =RDG!I57 -> 3689.099 | EP2: Dug / Pasiva | EQ2: =BB10/BB91 -> 0.8563705515 | ER2: 0.8858711878 | ES2: 0.9297793075 | ET2: 0.9209930839 | EU2: 0.9554320857 | EV2: 0.9271353414 | EW2: 0.9305112721
AO3: MSFI | AP3: d.d. | AR3: Član | AS3: Član | AT3: CERP | AU3: Ž | AV3: Član | AX3: NE | AY3: Sponzorstvo | AZ3: Mali | BA3: EBITDA | BB3: =RDG!C59+RDG!C46+RDG!C48+RDG!C21 -> 416.684 | BC3: =RDG!D59+RDG!D46+RDG!D48+RDG!D21 -> 17.653 | BD3: =RDG!E59+RDG!E46+RDG!E48+RDG!E21 -> -211.673 | BE3: =RDG!F59+RDG!F46+RDG!F48+RDG!F21 -> 349.065 | BF3: =RDG!G59+RDG!G46+RDG!G48+RDG!G21 -> 485.87 | BG3: =RDG!H59+RDG!H46+RDG!H48+RDG!H21 -> 497.12 | BH3: =RDG!I59+RDG!I46+RDG!I48+RDG!I21 -> 505.033 | BL3: X2 | BM3: =IFERROR('Altman Integral (Basic)'!C42/'Altman Integral (Basic)'!C41,) -> -0.1254882683 | BN3: =IFERROR('Altman Integral (Basic)'!D42/'Altman Integral (Basic)'!D41,) -> -0.1179319935 | BO3: =IFERROR('Altman Integral (Basic)'!E42/'Altman Integral (Basic)'!E41,) -> -0.150011261 | BP3: =IFERROR('Altman Integral (Basic)'!F42/'Altman Integral (Basic)'!F41,) -> -0.1023210033 | BQ3: =IFERROR('Altman Integral (Basic)'!G42/'Altman Integral (Basic)'!G41,) -> -0.1261055942 | BR3: =IFERROR('Altman Integral (Basic)'!H42/'Altman Integral (Basic)'!H41,) -> -0.09217390571 | BS3: =IFERROR('Altman Integral (Basic)'!I42/'Altman Integral (Basic)'!I41,) -> -0.08777498686 | BT3: 1.4 | BX3: Indirektna | CH3: Materijalni troškovi Δ | CI3: =RDG!D13-RDG!E13 -> -309.153 | CK3: =IF(SUM(CI1:CI2)>=0,(IF(CI3>=0,SUM(CI1:CI2),(IF(ABS(SUM(CI1:CI2))>ABS(CI3),SUM(CI1:CI3),0)))),(IF(CI3<0,SUM(CI1:CI2),(IF(ABS(SUM(CI1:CI2))>ABS(CI3),SUM(CI1:CI3),0))))) -> -2.574 | CL3: =IF(SUM(CI1:CI2)>=0,(IF(CI3<0,(IF(ABS(CI3)>ABS(SUM(CI1:CI2)),SUM(CI1:CI2),ABS(CI3))),CI3)),(IF(CI3>0,(IF(ABS(CI3)>ABS(SUM(CI1:CI2)),SUM(CI1:CI3),0)),0))) -> 0 | CM3: =IF(SUM(CI1:CI2)<0,(IF(CI3<0,CI3,(IF(ABS(CI3)>ABS(SUM(CI1:CI2)),SUM(CI1:CI2),0-CI3)))),(IF(CI3<0,(IF(ABS(CI3)>ABS(SUM(CI1:CI2)),SUM(CI1:CI3),0)),0))) -> -309.153 | CN3: Materijalni troškovi Δ | CO3: 0 | CP3: -2.574 | CQ3: 0 | CR3: 0 | CS3: 0 | CT3: -309.153 | CU3: 0 | CY3: Ostali prihodi Δ | CZ3: =(RDG!E57-RDG!E6-RDG!E7)-(RDG!F57-RDG!F6-RDG!F7) -> 227.247 | DB3: =IF(SUM(CZ1:CZ2)>=0,(IF(CZ3>=0,SUM(CZ1:CZ2),(IF(ABS(SUM(CZ1:CZ2))>ABS(CZ3),SUM(CZ1:CZ3),0)))),(IF(CZ3<0,SUM(CZ1:CZ2),(IF(ABS(SUM(CZ1:CZ2))>ABS(CZ3),SUM(CZ1:CZ3),0))))) -> 794.031 | DC3: =IF(SUM(CZ1:CZ2)>=0,(IF(CZ3<0,(IF(ABS(CZ3)>ABS(SUM(CZ1:CZ2)),SUM(CZ1:CZ2),ABS(CZ3))),CZ3)),(IF(CZ3>0,(IF(ABS(CZ3)>ABS(SUM(CZ1:CZ2)),SUM(CZ1:CZ3),0)),0))) -> 227.247 | DD3: =IF(SUM(CZ1:CZ2)<0,(IF(CZ3<0,CZ3,(IF(ABS(CZ3)>ABS(SUM(CZ1:CZ2)),SUM(CZ1:CZ2),0-CZ3)))),(IF(CZ3<0,(IF(ABS(CZ3)>ABS(SUM(CZ1:CZ2)),SUM(CZ1:CZ3),0)),0))) -> 0 | DE3: Ostali prihodi Δ | DF3: 0 | DG3: 794.031 | DH3: 227.247 | DI3: 0 | DJ3: 0 | DK3: 0 | DL3: 0 | DO3: Rezerviranja | DP3: =Bilanca!C96 -> 39.44 | DQ3: =Bilanca!D96 -> 6.438 | DR3: =Bilanca!E96 -> 6.438 | DS3: =Bilanca!F96 -> 39.439 | DT3: =Bilanca!G96 -> 0 | DU3: =Bilanca!H96 -> 0 | DV3: =Bilanca!I96 -> 0 | DX3: Poslovni prihodi | DY3: =IFERROR(RDG!C5,) -> 1854.413 | DZ3: =IFERROR(RDG!D5,) -> 2450.167 | EA3: =IFERROR(RDG!E5,) -> 2803.972 | EB3: =IFERROR(RDG!F5,) -> 2131.827 | EC3: =IFERROR(RDG!G5,) -> 3445.894 | ED3: =IFERROR(RDG!H5,) -> 3621.479 | EE3: =IFERROR(RDG!I5,) -> 3688.491 | EG3: Ukupna imovina | EH3: =Bilanca!C68 -> 13423.2548 | EI3: =Bilanca!D68 -> 13481.1933 | EJ3: =Bilanca!E68 -> 12973.986 | EK3: =Bilanca!F68 -> 19429.3736 | EL3: =Bilanca!G68 -> 20409.84 | EM3: =Bilanca!H68 -> 21114.913 | EN3: =Bilanca!I68 -> 22173.105 | EP3: Dug / EBITDA | EQ3: =BB10/BB3 -> 27.58752916 | ER3: 676.5197983 | ES3: -56.98856255 | ET3: 51.26357555 | EU3: 40.13463684 | EV3: 39.37959245 | EW3: 40.85342146
AP4: Ustanova | AR4: Zamjenik predsj. | AS4: Zamjenik predsj. | AT4: MIDIM (RH) funkcija | AV4: Zamjenik predsj. | AZ4: Srednji | BA4: EBITDA marža | BB4: =IFERROR((RDG!C59+RDG!C46+RDG!C48+RDG!C21)/RDG!C57,) -> 0.2243193716 | BC4: =IFERROR((RDG!D59+RDG!D46+RDG!D48+RDG!D21)/RDG!D57,) -> 0.007203051126 | BD4: =IFERROR((RDG!E59+RDG!E46+RDG!E48+RDG!E21)/RDG!E57,) -> -0.075476495 | BE4: =IFERROR((RDG!F59+RDG!F46+RDG!F48+RDG!F21)/RDG!F57,) -> 0.1637053552 | BF4: =IFERROR((RDG!G59+RDG!G46+RDG!G48+RDG!G21)/RDG!G57,) -> 0.1409776018 | BG4: =IFERROR((RDG!H59+RDG!H46+RDG!H48+RDG!H21)/RDG!H57,) -> 0.1372479024 | BH4: =IFERROR((RDG!I59+RDG!I46+RDG!I48+RDG!I21)/RDG!I57,) -> 0.1368987387 | BL4: X3 | BM4: =IFERROR('Altman Integral (Basic)'!C43/'Altman Integral (Basic)'!C41,) -> 0.01164121536 | BN4: =IFERROR('Altman Integral (Basic)'!D43/'Altman Integral (Basic)'!D41,) -> -0.02122801696 | BO4: =IFERROR('Altman Integral (Basic)'!E43/'Altman Integral (Basic)'!E41,) -> -0.04493877209 | BP4: =IFERROR('Altman Integral (Basic)'!F43/'Altman Integral (Basic)'!F41,) -> 0.003074159838 | BQ4: =IFERROR('Altman Integral (Basic)'!G43/'Altman Integral (Basic)'!G41,) -> 0.002982384967 | BR4: =IFERROR('Altman Integral (Basic)'!H43/'Altman Integral (Basic)'!H41,) -> 0.002941996493 | BS4: =IFERROR('Altman Integral (Basic)'!I43/'Altman Integral (Basic)'!I41,) -> 0.002932967665 | BT4: 3.3 | CH4: Troškovi osoblja Δ | CI4: =RDG!D17-RDG!E17 -> -96.854 | CK4: =IF(SUM(CI1:CI3)>=0,(IF(CI4>=0,SUM(CI1:CI3),(IF(ABS(SUM(CI1:CI3))>ABS(CI4),SUM(CI1:CI4),0)))),(IF(CI4<0,SUM(CI1:CI3),(IF(ABS(SUM(CI1:CI3))>ABS(CI4),SUM(CI1:CI4),0))))) -> -311.727 | CL4: =IF(SUM(CI1:CI3)>=0,(IF(CI4<0,(IF(ABS(CI4)>ABS(SUM(CI1:CI3)),SUM(CI1:CI3),ABS(CI4))),CI4)),(IF(CI4>0,(IF(ABS(CI4)>ABS(SUM(CI1:CI3)),SUM(CI1:CI4),0)),0))) -> 0 | CM4: =IF(SUM(CI1:CI3)<0,(IF(CI4<0,CI4,(IF(ABS(CI4)>ABS(SUM(CI1:CI3)),SUM(CI1:CI3),0-CI4)))),(IF(CI4<0,(IF(ABS(CI4)>ABS(SUM(CI1:CI3)),SUM(CI1:CI4),0)),0))) -> -96.854 | CN4: Troškovi osoblja Δ | CO4: 0 | CP4: -311.727 | CQ4: 0 | CR4: 0 | CS4: 0 | CT4: -96.854 | CU4: 0 | CY4: Promjena vrijednosti zaliha Δ | CZ4: =RDG!F12-RDG!E12 -> 0 | DB4: =IF(SUM(CZ1:CZ3)>=0,(IF(CZ4>=0,SUM(CZ1:CZ3),(IF(ABS(SUM(CZ1:CZ3))>ABS(CZ4),SUM(CZ1:CZ4),0)))),(IF(CZ4<0,SUM(CZ1:CZ3),(IF(ABS(SUM(CZ1:CZ3))>ABS(CZ4),SUM(CZ1:CZ4),0))))) -> 1021.278 | DC4: =IF(SUM(CZ1:CZ3)>=0,(IF(CZ4<0,(IF(ABS(CZ4)>ABS(SUM(CZ1:CZ3)),SUM(CZ1:CZ3),ABS(CZ4))),CZ4)),(IF(CZ4>0,(IF(ABS(CZ4)>ABS(SUM(CZ2:CZ3)),SUM(CZ1:CZ4),0)),0))) -> 0 | DD4: =IF(SUM(CZ1:CZ3)<0,(IF(CZ4<0,CZ4,(IF(ABS(CZ4)>ABS(SUM(CZ1:CZ3)),SUM(CZ1:CZ3),0-CZ4)))),(IF(CZ4<0,(IF(ABS(CZ4)>ABS(SUM(CZ1:CZ3)),SUM(CZ1:CZ4),0)),0))) -> 0 | DE4: Promjena vrijednosti zaliha Δ | DF4: 0 | DG4: 1021.278 | DH4: 0 | DI4: 0 | DJ4: 0 | DK4: 0 | DL4: 0 | DO4: Dugoročne obveze | DP4: =Bilanca!C103 -> 3059.791 | DQ4: =Bilanca!D103 -> 2778.482 | DR4: =Bilanca!E103 -> 2799.417 | DS4: =Bilanca!F103 -> 2964.391 | DT4: =Bilanca!G103 -> 2799.417 | DU4: =Bilanca!H103 -> 2773.27 | DV4: =Bilanca!I103 -> 2614.002 | DX4: Omjer primitaka od poslovnih aktivnosti i poslovnih prihoda | DY4: =DY2/DY3 -> 0.2343226671 | DZ4: =DZ2/DZ3 -> 0.1773475033 | EA4: =EA2/EA3 -> 0.1549698071 | EB4: 0.2038303296 | EC4: 0.1261010931 | ED4: 0.1199871655 | EE4: 0.1178072551 | EG4: Koeficijent obrtaja imovine | EH4: =EH2/EH3 -> 0.138382831 | EI4: =EI2/EI3 -> 0.1817915481 | EJ4: 0.2161624808 | EK4: 0.1097449688 | EL4: 0.1688613923 | EM4: 0.1715403232 | EN4: 0.1663771944
AP5: Druga osoba za koje je upis propisan zakonom | AS5: Predstavnik radnika | AT5: RH - funkcija | AV5: Direktor | AZ5: Veliki | BL5: X4 | BM5: =IFERROR('Altman Integral (Basic)'!C46/'Altman Integral (Basic)'!C44,) -> 0 | BN5: =IFERROR('Altman Integral (Basic)'!D46/'Altman Integral (Basic)'!D44,) -> 0 | BO5: =IFERROR('Altman Integral (Basic)'!E46/'Altman Integral (Basic)'!E44,) -> 0 | BP5: =IFERROR('Altman Integral (Basic)'!F46/'Altman Integral (Basic)'!F44,) -> 0 | BQ5: =IFERROR('Altman Integral (Basic)'!G46/'Altman Integral (Basic)'!G44,) -> 0 | BR5: =IFERROR('Altman Integral (Basic)'!H46/'Altman Integral (Basic)'!H44,) -> 0 | BS5: =IFERROR('Altman Integral (Basic)'!I46/'Altman Integral (Basic)'!I44,) -> 0 | BT5: 0.6 | CH5: Ostali poslovni rashodi Δ | CI5: =(RDG!D11-RDG!D13-RDG!D17)-(RDG!E11-RDG!E13-RDG!E17) -> -243.561 | CK5: =IF(SUM(CI1:CI4)>=0,(IF(CI5>=0,SUM(CI1:CI4),(IF(ABS(SUM(CI1:CI4))>ABS(CI5),SUM(CI1:CI5),0)))),(IF(CI5<0,SUM(CI1:CI4),(IF(ABS(SUM(CI1:CI4))>ABS(CI5),SUM(CI1:CI5),0))))) -> -408.581 | CL5: =IF(SUM(CI1:CI4)>=0,(IF(CI5<0,(IF(ABS(CI5)>ABS(SUM(CI1:CI4)),SUM(CI1:CI4),ABS(CI5))),CI5)),(IF(CI5>0,(IF(ABS(CI5)>ABS(SUM(CI1:CI4)),SUM(CI1:CI5),0)),0))) -> 0 | CM5: =IF(SUM(CI1:CI4)<0,(IF(CI5<0,CI5,(IF(ABS(CI5)>ABS(SUM(CI1:CI4)),SUM(CI1:CI4),0-CI5)))),(IF(CI5<0,(IF(ABS(CI5)>ABS(SUM(CI1:CI4)),SUM(CI1:CI5),0)),0))) -> -243.561 | CN5: Ostali poslovni rashodi Δ | CO5: 0 | CP5: -408.581 | CQ5: 0 | CR5: 0 | CS5: 0 | CT5: -243.561 | CU5: 0 | CY5: Materijalni troškovi Δ | CZ5: =RDG!F13-RDG!E13 -> -1064.785 | DB5: =IF(SUM(CZ1:CZ4)>=0,(IF(CZ5>=0,SUM(CZ1:CZ4),(IF(ABS(SUM(CZ1:CZ4))>ABS(CZ5),SUM(CZ1:CZ5),0)))),(IF(CZ5<0,SUM(CZ1:CZ4),(IF(ABS(SUM(CZ1:CZ4))>ABS(CZ5),SUM(CZ1:CZ5),0))))) -> 0 | DC5: =IF(SUM(CZ1:CZ4)>=0,(IF(CZ5<0,(IF(ABS(CZ5)>ABS(SUM(CZ1:CZ4)),SUM(CZ1:CZ4),ABS(CZ5))),CZ5)),(IF(CZ5>0,(IF(ABS(CZ5)>ABS(SUM(CZ1:CZ4)),SUM(CZ1:CZ5),0)),0))) -> 1021.278 | DD5: =IF(SUM(CZ1:CZ4)<0,(IF(CZ5<0,CZ5,(IF(ABS(CZ5)>ABS(SUM(CZ1:CZ4)),SUM(CZ1:CZ4),0-CZ5)))),(IF(CZ5<0,(IF(ABS(CZ5)>ABS(SUM(CZ1:CZ4)),SUM(CZ1:CZ5),0)),0))) -> -43.507 | DE5: Materijalni troškovi Δ | DF5: 0 | DG5: 0 | DH5: 0 | DI5: 1021.278 | DJ5: 0 | DK5: -43.507 | DL5: 0 | DO5: Kratkoročne obveze | DP5: =Bilanca!C115 -> 8435.491 | DQ5: =Bilanca!D115 -> 9164.122 | DR5: =Bilanca!E115 -> 9263.523 | DS5: =Bilanca!F115 -> 14929.929 | DT5: =Bilanca!G115 -> 16700.799 | DU5: =Bilanca!H115 -> 16803.113 | DV5: =Bilanca!I115 -> 18018.324
AT6: predst. radnika | BB6: =Podloga!B34 -> 2021. ostvareno | BC6: =Podloga!C34 -> 2022. ostvareno | BD6: =Podloga!D34 -> 2023. procijenjeno | BE6: =Podloga!E34 -> 2023. planirano | BF6: =Podloga!F34 -> 2024. planirano | BG6: =Podloga!G34 -> 2025. planirano | BH6: =Podloga!H34 -> 2026. planirano | BL6: X5 | BM6: =IFERROR('Altman Integral (Basic)'!C45/'Altman Integral (Basic)'!C41,) -> 0.138382831 | BN6: =IFERROR('Altman Integral (Basic)'!D45/'Altman Integral (Basic)'!D41,) -> 0.1817915481 | BO6: =IFERROR('Altman Integral (Basic)'!E45/'Altman Integral (Basic)'!E41,) -> 0.2161624808 | BP6: =IFERROR('Altman Integral (Basic)'!F45/'Altman Integral (Basic)'!F41,) -> 0.1097449688 | BQ6: =IFERROR('Altman Integral (Basic)'!G45/'Altman Integral (Basic)'!G41,) -> 0.1688613923 | BR6: =IFERROR('Altman Integral (Basic)'!H45/'Altman Integral (Basic)'!H41,) -> 0.1715403232 | BS6: =IFERROR('Altman Integral (Basic)'!I45/'Altman Integral (Basic)'!I41,) -> 0.1663771944 | BT6: 1 | CH6: Financijski i investicijski prihodi Δ | CI6: =(RDG!E34+RDG!E53+RDG!E54)-(RDG!D34+RDG!D53+RDG!D54) -> -0.083 | CK6: =IF(SUM(CI1:CI5)>=0,(IF(CI6>=0,SUM(CI1:CI5),(IF(ABS(SUM(CI1:CI5))>ABS(CI6),SUM(CI1:CI6),0)))),(IF(CI6<0,SUM(CI1:CI5),(IF(ABS(SUM(CI1:CI5))>ABS(CI6),SUM(CI1:CI6),0))))) -> -652.142 | CL6: =IF(SUM(CI1:CI5)>=0,(IF(CI6<0,(IF(ABS(CI6)>ABS(SUM(CI1:CI5)),SUM(CI1:CI5),ABS(CI6))),CI6)),(IF(CI6>0,(IF(ABS(CI6)>ABS(SUM(CI1:CI5)),SUM(CI1:CI6),0)),0))) -> 0 | CM6: =IF(SUM(CI1:CI5)<0,(IF(CI6<0,CI6,(IF(ABS(CI6)>ABS(SUM(CI1:CI5)),SUM(CI1:CI5),0-CI6)))),(IF(CI6<0,(IF(ABS(CI6)>ABS(SUM(CI1:CI5)),SUM(CI1:CI6),0)),0))) -> -0.083 | CN6: Financijski i investicijski prihodi Δ | CO6: 0 | CP6: -652.142 | CQ6: 0 | CR6: 0 | CS6: 0 | CT6: -0.083 | CU6: 0 | CY6: Troškovi osoblja Δ | CZ6: =RDG!F17-RDG!E17 -> 35.75 | DB6: =IF(SUM(CZ1:CZ5)>=0,(IF(CZ6>=0,SUM(CZ1:CZ5),(IF(ABS(SUM(CZ1:CZ5))>ABS(CZ6),SUM(CZ1:CZ6),0)))),(IF(CZ6<0,SUM(CZ1:CZ5),(IF(ABS(SUM(CZ1:CZ5))>ABS(CZ6),SUM(CZ1:CZ6),0))))) -> -7.757 | DC6: =IF(SUM(CZ1:CZ5)>=0,(IF(CZ6<0,(IF(ABS(CZ6)>ABS(SUM(CZ1:CZ5)),SUM(CZ1:CZ5),ABS(CZ6))),CZ6)),(IF(CZ6>0,(IF(ABS(CZ6)>ABS(SUM(CZ1:CZ5)),SUM(CZ1:CZ6),0)),0))) -> 0 | DD6: =IF(SUM(CZ1:CZ5)<0,(IF(CZ6<0,CZ6,(IF(ABS(CZ6)>ABS(SUM(CZ1:CZ5)),SUM(CZ1:CZ5),0-CZ6)))),(IF(CZ6<0,(IF(ABS(CZ6)>ABS(SUM(CZ1:CZ5)),SUM(CZ1:CZ6),0)),0))) -> -35.75 | DE6: Troškovi osoblja Δ | DF6: 0 | DG6: -7.757 | DH6: 0 | DI6: 0 | DJ6: -35.75 | DK6: 0 | DL6: 0 | DO6: Ostalo | DP6: =Bilanca!C130 -> 0 | DQ6: =Bilanca!D130 -> 0 | DR6: =Bilanca!E130 -> 0 | DS6: =Bilanca!F130 -> 0 | DT6: =Bilanca!G130 -> 0 | DU6: =Bilanca!H130 -> 0 | DV6: =Bilanca!I130 -> 0 | EH6: =Podloga!B34 -> 2021. ostvareno | EI6: =Podloga!C34 -> 2022. ostvareno | EJ6: =Podloga!D34 -> 2023. procijenjeno | EK6: =Podloga!E34 -> 2023. planirano | EL6: =Podloga!F34 -> 2024. planirano | EM6: =Podloga!G34 -> 2025. planirano | EN6: =Podloga!H34 -> 2026. planirano
AT7: predst. poslodavaca (bez prava glasa) | BA7: Dobit razdoblja | BB7: =RDG!C63 -> 94.599 | BC7: =RDG!D63 -> -356.379 | BD7: =RDG!E63 -> -627.551 | BE7: =RDG!F63 -> 5.246 | BF7: =RDG!G63 -> 5.02 | BG7: =RDG!H63 -> 6.376 | BH7: =RDG!I63 -> 8.626 | BL7: Gornja granica | BM7: 3 | BN7: 3 | BO7: 3 | BP7: 3 | BQ7: 3 | BR7: 3 | BS7: 3 | CH7: Financijski i investicijski rashodi Δ | CI7: =(RDG!D45+RDG!D55+RDG!D56)-(RDG!E45+RDG!E55+RDG!E56) -> 24.674 | CK7: =IF(SUM(CI1:CI6)>=0,(IF(CI7>=0,SUM(CI1:CI6),(IF(ABS(SUM(CI1:CI6))>ABS(CI7),SUM(CI1:CI7),0)))),(IF(CI7<0,SUM(CI1:CI6),(IF(ABS(SUM(CI1:CI6))>ABS(CI7),SUM(CI1:CI7),0))))) -> -627.551 | CL7: =IF(SUM(CI1:CI6)>=0,(IF(CI7<0,(IF(ABS(CI7)>ABS(SUM(CI1:CI6)),SUM(CI1:CI6),ABS(CI7))),CI7)),(IF(CI7>0,(IF(ABS(CI7)>ABS(SUM(CI1:CI6)),SUM(CI1:CI7),0)),0))) -> 0 | CM7: =IF(SUM(CI1:CI6)<0,(IF(CI7<0,CI7,(IF(ABS(CI7)>ABS(SUM(CI1:CI6)),SUM(CI1:CI6),0-CI7)))),(IF(CI7<0,(IF(ABS(CI7)>ABS(SUM(CI1:CI6)),SUM(CI1:CI7),0)),0))) -> -24.674 | CN7: Financijski i investicijski rashodi Δ | CO7: 0 | CP7: -627.551 | CQ7: 0 | CR7: 0 | CS7: -24.674 | CT7: 0 | CU7: 0 | CY7: Vrijednosna usklađenja Δ | CZ7: =RDG!F23-RDG!E23 -> 0 | DB7: =IF(SUM(CZ1:CZ6)>=0,(IF(CZ7>=0,SUM(CZ1:CZ6),(IF(ABS(SUM(CZ1:CZ6))>ABS(CZ7),SUM(CZ1:CZ7),0)))),(IF(CZ7<0,SUM(CZ1:CZ6),(IF(ABS(SUM(CZ1:CZ6))>ABS(CZ7),SUM(CZ1:CZ7),0))))) -> -7.757 | DC7: =IF(SUM(CZ1:CZ6)>=0,(IF(CZ7<0,(IF(ABS(CZ7)>ABS(SUM(CZ1:CZ6)),SUM(CZ1:CZ6),ABS(CZ7))),CZ7)),(IF(CZ7>0,(IF(ABS(CZ7)>ABS(SUM(CZ1:CZ6)),SUM(CZ1:CZ7),0)),0))) -> 0 | DD7: =IF(SUM(CZ1:CZ6)<0,(IF(CZ7<0,CZ7,(IF(ABS(CZ7)>ABS(SUM(CZ1:CZ6)),SUM(CZ1:CZ6),0-CZ7)))),(IF(CZ7<0,(IF(ABS(CZ7)>ABS(SUM(CZ1:CZ6)),SUM(CZ1:CZ7),0)),0))) -> 0 | DE7: Vrijednosna usklađenja Δ | DF7: 0 | DG7: -7.757 | DH7: 0 | DI7: 0 | DJ7: 0 | DK7: 0 | DL7: 0 | DO7: Ukupno pasiva | DP7: =SUM(DP2:DP6) -> 13423.257 | DQ7: =SUM(DQ2:DQ6) -> 13481.197 | DR7: 12973.982 | DS7: 19429.375 | DT7: 20409.84 | DU7: 21114.914 | DV7: 22173.107 | DY7: =Podloga!B34 -> 2021. ostvareno | DZ7: =Podloga!C34 -> 2022. ostvareno | EA7: =Podloga!D34 -> 2023. procijenjeno | EB7: =Podloga!E34 -> 2023. planirano | EC7: =Podloga!F34 -> 2024. planirano | ED7: =Podloga!G34 -> 2025. planirano | EE7: =Podloga!H34 -> 2026. planirano | EG7: Ukupni prihodi | EH7: =RDG!C57 -> 1857.548 | EI7: =RDG!D57 -> 2450.767 | EJ7: =RDG!E57 -> 2804.489 | EK7: =RDG!F57 -> 2132.276 | EL7: =RDG!G57 -> 3446.434 | EM7: =RDG!H57 -> 3622.059 | EN7: =RDG!I57 -> 3689.099
AT8: Grad Crikvenica | BA8: Neto profitna marža | BB8: =IFERROR(RDG!C63/RDG!C57,) -> 0.0509268132 | BC8: =IFERROR(RDG!D63/RDG!D57,) -> -0.1454152924 | BD8: =IFERROR(RDG!E63/RDG!E57,) -> -0.2237666113 | BE8: =IFERROR(RDG!F63/RDG!F57,) -> 0.002460281877 | BF8: =IFERROR(RDG!G63/RDG!G57,) -> 0.001456578017 | BG8: =IFERROR(RDG!H63/RDG!H57,) -> 0.001760324721 | BH8: =IFERROR(RDG!I63/RDG!I57,) -> 0.002338240313 | BL8: Donja granica | BM8: 1.8 | BN8: 1.8 | BO8: 1.8 | BP8: 1.8 | BQ8: 1.8 | BR8: 1.8 | BS8: 1.8 | CH8: Procijenjena bruto dobit tekuće godine | CI8: =RDG!E59 -> -627.551 | CJ8: =CI8 -> -627.551 | CN8: Procijenjena bruto dobit tekuće godine | CO8: -627.551 | CY8: Rezerviranja Δ | CZ8: =RDG!F26-RDG!E26 -> -2.35 | DB8: =IF(SUM(CZ1:CZ7)>=0,(IF(CZ8>=0,SUM(CZ1:CZ7),(IF(ABS(SUM(CZ1:CZ7))>ABS(CZ8),SUM(CZ1:CZ8),0)))),(IF(CZ8<0,SUM(CZ1:CZ7),(IF(ABS(SUM(CZ1:CZ7))>ABS(CZ8),SUM(CZ1:CZ8),0))))) -> -7.757 | DC8: =IF(SUM(CZ1:CZ7)>=0,(IF(CZ8<0,(IF(ABS(CZ8)>ABS(SUM(CZ1:CZ7)),SUM(CZ1:CZ7),ABS(CZ8))),CZ8)),(IF(CZ8>0,(IF(ABS(CZ8)>ABS(SUM(CZ1:CZ7)),SUM(CZ1:CZ8),0)),0))) -> 0 | DD8: =IF(SUM(CZ1:CZ7)<0,(IF(CZ8<0,CZ8,(IF(ABS(CZ8)>ABS(SUM(CZ1:CZ7)),SUM(CZ1:CZ7),0-CZ8)))),(IF(CZ8<0,(IF(ABS(CZ8)>ABS(SUM(CZ1:CZ7)),SUM(CZ1:CZ8),0)),0))) -> -2.35 | DE8: Rezerviranja Δ | DF8: 0 | DG8: -7.757 | DH8: 0 | DI8: 0 | DJ8: 0 | DK8: -2.35 | DL8: 0 | DO8: Udio kapitala u pasivi | DP8: =Bilanca!C75/Bilanca!C131 -> 0.1406912644 | DQ8: =Bilanca!D75/Bilanca!D131 -> 0.1136512581 | DR8: =Bilanca!E75/Bilanca!E131 -> 0.06972446856 | DS8: =Bilanca!F75/Bilanca!F131 -> 0.0769770515 | DT8: =Bilanca!G75/Bilanca!G131 -> 0.0445679143 | DU8: =Bilanca!H75/Bilanca!H131 -> 0.0728646586 | DV8: =Bilanca!I75/Bilanca!I131 -> 0.06948872794 | DX8: Novčani primici od kupaca | DY8: =IFERROR(IF(Podloga!$B$17="Direktna",'NT dir.'!C7,),) -> 0 | DZ8: =IFERROR(IF(Podloga!$B$17="Direktna",'NT dir.'!D7,),) -> 0 | EA8: =IFERROR(IF(Podloga!$B$17="Direktna",'NT dir.'!E7,),) -> 0 | EB8: =IFERROR(IF(Podloga!$B$17="Direktna",'NT dir.'!F7,),) -> 0 | EC8: =IFERROR(IF(Podloga!$B$17="Direktna",'NT dir.'!G7,),) -> 0 | ED8: =IFERROR(IF(Podloga!$B$17="Direktna",'NT dir.'!H7,),) -> 0 | EE8: =IFERROR(IF(Podloga!$B$17="Direktna",'NT dir.'!I7,),) -> 0 | EG8: Ukupni rashodi | EH8: =RDG!C58 -> 1762.949 | EI8: =RDG!D58 -> 2807.146 | EJ8: =RDG!E58 -> 3432.04 | EK8: =RDG!F58 -> 2127.03 | EL8: =RDG!G58 -> 3441.414 | EM8: =RDG!H58 -> 3615.683 | EN8: =RDG!I58 -> 3680.473
AT9: Grad Dubrovnik | BA9: Operativna profitna marža | BB9: =(RDG!C5-RDG!C11)/(RDG!C6+RDG!C7) -> 0.3071508171 | BC9: =(RDG!D5-RDG!D11)/(RDG!D6+RDG!D7) -> -0.4347046065 | BD9: =(RDG!E5-RDG!E11)/(RDG!E6+RDG!E7) -> -0.5104694054 | BE9: =(RDG!F5-RDG!F11)/(RDG!F6+RDG!F7) -> 0.09538862406 | BF9: =(RDG!G5-RDG!G11)/(RDG!G6+RDG!G7) -> 0.05269035644 | BG9: =(RDG!H5-RDG!H11)/(RDG!H6+RDG!H7) -> 0.04404971358 | BH9: =(RDG!I5-RDG!I11)/(RDG!I6+RDG!I7) -> 0.04420536025 | CY9: Ostali poslovni rashodi Δ | CZ9: =(RDG!F22+RDG!F33+RDG!F55+RDG!F56)-(RDG!E22+RDG!E33+RDG!E55+RDG!E56) -> -205.803 | DB9: =IF(SUM(CZ1:CZ8)>=0,(IF(CZ9>=0,SUM(CZ1:CZ8),(IF(ABS(SUM(CZ1:CZ8))>ABS(CZ9),SUM(CZ1:CZ9),0)))),(IF(CZ9<0,SUM(CZ1:CZ8),(IF(ABS(SUM(CZ1:CZ8))>ABS(CZ9),SUM(CZ1:CZ9),0))))) -> -10.107 | DC9: =IF(SUM(CZ1:CZ8)>=0,(IF(CZ9<0,(IF(ABS(CZ9)>ABS(SUM(CZ1:CZ8)),SUM(CZ1:CZ8),ABS(CZ9))),CZ9)),(IF(CZ9>0,(IF(ABS(CZ9)>ABS(SUM(CZ1:CZ8)),SUM(CZ1:CZ9),0)),0))) -> 0 | DD9: =IF(SUM(CZ1:CZ8)<0,(IF(CZ9<0,CZ9,(IF(ABS(CZ9)>ABS(SUM(CZ1:CZ8)),SUM(CZ1:CZ8),0-CZ9)))),(IF(CZ9<0,(IF(ABS(CZ9)>ABS(SUM(CZ1:CZ8)),SUM(CZ1:CZ9),0)),0))) -> -205.803 | DE9: Ostali poslovni rashodi Δ | DF9: 0 | DG9: -10.107 | DH9: 0 | DI9: 0 | DJ9: 0 | DK9: -205.803 | DL9: 0 | DX9: Novčani primici od tantijema, naknada, provizija i slično | DY9: =IFERROR(IF(Podloga!$B$17="Direktna",'NT dir.'!C8,),) -> 0 | DZ9: =IFERROR(IF(Podloga!$B$17="Direktna",'NT dir.'!D8,),) -> 0 | EA9: =IFERROR(IF(Podloga!$B$17="Direktna",'NT dir.'!E8,),) -> 0 | EB9: =IFERROR(IF(Podloga!$B$17="Direktna",'NT dir.'!F8,),) -> 0 | EC9: =IFERROR(IF(Podloga!$B$17="Direktna",'NT dir.'!G8,),) -> 0 | ED9: =IFERROR(IF(Podloga!$B$17="Direktna",'NT dir.'!H8,),) -> 0 | EE9: =IFERROR(IF(Podloga!$B$17="Direktna",'NT dir.'!I8,),) -> 0 | EG9: Prihodi od poslovnih aktivnosti | EH9: =RDG!C5 -> 1854.413 | EI9: =RDG!D5 -> 2450.167 | EJ9: =RDG!E5 -> 2803.972 | EK9: =RDG!F5 -> 2131.827 | EL9: =RDG!G5 -> 3445.894 | EM9: =RDG!H5 -> 3621.479 | EN9: =RDG!I5 -> 3688.491
AT10: Grad Kaštela | BA10: Dug | BB10: =Bilanca!C103+Bilanca!C115+Bilanca!C130 -> 11495.282 | BC10: =Bilanca!D103+Bilanca!D115+Bilanca!D130 -> 11942.604 | BD10: =Bilanca!E103+Bilanca!E115+Bilanca!E130 -> 12062.94 | BE10: =Bilanca!F103+Bilanca!F115+Bilanca!F130 -> 17894.32 | BF10: =Bilanca!G103+Bilanca!G115+Bilanca!G130 -> 19500.216 | BG10: =Bilanca!H103+Bilanca!H115+Bilanca!H130 -> 19576.383 | BH10: =Bilanca!I103+Bilanca!I115+Bilanca!I130 -> 20632.326 | CH10: Planirana bruto dobit tekuće godine | CI10: =RDG!F59 -> 5.246 | CJ10: =CI10 -> 5.246 | CN10: =CH10 -> Planirana bruto dobit tekuće godine | CO10: =CJ10 -> 5.246 | CP10: =CK10 -> 0 | CQ10: 0 | CR10: 0 | CS10: 0 | CT10: 0 | CU10: 0 | CY10: Financijski rashodi (bez kamata) Δ | CZ10: =(RDG!F45-RDG!F46-RDG!F48)-(RDG!E45-RDG!E46-RDG!E48) -> 4.237 | DB10: =IF(SUM(CZ1:CZ9)>=0,(IF(CZ10>=0,SUM(CZ1:CZ9),(IF(ABS(SUM(CZ1:CZ9))>ABS(CZ10),SUM(CZ1:CZ10),0)))),(IF(CZ10<0,SUM(CZ1:CZ9),(IF(ABS(SUM(CZ1:CZ9))>ABS(CZ10),SUM(CZ1:CZ10),0))))) -> -211.673 | DC10: =IF(SUM(CZ1:CZ9)>=0,(IF(CZ10<0,(IF(ABS(CZ10)>ABS(SUM(CZ1:CZ9)),SUM(CZ1:CZ9),ABS(CZ10))),CZ10)),(IF(CZ10>0,(IF(ABS(CZ10)>ABS(SUM(CZ1:CZ9)),SUM(CZ1:CZ10),0)),0))) -> 0 | DD10: =IF(SUM(CZ1:CZ9)<0,(IF(CZ10<0,CZ10,(IF(ABS(CZ10)>ABS(SUM(CZ1:CZ9)),SUM(CZ1:CZ9),0-CZ10)))),(IF(CZ10<0,(IF(ABS(CZ10)>ABS(SUM(CZ1:CZ9)),SUM(CZ1:CZ10),0)),0))) -> -4.237 | DE10: Financijski rashodi (bez kamata) Δ | DF10: 0 | DG10: -211.673 | DH10: 0 | DI10: 0 | DJ10: -4.237 | DK10: 0 | DL10: 0 | DX10: Novčani primici od osiguranja za naknadu šteta | DY10: =IFERROR(IF(Podloga!$B$17="Direktna",'NT dir.'!C9,),) -> 0 | DZ10: =IFERROR(IF(Podloga!$B$17="Direktna",'NT dir.'!D9,),) -> 0 | EA10: =IFERROR(IF(Podloga!$B$17="Direktna",'NT dir.'!E9,),) -> 0 | EB10: =IFERROR(IF(Podloga!$B$17="Direktna",'NT dir.'!F9,),) -> 0 | EC10: =IFERROR(IF(Podloga!$B$17="Direktna",'NT dir.'!G9,),) -> 0 | ED10: =IFERROR(IF(Podloga!$B$17="Direktna",'NT dir.'!H9,),) -> 0 | EE10: =IFERROR(IF(Podloga!$B$17="Direktna",'NT dir.'!I9,),) -> 0 | EG10: Rashodi od poslovnih aktivnosti | EH10: =RDG!C11 -> 1698.686 | EI10: =RDG!D11 -> 2735.358 | EJ10: =RDG!E11 -> 3384.926 | EK10: =RDG!F11 -> 2065.712 | EL10: =RDG!G11 -> 3378.614 | EM10: =RDG!H11 -> 3557.285 | EN10: =RDG!I11 -> 3618.757
AT11: Grad Krk i općina Omišalj | BB11: =Podloga!B34 -> 2021. ostvareno | BC11: =Podloga!C34 -> 2022. ostvareno | BD11: =Podloga!D34 -> 2023. procijenjeno | BE11: =Podloga!E34 -> 2023. planirano | BF11: =Podloga!F34 -> 2024. planirano | BG11: =Podloga!G34 -> 2025. planirano | BH11: =Podloga!H34 -> 2026. planirano | CH11: Poslovni prihodi Δ | CI11: =RDG!E5-RDG!F5 -> 672.145 | CK11: =IF(SUM(CI10)>=0,(IF(CI11>=0,SUM(CI10),(IF(ABS(SUM(CI10))>ABS(CI11),SUM(CI10:CI11),0)))),(IF(CI11<0,SUM(CI10),(IF(ABS(SUM(CI10))>ABS(CI11),SUM(CI10:CI11),0))))) -> 5.246 | CL11: =IF(SUM(CI10)>=0,(IF(CI11<0,(IF(ABS(CI11)>ABS(SUM(CI10)),SUM(CI10),ABS(CI11))),CI11)),(IF(CI11>0,(IF(ABS(CI11)>ABS(SUM(CI10)),SUM(CI10:CI11),0)),0))) -> 672.145 | CM11: =IF(SUM(CI10)<0,(IF(CI11<0,CI11,(IF(ABS(CI11)>ABS(SUM(CI10)),SUM(CI10),0-CI11)))),(IF(CI11<0,(IF(ABS(CI11)>ABS(SUM(CI10)),SUM(CI10:CI11),0)),0))) -> 0 | CN11: =CH11 -> Poslovni prihodi Δ | CO11: =CJ11 -> 0 | CP11: =CK11 -> 5.246 | CQ11: 672.145 | CR11: 0 | CS11: 0 | CT11: 0 | CU11: 0 | CY11: Procijenjena EBITDA tekuće godine | CZ11: =BD3 -> -211.673 | DA11: =CZ11 -> -211.673 | DE11: Procijenjena EBITDA tekuće godine | DF11: -211.673 | DX11: Novčani primici s osnove povrata poreza | DY11: =IFERROR(IF(Podloga!$B$17="Direktna",'NT dir.'!C10,),) -> 0 | DZ11: =IFERROR(IF(Podloga!$B$17="Direktna",'NT dir.'!D10,),) -> 0 | EA11: =IFERROR(IF(Podloga!$B$17="Direktna",'NT dir.'!E10,),) -> 0 | EB11: =IFERROR(IF(Podloga!$B$17="Direktna",'NT dir.'!F10,),) -> 0 | EC11: =IFERROR(IF(Podloga!$B$17="Direktna",'NT dir.'!G10,),) -> 0 | ED11: =IFERROR(IF(Podloga!$B$17="Direktna",'NT dir.'!H10,),) -> 0 | EE11: =IFERROR(IF(Podloga!$B$17="Direktna",'NT dir.'!I10,),) -> 0 | EG11: Ekonomičnost ukupnog poslovanja | EH11: =EH7/EH8 -> 1.053659522 | EI11: =EI7/EI8 -> 0.873045791 | EJ11: 0.8171492756 | EK11: 1.00246635 | EL11: 1.001458703 | EM11: 1.001763429 | EN11: 1.00234372
AT12: Grad Opatija | BA12: ROE | BB12: =IFERROR((RDG!C83/Bilanca!C$75),) -> 0.05009120826 | BC12: =IFERROR((RDG!D83/Bilanca!D$75),) -> -0.2325998349 | BD12: =IFERROR((RDG!E83/Bilanca!E$75),) -> -0.6937300742 | BE12: =IFERROR((RDG!F83/Bilanca!F$75),) -> 0.003507584835 | BF12: =IFERROR((RDG!G83/Bilanca!G$75),) -> 0.005518763797 | BG12: =IFERROR((RDG!H83/Bilanca!H$75),) -> 0.004144212889 | BH12: =IFERROR((RDG!I83/Bilanca!I$75),) -> 0.005598459483 | BL12: Altman a | CH12: Materijalni troškovi Δ | CI12: =RDG!F13-RDG!E13 -> -1064.785 | CK12: =IF(SUM(CI10:CI11)>=0,(IF(CI12>=0,SUM(CI10:CI11),(IF(ABS(SUM(CI10:CI11))>ABS(CI12),SUM(CI10:CI12),0)))),(IF(CI12<0,SUM(CI10:CI11),(IF(ABS(SUM(CI10:CI11))>ABS(CI12),SUM(CI10:CI12),0))))) -> 0 | CL12: =IF(SUM(CI10:CI11)>=0,(IF(CI12<0,(IF(ABS(CI12)>ABS(SUM(CI10:CI11)),SUM(CI10:CI11),ABS(CI12))),CI12)),(IF(CI12>0,(IF(ABS(CI12)>ABS(SUM(CI10:CI11)),SUM(CI10:CI12),0)),0))) -> 677.391 | CM12: =IF(SUM(CI10:CI11)<0,(IF(CI12<0,CI12,(IF(ABS(CI12)>ABS(SUM(CI10:CI11)),SUM(CI10:CI11),0-CI12)))),(IF(CI12<0,(IF(ABS(CI12)>ABS(SUM(CI10:CI11)),SUM(CI10:CI12),0)),0))) -> -387.394 | CN12: Materijalni troškovi Δ | CO12: 0 | CP12: 0 | CQ12: 0 | CR12: 677.391 | CS12: 0 | CT12: -387.394 | CU12: 0 | DX12: Ostali novčani primici iz poslovanja | DY12: =IFERROR(IF(Podloga!$B$17="Direktna",'NT dir.'!#REF!,),) -> 0 | DZ12: =IFERROR(IF(Podloga!$B$17="Direktna",'NT dir.'!#REF!,),) -> 0 | EA12: =IFERROR(IF(Podloga!$B$17="Direktna",'NT dir.'!#REF!,),) -> 0 | EB12: =IFERROR(IF(Podloga!$B$17="Direktna",'NT dir.'!#REF!,),) -> 0 | EC12: =IFERROR(IF(Podloga!$B$17="Direktna",'NT dir.'!#REF!,),) -> 0 | ED12: =IFERROR(IF(Podloga!$B$17="Direktna",'NT dir.'!#REF!,),) -> 0 | EE12: =IFERROR(IF(Podloga!$B$17="Direktna",'NT dir.'!#REF!,),) -> 0 | EG12: Ekonomičnost poslovnih aktivnosti | EH12: =EH9/EH10 -> 1.091674977 | EI12: =EI9/EI10 -> 0.8957390587 | EJ12: 0.8283702509 | EK12: 1.032005914 | EL12: 1.019913491 | EM12: 1.018045785 | EN12: 1.019270153
AT13: Grad Osijek | BA13: ROA | BB13: =IFERROR(RDG!C63/Bilanca!C68,) -> 0.007047396582 | BC13: =IFERROR(RDG!D63/Bilanca!D68,) -> -0.02643527113 | BD13: =IFERROR(RDG!E63/Bilanca!E68,) -> -0.04836994583 | BE13: =IFERROR(RDG!F63/Bilanca!F68,) -> 0.0002700035579 | BF13: =IFERROR(RDG!G63/Bilanca!G68,) -> 0.0002459597919 | BG13: =IFERROR(RDG!H63/Bilanca!H68,) -> 0.0003019666716 | BH13: =IFERROR(RDG!I63/Bilanca!I68,) -> 0.000389029863 | BL13: X1 | BM13: =IFERROR('Altman Integral (A)'!C35/'Altman Integral (A)'!C36,) -> 0.09713313346 | BN13: =IFERROR('Altman Integral (A)'!D35/'Altman Integral (A)'!D36,) -> 0.08051389635 | BO13: =IFERROR('Altman Integral (A)'!E35/'Altman Integral (A)'!E36,) -> 0.05714388778 | BP13: =IFERROR('Altman Integral (A)'!F35/'Altman Integral (A)'!F36,) -> 0.04798649813 | BQ13: =IFERROR('Altman Integral (A)'!G35/'Altman Integral (A)'!G36,) -> 0.03220652391 | BR13: =IFERROR('Altman Integral (A)'!H35/'Altman Integral (A)'!H36,) -> 0.03416822035 | BS13: =IFERROR('Altman Integral (A)'!I35/'Altman Integral (A)'!I36,) -> 0.0328473166 | BT13: 0.717 | CH13: Troškovi osoblja Δ | CI13: =RDG!F17-RDG!E17 -> 35.75 | CK13: =IF(SUM(CI10:CI12)>=0,(IF(CI13>=0,SUM(CI10:CI12),(IF(ABS(SUM(CI10:CI12))>ABS(CI13),SUM(CI10:CI13),0)))),(IF(CI13<0,SUM(CI10:CI12),(IF(ABS(SUM(CI10:CI12))>ABS(CI13),SUM(CI10:CI13),0))))) -> -351.644 | CL13: =IF(SUM(CI10:CI12)>=0,(IF(CI13<0,(IF(ABS(CI13)>ABS(SUM(CI10:CI12)),SUM(CI10:CI12),ABS(CI13))),CI13)),(IF(CI13>0,(IF(ABS(CI13)>ABS(SUM(CI10:CI12)),SUM(CI10:CI13),0)),0))) -> 0 | CM13: =IF(SUM(CI10:CI12)<0,(IF(CI13<0,CI13,(IF(ABS(CI13)>ABS(SUM(CI10:CI12)),SUM(CI10:CI12),0-CI13)))),(IF(CI13<0,(IF(ABS(CI13)>ABS(SUM(CI10:CI12)),SUM(CI10:CI13),0)),0))) -> -35.75 | CN13: Troškovi osoblja Δ | CO13: 0 | CP13: -351.644 | CQ13: 0 | CR13: 0 | CS13: -35.75 | CT13: 0 | CU13: 0
AT14: Grad Poreč | BB14: =Podloga!B34 -> 2021. ostvareno | BC14: =Podloga!C34 -> 2022. ostvareno | BD14: =Podloga!D34 -> 2023. procijenjeno | BE14: =Podloga!E34 -> 2023. planirano | BF14: =Podloga!F34 -> 2024. planirano | BG14: =Podloga!G34 -> 2025. planirano | BH14: =Podloga!H34 -> 2026. planirano | BL14: X2 | BM14: =IFERROR('Altman Integral (A)'!C37/'Altman Integral (A)'!C36,) -> -0.1254882683 | BN14: =IFERROR('Altman Integral (A)'!D37/'Altman Integral (A)'!D36,) -> -0.1179319935 | BO14: =IFERROR('Altman Integral (A)'!E37/'Altman Integral (A)'!E36,) -> -0.150011261 | BP14: =IFERROR('Altman Integral (A)'!F37/'Altman Integral (A)'!F36,) -> -0.1023210033 | BQ14: =IFERROR('Altman Integral (A)'!G37/'Altman Integral (A)'!G36,) -> -0.1261055942 | BR14: =IFERROR('Altman Integral (A)'!H37/'Altman Integral (A)'!H36,) -> -0.09217390571 | BS14: =IFERROR('Altman Integral (A)'!I37/'Altman Integral (A)'!I36,) -> -0.08777498686 | BT14: 0.847 | CH14: Ostali poslovni rashodi Δ | CI14: =(RDG!F11-RDG!F13-RDG!F17)-(RDG!E11-RDG!E13-RDG!E17) -> -290.179 | CK14: =IF(SUM(CI10:CI13)>=0,(IF(CI14>=0,SUM(CI10:CI13),(IF(ABS(SUM(CI10:CI13))>ABS(CI14),SUM(CI10:CI14),0)))),(IF(CI14<0,SUM(CI10:CI13),(IF(ABS(SUM(CI10:CI13))>ABS(CI14),SUM(CI10:CI14),0))))) -> -351.644 | CL14: =IF(SUM(CI10:CI13)>=0,(IF(CI14<0,(IF(ABS(CI14)>ABS(SUM(CI10:CI13)),SUM(CI10:CI13),ABS(CI14))),CI14)),(IF(CI14>0,(IF(ABS(CI14)>ABS(SUM(CI10:CI13)),SUM(CI10:CI14),0)),0))) -> 0 | CM14: =IF(SUM(CI10:CI13)<0,(IF(CI14<0,CI14,(IF(ABS(CI14)>ABS(SUM(CI10:CI13)),SUM(CI10:CI13),0-CI14)))),(IF(CI14<0,(IF(ABS(CI14)>ABS(SUM(CI10:CI13)),SUM(CI10:CI14),0)),0))) -> -290.179 | CN14: Ostali poslovni rashodi Δ | CO14: 0 | CP14: -351.644 | CQ14: 0 | CR14: 0 | CS14: 0 | CT14: -290.179 | CU14: 0 | EH14: =Podloga!B34 -> 2021. ostvareno | EI14: =Podloga!C34 -> 2022. ostvareno | EJ14: =Podloga!D34 -> 2023. procijenjeno | EK14: =Podloga!E34 -> 2023. planirano | EL14: =Podloga!F34 -> 2024. planirano | EM14: =Podloga!G34 -> 2025. planirano | EN14: =Podloga!H34 -> 2026. planirano
AT15: Grad Pula | BA15: EBIT/trošak kamata | BB15: =(RDG!C59+RDG!C46+RDG!C48)/(RDG!C46+RDG!C48) -> 2.534104177 | BC15: =(RDG!D59+RDG!D46+RDG!D48)/(RDG!D46+RDG!D48) -> -4.076623932 | BD15: =(RDG!E59+RDG!E46+RDG!E48)/(RDG!E46+RDG!E48) -> -13.09720101 | BE15: =(RDG!F59+RDG!F46+RDG!F48)/(RDG!F46+RDG!F48) -> 1.096286915 | BF15: =(RDG!G59+RDG!G46+RDG!G48)/(RDG!G46+RDG!G48) -> 1.089883617 | BG15: =(RDG!H59+RDG!H46+RDG!H48)/(RDG!H46+RDG!H48) -> 1.114380023 | BH15: =(RDG!I59+RDG!I46+RDG!I48)/(RDG!I46+RDG!I48) -> 1.152924282 | BL15: X3 | BM15: =IFERROR('Altman Integral (A)'!C38/'Altman Integral (A)'!C36,) -> 0.01164121536 | BN15: =IFERROR('Altman Integral (A)'!D38/'Altman Integral (A)'!D36,) -> -0.02122801696 | BO15: =IFERROR('Altman Integral (A)'!E38/'Altman Integral (A)'!E36,) -> -0.04493877209 | BP15: =IFERROR('Altman Integral (A)'!F38/'Altman Integral (A)'!F36,) -> 0.003074159838 | BQ15: =IFERROR('Altman Integral (A)'!G38/'Altman Integral (A)'!G36,) -> 0.002982384967 | BR15: =IFERROR('Altman Integral (A)'!H38/'Altman Integral (A)'!H36,) -> 0.002941996493 | BS15: =IFERROR('Altman Integral (A)'!I38/'Altman Integral (A)'!I36,) -> 0.002932967665 | BT15: 3.107 | CH15: Financijski i investicijski prihodi Δ | CI15: =(RDG!E34+RDG!E53+RDG!E54)-(RDG!F34+RDG!F53+RDG!F54) -> 0.068 | CK15: =IF(SUM(CI10:CI14)>=0,(IF(CI15>=0,SUM(CI10:CI14),(IF(ABS(SUM(CI10:CI14))>ABS(CI15),SUM(CI10:CI15),0)))),(IF(CI15<0,SUM(CI10:CI14),(IF(ABS(SUM(CI10:CI14))>ABS(CI15),SUM(CI10:CI15),0))))) -> -641.755 | CL15: =IF(SUM(CI10:CI14)>=0,(IF(CI15<0,(IF(ABS(CI15)>ABS(SUM(CI10:CI14)),SUM(CI10:CI14),ABS(CI15))),CI15)),(IF(CI15>0,(IF(ABS(CI15)>ABS(SUM(CI10:CI14)),SUM(CI10:CI15),0)),0))) -> 0 | CM15: =IF(SUM(CI10:CI14)<0,(IF(CI15<0,CI15,(IF(ABS(CI15)>ABS(SUM(CI10:CI14)),SUM(CI10:CI14),0-CI15)))),(IF(CI15<0,(IF(ABS(CI15)>ABS(SUM(CI10:CI14)),SUM(CI10:CI15),0)),0))) -> -0.068 | CN15: Financijski i investicijski prihodi Δ | CO15: 0 | CP15: -641.755 | CQ15: 0 | CR15: 0 | CS15: -0.068 | CT15: 0 | CU15: 0 | EG15: Glavnica | EH15: =Bilanca!C75 -> 1888.535 | EI15: =Bilanca!D75 -> 1532.155 | EJ15: =Bilanca!E75 -> 904.604 | EK15: =Bilanca!F75 -> 1495.616 | EL15: =Bilanca!G75 -> 909.624 | EM15: =Bilanca!H75 -> 1538.531 | EN15: =Bilanca!I75 -> 1540.781
AT16: Grad Rijeka | BA16: Trošak kamata | BB16: =RDG!C46+RDG!C48 -> 61.664 | BC16: =RDG!D46+RDG!D48 -> 70.2 | BD16: =RDG!E46+RDG!E48 -> 44.516 | BE16: =RDG!F46+RDG!F48 -> 54.483 | BF16: =RDG!G46+RDG!G48 -> 55.85 | BG16: =RDG!H46+RDG!H48 -> 55.744 | BH16: =RDG!I46+RDG!I48 -> 56.407 | BL16: X4 | BM16: =IFERROR('Altman Integral (A)'!C41/'Altman Integral (A)'!C39,) -> 0.3025936206 | BN16: =IFERROR('Altman Integral (A)'!D41/'Altman Integral (A)'!D39,) -> 0.2912596784 | BO16: =IFERROR('Altman Integral (A)'!E41/'Altman Integral (A)'!E39,) -> 0.2883541657 | BP16: =IFERROR('Altman Integral (A)'!F41/'Altman Integral (A)'!F39,) -> 0.1943856486 | BQ16: =IFERROR('Altman Integral (A)'!G41/'Altman Integral (A)'!G39,) -> 0.17837746 | BR16: =IFERROR('Altman Integral (A)'!H41/'Altman Integral (A)'!H39,) -> 0.1776834362 | BS16: =IFERROR('Altman Integral (A)'!I41/'Altman Integral (A)'!I39,) -> 0.1685897654 | BT16: 0.42 | CH16: Financijski i investicijski rashodi Δ | CI16: =(RDG!F45+RDG!F55+RDG!F56)-(RDG!E45+RDG!E55+RDG!E56) -> 14.204 | CK16: =IF(SUM(CI10:CI15)>=0,(IF(CI16>=0,SUM(CI10:CI15),(IF(ABS(SUM(CI10:CI15))>ABS(CI16),SUM(CI10:CI16),0)))),(IF(CI16<0,SUM(CI10:CI15),(IF(ABS(SUM(CI10:CI15))>ABS(CI16),SUM(CI10:CI16),0))))) -> -627.551 | CL16: =IF(SUM(CI10:CI15)>=0,(IF(CI16<0,(IF(ABS(CI16)>ABS(SUM(CI10:CI15)),SUM(CI10:CI15),ABS(CI16))),CI16)),(IF(CI16>0,(IF(ABS(CI16)>ABS(SUM(CI10:CI15)),SUM(CI10:CI16),0)),0))) -> 0 | CM16: =IF(SUM(CI10:CI15)<0,(IF(CI16<0,CI16,(IF(ABS(CI16)>ABS(SUM(CI10:CI15)),SUM(CI10:CI15),0-CI16)))),(IF(CI16<0,(IF(ABS(CI16)>ABS(SUM(CI10:CI15)),SUM(CI10:CI16),0)),0))) -> -14.204 | CN16: Financijski i investicijski rashodi Δ | CO16: 0 | CP16: -627.551 | CQ16: 0 | CR16: 0 | CS16: -14.204 | CT16: 0 | CU16: 0 | CX16: U milijunima kuna | EG16: Glavnica + dug. Obv | EH16: =Bilanca!C75+Bilanca!C103 -> 4948.326 | EI16: =Bilanca!D75+Bilanca!D103 -> 4310.637 | EJ16: =Bilanca!E75+Bilanca!E103 -> 3704.021 | EK16: =Bilanca!F75+Bilanca!F103 -> 4460.007 | EL16: =Bilanca!G75+Bilanca!G103 -> 3709.041 | EM16: =Bilanca!H75+Bilanca!H103 -> 4311.801 | EN16: =Bilanca!I75+Bilanca!I103 -> 4154.783
AT17: Grad Split | BB17: =Podloga!B34 -> 2021. ostvareno | BC17: =Podloga!C34 -> 2022. ostvareno | BD17: =Podloga!D34 -> 2023. procijenjeno | BE17: =Podloga!E34 -> 2023. planirano | BF17: =Podloga!F34 -> 2024. planirano | BG17: =Podloga!G34 -> 2025. planirano | BH17: =Podloga!H34 -> 2026. planirano | BL17: X5 | BM17: =IFERROR('Altman Integral (A)'!C40/'Altman Integral (A)'!C36,) -> 0.138382831 | BN17: =IFERROR('Altman Integral (A)'!D40/'Altman Integral (A)'!D36,) -> 0.1817915481 | BO17: =IFERROR('Altman Integral (A)'!E40/'Altman Integral (A)'!E36,) -> 0.2161624808 | BP17: =IFERROR('Altman Integral (A)'!F40/'Altman Integral (A)'!F36,) -> 0.1097449688 | BQ17: =IFERROR('Altman Integral (A)'!G40/'Altman Integral (A)'!G36,) -> 0.1688613923 | BR17: =IFERROR('Altman Integral (A)'!H40/'Altman Integral (A)'!H36,) -> 0.1715403232 | BS17: =IFERROR('Altman Integral (A)'!I40/'Altman Integral (A)'!I36,) -> 0.1663771944 | BT17: 0.998 | CH17: Procijenjena bruto dobit tekuće godine | CI17: =RDG!E59 -> -627.551 | CJ17: =CI17 -> -627.551 | CN17: Procijenjena bruto dobit tekuće godine | CO17: -627.551 | DN17: Analiza EBITDA (prethodne i tekuće godine) | EG17: Dug. Imov | EH17: =Bilanca!C5 -> 12119.412 | EI17: =Bilanca!D5 -> 12395.7699 | EJ17: =Bilanca!E5 -> 12232.602 | EK17: =Bilanca!F5 -> 18497.026 | EL17: =Bilanca!G5 -> 19752.51 | EM17: =Bilanca!H5 -> 20393.454 | EN17: =Bilanca!I5 -> 21444.778
AT18: Grad Trogir | BA18: Dug. materijalna | BB18: =Bilanca!C13 -> 12099.639 | BC18: =Bilanca!D13 -> 12131.2359 | BD18: =Bilanca!E13 -> 12007.45 | BE18: =Bilanca!F13 -> 18448.052 | BF18: =Bilanca!G13 -> 19542.2 | BG18: =Bilanca!H13 -> 20212.465 | BH18: =Bilanca!I13 -> 21256.65 | BL18: Gornja granica | BM18: 2.9 | BN18: 2.9 | BO18: 2.9 | BP18: 2.9 | BQ18: 2.9 | BR18: 2.9 | BS18: 2.9 | DN18: U tisućama kuna | DT18: U milijunima kuna | EG18: Stupanj pokrića I | EH18: =EH15/EH17 -> 0.1558272794 | EI18: =EI15/EI17 -> 0.1236030527 | EJ18: 0.07395025196 | EK18: 0.08085710643 | EL18: 0.04605105883 | EM18: 0.07544239441 | EN18: 0.07184877363
AT19: Grad Zadar | BA19: Dug. nematerijalna | BB19: =Bilanca!C6 -> 10.562 | BC19: =Bilanca!D6 -> 255.323 | BD19: =Bilanca!E6 -> 211.061 | BE19: =Bilanca!F6 -> 39.763 | BF19: =Bilanca!G6 -> 195.3 | BG19: =Bilanca!H6 -> 165.789 | BH19: =Bilanca!I6 -> 172.728 | BL19: Donja granica | BM19: 1.23 | BN19: 1.23 | BO19: 1.23 | BP19: 1.23 | BQ19: 1.23 | BR19: 1.23 | BS19: 1.23 | CG19: U milijunima kuna | CH19: Bruto dobit prethodne godine | CI19: =CI1/1000 -> -0.356379 | CJ19: =CJ1/1000 -> -0.356379 | CN19: =CN1 -> Bruto dobit prethodne godine | CO19: =CO1/1000 -> -0.356379 | CU19: 0 | CY19: Planirana EBITDA tekuće godine | CZ19: =CZ1/1000 -> 0.349065 | DA19: =DA1/1000 -> 0.349065 | DE19: =DE1 -> Planirana EBITDA tekuće godine | DF19: =DF1/1000 -> 0.349065 | DL19: 0 | DN19: Ostvarena EBITDA prethodne godine | DO19: =BC3 -> 17.653 | DP19: =DO19 -> 17.653 | DT19: Ostvarena EBITDA prethodne godine | DU19: =DO19/1000 -> 0.017653 | DV19: =DP19/1000 -> 0.017653 | EG19: Stupanj pokrića II | EH19: =EH16/EH17 -> 0.4082975313 | EI19: =EI16/EI17 -> 0.3477506468 | EJ19: 0.3027991101 | EK19: 0.2411202212 | EL19: 0.1877756802 | EM19: 0.2114306385 | EN19: 0.193743344
AT20: Grad Zagreb | BA20: Potraživanja | BB20: =Bilanca!C34+Bilanca!C49 -> 371.477 | BC20: =Bilanca!D34+Bilanca!D49 -> 281.245 | BD20: =Bilanca!E34+Bilanca!E49 -> 403.353 | BE20: =Bilanca!F34+Bilanca!F49 -> 272.907 | BF20: =Bilanca!G34+Bilanca!G49 -> 268.83 | BG20: =Bilanca!H34+Bilanca!H49 -> 309.908 | BH20: =Bilanca!I34+Bilanca!I49 -> 297.086 | CH20: Poslovni prihodi Δ | CI20: =CI2/1000 -> 0.353805 | CK20: =CK2/1000 -> -0.002574 | CL20: =CL2/1000 -> 0 | CM20: =CM2/1000 -> -0.353805 | CN20: =CN2 -> Poslovni prihodi Δ | CO20: =CO2/1000 -> 0 | CP20: -0.002574 | CQ20: 0 | CR20: 0 | CS20: -0.353805 | CT20: 0 | CU20: 0 | CY20: Prihodi od prodaje Δ | CZ20: =CZ2/1000 -> 0.444966 | DB20: =DB2/1000 -> 0.349065 | DC20: =DC2/1000 -> 0.444966 | DD20: =DD2/1000 -> 0 | DE20: =DE2 -> Prihodi od prodaje Δ | DF20: =DF2/1000 -> 0 | DG20: 0.349065 | DH20: 0.444966 | DI20: 0 | DJ20: 0 | DK20: 0 | DL20: 0 | DN20: Prihodi od prodaje Δ | DO20: =(RDG!E6+RDG!E7)-(RDG!D6+RDG!D7) -> 482.021 | DQ20: =IF(SUM(DO19)>=0,(IF(DO20>=0,SUM(DO19),(IF(ABS(SUM(DO19))>ABS(DO20),SUM(DO19:DO20),0)))),(IF(DO20<0,SUM(DO19),(IF(ABS(SUM(DO19))>ABS(DO20),SUM(DO19:DO20),0))))) -> 17.653 | DR20: =IF(SUM(DO19)>=0,(IF(DO20<0,(IF(ABS(DO20)>ABS(SUM(DO19)),SUM(DO19),ABS(DO20))),DO20)),(IF(DO20>0,(IF(ABS(DO20)>ABS(SUM(DO19)),SUM(DO19:DO20),0)),0))) -> 482.021 | DS20: =IF(SUM(DO19)<0,(IF(DO20<0,DO20,(IF(ABS(DO20)>ABS(SUM(DO19)),SUM(DO19),0-DO20)))),(IF(DO20<0,(IF(ABS(DO20)>ABS(SUM(DO19)),SUM(DO19:DO20),0)),0))) -> 0 | DT20: Prihodi od prodaje Δ | DU20: =DO20/1000 -> 0.482021 | DW20: =DQ20/1000 -> 0.017653 | DX20: =DR20/1000 -> 0.482021 | DY20: =DS20/1000 -> 0
AT21: Dubrovačko - neretvanska županija | BA21: Financijska imovina | BB21: =Bilanca!C23+Bilanca!C56+Bilanca!C39 -> 9.211 | BC21: =Bilanca!D23+Bilanca!D56+Bilanca!D39 -> 9.211 | BD21: =Bilanca!E23+Bilanca!E56+Bilanca!E39 -> 14.091 | BE21: =Bilanca!F23+Bilanca!F56+Bilanca!F39 -> 9.211 | BF21: =Bilanca!G23+Bilanca!G56+Bilanca!G39 -> 15.01 | BG21: =Bilanca!H23+Bilanca!H56+Bilanca!H39 -> 15.2 | BH21: =Bilanca!I23+Bilanca!I56+Bilanca!I39 -> 15.4 | CH21: Materijalni troškovi Δ | CI21: -0.309153 | CK21: =CK3/1000 -> -0.002574 | CL21: 0 | CM21: =CM3/1000 -> -0.309153 | CN21: Materijalni troškovi Δ | CO21: 0 | CP21: -0.002574 | CQ21: 0 | CR21: 0 | CS21: 0 | CT21: -0.309153 | CU21: 0 | CY21: Ostali prihodi Δ | CZ21: 0.227247 | DB21: 0.794031 | DC21: 0.227247 | DD21: =DD3/1000 -> 0 | DE21: Ostali prihodi Δ | DF21: 0 | DG21: 0.794031 | DH21: 0.227247 | DI21: 0 | DJ21: 0 | DK21: 0 | DL21: 0 | DN21: Ostali prihodi Δ | DO21: =(RDG!E57-RDG!E6-RDG!E7)-(RDG!D57-RDG!D6-RDG!D7) -> -128.299 | DQ21: =IF(SUM(DO19:DO20)>=0,(IF(DO21>=0,SUM(DO19:DO20),(IF(ABS(SUM(DO19:DO20))>ABS(DO21),SUM(DO19:DO21),0)))),(IF(DO21<0,SUM(DO19:DO20),(IF(ABS(SUM(DO19:DO20))>ABS(DO21),SUM(DO19:DO21),0))))) -> 371.375 | DR21: =IF(SUM(DO19:DO20)>=0,(IF(DO21<0,(IF(ABS(DO21)>ABS(SUM(DO19:DO20)),SUM(DO19:DO20),ABS(DO21))),DO21)),(IF(DO21>0,(IF(ABS(DO21)>ABS(SUM(DO19:DO20)),SUM(DO19:DO21),0)),0))) -> 128.299 | DS21: =IF(SUM(DO19:DO20)<0,(IF(DO21<0,DO21,(IF(ABS(DO21)>ABS(SUM(DO19:DO20)),SUM(DO19:DO20),0-DO21)))),(IF(DO21<0,(IF(ABS(DO21)>ABS(SUM(DO19:DO20)),SUM(DO19:DO21),0)),0))) -> 0 | DT21: Ostali prihodi Δ | DU21: -0.128299 | DW21: =DQ21/1000 -> 0.371375 | DX21: =DR21/1000 -> 0.128299 | DY21: 0
AT22: Istarska županija | BA22: Zalihe | BB22: =Bilanca!C41 -> 27.5958 | BC22: =Bilanca!D41 -> 33.2504 | BD22: =Bilanca!E41 -> 37.238 | BE22: =Bilanca!F41 -> 35.6436 | BF22: =Bilanca!G41 -> 36.499 | BG22: =Bilanca!H41 -> 39.551 | BH22: =Bilanca!I41 -> 40.991 | BL22: Altman b | CH22: Troškovi osoblja Δ | CI22: -0.096854 | CK22: -0.311727 | CL22: 0 | CM22: =CM4/1000 -> -0.096854 | CN22: Troškovi osoblja Δ | CO22: 0 | CP22: -0.311727 | CQ22: 0 | CR22: 0 | CS22: 0 | CT22: -0.096854 | CU22: 0 | CY22: Promjena vrijednosti zaliha Δ | CZ22: 0 | DB22: 1.021278 | DC22: 0 | DD22: =DD4/1000 -> 0 | DE22: Promjena vrijednosti zaliha Δ | DF22: 0 | DG22: 1.021278 | DH22: 0 | DI22: 0 | DJ22: 0 | DK22: 0 | DL22: 0 | DN22: Promjena vrijednosti zaliha Δ | DO22: =RDG!D12-RDG!E12 -> 0 | DQ22: =IF(SUM(DO19:DO21)>=0,(IF(DO22>=0,SUM(DO19:DO21),(IF(ABS(SUM(DO19:DO21))>ABS(DO22),SUM(DO19:DO22),0)))),(IF(DO22<0,SUM(DO19:DO21),(IF(ABS(SUM(DO19:DO21))>ABS(DO22),SUM(DO19:DO22),0))))) -> 371.375 | DR22: =IF(SUM(DO19:DO21)>=0,(IF(DO22<0,(IF(ABS(DO22)>ABS(SUM(DO19:DO21)),SUM(DO19:DO21),ABS(DO22))),DO22)),(IF(DO22>0,(IF(ABS(DO22)>ABS(SUM(DO20:DO21)),SUM(DO19:DO22),0)),0))) -> 0 | DS22: =IF(SUM(DO19:DO21)<0,(IF(DO22<0,DO22,(IF(ABS(DO22)>ABS(SUM(DO19:DO21)),SUM(DO19:DO21),0-DO22)))),(IF(DO22<0,(IF(ABS(DO22)>ABS(SUM(DO19:DO21)),SUM(DO19:DO22),0)),0))) -> 0 | DT22: Promjena vrijednosti zaliha Δ | DU22: 0 | DW22: 0.371375 | DX22: 0 | DY22: 0
AT23: Osječko - baranjska županija | BA23: Novac u banci i blagajni | BB23: =Bilanca!C66 -> 904.77 | BC23: =Bilanca!D66 -> 770.928 | BD23: =Bilanca!E66 -> 300.793 | BE23: =Bilanca!F66 -> 623.797 | BF23: =Bilanca!G66 -> 352.001 | BG23: =Bilanca!H66 -> 372 | BH23: =Bilanca!I66 -> 390.25 | BL23: X1 | BM23: ='Altman Integral (B)'!C35/'Altman Integral (B)'!C36 -> 0.09713313346 | BN23: ='Altman Integral (B)'!D35/'Altman Integral (B)'!D36 -> 0.08051389635 | BO23: ='Altman Integral (B)'!E35/'Altman Integral (B)'!E36 -> 0.05714388778 | BP23: ='Altman Integral (B)'!F35/'Altman Integral (B)'!F36 -> 0.04798649813 | BQ23: ='Altman Integral (B)'!G35/'Altman Integral (B)'!G36 -> 0.03220652391 | BR23: ='Altman Integral (B)'!H35/'Altman Integral (B)'!H36 -> 0.03416822035 | BS23: ='Altman Integral (B)'!I35/'Altman Integral (B)'!I36 -> 0.0328473166 | BT23: 6.56 | CH23: Ostali poslovni rashodi Δ | CI23: -0.243561 | CK23: -0.408581 | CL23: 0 | CM23: =CM5/1000 -> -0.243561 | CN23: Ostali poslovni rashodi Δ | CO23: 0 | CP23: -0.408581 | CQ23: 0 | CR23: 0 | CS23: 0 | CT23: -0.243561 | CU23: 0 | CY23: Materijalni troškovi Δ | CZ23: -1.064785 | DB23: 0 | DC23: 1.021278 | DD23: =DD5/1000 -> -0.043507 | DE23: Materijalni troškovi Δ | DF23: 0 | DG23: 0 | DH23: 0 | DI23: 1.021278 | DJ23: 0 | DK23: -0.043507 | DL23: 0 | DN23: Materijalni troškovi Δ | DO23: =RDG!D13-RDG!E13 -> -309.153 | DQ23: =IF(SUM(DO19:DO22)>=0,(IF(DO23>=0,SUM(DO19:DO22),(IF(ABS(SUM(DO19:DO22))>ABS(DO23),SUM(DO19:DO23),0)))),(IF(DO23<0,SUM(DO19:DO22),(IF(ABS(SUM(DO19:DO22))>ABS(DO23),SUM(DO19:DO23),0))))) -> 62.222 | DR23: =IF(SUM(DO19:DO22)>=0,(IF(DO23<0,(IF(ABS(DO23)>ABS(SUM(DO19:DO22)),SUM(DO19:DO22),ABS(DO23))),DO23)),(IF(DO23>0,(IF(ABS(DO23)>ABS(SUM(DO19:DO22)),SUM(DO19:DO23),0)),0))) -> 309.153 | DS23: =IF(SUM(DO19:DO22)<0,(IF(DO23<0,DO23,(IF(ABS(DO23)>ABS(SUM(DO19:DO22)),SUM(DO19:DO22),0-DO23)))),(IF(DO23<0,(IF(ABS(DO23)>ABS(SUM(DO19:DO22)),SUM(DO19:DO23),0)),0))) -> 0 | DT23: Materijalni troškovi Δ | DU23: -0.309153 | DW23: 0.062222 | DX23: 0.309153 | DY23: 0
AT24: Primorsko-goranska županija | BA24: Ostalo | BB24: =Bilanca!C4+Bilanca!C67 -> 0 | BC24: =Bilanca!D4+Bilanca!D67 -> 0 | BD24: =Bilanca!E4+Bilanca!E67 -> 0 | BE24: =Bilanca!F4+Bilanca!F67 -> 0 | BF24: =Bilanca!G4+Bilanca!G67 -> 0 | BG24: =Bilanca!H4+Bilanca!H67 -> 0 | BH24: =Bilanca!I4+Bilanca!I67 -> 0 | BL24: X2 | BM24: ='Altman Integral (B)'!C37/'Altman Integral (B)'!C36 -> -0.1254882683 | BN24: ='Altman Integral (B)'!D37/'Altman Integral (B)'!D36 -> -0.1179319935 | BO24: ='Altman Integral (B)'!E37/'Altman Integral (B)'!E36 -> -0.150011261 | BP24: ='Altman Integral (B)'!F37/'Altman Integral (B)'!F36 -> -0.1023210033 | BQ24: ='Altman Integral (B)'!G37/'Altman Integral (B)'!G36 -> -0.1261055942 | BR24: ='Altman Integral (B)'!H37/'Altman Integral (B)'!H36 -> -0.09217390571 | BS24: ='Altman Integral (B)'!I37/'Altman Integral (B)'!I36 -> -0.08777498686 | BT24: 3.26 | CH24: Financijski i investicijski prihodi Δ | CI24: -8.3e-05 | CK24: -0.652142 | CL24: 0 | CM24: =CM6/1000 -> -8.3e-05 | CN24: Financijski i investicijski prihodi Δ | CO24: 0 | CP24: -0.652142 | CQ24: 0 | CR24: 0 | CS24: 0 | CT24: -8.3e-05 | CU24: 0 | CY24: Troškovi osoblja Δ | CZ24: 0.03575 | DB24: -0.007757 | DC24: 0 | DD24: =DD6/1000 -> -0.03575 | DE24: Troškovi osoblja Δ | DF24: 0 | DG24: -0.007757 | DH24: 0 | DI24: 0 | DJ24: -0.03575 | DK24: 0 | DL24: 0 | DN24: Troškovi osoblja Δ | DO24: =RDG!D17-RDG!E17 -> -96.854 | DQ24: =IF(SUM(DO19:DO23)>=0,(IF(DO24>=0,SUM(DO19:DO23),(IF(ABS(SUM(DO19:DO23))>ABS(DO24),SUM(DO19:DO24),0)))),(IF(DO24<0,SUM(DO19:DO23),(IF(ABS(SUM(DO19:DO23))>ABS(DO24),SUM(DO19:DO24),0))))) -> 0 | DR24: =IF(SUM(DO19:DO23)>=0,(IF(DO24<0,(IF(ABS(DO24)>ABS(SUM(DO19:DO23)),SUM(DO19:DO23),ABS(DO24))),DO24)),(IF(DO24>0,(IF(ABS(DO24)>ABS(SUM(DO19:DO23)),SUM(DO19:DO24),0)),0))) -> 62.222 | DS24: =IF(SUM(DO19:DO23)<0,(IF(DO24<0,DO24,(IF(ABS(DO24)>ABS(SUM(DO19:DO23)),SUM(DO19:DO23),0-DO24)))),(IF(DO24<0,(IF(ABS(DO24)>ABS(SUM(DO19:DO23)),SUM(DO19:DO24),0)),0))) -> -34.632 | DT24: Troškovi osoblja Δ | DU24: -0.096854 | DW24: 0 | DX24: 0.062222 | DY24: -0.034632
AT25: Splitsko-dalmatinska županija | BA25: Dug. materijalna / dug. izvori financiranja | BB25: =Bilanca!C13/(Bilanca!C75+Bilanca!C103) -> 2.445198437 | BC25: =Bilanca!D13/(Bilanca!D75+Bilanca!D103) -> 2.814255967 | BD25: =Bilanca!E13/(Bilanca!E75+Bilanca!E103) -> 3.241733781 | BE25: =Bilanca!F13/(Bilanca!F75+Bilanca!F103) -> 4.136328037 | BF25: =Bilanca!G13/(Bilanca!G75+Bilanca!G103) -> 5.268801289 | BG25: =Bilanca!H13/(Bilanca!H75+Bilanca!H103) -> 4.687708222 | BH25: =Bilanca!I13/(Bilanca!I75+Bilanca!I103) -> 5.116187777 | BL25: X3 | BM25: ='Altman Integral (B)'!C38/'Altman Integral (B)'!C36 -> 0.01164121536 | BN25: ='Altman Integral (B)'!D38/'Altman Integral (B)'!D36 -> -0.02122801696 | BO25: ='Altman Integral (B)'!E38/'Altman Integral (B)'!E36 -> -0.04493877209 | BP25: ='Altman Integral (B)'!F38/'Altman Integral (B)'!F36 -> 0.003074159838 | BQ25: ='Altman Integral (B)'!G38/'Altman Integral (B)'!G36 -> 0.002982384967 | BR25: ='Altman Integral (B)'!H38/'Altman Integral (B)'!H36 -> 0.002941996493 | BS25: ='Altman Integral (B)'!I38/'Altman Integral (B)'!I36 -> 0.002932967665 | BT25: 6.72 | CH25: Financijski i investicijski rashodi Δ | CI25: 0.024674 | CK25: -0.627551 | CL25: 0 | CM25: =CM7/1000 -> -0.024674 | CN25: Financijski i investicijski rashodi Δ | CO25: 0 | CP25: -0.627551 | CQ25: 0 | CR25: 0 | CS25: -0.024674 | CT25: 0 | CU25: 0 | CY25: Vrijednosna usklađenja Δ | CZ25: 0 | DB25: -0.007757 | DC25: 0 | DD25: =DD7/1000 -> 0 | DE25: Vrijednosna usklađenja Δ | DF25: 0 | DG25: -0.007757 | DH25: 0 | DI25: 0 | DJ25: 0 | DK25: 0 | DL25: 0 | DN25: Vrijednosna usklađenja Δ | DO25: =RDG!D23-RDG!E23 -> 0 | DQ25: =IF(SUM(DO19:DO24)>=0,(IF(DO25>=0,SUM(DO19:DO24),(IF(ABS(SUM(DO19:DO24))>ABS(DO25),SUM(DO19:DO25),0)))),(IF(DO25<0,SUM(DO19:DO24),(IF(ABS(SUM(DO19:DO24))>ABS(DO25),SUM(DO19:DO25),0))))) -> -34.632 | DR25: =IF(SUM(DO19:DO24)>=0,(IF(DO25<0,(IF(ABS(DO25)>ABS(SUM(DO19:DO24)),SUM(DO19:DO24),ABS(DO25))),DO25)),(IF(DO25>0,(IF(ABS(DO25)>ABS(SUM(DO19:DO24)),SUM(DO19:DO25),0)),0))) -> 0 | DS25: =IF(SUM(DO19:DO24)<0,(IF(DO25<0,DO25,(IF(ABS(DO25)>ABS(SUM(DO19:DO24)),SUM(DO19:DO24),0-DO25)))),(IF(DO25<0,(IF(ABS(DO25)>ABS(SUM(DO19:DO24)),SUM(DO19:DO25),0)),0))) -> 0 | DT25: Vrijednosna usklađenja Δ | DU25: 0 | DW25: -0.034632 | DX25: 0 | DY25: 0
AT26: Zadarska županija | BA26: Ukupno: | BB26: =SUM(BB18:BB24) -> 13423.2548 | BC26: =SUM(BC18:BC24) -> 13481.1933 | BD26: 12973.986 | BE26: 19429.3736 | BF26: 20409.84 | BG26: 21114.913 | BH26: 22173.105 | BL26: X4 | BM26: ='Altman Integral (B)'!C41/'Altman Integral (B)'!C39 -> 0 | BN26: ='Altman Integral (B)'!D41/'Altman Integral (B)'!D39 -> 0 | BO26: ='Altman Integral (B)'!E41/'Altman Integral (B)'!E39 -> 0 | BP26: ='Altman Integral (B)'!F41/'Altman Integral (B)'!F39 -> 0 | BQ26: ='Altman Integral (B)'!G41/'Altman Integral (B)'!G39 -> 0 | BR26: ='Altman Integral (B)'!H41/'Altman Integral (B)'!H39 -> 0 | BS26: ='Altman Integral (B)'!I41/'Altman Integral (B)'!I39 -> 0 | BT26: 1.05 | CH26: Procijenjena bruto dobit tekuće godine | CI26: -0.627551 | CJ26: =CJ8/1000 -> -0.627551 | CN26: Procijenjena bruto dobit tekuće godine | CO26: -0.627551 | CU26: 0 | CY26: Rezerviranja Δ | CZ26: -0.00235 | DB26: -0.007757 | DC26: 0 | DD26: =DD8/1000 -> -0.00235 | DE26: Rezerviranja Δ | DF26: 0 | DG26: -0.007757 | DH26: 0 | DI26: 0 | DJ26: 0 | DK26: -0.00235 | DL26: 0 | DN26: Rezerviranja Δ | DO26: =RDG!D26-RDG!E26 -> 0 | DQ26: =IF(SUM(DO19:DO25)>=0,(IF(DO26>=0,SUM(DO19:DO25),(IF(ABS(SUM(DO19:DO25))>ABS(DO26),SUM(DO19:DO26),0)))),(IF(DO26<0,SUM(DO19:DO25),(IF(ABS(SUM(DO19:DO25))>ABS(DO26),SUM(DO19:DO26),0))))) -> -34.632 | DR26: =IF(SUM(DO19:DO25)>=0,(IF(DO26<0,(IF(ABS(DO26)>ABS(SUM(DO19:DO25)),SUM(DO19:DO25),ABS(DO26))),DO26)),(IF(DO26>0,(IF(ABS(DO26)>ABS(SUM(DO19:DO25)),SUM(DO19:DO26),0)),0))) -> 0 | DS26: =IF(SUM(DO19:DO25)<0,(IF(DO26<0,DO26,(IF(ABS(DO26)>ABS(SUM(DO19:DO25)),SUM(DO19:DO25),0-DO26)))),(IF(DO26<0,(IF(ABS(DO26)>ABS(SUM(DO19:DO25)),SUM(DO19:DO26),0)),0))) -> 0 | DT26: Rezerviranja Δ | DU26: 0 | DW26: -0.034632 | DX26: 0 | DY26: 0
AT27: općina Zemunik Donji | BB27: =Podloga!B34 -> 2021. ostvareno | BC27: =Podloga!C34 -> 2022. ostvareno | BD27: =Podloga!D34 -> 2023. procijenjeno | BE27: =Podloga!E34 -> 2023. planirano | BF27: =Podloga!F34 -> 2024. planirano | BG27: =Podloga!G34 -> 2025. planirano | BH27: =Podloga!H34 -> 2026. planirano | BL27: Gornja granica | BM27: 2.6 | BN27: 2.6 | BO27: 2.6 | BP27: 2.6 | BQ27: 2.6 | BR27: 2.6 | BS27: 2.6 | CY27: Ostali poslovni rashodi Δ | CZ27: =CZ9/1000 -> -0.205803 | DB27: -0.010107 | DC27: 0 | DD27: =DD9/1000 -> -0.205803 | DE27: Ostali poslovni rashodi Δ | DF27: 0 | DG27: -0.010107 | DH27: 0 | DI27: 0 | DJ27: 0 | DK27: -0.205803 | DL27: 0 | DN27: Ostali poslovni rashodi Δ | DO27: =(RDG!D22+RDG!D33+RDG!D55+RDG!D56)-(RDG!E22+RDG!E33+RDG!E55+RDG!E56) -> -176.031 | DQ27: =IF(SUM(DO19:DO26)>=0,(IF(DO27>=0,SUM(DO19:DO26),(IF(ABS(SUM(DO19:DO26))>ABS(DO27),SUM(DO19:DO27),0)))),(IF(DO27<0,SUM(DO19:DO26),(IF(ABS(SUM(DO19:DO26))>ABS(DO27),SUM(DO19:DO27),0))))) -> -34.632 | DR27: =IF(SUM(DO19:DO26)>=0,(IF(DO27<0,(IF(ABS(DO27)>ABS(SUM(DO19:DO26)),SUM(DO19:DO26),ABS(DO27))),DO27)),(IF(DO27>0,(IF(ABS(DO27)>ABS(SUM(DO19:DO26)),SUM(DO19:DO27),0)),0))) -> 0 | DS27: =IF(SUM(DO19:DO26)<0,(IF(DO27<0,DO27,(IF(ABS(DO27)>ABS(SUM(DO19:DO26)),SUM(DO19:DO26),0-DO27)))),(IF(DO27<0,(IF(ABS(DO27)>ABS(SUM(DO19:DO26)),SUM(DO19:DO27),0)),0))) -> -176.031 | DT27: Ostali poslovni rashodi Δ | DU27: -0.176031 | DW27: -0.034632 | DX27: 0 | DY27: -0.176031
BA28: Neto radni kapital | BB28: =Bilanca!C40-Bilanca!C115 -> -7131.6482 | BC28: =Bilanca!D40-Bilanca!D115 -> -8078.6986 | BD28: =Bilanca!E40-Bilanca!E115 -> -8522.139 | BE28: =Bilanca!F40-Bilanca!F115 -> -13997.5814 | BF28: =Bilanca!G40-Bilanca!G115 -> -16043.469 | BG28: =Bilanca!H40-Bilanca!H115 -> -16081.654 | BH28: =Bilanca!I40-Bilanca!I115 -> -17289.997 | BL28: Donja granica | BM28: 1.1 | BN28: 1.1 | BO28: 1.1 | BP28: 1.1 | BQ28: 1.1 | BR28: 1.1 | BS28: 1.1 | CH28: Planirana bruto dobit tekuće godine | CI28: =CI10/1000 -> 0.005246 | CJ28: =CJ10/1000 -> 0.005246 | CN28: =CN10 -> Planirana bruto dobit tekuće godine | CO28: =CO10/1000 -> 0.005246 | CU28: 0 | CY28: Financijski rashodi (bez kamata) Δ | CZ28: 0.004237 | DB28: -0.211673 | DC28: 0 | DD28: =DD10/1000 -> -0.004237 | DE28: Financijski rashodi (bez kamata) Δ | DF28: 0 | DG28: -0.211673 | DH28: 0 | DI28: 0 | DJ28: -0.004237 | DK28: 0 | DL28: 0 | DN28: Financijski rashodi (bez kamata) Δ | DO28: =(RDG!D45-RDG!D46-RDG!D48)-(RDG!E45-RDG!E46-RDG!E48) -> -1.01 | DQ28: =IF(SUM(DO19:DO27)>=0,(IF(DO28>=0,SUM(DO19:DO27),(IF(ABS(SUM(DO19:DO27))>ABS(DO28),SUM(DO19:DO28),0)))),(IF(DO28<0,SUM(DO19:DO27),(IF(ABS(SUM(DO19:DO27))>ABS(DO28),SUM(DO19:DO28),0))))) -> -210.663 | DR28: =IF(SUM(DO19:DO27)>=0,(IF(DO28<0,(IF(ABS(DO28)>ABS(SUM(DO19:DO27)),SUM(DO19:DO27),ABS(DO28))),DO28)),(IF(DO28>0,(IF(ABS(DO28)>ABS(SUM(DO19:DO27)),SUM(DO19:DO28),0)),0))) -> 0 | DS28: =IF(SUM(DO19:DO27)<0,(IF(DO28<0,DO28,(IF(ABS(DO28)>ABS(SUM(DO19:DO27)),SUM(DO19:DO27),0-DO28)))),(IF(DO28<0,(IF(ABS(DO28)>ABS(SUM(DO19:DO27)),SUM(DO19:DO28),0)),0))) -> -1.01 | DT28: Financijski rashodi (bez kamata) Δ | DU28: -0.00101 | DW28: -0.210663 | DX28: 0 | DY28: -0.00101
BA29: Koeficijent tekuće likvidnosti | BB29: =Bilanca!C40/Bilanca!C115 -> 0.1545663199 | BC29: =Bilanca!D40/Bilanca!D115 -> 0.1184427051 | BD29: =Bilanca!E40/Bilanca!E115 -> 0.08003261826 | BE29: =Bilanca!F40/Bilanca!F115 -> 0.06244822732 | BF29: =Bilanca!G40/Bilanca!G115 -> 0.03935919473 | BG29: =Bilanca!H40/Bilanca!H115 -> 0.04293603215 | BH29: =Bilanca!I40/Bilanca!I115 -> 0.04042146206 | CH29: Poslovni prihodi Δ | CI29: =CI11/1000 -> 0.672145 | CK29: =CK11/1000 -> 0.005246 | CL29: 0.672145 | CM29: =CM11/1000 -> 0 | CN29: =CN11 -> Poslovni prihodi Δ | CO29: =CO11/1000 -> 0 | CP29: 0.005246 | CQ29: 0.672145 | CR29: 0 | CS29: 0 | CT29: 0 | CU29: 0 | CY29: Procijenjena EBITDA tekuće godine | CZ29: =CZ11/1000 -> -0.211673 | DA29: =DA11/1000 -> -0.211673 | DE29: Procijenjena EBITDA tekuće godine | DF29: -0.211673 | DL29: 0 | DN29: Procijenjena EBITDA tekuće godine | DO29: =BD3 -> -211.673 | DP29: =DO29 -> -211.673 | DT29: Procijenjena EBITDA tekuće godine | DU29: -0.211673 | DV29: =DP29/1000 -> -0.211673
BA30: Koeficijent ubrzane likvidnosti | BB30: =(Bilanca!C40-Bilanca!C41)/Bilanca!C115 -> 0.1512949276 | BC30: =(Bilanca!D40-Bilanca!D41)/Bilanca!D115 -> 0.1148143816 | BD30: =(Bilanca!E40-Bilanca!E41)/Bilanca!E115 -> 0.07601276534 | BE30: =(Bilanca!F40-Bilanca!F41)/Bilanca!F115 -> 0.06006083485 | BF30: =(Bilanca!G40-Bilanca!G41)/Bilanca!G115 -> 0.03717373043 | BG30: =(Bilanca!H40-Bilanca!H41)/Bilanca!H115 -> 0.04058224211 | BH30: =(Bilanca!I40-Bilanca!I41)/Bilanca!I115 -> 0.0381465002 | CH30: Materijalni troškovi Δ | CI30: -1.064785 | CK30: 0 | CL30: 0.677391 | CM30: =CM12/1000 -> -0.387394 | CN30: Materijalni troškovi Δ | CO30: 0 | CP30: 0 | CQ30: 0 | CR30: 0.677391 | CS30: 0 | CT30: -0.387394 | CU30: 0 | DQ30: =DT19 -> Ostvarena EBITDA prethodne godine | DR30: =DU19 -> 0.017653 | DS30: =DV19 -> 0.017653 | DY30: 0
BB31: =Podloga!B34 -> 2021. ostvareno | BC31: =Podloga!C34 -> 2022. ostvareno | BD31: =Podloga!D34 -> 2023. procijenjeno | BE31: =Podloga!E34 -> 2023. planirano | BF31: =Podloga!F34 -> 2024. planirano | BG31: =Podloga!G34 -> 2025. planirano | BH31: =Podloga!H34 -> 2026. planirano | CH31: Troškovi osoblja Δ | CI31: 0.03575 | CK31: -0.351644 | CL31: 0 | CM31: =CM13/1000 -> -0.03575 | CN31: Troškovi osoblja Δ | CO31: 0 | CP31: -0.351644 | CQ31: 0 | CR31: 0 | CS31: -0.03575 | CT31: 0 | CU31: 0 | DQ31: =DT20 -> Prihodi od prodaje Δ | DR31: 0.482021 | DT31: =DW20 -> 0.017653 | DU31: =IF(DU20>=0,DX20,0) -> 0.482021 | DV31: =IF(DU20<0,DX20,0) -> 0 | DW31: =IF(DU20>=0,DY20,0) -> 0 | DX31: =IF(DU20<0,DY20,0) -> 0 | DY31: 0
BA32: Kapital/imovina | BB32: =Bilanca!C75/Bilanca!C68 -> 0.1406912875 | BC32: =Bilanca!D75/Bilanca!D68 -> 0.1136512893 | BD32: =Bilanca!E75/Bilanca!E68 -> 0.06972444706 | BE32: =Bilanca!F75/Bilanca!F68 -> 0.07697705705 | BF32: =Bilanca!G75/Bilanca!G68 -> 0.0445679143 | BG32: =Bilanca!H75/Bilanca!H68 -> 0.07286466205 | BH32: =Bilanca!I75/Bilanca!I68 -> 0.06948873421 | CH32: Ostali poslovni rashodi Δ | CI32: -0.290179 | CK32: -0.351644 | CL32: 0 | CM32: =CM14/1000 -> -0.290179 | CN32: Ostali poslovni rashodi Δ | CO32: 0 | CP32: -0.351644 | CQ32: 0 | CR32: 0 | CS32: 0 | CT32: -0.290179 | CU32: 0 | DQ32: Ostali prihodi Δ | DR32: -0.128299 | DT32: 0.371375 | DU32: 0 | DV32: 0.128299 | DW32: 0 | DX32: 0 | DY32: 0
BA33: Kapacitet zaduženja na 5 godina | BB33: =BB3*5 -> 2083.42 | BC33: =BC3*5 -> 88.265 | BD33: -1058.365 | BE33: 1745.325 | BF33: 2429.35 | BG33: 2485.6 | BH33: 2525.165 | CH33: Financijski i investicijski prihodi Δ | CI33: 6.8e-05 | CK33: -0.641755 | CL33: 0 | CM33: =CM15/1000 -> -6.8e-05 | CN33: Financijski i investicijski prihodi Δ | CO33: 0 | CP33: -0.641755 | CQ33: 0 | CR33: 0 | CS33: -6.8e-05 | CT33: 0 | CU33: 0 | DQ33: Promjena vrijednosti zaliha Δ | DR33: 0 | DT33: 0.371375 | DU33: 0 | DV33: 0 | DW33: 0 | DX33: 0 | DY33: 0
BA34: Odnos duga i EBITDA | BB34: =BB10/BB3 -> 27.58752916 | BC34: =BC10/BC3 -> 676.5197983 | BD34: -56.98856255 | BE34: 51.26357555 | BF34: 40.13463684 | BG34: 39.37959245 | BH34: 40.85342146 | CH34: Financijski i investicijski rashodi Δ | CI34: 0.014204 | CK34: -0.627551 | CL34: 0 | CM34: =CM16/1000 -> -0.014204 | CN34: Financijski i investicijski rashodi Δ | CO34: 0 | CP34: -0.627551 | CQ34: 0 | CR34: 0 | CS34: -0.014204 | CT34: 0 | CU34: 0 | DQ34: Materijalni troškovi Δ | DR34: -0.309153 | DT34: 0.062222 | DU34: 0 | DV34: 0.309153 | DW34: 0 | DX34: 0 | DY34: 0
BB35: =Podloga!B34 -> 2021. ostvareno | BC35: =Podloga!C34 -> 2022. ostvareno | BD35: =Podloga!D34 -> 2023. procijenjeno | BE35: =Podloga!E34 -> 2023. planirano | BF35: =Podloga!F34 -> 2024. planirano | BG35: =Podloga!G34 -> 2025. planirano | BH35: =Podloga!H34 -> 2026. planirano | CH35: Procijenjena bruto dobit tekuće godine | CI35: -0.627551 | CJ35: =CJ17/1000 -> -0.627551 | CN35: Procijenjena bruto dobit tekuće godine | CO35: -0.627551 | CU35: 0 | DQ35: Troškovi osoblja Δ | DR35: -0.096854 | DT35: 0 | DU35: 0 | DV35: 0.062222 | DW35: 0 | DX35: -0.034632 | DY35: 0
BA36: Dani vezivanja zaliha | BB36: =365/BB37 -> 19.86660289 | BC36: 18.49899628 | BD36: 11.94282817 | BE36: 18.77029109 | BF36: 10.43323487 | BG36: 9.906015063 | BH36: 9.484440897 | DQ36: Vrijednosna usklađenja Δ | DR36: 0 | DT36: -0.034632 | DU36: 0 | DV36: 0 | DW36: 0 | DX36: 0 | DY36: 0
BA37: Koeficijent obrtaja zaliha | BB37: =(RDG!C6+RDG!C7)/Bilanca!C41 -> 18.3725422 | BC37: =(RDG!D6+RDG!D7)/Bilanca!D41 -> 19.73080023 | BD37: =(RDG!E6+RDG!E7)/Bilanca!E41 -> 30.5622751 | BE37: =(RDG!F6+RDG!F7)/Bilanca!F41 -> 19.44562278 | BF37: =(RDG!G6+RDG!G7)/Bilanca!G41 -> 34.98435574 | BG37: =(RDG!H6+RDG!H7)/Bilanca!H41 -> 36.84629971 | BH37: =(RDG!I6+RDG!I7)/Bilanca!I41 -> 38.48408187 | DQ37: Rezerviranja Δ | DR37: 0 | DT37: -0.034632 | DU37: 0 | DV37: 0 | DW37: 0 | DX37: 0 | DY37: 0
BA38: Dugoročne obveze | BB38: =Bilanca!C103 -> 3059.791 | BC38: =Bilanca!D103 -> 2778.482 | BD38: =Bilanca!E103 -> 2799.417 | BE38: =Bilanca!F103 -> 2964.391 | BF38: =Bilanca!G103 -> 2799.417 | BG38: =Bilanca!H103 -> 2773.27 | BH38: =Bilanca!I103 -> 2614.002 | DQ38: Ostali poslovni rashodi Δ | DR38: -0.176031 | DT38: -0.034632 | DU38: 0 | DV38: 0 | DW38: 0 | DX38: -0.176031 | DY38: 0
BB39: =Podloga!B34 -> 2021. ostvareno | BC39: =Podloga!C34 -> 2022. ostvareno | BD39: =Podloga!D34 -> 2023. procijenjeno | BE39: =Podloga!E34 -> 2023. planirano | BF39: =Podloga!F34 -> 2024. planirano | BG39: =Podloga!G34 -> 2025. planirano | BH39: =Podloga!H34 -> 2026. planirano | DQ39: Financijski rashodi (bez kamata) Δ | DR39: -0.00101 | DT39: -0.210663 | DU39: 0 | DV39: 0 | DW39: 0 | DX39: -0.00101 | DY39: 0
BA40: Trajanje naplate potraživanja | BB40: =365/BB41 -> 65.74038718 | BC40: 64.66002954 | BD40: 59.92966211 | BE40: 50.86845993 | BF40: 29.59232325 | BG40: 26.42747793 | BH40: 24.62608899 | DQ40: Procijenjena EBITDA tekuće godine | DR40: -0.211673 | DS40: =DV29 -> -0.211673 | DY40: 0
BA41: Koeficijent obrtaja potraživanja | BB41: =(RDG!C6+RDG!C7)/(Bilanca!C52) -> 5.552142536 | BC41: =(RDG!D6+RDG!D7)/(Bilanca!D52) -> 5.644909268 | BD41: =(RDG!E6+RDG!E7)/(Bilanca!E52) -> 6.090473183 | BE41: =(RDG!F6+RDG!F7)/(Bilanca!F52) -> 7.175369581 | BF41: =(RDG!G6+RDG!G7)/(Bilanca!G52) -> 12.33427997 | BG41: =(RDG!H6+RDG!H7)/(Bilanca!H52) -> 13.81138227 | BH41: =(RDG!I6+RDG!I7)/(Bilanca!I52) -> 14.82167957
BB52: =Podloga!B34 -> 2021. ostvareno | BC52: =Podloga!C34 -> 2022. ostvareno | BD52: =Podloga!D34 -> 2023. procijenjeno | BE52: =Podloga!E34 -> 2023. planirano | BF52: =Podloga!F34 -> 2024. planirano | BG52: =Podloga!G34 -> 2025. planirano | BH52: =Podloga!H34 -> 2026. planirano
BA53: Poslovne akt. | BB53: =IF(Podloga!$B$17="Direktna",'NT dir.'!C18,'NT indir.'!C26) -> 529.237 | BC53: =IF(Podloga!$B$17="Direktna",'NT dir.'!D18,'NT indir.'!D26) -> 498.259 | BD53: =IF(Podloga!$B$17="Direktna",'NT dir.'!E18,'NT indir.'!E26) -> -189.859 | BE53: =IF(Podloga!$B$17="Direktna",'NT dir.'!F18,'NT indir.'!F26) -> 6251.951 | BF53: =IF(Podloga!$B$17="Direktna",'NT dir.'!G18,'NT indir.'!G26) -> 50.687 | BG53: =IF(Podloga!$B$17="Direktna",'NT dir.'!H18,'NT indir.'!H26) -> 19.439 | BH53: =IF(Podloga!$B$17="Direktna",'NT dir.'!I18,'NT indir.'!I26) -> 17.643
BA54: Investicijske akt. | BB54: =IF(Podloga!$B$17="Direktna",'NT dir.'!C33,'NT indir.'!C41) -> -347.775 | BC54: =IF(Podloga!$B$17="Direktna",'NT dir.'!D33,'NT indir.'!D41) -> -541.554 | BD54: =IF(Podloga!$B$17="Direktna",'NT dir.'!E33,'NT indir.'!E41) -> -189.729 | BE54: =IF(Podloga!$B$17="Direktna",'NT dir.'!F33,'NT indir.'!F41) -> -6226.909 | BF54: =IF(Podloga!$B$17="Direktna",'NT dir.'!G33,'NT indir.'!G41) -> 0.52 | BG54: =IF(Podloga!$B$17="Direktna",'NT dir.'!H33,'NT indir.'!H41) -> 0.564 | BH54: =IF(Podloga!$B$17="Direktna",'NT dir.'!I33,'NT indir.'!I41) -> 0.597
BA55: Financijske akt. | BB55: =IF(Podloga!$B$17="Direktna",'NT dir.'!C46+'NT dir.'!C47,'NT indir.'!C54+'NT indir.'!C55) -> 0 | BC55: =IF(Podloga!$B$17="Direktna",'NT dir.'!D46+'NT dir.'!D47,'NT indir.'!D54+'NT indir.'!D55) -> -90.547 | BD55: =IF(Podloga!$B$17="Direktna",'NT dir.'!E46+'NT dir.'!E47,'NT indir.'!E54+'NT indir.'!E55) -> -90.547 | BE55: =IF(Podloga!$B$17="Direktna",'NT dir.'!F46+'NT dir.'!F47,'NT indir.'!F54+'NT indir.'!F55) -> 0 | BF55: =IF(Podloga!$B$17="Direktna",'NT dir.'!G46+'NT dir.'!G47,'NT indir.'!G54+'NT indir.'!G55) -> 0 | BG55: =IF(Podloga!$B$17="Direktna",'NT dir.'!H46+'NT dir.'!H47,'NT indir.'!H54+'NT indir.'!H55) -> 0 | BH55: =IF(Podloga!$B$17="Direktna",'NT dir.'!I46+'NT dir.'!I47,'NT indir.'!I54+'NT indir.'!I55) -> 0
BA56: Ukupno novč. tokovi | BB56: =IF(Podloga!$B$17="Direktna",'NT dir.'!C48,'NT indir.'!C56) -> 181.462 | BC56: =IF(Podloga!$B$17="Direktna",'NT dir.'!D48,'NT indir.'!D56) -> -133.842 | BD56: =IF(Podloga!$B$17="Direktna",'NT dir.'!E48,'NT indir.'!E56) -> -470.135 | BE56: =IF(Podloga!$B$17="Direktna",'NT dir.'!F48,'NT indir.'!F56) -> 25.042 | BF56: =IF(Podloga!$B$17="Direktna",'NT dir.'!G48,'NT indir.'!G56) -> 51.207 | BG56: =IF(Podloga!$B$17="Direktna",'NT dir.'!H48,'NT indir.'!H56) -> 20.003 | BH56: =IF(Podloga!$B$17="Direktna",'NT dir.'!I48,'NT indir.'!I56) -> 18.25
BB59: =Podloga!B34 -> 2021. ostvareno | BC59: =Podloga!C34 -> 2022. ostvareno | BD59: =Podloga!D34 -> 2023. procijenjeno | BE59: =Podloga!E34 -> 2023. planirano | BF59: =Podloga!F34 -> 2024. planirano | BG59: =Podloga!G34 -> 2025. planirano | BH59: =Podloga!H34 -> 2026. planirano
BA60: Ukupni prihodi | BB60: =RDG!C57 -> 1857.548 | BC60: =RDG!D57 -> 2450.767 | BD60: =RDG!E57 -> 2804.489 | BE60: =RDG!F57 -> 2132.276 | BF60: =RDG!G57 -> 3446.434 | BG60: =RDG!H57 -> 3622.059 | BH60: =RDG!I57 -> 3689.099
BA61: Prihodi od prodaje | BB61: =RDG!C6+RDG!C7 -> 507.005 | BC61: =RDG!D6+RDG!D7 -> 656.057 | BD61: =RDG!E6+RDG!E7 -> 1138.078 | BE61: =RDG!F6+RDG!F7 -> 693.112 | BF61: =RDG!G6+RDG!G7 -> 1276.894 | BG61: =RDG!H6+RDG!H7 -> 1457.308 | BH61: =RDG!I6+RDG!I7 -> 1577.501
BA62: Ostali prihodi | BB62: =RDG!C57-RDG!C6-RDG!C7 -> 1350.543 | BC62: =RDG!D57-RDG!D6-RDG!D7 -> 1794.71 | BD62: =RDG!E57-RDG!E6-RDG!E7 -> 1666.411 | BE62: =RDG!F57-RDG!F6-RDG!F7 -> 1439.164 | BF62: =RDG!G57-RDG!G6-RDG!G7 -> 2169.54 | BG62: =RDG!H57-RDG!H6-RDG!H7 -> 2164.751 | BH62: =RDG!I57-RDG!I6-RDG!I7 -> 2111.598
BA63: Ukupni rashodi | BB63: =(0-RDG!C58) -> -1762.949 | BC63: =(0-RDG!D58) -> -2807.146 | BD63: =(0-RDG!E58) -> -3432.04 | BE63: =(0-RDG!F58) -> -2127.03 | BF63: =(0-RDG!G58) -> -3441.414 | BG63: =(0-RDG!H58) -> -3615.683 | BH63: =(0-RDG!I58) -> -3680.473
BA64: Bruto dobit | BB64: =RDG!C59 -> 94.599 | BC64: =RDG!D59 -> -356.379 | BD64: =RDG!E59 -> -627.551 | BE64: =RDG!F59 -> 5.246 | BF64: =RDG!G59 -> 5.02 | BG64: =RDG!H59 -> 6.376 | BH64: =RDG!I59 -> 8.626
BA65: Marža bruto dobiti | BB65: =BB64/BB60 -> 0.0509268132 | BC65: =BC64/BC60 -> -0.1454152924 | BD65: -0.2237666113 | BE65: 0.002460281877 | BF65: 0.001456578017 | BG65: 0.001760324721 | BH65: 0.002338240313
BB68: =Podloga!B34 -> 2021. ostvareno | BC68: =Podloga!C34 -> 2022. ostvareno | BD68: =Podloga!D34 -> 2023. procijenjeno | BE68: =Podloga!E34 -> 2023. planirano | BF68: =Podloga!F34 -> 2024. planirano | BG68: =Podloga!G34 -> 2025. planirano | BH68: =Podloga!H34 -> 2026. planirano
BA69: Promjene vrijednosti zaliha | BB69: =RDG!C12 -> 0 | BC69: =RDG!D12 -> 0 | BD69: =RDG!E12 -> 0 | BE69: =RDG!F12 -> 0 | BF69: =RDG!G12 -> 0 | BG69: =RDG!H12 -> 0 | BH69: =RDG!I12 -> 0
BA70: Materijalni troškovi | BB70: =RDG!C13 -> 437.87 | BC70: =RDG!D13 -> 1492.082 | BD70: =RDG!E13 -> 1801.235 | BE70: =RDG!F13 -> 736.45 | BF70: =RDG!G13 -> 1423.35 | BG70: =RDG!H13 -> 1564.815 | BH70: =RDG!I13 -> 1617.663
BA71: Troškovi osoblja | BB71: =RDG!C17 -> 803.189 | BC71: =RDG!D17 -> 744.925 | BD71: =RDG!E17 -> 841.779 | BE71: =RDG!F17 -> 877.529 | BF71: =RDG!G17 -> 981.454 | BG71: =RDG!H17 -> 994.97 | BH71: =RDG!I17 -> 1019.444
BA72: Amortizacija | BB72: =RDG!C21 -> 260.421 | BC72: =RDG!D21 -> 303.832 | BD72: =RDG!E21 -> 371.362 | BE72: =RDG!F21 -> 289.336 | BF72: =RDG!G21 -> 425 | BG72: =RDG!H21 -> 435 | BH72: =RDG!I21 -> 440
BA73: Vrijednosna usklađenja | BB73: =RDG!C23 -> 0 | BC73: =RDG!D23 -> 0 | BD73: =RDG!E23 -> 0 | BE73: =RDG!F23 -> 0 | BF73: =RDG!G23 -> 0 | BG73: =RDG!H23 -> 0 | BH73: =RDG!I23 -> 0
BA74: Rezerviranja | BB74: =RDG!C26 -> 19.025 | BC74: =RDG!D26 -> 2.35 | BD74: =RDG!E26 -> 2.35 | BE74: =RDG!F26 -> 0 | BF74: =RDG!G26 -> 0 | BG74: =RDG!H26 -> 0 | BH74: =RDG!I26 -> 0
BA75: Ostali poslovni rashodi | BB75: =RDG!C22+RDG!C33 -> 178.181 | BC75: =RDG!D22+RDG!D33 -> 192.169 | BD75: =RDG!E22+RDG!E33 -> 368.2 | BE75: =RDG!F22+RDG!F33 -> 162.397 | BF75: =RDG!G22+RDG!G33 -> 548.81 | BG75: =RDG!H22+RDG!H33 -> 562.5 | BH75: =RDG!I22+RDG!I33 -> 541.65
BA79: Bilanca (u 000 kn)
BB80: =Podloga!B34 -> 2021. ostvareno | BC80: =Podloga!C34 -> 2022. ostvareno | BD80: =Podloga!D34 -> 2023. procijenjeno | BE80: =Podloga!E34 -> 2023. planirano | BF80: =Podloga!F34 -> 2024. planirano | BG80: =Podloga!G34 -> 2025. planirano | BH80: =Podloga!H34 -> 2026. planirano
BA81: Dugotrajna imovina | BB81: =Bilanca!C5+Bilanca!C4 -> 12119.412 | BC81: =Bilanca!D5+Bilanca!D4 -> 12395.7699 | BD81: =Bilanca!E5+Bilanca!E4 -> 12232.602 | BE81: =Bilanca!F5+Bilanca!F4 -> 18497.026 | BF81: =Bilanca!G5+Bilanca!G4 -> 19752.51 | BG81: =Bilanca!H5+Bilanca!H4 -> 20393.454 | BH81: =Bilanca!I5+Bilanca!I4 -> 21444.778
BA82: Kratkotrajna imovina | BB82: =Bilanca!C40 -> 1303.8428 | BC82: =Bilanca!D40 -> 1085.4234 | BD82: =Bilanca!E40 -> 741.384 | BE82: =Bilanca!F40 -> 932.3476 | BF82: =Bilanca!G40 -> 657.33 | BG82: =Bilanca!H40 -> 721.459 | BH82: =Bilanca!I40 -> 728.327
BA83: Plaćeni troškovi budućeg razdoblja i obračunati prihodi | BB83: =Bilanca!C67 -> 0 | BC83: =Bilanca!D67 -> 0 | BD83: =Bilanca!E67 -> 0 | BE83: =Bilanca!F67 -> 0 | BF83: =Bilanca!G67 -> 0 | BG83: =Bilanca!H67 -> 0 | BH83: =Bilanca!I67 -> 0
BA84: Ukupno aktiva | BB84: =SUM(BB81:BB83) -> 13423.2548 | BC84: 13481.1933 | BD84: 12973.986 | BE84: 19429.3736 | BF84: 20409.84 | BG84: 21114.913 | BH84: =SUM(BH81:BH83) -> 22173.105
BA86: Kapital i rezerve | BB86: =Bilanca!C75 -> 1888.535 | BC86: =Bilanca!D75 -> 1532.155 | BD86: =Bilanca!E75 -> 904.604 | BE86: =Bilanca!F75 -> 1495.616 | BF86: =Bilanca!G75 -> 909.624 | BG86: =Bilanca!H75 -> 1538.531 | BH86: =Bilanca!I75 -> 1540.781
BA87: Rezerviranja | BB87: =Bilanca!C96 -> 39.44 | BC87: =Bilanca!D96 -> 6.438 | BD87: =Bilanca!E96 -> 6.438 | BE87: =Bilanca!F96 -> 39.439 | BF87: =Bilanca!G96 -> 0 | BG87: =Bilanca!H96 -> 0 | BH87: =Bilanca!I96 -> 0
BA88: Dugoročne obveze | BB88: =Bilanca!C103 -> 3059.791 | BC88: =Bilanca!D103 -> 2778.482 | BD88: =Bilanca!E103 -> 2799.417 | BE88: =Bilanca!F103 -> 2964.391 | BF88: =Bilanca!G103 -> 2799.417 | BG88: =Bilanca!H103 -> 2773.27 | BH88: =Bilanca!I103 -> 2614.002
BA89: Kratkoročne obveze | BB89: =Bilanca!C115 -> 8435.491 | BC89: =Bilanca!D115 -> 9164.122 | BD89: =Bilanca!E115 -> 9263.523 | BE89: =Bilanca!F115 -> 14929.929 | BF89: =Bilanca!G115 -> 16700.799 | BG89: =Bilanca!H115 -> 16803.113 | BH89: =Bilanca!I115 -> 18018.324
BA90: Odgođeno plaćanje troškova i prihod budućeg razdoblja | BB90: =Bilanca!C130 -> 0 | BC90: =Bilanca!D130 -> 0 | BD90: =Bilanca!E130 -> 0 | BE90: =Bilanca!F130 -> 0 | BF90: =Bilanca!G130 -> 0 | BG90: =Bilanca!H130 -> 0 | BH90: =Bilanca!I130 -> 0
BA91: Ukupna pasiva | BB91: =SUM(BB86:BB90) -> 13423.257 | BC91: 13481.197 | BD91: 12973.982 | BE91: 19429.375 | BF91: 20409.84 | BG91: 21114.914 | BH91: =SUM(BH86:BH90) -> 22173.107
BA92: Ukupne obveze | BB92: =SUM(BB87:BB90) -> 11534.722 | BC92: 11949.042 | BD92: 12069.378 | BE92: 17933.759 | BF92: 19500.216 | BG92: 19576.383 | BH92: =SUM(BH87:BH90) -> 20632.326
BB93: =IFERROR(((Bilanca!C96+Bilanca!C103+Bilanca!C115+Bilanca!C130)/Bilanca!C68),) -> 0.8593088764 | BC93: =IFERROR(((Bilanca!D96+Bilanca!D103+Bilanca!D115+Bilanca!D130)/Bilanca!D68),) -> 0.8863489851 | BD93: =IFERROR(((Bilanca!E96+Bilanca!E103+Bilanca!E115+Bilanca!E130)/Bilanca!E68),) -> 0.9302752446 | BE93: =IFERROR(((Bilanca!F96+Bilanca!F103+Bilanca!F115+Bilanca!F130)/Bilanca!F68),) -> 0.923023015 | BF93: =IFERROR(((Bilanca!G96+Bilanca!G103+Bilanca!G115+Bilanca!G130)/Bilanca!G68),) -> 0.9554320857 | BG93: =IFERROR(((Bilanca!H96+Bilanca!H103+Bilanca!H115+Bilanca!H130)/Bilanca!H68),) -> 0.9271353853 | BH93: =IFERROR(((Bilanca!I96+Bilanca!I103+Bilanca!I115+Bilanca!I130)/Bilanca!I68),) -> 0.930511356
BB94: =IFERROR((Bilanca!C75/Bilanca!C68),) -> 0.1406912875 | BC94: =IFERROR((Bilanca!D75/Bilanca!D68),) -> 0.1136512893 | BD94: =IFERROR((Bilanca!E75/Bilanca!E68),) -> 0.06972444706 | BE94: =IFERROR((Bilanca!F75/Bilanca!F68),) -> 0.07697705705 | BF94: =IFERROR((Bilanca!G75/Bilanca!G68),) -> 0.0445679143 | BG94: =IFERROR((Bilanca!H75/Bilanca!H68),) -> 0.07286466205 | BH94: =IFERROR((Bilanca!I75/Bilanca!I68),) -> 0.06948873421
BB95: =Podloga!D34 -> 2023. procijenjeno | BC95: =Podloga!E34 -> 2023. planirano
BA96: Ukupni prihod | BB96: =RDG!E57 -> 2804.489 | BC96: =RDG!F57 -> 2132.276
BA97: Trošak prodanih proizvoda | BB97: =RDG!E13 -> 1801.235 | BC97: =RDG!F13 -> 736.45
BA98: Bruto marža | BB98: =BB96-BB97 -> 1003.254 | BC98: =BC96-BC97 -> 1395.826
BA99: Promjene vrijednosti zaliha | BB99: =RDG!E12 -> 0 | BC99: =RDG!F12 -> 0
BA100: Trošak osoblja | BB100: =RDG!E17 -> 841.779 | BC100: =RDG!F17 -> 877.529
BA101: Vrijednosna usklađenja | BB101: =RDG!E23 -> 0 | BC101: =RDG!F23 -> 0
BA102: Rezerviranja | BB102: =RDG!E26 -> 2.35 | BC102: =RDG!F26 -> 0
BA103: Financijski rashod (bez kamata) | BB103: =RDG!E45-RDG!E46-RDG!E48 -> 2.598 | BC103: =RDG!F45-RDG!F46-RDG!F48 -> 6.835
BA104: Ostali rashodi | BB104: =RDG!E22+RDG!E33+RDG!E55+RDG!E56 -> 368.2 | BC104: =RDG!F22+RDG!F33+RDG!F55+RDG!F56 -> 162.397
BA105: EBITDA | BB105: =BD3 -> -211.673 | BC105: =BE3 -> 349.065
BA107: Kontrola | BB107: =BB96-BB97-BB99-BB100-BB101-BB102-BB103-BB104 -> -211.673 | BC107: =BC96-BC97-BC99-BC100-BC101-BC102-BC103-BC104 -> 349.065
BN120: Analiza novčanih izdataka
BO121: =Podloga!B34 -> 2021. ostvareno | BP121: =Podloga!C34 -> 2022. ostvareno | BQ121: =Podloga!D34 -> 2023. procijenjeno | BR121: =Podloga!E34 -> 2023. planirano | BS121: =Podloga!F34 -> 2024. planirano | BT121: =Podloga!G34 -> 2025. planirano | BU121: =Podloga!H34 -> 2026. planirano
BN122: Novčani izdaci dobavljačima | BO122: =IF(Podloga!$B$17="Direktna",'NT dir.'!C11,) -> 0 | BP122: =IF(Podloga!$B$17="Direktna",'NT dir.'!D11,) -> 0 | BQ122: =IF(Podloga!$B$17="Direktna",'NT dir.'!E11,) -> 0 | BR122: =IF(Podloga!$B$17="Direktna",'NT dir.'!F11,) -> 0 | BS122: =IF(Podloga!$B$17="Direktna",'NT dir.'!G11,) -> 0 | BT122: =IF(Podloga!$B$17="Direktna",'NT dir.'!H11,) -> 0 | BU122: =IF(Podloga!$B$17="Direktna",'NT dir.'!I11,) -> 0
BN123: Novčani izdaci za zaposlene | BO123: =IF(Podloga!$B$17="Direktna",'NT dir.'!C12,) -> 0 | BP123: =IF(Podloga!$B$17="Direktna",'NT dir.'!D12,) -> 0 | BQ123: =IF(Podloga!$B$17="Direktna",'NT dir.'!E12,) -> 0 | BR123: =IF(Podloga!$B$17="Direktna",'NT dir.'!F12,) -> 0 | BS123: =IF(Podloga!$B$17="Direktna",'NT dir.'!G12,) -> 0 | BT123: =IF(Podloga!$B$17="Direktna",'NT dir.'!H12,) -> 0 | BU123: =IF(Podloga!$B$17="Direktna",'NT dir.'!I12,) -> 0
BN124: Novčani izdaci za osiguranje za naknadu štete | BO124: =IF(Podloga!$B$17="Direktna",'NT dir.'!C13,) -> 0 | BP124: =IF(Podloga!$B$17="Direktna",'NT dir.'!D13,) -> 0 | BQ124: =IF(Podloga!$B$17="Direktna",'NT dir.'!E13,) -> 0 | BR124: =IF(Podloga!$B$17="Direktna",'NT dir.'!F13,) -> 0 | BS124: =IF(Podloga!$B$17="Direktna",'NT dir.'!G13,) -> 0 | BT124: =IF(Podloga!$B$17="Direktna",'NT dir.'!H13,) -> 0 | BU124: =IF(Podloga!$B$17="Direktna",'NT dir.'!I13,) -> 0
BN125: Novčani izdaci za kamate | BO125: =IF(Podloga!$B$17="Direktna",'NT dir.'!C16,) -> 0 | BP125: =IF(Podloga!$B$17="Direktna",'NT dir.'!D16,) -> 0 | BQ125: =IF(Podloga!$B$17="Direktna",'NT dir.'!E16,) -> 0 | BR125: =IF(Podloga!$B$17="Direktna",'NT dir.'!F16,) -> 0 | BS125: =IF(Podloga!$B$17="Direktna",'NT dir.'!G16,) -> 0 | BT125: =IF(Podloga!$B$17="Direktna",'NT dir.'!H16,) -> 0 | BU125: =IF(Podloga!$B$17="Direktna",'NT dir.'!I16,) -> 0
BN126: Plaćeni porez na dobit | BO126: =IF(Podloga!$B$17="Direktna",'NT dir.'!C17,) -> 0 | BP126: =IF(Podloga!$B$17="Direktna",'NT dir.'!D17,) -> 0 | BQ126: =IF(Podloga!$B$17="Direktna",'NT dir.'!E17,) -> 0 | BR126: =IF(Podloga!$B$17="Direktna",'NT dir.'!F17,) -> 0 | BS126: =IF(Podloga!$B$17="Direktna",'NT dir.'!G17,) -> 0 | BT126: =IF(Podloga!$B$17="Direktna",'NT dir.'!H17,) -> 0 | BU126: =IF(Podloga!$B$17="Direktna",'NT dir.'!I17,) -> 0
BN127: Ostali novčani izdaci iz poslovanja | BO127: =IF(Podloga!$B$17="Direktna",'NT dir.'!C14,) -> 0 | BP127: =IF(Podloga!$B$17="Direktna",'NT dir.'!D14,) -> 0 | BQ127: =IF(Podloga!$B$17="Direktna",'NT dir.'!E14,) -> 0 | BR127: =IF(Podloga!$B$17="Direktna",'NT dir.'!F14,) -> 0 | BS127: =IF(Podloga!$B$17="Direktna",'NT dir.'!G14,) -> 0 | BT127: =IF(Podloga!$B$17="Direktna",'NT dir.'!H14,) -> 0 | BU127: =IF(Podloga!$B$17="Direktna",'NT dir.'!I14,) -> 0

Sheet Sazetak (hidden)
N1: Tablica za Interni izvještaj
B2: =Podloga!B2 -> Zračna luka Osijek d.o.o. | N2: =Podloga!L2 -> 0
B6: BILANCA (HRK 000) | C6: =Podloga!B34 -> 2021. ostvareno | D6: =Podloga!C34 -> 2022. ostvareno | E6: =Podloga!D34 -> 2023. procijenjeno | F6: =Podloga!E34 -> 2023. planirano | G6: =Podloga!F34 -> 2024. planirano | H6: =Podloga!G34 -> 2025. planirano | I6: =Podloga!H34 -> 2026. planirano | K6: Pokazatelji | L6: Izračun | N6: BILANCA (HRK 000) | O6: =C6 -> 2021. ostvareno | P6: =D6 -> 2022. ostvareno | Q6: =E6 -> 2023. procijenjeno | R6: =G6 -> 2024. planirano | S6: =H6 -> 2025. planirano | T6: 2026. planirano
B7: Dugotrajna imovina | C7: =Bilanca!C5 -> 12119.412 | D7: =Bilanca!D5 -> 12395.7699 | E7: =Bilanca!E5 -> 12232.602 | F7: =Bilanca!F5 -> 18497.026 | G7: =Bilanca!G5 -> 19752.51 | H7: =Bilanca!H5 -> 20393.454 | I7: =Bilanca!I5 -> 21444.778 | K7: EBITDA | L7: Poslovni prihod - poslovni rashod + amortizacija | N7: Dugotrajna imovina | O7: 12119.412 | P7: 12395.7699 | Q7: 12232.602 | R7: 19752.51 | S7: 20393.454 | T7: 21444.778
B8: Kratkotrajna imovina | C8: =Bilanca!C40 -> 1303.8428 | D8: =Bilanca!D40 -> 1085.4234 | E8: =Bilanca!E40 -> 741.384 | F8: =Bilanca!F40 -> 932.3476 | G8: =Bilanca!G40 -> 657.33 | H8: =Bilanca!H40 -> 721.459 | I8: =Bilanca!I40 -> 728.327 | K8: EBITDA marža | L8: (Pos. prihod - pos. rashod + amortizacija) / posl. prihod | N8: Kratkotrajna imovina | O8: 1303.8428 | P8: 1085.4234 | Q8: 741.384 | R8: 657.33 | S8: 721.459 | T8: 728.327
B9: Pl. troš. budućeg razd.. | C9: =Bilanca!C67 -> 0 | D9: =Bilanca!D67 -> 0 | E9: =Bilanca!E67 -> 0 | F9: =Bilanca!F67 -> 0 | G9: =Bilanca!G67 -> 0 | H9: =Bilanca!H67 -> 0 | I9: =Bilanca!I67 -> 0 | K9: Neto profitna marža | L9: Neto dobit / uk. prihod | N9: Pl. troš. budućeg razd.. | O9: 0 | P9: 0 | Q9: 0 | R9: 0 | S9: 0 | T9: 0
B10: Aktiva | C10: =Bilanca!C68 -> 13423.2548 | D10: =Bilanca!D68 -> 13481.1933 | E10: =Bilanca!E68 -> 12973.986 | F10: =Bilanca!F68 -> 19429.3736 | G10: =Bilanca!G68 -> 20409.84 | H10: =Bilanca!H68 -> 21114.913 | I10: =Bilanca!I68 -> 22173.105 | K10: RoA | L10: Neto dobit / aktiva | N10: Aktiva | O10: 13423.2548 | P10: 13481.1933 | Q10: 12973.986 | R10: 20409.84 | S10: 21114.913 | T10: 22173.105
B11: Kapital i rezerve | C11: =Bilanca!C75 -> 1888.535 | D11: =Bilanca!D75 -> 1532.155 | E11: =Bilanca!E75 -> 904.604 | F11: =Bilanca!F75 -> 1495.616 | G11: =Bilanca!G75 -> 909.624 | H11: =Bilanca!H75 -> 1538.531 | I11: =Bilanca!I75 -> 1540.781 | K11: RoE | L11: Neto dobit / kapital i rezerve | N11: Kapital i rezerve | O11: 1888.535 | P11: 1532.155 | Q11: 904.604 | R11: 909.624 | S11: 1538.531 | T11: 1540.781
B12: Rezerviranja | C12: =Bilanca!C96 -> 39.44 | D12: =Bilanca!D96 -> 6.438 | E12: =Bilanca!E96 -> 6.438 | F12: =Bilanca!F96 -> 39.439 | G12: =Bilanca!G96 -> 0 | H12: =Bilanca!H96 -> 0 | I12: =Bilanca!I96 -> 0 | K12: Koef. tekuće likvidnosti | L12: Kratkotrajna imovina / kratkoročne obveze | N12: Rezerviranja | O12: 39.44 | P12: 6.438 | Q12: 6.438 | R12: 0 | S12: 0 | T12: 0
B13: Dugoročne obveze | C13: =Bilanca!C103 -> 3059.791 | D13: =Bilanca!D103 -> 2778.482 | E13: =Bilanca!E103 -> 2799.417 | F13: =Bilanca!F103 -> 2964.391 | G13: =Bilanca!G103 -> 2799.417 | H13: =Bilanca!H103 -> 2773.27 | I13: =Bilanca!I103 -> 2614.002 | K13: Koeficijent financijske stabilnosti | L13: Dugotrajna imovina / (Kapital i rezerve + Dugoročne obveze) | N13: Dugoročne obveze | O13: 3059.791 | P13: 2778.482 | Q13: 2799.417 | R13: 2799.417 | S13: 2773.27 | T13: 2614.002
B14: Kratkoročne obveze | C14: =Bilanca!C115 -> 8435.491 | D14: =Bilanca!D115 -> 9164.122 | E14: =Bilanca!E115 -> 9263.523 | F14: =Bilanca!F115 -> 14929.929 | G14: =Bilanca!G115 -> 16700.799 | H14: =Bilanca!H115 -> 16803.113 | I14: =Bilanca!I115 -> 18018.324 | K14: Koef. zaduženosti | L14: (Rezerviranja + Dugoročne obveze + Kratkoročne obveze + Ostalo) / Aktiva | N14: Kratkoročne obveze | O14: 8435.491 | P14: 9164.122 | Q14: 9263.523 | R14: 16700.799 | S14: 16803.113 | T14: 18018.324
B15: Odg. pl. troš. i prihod.. | C15: =Bilanca!C130 -> 0 | D15: =Bilanca!D130 -> 0 | E15: =Bilanca!E130 -> 0 | F15: =Bilanca!F130 -> 0 | G15: =Bilanca!G130 -> 0 | H15: =Bilanca!H130 -> 0 | I15: =Bilanca!I130 -> 0 | N15: Odg. pl. troš. i prihod.. | O15: 0 | P15: 0 | Q15: 0 | R15: 0 | S15: 0 | T15: 0
B16: Pasiva | C16: =Bilanca!C131 -> 13423.257 | D16: =Bilanca!D131 -> 13481.197 | E16: =Bilanca!E131 -> 12973.982 | F16: =Bilanca!F131 -> 19429.375 | G16: =Bilanca!G131 -> 20409.84 | H16: =Bilanca!H131 -> 21114.914 | I16: =Bilanca!I131 -> 22173.107 | N16: Pasiva | O16: 13423.257 | P16: 13481.197 | Q16: 12973.982 | R16: 20409.84 | S16: 21114.914 | T16: 22173.107
B18: RAČUN DOBITI I GUBITKA (HRK 000) | N18: RAČUN DOBITI I GUBITKA (HRK 000)
B19: Poslovni prihodi | C19: =RDG!C5 -> 1854.413 | D19: =RDG!D5 -> 2450.167 | E19: =RDG!E5 -> 2803.972 | F19: =RDG!F5 -> 2131.827 | G19: =RDG!G5 -> 3445.894 | H19: =RDG!H5 -> 3621.479 | I19: =RDG!I5 -> 3688.491 | N19: Poslovni prihodi | O19: =C19 -> 1854.413 | P19: =D19 -> 2450.167 | Q19: =E19 -> 2803.972 | R19: =G19 -> 3445.894 | S19: =H19 -> 3621.479 | T19: =I19 -> 3688.491
B20: Poslovni rashodi | C20: =RDG!C11 -> 1698.686 | D20: =RDG!D11 -> 2735.358 | E20: =RDG!E11 -> 3384.926 | F20: =RDG!F11 -> 2065.712 | G20: =RDG!G11 -> 3378.614 | H20: =RDG!H11 -> 3557.285 | I20: =RDG!I11 -> 3618.757 | N20: Poslovni rashodi | O20: 1698.686 | P20: 2735.358 | Q20: 3384.926 | R20: 3378.614 | S20: 3557.285 | T20: 3618.757
B21: Financijski prihodi | C21: =RDG!C34 -> 3.135 | D21: =RDG!D34 -> 0.6 | E21: =RDG!E34 -> 0.517 | F21: =RDG!F34 -> 0.449 | G21: =RDG!G34 -> 0.54 | H21: =RDG!H34 -> 0.58 | I21: =RDG!I34 -> 0.608 | N21: Financijski prihodi | O21: 3.135 | P21: 0.6 | Q21: 0.517 | R21: 0.54 | S21: 0.58 | T21: 0.608
B22: Financijski rashodi | C22: =RDG!C45 -> 64.263 | D22: =RDG!D45 -> 71.788 | E22: =RDG!E45 -> 47.114 | F22: =RDG!F45 -> 61.318 | G22: =RDG!G45 -> 62.8 | H22: =RDG!H45 -> 58.398 | I22: =RDG!I45 -> 61.716 | N22: Financijski rashodi | O22: 64.263 | P22: 71.788 | Q22: 47.114 | R22: 62.8 | S22: 58.398 | T22: 61.716
B23: Ukupni prihodi | C23: =RDG!C57 -> 1857.548 | D23: =RDG!D57 -> 2450.767 | E23: =RDG!E57 -> 2804.489 | F23: =RDG!F57 -> 2132.276 | G23: =RDG!G57 -> 3446.434 | H23: =RDG!H57 -> 3622.059 | I23: =RDG!I57 -> 3689.099 | N23: Ukupni prihodi | O23: 1857.548 | P23: 2450.767 | Q23: 2804.489 | R23: 3446.434 | S23: 3622.059 | T23: 3689.099
B24: Ukupni rashodi | C24: =RDG!C58 -> 1762.949 | D24: =RDG!D58 -> 2807.146 | E24: =RDG!E58 -> 3432.04 | F24: =RDG!F58 -> 2127.03 | G24: =RDG!G58 -> 3441.414 | H24: =RDG!H58 -> 3615.683 | I24: =RDG!I58 -> 3680.473 | N24: Ukupni rashodi | O24: 1762.949 | P24: 2807.146 | Q24: 3432.04 | R24: 3441.414 | S24: 3615.683 | T24: 3680.473
B25: Dobit/gubitak prije oporezivanja | C25: =RDG!C59 -> 94.599 | D25: =RDG!D59 -> -356.379 | E25: =RDG!E59 -> -627.551 | F25: =RDG!F59 -> 5.246 | G25: =RDG!G59 -> 5.02 | H25: =RDG!H59 -> 6.376 | I25: =RDG!I59 -> 8.626 | N25: Dobit/gubitak prije oporezivanja | O25: 94.599 | P25: -356.379 | Q25: -627.551 | R25: 5.02 | S25: 6.376 | T25: 8.626
B26: Porez na dobit | C26: =RDG!C62 -> 0 | D26: =RDG!D62 -> 0 | E26: =RDG!E62 -> 0 | F26: =RDG!F62 -> 0 | G26: =RDG!G62 -> 0 | H26: =RDG!H62 -> 0 | I26: =RDG!I62 -> 0 | N26: Porez na dobit | O26: 0 | P26: 0 | Q26: 0 | R26: 0 | S26: 0 | T26: 0
B27: Neto dobit/gubitak | C27: =RDG!C63 -> 94.599 | D27: =RDG!D63 -> -356.379 | E27: =RDG!E63 -> -627.551 | F27: =RDG!F63 -> 5.246 | G27: =RDG!G63 -> 5.02 | H27: =RDG!H63 -> 6.376 | I27: =RDG!I63 -> 8.626 | N27: Neto dobit/gubitak | O27: 94.599 | P27: -356.379 | Q27: -627.551 | R27: 5.02 | S27: 6.376 | T27: 8.626
B29: KLJUČNI POKAZATELJI | N29: KLJUČNI POKAZATELJI
B30: EBITDA (HRK 000) | C30: =C19-C20+C42 -> 416.148 | D30: =D19-D20+D42 -> 18.641 | E30: -209.592 | F30: 355.451 | G30: 492.28 | H30: =H19-H20+H42 -> 499.194 | I30: 509.734 | N30: EBITDA (HRK 000) | O30: =C30 -> 416.148 | P30: =D30 -> 18.641 | Q30: =E30 -> -209.592 | R30: =G30 -> 492.28 | S30: =H30 -> 499.194 | T30: =I30 -> 509.734
B31: EBITDA marža | C31: =IFERROR(C30/C19,0) -> 0.2244095571 | D31: =IFERROR(D30/D19,0) -> 0.007608052839 | E31: -0.07474824998 | F31: 0.1667353871 | G31: 0.142859879 | H31: =IFERROR(H30/H19,0) -> 0.1378425776 | I31: 0.1381958096 | N31: EBITDA marža | O31: 0.2244095571 | P31: 0.007608052839 | Q31: -0.07474824998 | R31: 0.142859879 | S31: 0.1378425776 | T31: 0.1381958096
B32: Neto profitna marža | C32: =IFERROR(C27/C23,0) -> 0.0509268132 | D32: =IFERROR(D27/D23,0) -> -0.1454152924 | E32: -0.2237666113 | F32: 0.002460281877 | G32: 0.001456578017 | H32: =IFERROR(H27/H23,0) -> 0.001760324721 | I32: 0.002338240313 | N32: Neto profitna marža | O32: 0.0509268132 | P32: -0.1454152924 | Q32: -0.2237666113 | R32: 0.001456578017 | S32: 0.001760324721 | T32: 0.002338240313
B33: ROA | C33: =IFERROR(C27/C10,0) -> 0.007047396582 | D33: =IFERROR(D27/D10,0) -> -0.02643527113 | E33: -0.04836994583 | F33: 0.0002700035579 | G33: 0.0002459597919 | H33: =IFERROR(H27/H10,0) -> 0.0003019666716 | I33: 0.000389029863 | N33: ROA | O33: 0.007047396582 | P33: -0.02643527113 | Q33: -0.04836994583 | R33: 0.0002459597919 | S33: 0.0003019666716 | T33: 0.000389029863
B34: ROE | C34: =IFERROR(C27/C11,0) -> 0.05009120826 | D34: =IFERROR(D27/D11,0) -> -0.2325998349 | E34: -0.6937300742 | F34: 0.003507584835 | G34: 0.005518763797 | H34: =IFERROR(H27/H11,0) -> 0.004144212889 | I34: 0.005598459483 | N34: ROE | O34: 0.05009120826 | P34: -0.2325998349 | Q34: -0.6937300742 | R34: 0.005518763797 | S34: 0.004144212889 | T34: 0.005598459483
B35: Koef. tekuće likvidnosti | C35: =IFERROR(C8/C14,0) -> 0.1545663199 | D35: =IFERROR(D8/D14,0) -> 0.1184427051 | E35: 0.08003261826 | F35: 0.06244822732 | G35: 0.03935919473 | H35: =IFERROR(H8/H14,0) -> 0.04293603215 | I35: 0.04042146206 | N35: Koef. tekuće likvidnosti | O35: 0.1545663199 | P35: 0.1184427051 | Q35: 0.08003261826 | R35: 0.03935919473 | S35: 0.04293603215 | T35: 0.04042146206
B36: Koef. financijske stab. | C36: =IFERROR(C7/(C11+C13),0) -> 2.449194334 | D36: =IFERROR(D7/(D11+D13),0) -> 2.875623696 | E36: 3.302519613 | F36: 4.147308737 | G36: 5.325503277 | H36: =IFERROR(H7/(H11+H13),0) -> 4.72968349 | I36: 5.161467639 | N36: Koef. financijske stab. | O36: 2.449194334 | P36: 2.875623696 | Q36: 3.302519613 | R36: 5.325503277 | S36: 4.72968349 | T36: 5.161467639
B37: Koef. zaduženosti | C37: =IFERROR((C12+C13+C14+C15)/C10,0) -> 0.8593088764 | D37: =IFERROR((D12+D13+D14+D15)/D10,0) -> 0.8863489851 | E37: 0.9302752446 | F37: 0.923023015 | G37: 0.9554320857 | H37: =IFERROR((H12+H13+H14+H15)/H10,0) -> 0.9271353853 | I37: 0.930511356 | N37: Koef. zaduženosti | O37: 0.8593088764 | P37: 0.8863489851 | Q37: 0.9302752446 | R37: 0.9554320857 | S37: 0.9271353853 | T37: 0.930511356
B38: Zaposleni | C38: =Podloga!B35 -> 0 | D38: =Podloga!C35 -> 0 | E38: =Podloga!D35 -> 0 | F38: =Podloga!E35 -> 0 | G38: =Podloga!F35 -> 0 | H38: =Podloga!G35 -> 0 | I38: =Podloga!H35 -> 0 | N38: Zaposleni | O38: 0 | P38: 0 | Q38: 0 | R38: 0 | S38: 0 | T38: 0
B39: Investicije (HRK 000) | C39: =Podloga!B36 -> 0 | D39: =Podloga!C36 -> 0 | E39: =Podloga!D36 -> 0 | F39: =Podloga!E36 -> 0 | G39: =Podloga!F36 -> 0 | H39: =Podloga!G36 -> 0 | I39: =Podloga!H36 -> 0 | N39: Investicije (HRK 000) | O39: 0 | P39: 0 | Q39: 0 | R39: 0 | S39: 0 | T39: 0
B42: Amortizacija | C42: =RDG!C21 -> 260.421 | D42: =RDG!D21 -> 303.832 | E42: =RDG!E21 -> 371.362 | F42: =RDG!F21 -> 289.336 | G42: =RDG!G21 -> 425 | H42: =RDG!H21 -> 435 | I42: =RDG!I21 -> 440 | N42: Amortizacija | O42: =C42 -> 260.421 | P42: =D42 -> 303.832 | Q42: =E42 -> 371.362 | R42: =G42 -> 425 | S42: =H42 -> 435 | T42: =I42 -> 440

Sheet AI (hidden)
A2: Naziv društva | B2: Ukupni prihodi | I2: Ukupni rashodi | P2: Neto dobit/gubitak | W2: Planirane investicije | AD2: Dugotrajna imovina | AK2: Kratkotrajna imovina | AR2: Pl. troš. budućeg razd.. | AY2: Aktiva | BF2: Kapital i rezerve | BM2: Rezerviranja | BT2: Dugoročne obveze | CA2: Kratkoročne obveze | CH2: Odg. pl. troš. i prihod.. | CO2: Pasiva | CV2: Poslovni prihodi | DC2: Poslovni rashodi | DJ2: Financijski prihodi | DQ2: Financijski rashodi | DX2: Ukupni prihodi | EE2: Ukupni rashodi | EL2: Dobit/gubitak prije oporezivanja | ES2: Porez na dobit | EZ2: Neto dobit/gubitak | FG2: EBITDA (HRK 000) | FN2: EBITDA marža | FU2: Neto profitna marža | GB2: ROA | GI2: ROE | GP2: Tekuća likvidnost | GW2: Koef. financijske stab. | HD2: Koef. zaduženosti | HK2: Zaposleni | HR2: Investicije (HRK 000) | HY2: Amortizacija
B3: =Sazetak!C6 -> 2021. ostvareno | C3: =Sazetak!D6 -> 2022. ostvareno | D3: =Sazetak!E6 -> 2023. procijenjeno | E3: =Sazetak!F6 -> 2023. planirano | F3: =Sazetak!G6 -> 2024. planirano | G3: =Sazetak!H6 -> 2025. planirano | H3: =Sazetak!I6 -> 2026. planirano | I3: =B3 -> 2021. ostvareno | J3: =C3 -> 2022. ostvareno | K3: 2023. procijenjeno | L3: 2023. planirano | M3: 2024. planirano | N3: 2025. planirano | O3: 2026. planirano | P3: =I3 -> 2021. ostvareno | Q3: =J3 -> 2022. ostvareno | R3: =K3 -> 2023. procijenjeno | S3: =L3 -> 2023. planirano | T3: =M3 -> 2024. planirano | U3: =N3 -> 2025. planirano | V3: =O3 -> 2026. planirano | W3: =P3 -> 2021. ostvareno | X3: =Q3 -> 2022. ostvareno | Y3: =R3 -> 2023. procijenjeno | Z3: =S3 -> 2023. planirano | AA3: =T3 -> 2024. planirano | AB3: =U3 -> 2025. planirano | AC3: =V3 -> 2026. planirano | AD3: =W3 -> 2021. ostvareno | AE3: =X3 -> 2022. ostvareno | AF3: =Y3 -> 2023. procijenjeno | AG3: =Z3 -> 2023. planirano | AH3: =AA3 -> 2024. planirano | AI3: =AB3 -> 2025. planirano | AJ3: =AC3 -> 2026. planirano | AK3: =AD3 -> 2021. ostvareno | AL3: =AE3 -> 2022. ostvareno | AM3: =AF3 -> 2023. procijenjeno | AN3: =AG3 -> 2023. planirano | AO3: =AH3 -> 2024. planirano | AP3: =AI3 -> 2025. planirano | AQ3: =AJ3 -> 2026. planirano | AR3: =AK3 -> 2021. ostvareno | AS3: =AL3 -> 2022. ostvareno | AT3: =AM3 -> 2023. procijenjeno | AU3: =AN3 -> 2023. planirano | AV3: =AO3 -> 2024. planirano | AW3: =AP3 -> 2025. planirano | AX3: =AQ3 -> 2026. planirano | AY3: =AR3 -> 2021. ostvareno | AZ3: =AS3 -> 2022. ostvareno | BA3: =AT3 -> 2023. procijenjeno | BB3: =AU3 -> 2023. planirano | BC3: =AV3 -> 2024. planirano | BD3: =AW3 -> 2025. planirano | BE3: =AX3 -> 2026. planirano | BF3: =AY3 -> 2021. ostvareno | BG3: =AZ3 -> 2022. ostvareno | BH3: =BA3 -> 2023. procijenjeno | BI3: =BB3 -> 2023. planirano | BJ3: =BC3 -> 2024. planirano | BK3: =BD3 -> 2025. planirano | BL3: =BE3 -> 2026. planirano | BM3: =BF3 -> 2021. ostvareno | BN3: =BG3 -> 2022. ostvareno | BO3: =BH3 -> 2023. procijenjeno | BP3: =BI3 -> 2023. planirano | BQ3: =BJ3 -> 2024. planirano | BR3: =BK3 -> 2025. planirano | BS3: =BL3 -> 2026. planirano | BT3: =BM3 -> 2021. ostvareno | BU3: =BN3 -> 2022. ostvareno | BV3: =BO3 -> 2023. procijenjeno | BW3: =BP3 -> 2023. planirano | BX3: =BQ3 -> 2024. planirano | BY3: =BR3 -> 2025. planirano | BZ3: =BS3 -> 2026. planirano | CA3: =BT3 -> 2021. ostvareno | CB3: =BU3 -> 2022. ostvareno | CC3: =BV3 -> 2023. procijenjeno | CD3: =BW3 -> 2023. planirano | CE3: =BX3 -> 2024. planirano | CF3: =BY3 -> 2025. planirano | CG3: =BZ3 -> 2026. planirano | CH3: =CA3 -> 2021. ostvareno | CI3: =CB3 -> 2022. ostvareno | CJ3: =CC3 -> 2023. procijenjeno | CK3: =CD3 -> 2023. planirano | CL3: =CE3 -> 2024. planirano | CM3: =CF3 -> 2025. planirano | CN3: =CG3 -> 2026. planirano | CO3: =CH3 -> 2021. ostvareno | CP3: =CI3 -> 2022. ostvareno | CQ3: =CJ3 -> 2023. procijenjeno | CR3: =CK3 -> 2023. planirano | CS3: =CL3 -> 2024. planirano | CT3: =CM3 -> 2025. planirano | CU3: =CN3 -> 2026. planirano | CV3: =CO3 -> 2021. ostvareno | CW3: =CP3 -> 2022. ostvareno | CX3: =CQ3 -> 2023. procijenjeno | CY3: =CR3 -> 2023. planirano | CZ3: =CS3 -> 2024. planirano | DA3: =CT3 -> 2025. planirano | DB3: =CU3 -> 2026. planirano | DC3: =CV3 -> 2021. ostvareno | DD3: =CW3 -> 2022. ostvareno | DE3: =CX3 -> 2023. procijenjeno | DF3: =CY3 -> 2023. planirano | DG3: =CZ3 -> 2024. planirano | DH3: =DA3 -> 2025. planirano | DI3: =DB3 -> 2026. planirano | DJ3: =DC3 -> 2021. ostvareno | DK3: =DD3 -> 2022. ostvareno | DL3: =DE3 -> 2023. procijenjeno | DM3: =DF3 -> 2023. planirano | DN3: =DG3 -> 2024. planirano | DO3: =DH3 -> 2025. planirano | DP3: =DI3 -> 2026. planirano | DQ3: =DJ3 -> 2021. ostvareno | DR3: =DK3 -> 2022. ostvareno | DS3: =DL3 -> 2023. procijenjeno | DT3: =DM3 -> 2023. planirano | DU3: =DN3 -> 2024. planirano | DV3: =DO3 -> 2025. planirano | DW3: =DP3 -> 2026. planirano | DX3: =DQ3 -> 2021. ostvareno | DY3: =DR3 -> 2022. ostvareno | DZ3: =DS3 -> 2023. procijenjeno | EA3: =DT3 -> 2023. planirano | EB3: =DU3 -> 2024. planirano | EC3: =DV3 -> 2025. planirano | ED3: =DW3 -> 2026. planirano | EE3: =DX3 -> 2021. ostvareno | EF3: =DY3 -> 2022. ostvareno | EG3: =DZ3 -> 2023. procijenjeno | EH3: =EA3 -> 2023. planirano | EI3: =EB3 -> 2024. planirano | EJ3: =EC3 -> 2025. planirano | EK3: =ED3 -> 2026. planirano | EL3: =EE3 -> 2021. ostvareno | EM3: =EF3 -> 2022. ostvareno | EN3: =EG3 -> 2023. procijenjeno | EO3: =EH3 -> 2023. planirano | EP3: =EI3 -> 2024. planirano | EQ3: =EJ3 -> 2025. planirano | ER3: =EK3 -> 2026. planirano | ES3: =EL3 -> 2021. ostvareno | ET3: =EM3 -> 2022. ostvareno | EU3: =EN3 -> 2023. procijenjeno | EV3: =EO3 -> 2023. planirano | EW3: =EP3 -> 2024. planirano | EX3: =EQ3 -> 2025. planirano | EY3: =ER3 -> 2026. planirano | EZ3: =ES3 -> 2021. ostvareno | FA3: =ET3 -> 2022. ostvareno | FB3: =EU3 -> 2023. procijenjeno | FC3: =EV3 -> 2023. planirano | FD3: =EW3 -> 2024. planirano | FE3: =EX3 -> 2025. planirano | FF3: =EY3 -> 2026. planirano | FG3: =EZ3 -> 2021. ostvareno | FH3: =FA3 -> 2022. ostvareno | FI3: =FB3 -> 2023. procijenjeno | FJ3: =FC3 -> 2023. planirano | FK3: =FD3 -> 2024. planirano | FL3: =FE3 -> 2025. planirano | FM3: =FF3 -> 2026. planirano | FN3: =FG3 -> 2021. ostvareno | FO3: =FH3 -> 2022. ostvareno | FP3: =FI3 -> 2023. procijenjeno | FQ3: =FJ3 -> 2023. planirano | FR3: =FK3 -> 2024. planirano | FS3: =FL3 -> 2025. planirano | FT3: =FM3 -> 2026. planirano | FU3: =FN3 -> 2021. ostvareno | FV3: =FO3 -> 2022. ostvareno | FW3: =FP3 -> 2023. procijenjeno | FX3: =FQ3 -> 2023. planirano | FY3: =FR3 -> 2024. planirano | FZ3: =FS3 -> 2025. planirano | GA3: =FT3 -> 2026. planirano | GB3: =FU3 -> 2021. ostvareno | GC3: =FV3 -> 2022. ostvareno | GD3: =FW3 -> 2023. procijenjeno | GE3: =FX3 -> 2023. planirano | GF3: =FY3 -> 2024. planirano | GG3: =FZ3 -> 2025. planirano | GH3: =GA3 -> 2026. planirano | GI3: =GB3 -> 2021. ostvareno | GJ3: =GC3 -> 2022. ostvareno | GK3: =GD3 -> 2023. procijenjeno | GL3: =GE3 -> 2023. planirano | GM3: =GF3 -> 2024. planirano | GN3: =GG3 -> 2025. planirano | GO3: =GH3 -> 2026. planirano | GP3: =GI3 -> 2021. ostvareno | GQ3: =GJ3 -> 2022. ostvareno | GR3: =GK3 -> 2023. procijenjeno | GS3: =GL3 -> 2023. planirano | GT3: =GM3 -> 2024. planirano | GU3: =GN3 -> 2025. planirano | GV3: =GO3 -> 2026. planirano | GW3: =GP3 -> 2021. ostvareno | GX3: =GQ3 -> 2022. ostvareno | GY3: =GR3 -> 2023. procijenjeno | GZ3: =GS3 -> 2023. planirano | HA3: =GT3 -> 2024. planirano | HB3: =GU3 -> 2025. planirano | HC3: =GV3 -> 2026. planirano | HD3: =GW3 -> 2021. ostvareno | HE3: =GX3 -> 2022. ostvareno | HF3: =GY3 -> 2023. procijenjeno | HG3: =GZ3 -> 2023. planirano | HH3: =HA3 -> 2024. planirano | HI3: =HB3 -> 2025. planirano | HJ3: =HC3 -> 2026. planirano | HK3: =HD3 -> 2021. ostvareno | HL3: =HE3 -> 2022. ostvareno | HM3: =HF3 -> 2023. procijenjeno | HN3: =HG3 -> 2023. planirano | HO3: =HH3 -> 2024. planirano | HP3: =HI3 -> 2025. planirano | HQ3: =HJ3 -> 2026. planirano | HR3: =HK3 -> 2021. ostvareno | HS3: =HL3 -> 2022. ostvareno | HT3: =HM3 -> 2023. procijenjeno | HU3: =HN3 -> 2023. planirano | HV3: =HO3 -> 2024. planirano | HW3: =HP3 -> 2025. planirano | HX3: =HQ3 -> 2026. planirano | HY3: =HR3 -> 2021. ostvareno | HZ3: =HS3 -> 2022. ostvareno | IA3: =HT3 -> 2023. procijenjeno | IB3: =HU3 -> 2023. planirano | IC3: =HV3 -> 2024. planirano | ID3: =HW3 -> 2025. planirano | IE3: =HX3 -> 2026. planirano
A4: =Podloga!B2 -> Zračna luka Osijek d.o.o. | B4: =Sazetak!C23 -> 1857.548 | C4: =Sazetak!D23 -> 2450.767 | D4: =Sazetak!E23 -> 2804.489 | E4: =Sazetak!F23 -> 2132.276 | F4: =Sazetak!G23 -> 3446.434 | G4: =Sazetak!H23 -> 3622.059 | H4: =Sazetak!I23 -> 3689.099 | I4: =Sazetak!C24 -> 1762.949 | J4: =Sazetak!D24 -> 2807.146 | K4: =Sazetak!E24 -> 3432.04 | L4: =Sazetak!F24 -> 2127.03 | M4: =Sazetak!G24 -> 3441.414 | N4: =Sazetak!H24 -> 3615.683 | O4: =Sazetak!I24 -> 3680.473 | P4: =Sazetak!C27 -> 94.599 | Q4: =Sazetak!D27 -> -356.379 | R4: =Sazetak!E27 -> -627.551 | S4: =Sazetak!F27 -> 5.246 | T4: =Sazetak!G27 -> 5.02 | U4: =Sazetak!H27 -> 6.376 | V4: =Sazetak!I27 -> 8.626 | W4: =Sazetak!C39 -> 0 | X4: =Sazetak!D39 -> 0 | Y4: =Sazetak!E39 -> 0 | Z4: =Sazetak!F39 -> 0 | AA4: =Sazetak!G39 -> 0 | AB4: =Sazetak!H39 -> 0 | AC4: =Sazetak!I39 -> 0 | AD4: =Sazetak!C7 -> 12119.412 | AE4: =Sazetak!D7 -> 12395.7699 | AF4: =Sazetak!E7 -> 12232.602 | AG4: =Sazetak!F7 -> 18497.026 | AH4: =Sazetak!G7 -> 19752.51 | AI4: =Sazetak!H7 -> 20393.454 | AJ4: =Sazetak!I7 -> 21444.778 | AK4: =Sazetak!C8 -> 1303.8428 | AL4: =Sazetak!D8 -> 1085.4234 | AM4: =Sazetak!E8 -> 741.384 | AN4: =Sazetak!F8 -> 932.3476 | AO4: =Sazetak!G8 -> 657.33 | AP4: =Sazetak!H8 -> 721.459 | AQ4: =Sazetak!I8 -> 728.327 | AR4: =Sazetak!C9 -> 0 | AS4: =Sazetak!D9 -> 0 | AT4: =Sazetak!E9 -> 0 | AU4: =Sazetak!F9 -> 0 | AV4: =Sazetak!G9 -> 0 | AW4: =Sazetak!H9 -> 0 | AX4: =Sazetak!I9 -> 0 | AY4: =Sazetak!C10 -> 13423.2548 | AZ4: =Sazetak!D10 -> 13481.1933 | BA4: =Sazetak!E10 -> 12973.986 | BB4: =Sazetak!F10 -> 19429.3736 | BC4: =Sazetak!G10 -> 20409.84 | BD4: =Sazetak!H10 -> 21114.913 | BE4: =Sazetak!I10 -> 22173.105 | BF4: =Sazetak!C11 -> 1888.535 | BG4: =Sazetak!D11 -> 1532.155 | BH4: =Sazetak!E11 -> 904.604 | BI4: =Sazetak!F11 -> 1495.616 | BJ4: =Sazetak!G11 -> 909.624 | BK4: =Sazetak!H11 -> 1538.531 | BL4: =Sazetak!I11 -> 1540.781 | BM4: =Sazetak!C12 -> 39.44 | BN4: =Sazetak!D12 -> 6.438 | BO4: =Sazetak!E12 -> 6.438 | BP4: =Sazetak!F12 -> 39.439 | BQ4: =Sazetak!G12 -> 0 | BR4: =Sazetak!H12 -> 0 | BS4: =Sazetak!I12 -> 0 | BT4: =Sazetak!C13 -> 3059.791 | BU4: =Sazetak!D13 -> 2778.482 | BV4: =Sazetak!E13 -> 2799.417 | BW4: =Sazetak!F13 -> 2964.391 | BX4: =Sazetak!G13 -> 2799.417 | BY4: =Sazetak!H13 -> 2773.27 | BZ4: =Sazetak!I13 -> 2614.002 | CA4: =Sazetak!C14 -> 8435.491 | CB4: =Sazetak!D14 -> 9164.122 | CC4: =Sazetak!E14 -> 9263.523 | CD4: =Sazetak!F14 -> 14929.929 | CE4: =Sazetak!G14 -> 16700.799 | CF4: =Sazetak!H14 -> 16803.113 | CG4: =Sazetak!I14 -> 18018.324 | CH4: =Sazetak!C15 -> 0 | CI4: =Sazetak!D15 -> 0 | CJ4: =Sazetak!E15 -> 0 | CK4: =Sazetak!F15 -> 0 | CL4: =Sazetak!G15 -> 0 | CM4: =Sazetak!H15 -> 0 | CN4: =Sazetak!I15 -> 0 | CO4: =Sazetak!C16 -> 13423.257 | CP4: =Sazetak!D16 -> 13481.197 | CQ4: =Sazetak!E16 -> 12973.982 | CR4: =Sazetak!F16 -> 19429.375 | CS4: =Sazetak!G16 -> 20409.84 | CT4: =Sazetak!H16 -> 21114.914 | CU4: =Sazetak!I16 -> 22173.107 | CV4: =Sazetak!C19 -> 1854.413 | CW4: =Sazetak!D19 -> 2450.167 | CX4: =Sazetak!E19 -> 2803.972 | CY4: =Sazetak!F19 -> 2131.827 | CZ4: =Sazetak!G19 -> 3445.894 | DA4: =Sazetak!H19 -> 3621.479 | DB4: =Sazetak!I19 -> 3688.491 | DC4: =Sazetak!C20 -> 1698.686 | DD4: =Sazetak!D20 -> 2735.358 | DE4: =Sazetak!E20 -> 3384.926 | DF4: =Sazetak!F20 -> 2065.712 | DG4: =Sazetak!G20 -> 3378.614 | DH4: =Sazetak!H20 -> 3557.285 | DI4: =Sazetak!I20 -> 3618.757 | DJ4: =Sazetak!C21 -> 3.135 | DK4: =Sazetak!D21 -> 0.6 | DL4: =Sazetak!E21 -> 0.517 | DM4: =Sazetak!F21 -> 0.449 | DN4: =Sazetak!G21 -> 0.54 | DO4: =Sazetak!H21 -> 0.58 | DP4: =Sazetak!I21 -> 0.608 | DQ4: =Sazetak!C22 -> 64.263 | DR4: =Sazetak!D22 -> 71.788 | DS4: =Sazetak!E22 -> 47.114 | DT4: =Sazetak!F22 -> 61.318 | DU4: =Sazetak!G22 -> 62.8 | DV4: =Sazetak!H22 -> 58.398 | DW4: =Sazetak!I22 -> 61.716 | DX4: =Sazetak!C23 -> 1857.548 | DY4: =Sazetak!D23 -> 2450.767 | DZ4: =Sazetak!E23 -> 2804.489 | EA4: =Sazetak!F23 -> 2132.276 | EB4: =Sazetak!G23 -> 3446.434 | EC4: =Sazetak!H23 -> 3622.059 | ED4: =Sazetak!I23 -> 3689.099 | EE4: =Sazetak!C24 -> 1762.949 | EF4: =Sazetak!D24 -> 2807.146 | EG4: =Sazetak!E24 -> 3432.04 | EH4: =Sazetak!F24 -> 2127.03 | EI4: =Sazetak!G24 -> 3441.414 | EJ4: =Sazetak!H24 -> 3615.683 | EK4: =Sazetak!I24 -> 3680.473 | EL4: =Sazetak!C25 -> 94.599 | EM4: =Sazetak!D25 -> -356.379 | EN4: =Sazetak!E25 -> -627.551 | EO4: =Sazetak!F25 -> 5.246 | EP4: =Sazetak!G25 -> 5.02 | EQ4: =Sazetak!H25 -> 6.376 | ER4: =Sazetak!I25 -> 8.626 | ES4: =Sazetak!C26 -> 0 | ET4: =Sazetak!D26 -> 0 | EU4: =Sazetak!E26 -> 0 | EV4: =Sazetak!F26 -> 0 | EW4: =Sazetak!G26 -> 0 | EX4: =Sazetak!H26 -> 0 | EY4: =Sazetak!I26 -> 0 | EZ4: =Sazetak!C27 -> 94.599 | FA4: =Sazetak!D27 -> -356.379 | FB4: =Sazetak!E27 -> -627.551 | FC4: =Sazetak!F27 -> 5.246 | FD4: =Sazetak!G27 -> 5.02 | FE4: =Sazetak!H27 -> 6.376 | FF4: =Sazetak!I27 -> 8.626 | FG4: =Sazetak!C30 -> 416.148 | FH4: =Sazetak!D30 -> 18.641 | FI4: =Sazetak!E30 -> -209.592 | FJ4: =Sazetak!F30 -> 355.451 | FK4: =Sazetak!G30 -> 492.28 | FL4: =Sazetak!H30 -> 499.194 | FM4: =Sazetak!I30 -> 509.734 | FN4: =Sazetak!C31 -> 0.2244095571 | FO4: =Sazetak!D31 -> 0.007608052839 | FP4: =Sazetak!E31 -> -0.07474824998 | FQ4: =Sazetak!F31 -> 0.1667353871 | FR4: =Sazetak!G31 -> 0.142859879 | FS4: =Sazetak!H31 -> 0.1378425776 | FT4: =Sazetak!I31 -> 0.1381958096 | FU4: =Sazetak!C32 -> 0.0509268132 | FV4: =Sazetak!D32 -> -0.1454152924 | FW4: =Sazetak!E32 -> -0.2237666113 | FX4: =Sazetak!F32 -> 0.002460281877 | FY4: =Sazetak!G32 -> 0.001456578017 | FZ4: =Sazetak!H32 -> 0.001760324721 | GA4: =Sazetak!I32 -> 0.002338240313 | GB4: =Sazetak!C33 -> 0.007047396582 | GC4: =Sazetak!D33 -> -0.02643527113 | GD4: =Sazetak!E33 -> -0.04836994583 | GE4: =Sazetak!F33 -> 0.0002700035579 | GF4: =Sazetak!G33 -> 0.0002459597919 | GG4: =Sazetak!H33 -> 0.0003019666716 | GH4: =Sazetak!I33 -> 0.000389029863 | GI4: =Sazetak!C34 -> 0.05009120826 | GJ4: =Sazetak!D34 -> -0.2325998349 | GK4: =Sazetak!E34 -> -0.6937300742 | GL4: =Sazetak!F34 -> 0.003507584835 | GM4: =Sazetak!G34 -> 0.005518763797 | GN4: =Sazetak!H34 -> 0.004144212889 | GO4: =Sazetak!I34 -> 0.005598459483 | GP4: =Sazetak!C35 -> 0.1545663199 | GQ4: =Sazetak!D35 -> 0.1184427051 | GR4: =Sazetak!E35 -> 0.08003261826 | GS4: =Sazetak!F35 -> 0.06244822732 | GT4: =Sazetak!G35 -> 0.03935919473 | GU4: =Sazetak!H35 -> 0.04293603215 | GV4: =Sazetak!I35 -> 0.04042146206 | GW4: =Sazetak!C36 -> 2.449194334 | GX4: =Sazetak!D36 -> 2.875623696 | GY4: =Sazetak!E36 -> 3.302519613 | GZ4: =Sazetak!F36 -> 4.147308737 | HA4: =Sazetak!G36 -> 5.325503277 | HB4: =Sazetak!H36 -> 4.72968349 | HC4: =Sazetak!I36 -> 5.161467639 | HD4: =Sazetak!C37 -> 0.8593088764 | HE4: =Sazetak!D37 -> 0.8863489851 | HF4: =Sazetak!E37 -> 0.9302752446 | HG4: =Sazetak!F37 -> 0.923023015 | HH4: =Sazetak!G37 -> 0.9554320857 | HI4: =Sazetak!H37 -> 0.9271353853 | HJ4: =Sazetak!I37 -> 0.930511356 | HK4: =Sazetak!C38 -> 0 | HL4: =Sazetak!EU39 -> 0 | HM4: =Sazetak!EV39 -> 0 | HN4: =Sazetak!EW39 -> 0 | HO4: =Sazetak!EX39 -> 0 | HP4: =Sazetak!EY39 -> 0 | HQ4: =Sazetak!EZ39 -> 0 | HR4: =Sazetak!C39 -> 0 | HS4: =Sazetak!D39 -> 0 | HT4: =Sazetak!E39 -> 0 | HU4: =Sazetak!F39 -> 0 | HV4: =Sazetak!G39 -> 0 | HW4: =Sazetak!H39 -> 0 | HX4: =Sazetak!I39 -> 0 | HY4: =Sazetak!C42 -> 260.421 | HZ4: =Sazetak!D42 -> 303.832 | IA4: =Sazetak!E42 -> 371.362 | IB4: =Sazetak!F42 -> 289.336 | IC4: =Sazetak!G42 -> 425 | ID4: =Sazetak!H42 -> 435 | IE4: =Sazetak!I42 -> 440

Sheet Sektorski pokazatelji
A1: Sektorski ključni pokazatelji
A2: Obveznik: | B2: =IF(ISBLANK(Podloga!B2),"",Podloga!B2) -> Zračna luka Osijek d.o.o. | C2: =Podloga!B34 -> 2021. ostvareno | D2: =Podloga!C34 -> 2022. ostvareno | E2: =Podloga!D34 -> 2023. procijenjeno | F2: =Podloga!E34 -> 2023. planirano | G2: =Podloga!F34 -> 2024. planirano | H2: =Podloga!G34 -> 2025. planirano | I2: =Podloga!H34 -> 2026. planirano | J2: ="Indeks "& RIGHT(LEFT(Podloga!C34,7),5) &" / "& RIGHT(LEFT(Podloga!B34,7),5) -> Indeks 22. o / 21. o | K2: ="Indeks "& RIGHT(LEFT(Podloga!D34,8),6) &" / "& RIGHT(LEFT(Podloga!C34,7),5) -> Indeks 23. pr / 22. o | L2: ="Indeks "& RIGHT(LEFT(Podloga!E34,8),6) &" / "& RIGHT(LEFT(Podloga!C34,7),5) -> Indeks 23. pl / 22. o | M2: ="Indeks "& RIGHT(LEFT(Podloga!F34,8),6) &" / "& RIGHT(LEFT(Podloga!E34,8),6) -> Indeks 24. pl / 23. pl | N2: ="Indeks "& RIGHT(LEFT(Podloga!G34,8),6) &" / "& RIGHT(LEFT(Podloga!F34,8),6) -> Indeks 25. pl / 24. pl | O2: ="Indeks "& RIGHT(LEFT(Podloga!H34,8),6) &" / "& RIGHT(LEFT(Podloga!G34,8),6) -> Indeks 26. pl / 25. pl
A3: Operativni pokazatelji | B3: Način izračuna
A4: ostvareni promet zrakoplova | B4: ukupan broj polijetanja | C4: 1106 | D4: 902 | E4: 1388 | F4: 1378 | G4: 1449 | H4: 1543 | I4: 1574 | J4: =IFERROR(D4/C4*100,) -> 81.55515371 | K4: 153.8802661 | L4: =IFERROR(F4/D4*100,) -> 152.7716186 | M4: 105.1523948 | N4: 106.4872326 | O4: 102.0090732
A5: broj putnika | C5: 11515 | D5: 15875 | E5: 37448 | F5: 32871 | G5: 42414 | H5: 59795 | I5: 63499 | J5: 137.8636561 | K5: 235.8929134 | L5: 207.0614173 | M5: 129.0316693 | N5: 140.9793936 | O5: 106.1944979
A6: Promet po redovitim letovima | C6: 10028 | D6: 14530 | E6: 36013 | F6: 31021 | G6: 40936 | H6: 58254 | I6: 61929 | J6: 144.894296 | K6: 247.8527185 | L6: 213.4962147 | M6: 131.9622191 | N6: 142.3050616 | O6: 106.3085797
A7: promet po charter letovima | J7: 0 | K7: 0 | L7: 0 | M7: 0 | N7: 0 | O7: 0
A8: promet po ostalim letovima | C8: 1487 | D8: 1345 | E8: 1435 | F8: 1850 | G8: 1478 | H8: 1541 | I8: 1570 | J8: =IFERROR(D8/C8*100,) -> 90.45057162 | K8: =IFERROR(E8/D8*100,) -> 106.6914498 | L8: =IFERROR(F8/D8*100,) -> 137.5464684 | M8: =IFERROR(G8/F8*100,) -> 79.89189189 | N8: =IFERROR(H8/G8*100,) -> 104.2625169 | O8: =IFERROR(I8/H8*100,) -> 101.8818949
A9: promet po avio kompanijama | J9: 0 | K9: 0 | L9: 0 | M9: 0 | N9: 0 | O9: 0
A10: 1. Trade Air | C10: 4470 | D10: 2973 | E10: 8687 | F10: 6841 | G10: 9192 | H10: 9722 | I10: 10087 | J10: 66.51006711 | K10: 292.1964346 | L10: 230.1042718 | M10: 134.3663207 | N10: 105.7658834 | O10: 103.7543715
A11: 2. Croatia Airlines | C11: 5558 | D11: 11557 | E11: 14066 | F11: 15540 | G11: 14690 | H11: 14920 | I11: 15188 | J11: 207.9345088 | K11: 121.7097863 | L11: 134.4639612 | M11: 94.53024453 | N11: 101.5656909 | O11: 101.7962466
A12: 3. Wizz Air | C12: 0 | D12: 0 | E12: 0 | F12: 8640 | G12: 23760 | H12: 38052 | I12: 0 | J12: 0 | K12: 0 | L12: 0 | M12: 275 | N12: 160.1515152 | O12: 0
A13: 4. Eurowings | C13: 0 | D13: 0 | E13: 0 | F13: 0 | G13: 0 | H13: 0 | I13: 0 | J13: 0 | K13: 0 | L13: 0 | M13: 0 | N13: 0 | O13: 0
A14: 5. Ryanair | C14: 0 | E14: 13260 | G14: 17054 | H14: 22292 | I14: 22576 | J14: 0 | K14: 0 | L14: 0 | M14: 0 | N14: 130.7142019 | O14: 101.2739996
A15: Promet po zemljama odredišta: | J15: 0 | K15: 0 | L15: 0 | M15: 0 | N15: 0 | O15: 0
A16: 1. RH | C16: 9199 | D16: 8744 | E16: 15066 | F16: 13458 | G16: 15832 | H16: 16441 | I16: 16900 | J16: 95.0538102 | K16: 172.3010064 | L16: 153.9112534 | M16: 117.6400654 | N16: 103.8466397 | O16: 102.791801
A17: 2. Velika Britanija | C17: 0 | D17: 0 | E17: 13260 | F17: 0 | G17: 17054 | H17: 22292 | I17: 22576 | J17: 0 | K17: 0 | L17: 0 | M17: 0 | N17: 130.7142019 | O17: 101.2739996
A18: 3. Njemačka | C18: 829 | D18: 5786 | E18: 7687 | F18: 17563 | G18: 8050 | H18: 8201 | I18: 8305 | J18: 697.9493366 | K18: 132.8551676 | L18: 303.5430349 | M18: 45.83499402 | N18: 101.8757764 | O18: 101.268138
A19: 4. Švicarska | C19: 0 | D19: 0 | E19: 0 | F19: 0 | G19: 0 | H19: 11320 | I19: 14148 | J19: 0 | K19: 0 | L19: 0 | M19: 0 | N19: 0 | O19: 124.9823322
J20: 0 | K20: 0 | L20: 0 | M20: 0 | N20: 0 | O20: 0
J21: 0 | K21: 0 | L21: 0 | M21: 0 | N21: 0 | O21: 0
J22: 0 | K22: 0 | L22: 0 | M22: 0 | N22: 0 | O22: 0
J23: 0 | K23: 0 | L23: 0 | M23: 0 | N23: 0 | O23: 0
A24: Financijsko - naturalni pokazatelji
A25: Komercijalni prihod po putniku | B25: komercijalni prihod/broj putnika | C25: 44 | D25: 25 | E25: 30 | F25: 21 | G25: 30 | H25: 24 | I25: 25 | J25: =IFERROR(D25/C25*100,) -> 56.81818182 | K25: 120 | L25: =IFERROR(F25/D25*100,) -> 84 | M25: 142.8571429 | N25: 80 | O25: 104.1666667
A26: Troškovi po putniku | B26: troškovi/broj putnika | C26: 153 | D26: 87 | E26: 92 | F26: 65 | G26: 81 | H26: 60 | I26: 58 | J26: =IFERROR(D26/C26*100,) -> 56.8627451 | K26: =IFERROR(E26/D26*100,) -> 105.7471264 | L26: =IFERROR(F26/D26*100,) -> 74.71264368 | M26: =IFERROR(G26/F26*100,) -> 124.6153846 | N26: =IFERROR(H26/G26*100,) -> 74.07407407 | O26: =IFERROR(I26/H26*100,) -> 96.66666667
J27: 0 | K27: 0 | L27: 0 | M27: 0 | N27: 0 | O27: 0
A28: Tržišni pokazatelji
J29: =IFERROR(D29/C29*100,) -> 0 | K29: 0 | L29: =IFERROR(F29/D29*100,) -> 0 | M29: 0 | N29: 0 | O29: 0
J30: 0 | K30: 0 | L30: 0 | M30: 0 | N30: 0 | O30: 0
J31: 0 | K31: 0 | L31: 0 | M31: 0 | N31: 0 | O31: 0
A33: Razvojni pokazatelji
J34: =IFERROR(D34/C34*100,) -> 0 | K34: 0 | L34: =IFERROR(F34/D34*100,) -> 0 | M34: 0 | N34: 0 | O34: 0
J35: 0 | K35: 0 | L35: 0 | M35: 0 | N35: 0 | O35: 0
J36: 0 | K36: 0 | L36: 0 | M36: 0 | N36: 0 | O36: 0
A39: * Procijenjeni i planirani rezultati za tekuću godinu se uspoređuju s ostvarenim rezultatom poslovanja u prethodnoj godini
A40: ** Plavo osjenčana pozadina označava planirane vrijednosti
